{"text_format":"1","workbook":"xlsx","n_sheets":17,"sheets":["Notes","Summary","Region (Local Office) Q1","Trusts Q1","Sites Q1","Region (Local Office) Q2","Trusts Q2","Sites Q2","Region (Local Office) Q3","Trusts Q3","Sites Q3","Region (Local Office) Q4","Trusts Q4","BSQ1","BSQ2","BSQ3","BSQ4"],"not_rendered":{"charts":0,"images":0,"macros":1,"external_links":1,"defined_names":15,"comments":0,"pivot_tables":0},"unopened":[],"bounds":{"document_bytes":16777216,"sheet_cells":100000,"rows_first":2000,"rows_last":500,"rows_between":2000,"halvings":0,"cell_chars":16384,"cell_head_chars":4096},"cells_cut":0,"cells_raw":0,"read":"whole","date_system":"1900"}

{"sheet":"Notes","index":0,"n_rows":2,"n_cols":1,"rows_kept":2,"cut":false,"hidden":false,"merged":[[1,8,3,14]]}
[]
["Maternity Friends and Family Test (FFT) Data - December 2020"]

{"sheet":"Summary","index":1,"n_rows":23,"n_cols":10,"rows_kept":23,"cut":false,"hidden":false,"merged":[[6,1,7,1],[6,4,6,5],[6,6,6,7],[6,8,6,9]]}
[]
[]
[]
[]
[]
[]
[null,"FFT","Number of organisations submitting","Total responses to date","Responses",null,"Percentage Positive",null,"Percentage Negative"]
[null,null,{"$f":"[1]Instructions!$D$1","v":"2020-12-01"},{"$f":"[1]Instructions!$D$1","v":"2020-12-01"},{"$f":"[1]Instructions!$D$1","v":"2020-12-01"},{"$f":"[1]Instructions!$D$1-5","v":"2020-11-26"},{"$f":"[1]Instructions!$D$1","v":"2020-12-01"},{"$f":"[1]Instructions!$D$1-5","v":"2020-11-26"},{"$f":"[1]Instructions!$D$1","v":"2020-12-01"},{"$f":"[1]Instructions!$D$1-5","v":"2020-11-26"}]
[null,"Maternity Total",445,2710127,11302,"NA",0.8568394974340825,"NA",3.8311803220668905E-2,"NA"]
[null,"Maternity NHS Total",445,2710127,11302,"NA",0.8568394974340825,"NA",3.8311803220668905E-2,"NA"]
[null,"Maternity IS Total","NA","NA","NA","NA","NA","NA","NA","NA"]
[null,"Antenatal Total",105,542095,2273,"NA",0.8794544654641443,"NA",6.2472503299604049E-2,"NA"]
[null,"Antenatal NHS ",105,542095,2273,"NA",0.8794544654641443,"NA",6.2472503299604049E-2,"NA"]
[null,"Antenatal IS","NA","NA","NA","NA","NA","NA","NA","NA"]
[null,"Birth Total",113,845272,3517,"NA",0.9516633494455502,"NA",2.7580324139891952E-2,"NA"]
[null,"Birth NHS",113,845272,3517,"NA",0.9516633494455502,"NA",2.7580324139891952E-2,"NA"]
[null,"Birth IS","NA","NA","NA","NA","NA","NA","NA","NA"]
[null,"Postnatal Ward Total",107,919729,4356,"NA",0.9302112029384757,"NA",3.2139577594123052E-2,"NA"]
[null,"Postnatal Ward Total NHS",107,919729,4356,"NA",0.9302112029384757,"NA",3.2139577594123052E-2,"NA"]
[null,"Postnatal Ward Total IS","NA","NA","NA","NA","NA","NA","NA","NA"]
[null,"Postnatal Community Total",120,403031,1156,"NA",0.88235294117647056,"NA",4.6712802768166091E-2,"NA"]
[null,"Postnatal Community NHS",120,403031,1156,"NA",0.88235294117647056,"NA",4.6712802768166091E-2,"NA"]
[null,"Postnatal Community IS","NA","NA","NA","NA","NA","NA","NA","NA"]

{"sheet":"Region (Local Office) Q1","index":2,"n_rows":54,"n_cols":11,"rows_kept":54,"cut":false,"hidden":false,"merged":[[8,5,8,10],[8,0,9,0],[8,1,9,1],[8,2,9,2],[8,3,9,3],[8,4,9,4]]}
[]
[]
[]
[]
[]
[null,"   Sort data by:           "]
[]
[]
["STP Code","STP","Total Responses","Percentage Positive","Percentage Negative","Breakdown of Responses"]
[null,null,null,null,null,"Very Good","Good","Neither Good nor Poor","Poor","Very Poor","Don't Know"]
[null,"England (including Independent Sector providers)",2273,0.8794544654641443,6.2472503299604049E-2,1525,474,108,72,70,24]
[null,"England (excluding Independent Sector providers)",2273,0.8794544654641443,6.2472503299604049E-2,1525,474,108,72,70,24]
[null,"Selection (excluding suppressed data)",{"$f":"SUBTOTAL(9,C14:C54)","v":2273},{"$f":"IFERROR((F13+G13)/SUM(F13:K13), \"-\")","v":0.87921847246891649},{"$f":"IFERROR((I13+J13)/SUM(F13:K13), \"-\")","v":6.2611012433392538E-2},{"$f":"SUBTOTAL(9,F14:F54)","v":1507},473,107,71,70,24]
["QE1","HEALTHIER LANCASHIRE AND SOUTH CUMBRIA",44,0.81818181818181823,6.8181818181818177E-2,22,14,3,2,1,2]
["QF7","SOUTH YORKSHIRE AND BASSETLAW STP",23,0.86956521739130432,4.3478260869565216E-2,17,3,2,0,1,0]
["QGH","HEREFORDSHIRE AND WORCESTERSHIRE STP",27,0.96296296296296291,0,26,0,1,0,0,0]
["QHG","BEDFORDSHIRE, LUTON AND MILTON KEYNES STP",57,0.75438596491228072,3.5087719298245612E-2,21,22,12,0,2,0]
["QHL","BIRMINGHAM AND SOLIHULL STP",9,0.88888888888888884,0.1111111111111111,7,1,0,1,0,0]
["QHM","CUMBRIA AND NORTH EAST STP",23,1,0,17,6,0,0,0,0]
["QJ2","JOINED UP CARE DERBYSHIRE STP",8,0.625,0.25,3,2,1,0,2,0]
["QJG","SUFFOLK AND NORTH EAST ESSEX ICS",1,"*","*","*","*","*","*","*","*"]
["QJK","DEVON STP",13,0.92307692307692313,0,10,2,0,0,0,1]
["QJM","LINCOLNSHIRE STP",5,1,0,"*","*","*","*","*","*"]
["QK1","LEICESTER, LEICESTERSHIRE AND RUTLAND STP",77,0.97402597402597402,1.2987012987012988E-2,56,19,1,1,0,0]
["QKK","OUR HEALTHIER SOUTH EAST LONDON STP",26,0.92307692307692313,7.6923076923076927E-2,13,11,0,2,0,0]
["QKS","KENT AND MEDWAY STP",447,0.89932885906040272,6.2639821029082776E-2,318,84,17,17,11,0]
["QM7","HERTFORDSHIRE AND WEST ESSEX STP",17,0.88235294117647056,0,10,5,1,0,0,1]
["QMF","EAST LONDON HEALTH & CARE PARTNERSHIP (STP)",78,0.91025641025641024,6.4102564102564097E-2,52,19,2,2,3,0]
["QMJ","NORTH LONDON PARTNERS IN HEALTH & CARE (STP)",14,0.42857142857142855,0.42857142857142855,2,4,2,0,6,0]
["QMM","NORFOLK AND WAVENEY HEALTH & CARE PARTNERSHIP (STP)",32,0.875,6.25E-2,25,3,1,0,2,1]
["QNC","STAFFORDSHIRE & STOKE ON TRENT STP",0,"NA","NA",0,0,0,0,0,0]
["QNQ","FRIMLEY HEALTH & CARE (STP)",19,1,0,17,2,0,0,0,0]
["QNX","SUSSEX HEALTH AND CARE PARTNERSHIP",1,"*","*","*","*","*","*","*","*"]
["QOC","SHROPSHIRE AND TELFORD AND WREKIN STP",14,0.9285714285714286,0,"*","*","*","*","*","*"]
["QOP","GREATER MANCHESTER HEALTH & SOCIAL CARE PARTNERSHIP",40,0.95,2.5000000000000001E-2,30,8,1,0,1,0]
["QOQ","HUMBER, COAST AND VALE STP",55,1,0,49,6,0,0,0,0]
["QOX","BATH AND NORTH EAST SOMERSET, SWINDON AND WILTSHIRE STP",5,1,0,4,1,0,0,0,0]
["QPM","NORTHAMPTONSHIRE STP",0,"NA","NA",0,0,0,0,0,0]
["QR1","GLOUCESTERSHIRE STP",0,"NA","NA",0,0,0,0,0,0]
["QRL","HAMPSHIRE AND THE ISLE OF WIGHT STP",134,0.86567164179104472,8.2089552238805971E-2,70,46,6,7,4,1]
["QRV","NORTH WEST LONDON HEALTH & CARE PARTNERSHIP (STP)",304,0.86842105263157898,6.25E-2,176,88,21,8,11,0]
["QSL","SOMERSET STP",0,"NA","NA",0,0,0,0,0,0]
["QT1","NOTTINGHAM AND NOTTINGHAMSHIRE HEALTH AND CARE STP",47,0.87234042553191493,8.5106382978723402E-2,31,10,2,1,3,0]
["QT6","CORNWALL AND THE ISLES OF SCILLY HEALTH & SOCIAL CARE PARTNERSHIP (STP)",7,1,0,7,0,0,0,0,0]
["QU9","BUCKINGHAMSHIRE, OXFORDSHIRE AND BERKSHIRE WEST STP",25,0.72,0.16,12,6,3,2,2,0]
["QUA","THE BLACK COUNTRY AND WEST BIRMINGHAM STP",224,0.7544642857142857,0.10267857142857142,138,31,19,12,11,13]
["QUE","CAMBRIDGESHIRE AND PETERBOROUGH STP",205,0.97073170731707314,4.8780487804878049E-3,183,16,5,1,0,0]
["QUY","BRISTOL, NORTH SOMERSET AND SOUTH GLOUCESTERSHIRE STP",0,"NA","NA",0,0,0,0,0,0]
["QVV","DORSET STP",75,0.88,0.08,43,23,1,3,3,2]
["QWE","SOUTH WEST LONDON HEALTH & CARE PARTNERSHIP (STP)",89,0.8651685393258427,7.8651685393258425E-2,59,18,2,4,3,3]
["QWO","WEST YORKSHIRE AND HARROGATE HEALTH & CARE PARTNERSHIP (STP)",10,0.5,0.5,5,0,0,3,2,0]
["QWU","COVENTRY AND WARWICKSHIRE STP",53,0.96226415094339623,3.7735849056603772E-2,43,8,0,1,1,0]
["QXU","SURREY HEARTLANDS HEALTH & CARE PARTNERSHIP (STP)",21,0.95238095238095233,0,16,4,1,0,0,0]
["QYG","CHESHIRE AND MERSEYSIDE STP",44,0.81818181818181823,0.11363636363636363,25,11,3,4,1,0]

{"sheet":"Trusts Q1","index":3,"n_rows":118,"n_cols":20,"rows_kept":118,"cut":false,"hidden":false,"merged":[[8,6,8,11],[8,12,8,19],[8,0,9,0],[8,1,9,1],[8,2,9,2],[8,3,9,3],[8,4,9,4],[8,5,9,5]]}
[]
[]
[]
[]
[]
[null,"   Sort data by:           "]
[]
[]
["STP Code","Trust Code","Trust Name","Total Responses","Percentage Positive","Percentage Negative","Breakdown of Responses",null,null,null,null,null,"Mode of Collection"]
[null,null,null,null,null,null,"Very Good","Good","Neither Good nor Poor","Poor","Very Poor","Don't Know","Mode SMS","Mode Electronic Discharge","Mode Electronic Home","Mode Paper Discharge","Mode Paper Home","Mode Telephone","Mode Online","Mode Other"]
[null,null,"England (including Independent Sector providers)",2273,0.8794544654641443,6.2472503299604049E-2,1525,474,108,72,70,24,881,187,92,558,136,0,419,0]
[null,null,"England (excluding Independent Sector providers)",2273,0.8794544654641443,6.2472503299604049E-2,1525,474,108,72,70,24,881,187,92,558,136,0,419,0]
[null,null,"Selection (excluding suppressed data)",{"$f":"SUBTOTAL(9,D14:D298)","v":2273},{"$f":"IFERROR((G13+H13)/SUM(G13:L13), \"-\")","v":0.86949516648764769},{"$f":"IFERROR((J13+K13)/SUM(G13:L13), \"-\")","v":6.8206229860365203E-2},{"$f":"SUBTOTAL(9,G14:G298)","v":1192},427,93,64,63,23,843,176,89,265,97,0,392,0]
["QE1","RTX","UNIVERSITY HOSPITALS OF MORECAMBE BAY NHS FOUNDATION TRUST",0,"NA","NA",0,0,0,0,0,0,0,0,0,0,0,0,0,0]
["QE1","RXR","EAST LANCASHIRE HOSPITALS NHS TRUST",13,0.76923076923076927,0,7,3,1,0,0,2,11,0,0,0,0,0,2,0]
["QE1","RXN","LANCASHIRE TEACHING HOSPITALS NHS FOUNDATION TRUST",31,0.83870967741935487,9.6774193548387094E-2,15,11,2,2,1,0,31,0,0,0,0,0,0,0]
["QF7","RFR","THE ROTHERHAM NHS FOUNDATION TRUST",0,"NA","NA",0,0,0,0,0,0,0,0,0,0,0,0,0,0]
["QF7","RFF","BARNSLEY HOSPITAL NHS FOUNDATION TRUST",2,"*","*","*","*","*","*","*","*","*","*","*","*","*","*","*","*"]
["QF7","RP5","DONCASTER AND BASSETLAW TEACHING HOSPITALS NHS FOUNDATION TRUST",4,"*","*","*","*","*","*","*","*","*","*","*","*","*","*","*","*"]
["QF7","RHQ","SHEFFIELD TEACHING HOSPITALS NHS FOUNDATION TRUST",17,0.82352941176470584,5.8823529411764705E-2,12,2,2,0,1,0,17,0,0,0,0,0,0,0]
["QGH","RLQ","WYE VALLEY NHS TRUST",1,"*","*","*","*","*","*","*","*","*","*","*","*","*","*","*","*"]
["QGH","RWP","WORCESTERSHIRE ACUTE HOSPITALS NHS TRUST",26,0.96153846153846156,0,"*","*","*","*","*","*","*","*","*","*","*","*","*","*"]
["QHG","RD8","MILTON KEYNES UNIVERSITY HOSPITAL NHS FOUNDATION TRUST",26,0.5,7.6923076923076927E-2,7,6,11,0,2,0,0,0,0,14,0,0,12,0]
["QHG","RC9","BEDFORDSHIRE HOSPITALS NHS FOUNDATION TRUST",31,0.967741935483871,0,14,16,1,0,0,0,0,31,0,0,0,0,0,0]
["QHL","RRK","UNIVERSITY HOSPITALS BIRMINGHAM NHS FOUNDATION TRUST",0,"NA","NA",0,0,0,0,0,0,0,0,0,0,0,0,0,0]
["QHL","RQ3","BIRMINGHAM WOMEN'S AND CHILDREN'S NHS FOUNDATION TRUST",9,0.88888888888888884,0.1111111111111111,7,1,0,1,0,0,0,8,0,0,0,0,1,0]
["QHM","RTF","NORTHUMBRIA HEALTHCARE NHS FOUNDATION TRUST",0,"NA","NA",0,0,0,0,0,0,0,0,0,0,0,0,0,0]
["QHM","RVW","NORTH TEES AND HARTLEPOOL NHS FOUNDATION TRUST",0,"NA","NA",0,0,0,0,0,0,0,0,0,0,0,0,0,0]
["QHM","R0B","SOUTH TYNESIDE AND SUNDERLAND NHS FOUNDATION TRUST",2,"*","*","*","*","*","*","*","*","*","*","*","*","*","*","*","*"]
["QHM","RTR","SOUTH TEES HOSPITALS NHS FOUNDATION TRUST",3,"*","*","*","*","*","*","*","*","*","*","*","*","*","*","*","*"]
["QHM","RNN","NORTH CUMBRIA INTEGRATED CARE NHS FOUNDATION TRUST",18,1,0,14,4,0,0,0,0,0,0,0,18,0,0,0,0]
["QJ2","RFS","CHESTERFIELD ROYAL HOSPITAL NHS FOUNDATION TRUST",1,"*","*","*","*","*","*","*","*","*","*","*","*","*","*","*","*"]
["QJ2","RTG","UNIVERSITY HOSPITALS OF DERBY AND BURTON NHS FOUNDATION TRUST",7,0.7142857142857143,0.14285714285714285,"*","*","*","*","*","*","*","*","*","*","*","*","*","*"]
["QJG","RGR","WEST SUFFOLK NHS FOUNDATION TRUST",0,"NA","NA",0,0,0,0,0,0,0,0,0,0,0,0,0,0]
["QJG","RDE","EAST SUFFOLK AND NORTH ESSEX NHS FOUNDATION TRUST",1,"*","*","*","*","*","*","*","*","*","*","*","*","*","*","*","*"]
["QJK","RH8","ROYAL DEVON AND EXETER NHS FOUNDATION TRUST",0,"NA","NA",0,0,0,0,0,0,0,0,0,0,0,0,0,0]
["QJK","RBZ","NORTHERN DEVON HEALTHCARE NHS TRUST",4,"*","*","*","*","*","*","*","*","*","*","*","*","*","*","*","*"]
["QJK","RK9","UNIVERSITY HOSPITALS PLYMOUTH NHS TRUST",9,0.88888888888888884,0,"*","*","*","*","*","*","*","*","*","*","*","*","*","*"]
["QJM","RWD","UNITED LINCOLNSHIRE HOSPITALS NHS TRUST",5,1,0,"*","*","*","*","*","*","*","*","*","*","*","*","*","*"]
["QK1","RWE","UNIVERSITY HOSPITALS OF LEICESTER NHS TRUST",77,0.97402597402597402,1.2987012987012988E-2,56,19,1,1,0,0,0,66,0,4,7,0,0,0]
["QKK","RJZ","KING'S COLLEGE HOSPITAL NHS FOUNDATION TRUST",1,"*","*","*","*","*","*","*","*","*","*","*","*","*","*","*","*"]
["QKK","RJ1","GUY'S AND ST THOMAS' NHS FOUNDATION TRUST",5,0.8,0.2,"*","*","*","*","*","*","*","*","*","*","*","*","*","*"]
["QKK","RJ2","LEWISHAM AND GREENWICH NHS TRUST",20,0.95,0.05,9,10,0,1,0,0,13,0,0,7,0,0,0,0]
["QKS","RWF","MAIDSTONE AND TUNBRIDGE WELLS NHS TRUST",45,0.93333333333333335,2.2222222222222223E-2,38,4,2,1,0,0,0,0,0,45,0,0,0,0]
["QKS","RPA","MEDWAY NHS FOUNDATION TRUST",79,1,0,79,0,0,0,0,0,0,0,79,0,0,0,0,0]
["QKS","RVV","EAST KENT HOSPITALS UNIVERSITY NHS FOUNDATION TRUST",323,0.86996904024767807,8.3591331269349839E-2,201,80,15,16,11,0,323,0,0,0,0,0,0,0]
["QM7","RQW","THE PRINCESS ALEXANDRA HOSPITAL NHS TRUST",0,"NA","NA",0,0,0,0,0,0,0,0,0,0,0,0,0,0]
["QM7","RWH","EAST AND NORTH HERTFORDSHIRE NHS TRUST",7,0.8571428571428571,0,4,2,1,0,0,0,0,0,0,0,0,0,7,0]
["QM7","RWG","WEST HERTFORDSHIRE HOSPITALS NHS TRUST",10,0.9,0,6,3,0,0,0,1,0,10,0,0,0,0,0,0]
["QMF","RF4","BARKING, HAVERING AND REDBRIDGE UNIVERSITY HOSPITALS NHS TRUST",0,"NA","NA",0,0,0,0,0,0,0,0,0,0,0,0,0,0]
["QMF","R1H","BARTS HEALTH NHS TRUST",78,0.91025641025641024,6.4102564102564097E-2,52,19,2,2,3,0,21,0,0,0,57,0,0,0]
["QMJ","RKE","WHITTINGTON HEALTH NHS TRUST",0,"NA","NA",0,0,0,0,0,0,0,0,0,0,0,0,0,0]
["QMJ","RAL","ROYAL FREE LONDON NHS FOUNDATION TRUST",14,0.42857142857142855,0.42857142857142855,2,4,2,0,6,0,0,14,0,0,0,0,0,0]
["QMM","RCX","THE QUEEN ELIZABETH HOSPITAL, KING'S LYNN, NHS FOUNDATION TRUST",6,1,0,6,0,0,0,0,0,0,3,0,0,0,0,3,0]
["QMM","RM1","NORFOLK AND NORWICH UNIVERSITY HOSPITALS NHS FOUNDATION TRUST",26,0.84615384615384615,7.6923076923076927E-2,19,3,1,0,2,1,0,0,0,2,0,0,24,0]
["QNC","RJE","UNIVERSITY HOSPITALS OF NORTH MIDLANDS NHS TRUST",0,"NA","NA",0,0,0,0,0,0,0,0,0,0,0,0,0,0]
["QNQ","RDU","FRIMLEY HEALTH NHS FOUNDATION TRUST",19,1,0,17,2,0,0,0,0,0,0,0,19,0,0,0,0]
["QNX","RXC","EAST SUSSEX HEALTHCARE NHS TRUST",0,"NA","NA",0,0,0,0,0,0,0,0,0,0,0,0,0,0]
["QNX","RXH","BRIGHTON AND SUSSEX UNIVERSITY HOSPITALS NHS TRUST",0,"NA","NA",0,0,0,0,0,0,0,0,0,0,0,0,0,0]
["QNX","RYR","WESTERN SUSSEX HOSPITALS NHS FOUNDATION TRUST",1,"*","*","*","*","*","*","*","*","*","*","*","*","*","*","*","*"]
["QOC","RXW","THE SHREWSBURY AND TELFORD HOSPITAL NHS TRUST",14,0.9285714285714286,0,"*","*","*","*","*","*","*","*","*","*","*","*","*","*"]
["QOP","RMP","TAMESIDE AND GLOSSOP INTEGRATED CARE NHS FOUNDATION TRUST",1,"*","*","*","*","*","*","*","*","*","*","*","*","*","*","*","*"]
["QOP","R0A","MANCHESTER UNIVERSITY NHS FOUNDATION TRUST",39,0.94871794871794868,2.564102564102564E-2,"*","*","*","*","*","*","*","*","*","*","*","*","*","*"]
["QOQ","RJL","NORTHERN LINCOLNSHIRE AND GOOLE NHS FOUNDATION TRUST",0,"NA","NA",0,0,0,0,0,0,0,0,0,0,0,0,0,0]
["QOQ","RCB","YORK TEACHING HOSPITAL NHS FOUNDATION TRUST",10,1,0,10,0,0,0,0,0,0,0,10,0,0,0,0,0]
["QOQ","RCD","HARROGATE AND DISTRICT NHS FOUNDATION TRUST",45,1,0,39,6,0,0,0,0,0,0,0,45,0,0,0,0]
["QOX","RN3","GREAT WESTERN HOSPITALS NHS FOUNDATION TRUST",0,"NA","NA",0,0,0,0,0,0,0,0,0,0,0,0,0,0]
["QOX","RNZ","SALISBURY NHS FOUNDATION TRUST",0,"NA","NA",0,0,0,0,0,0,0,0,0,0,0,0,0,0]
["QOX","RD1","ROYAL UNITED HOSPITALS BATH NHS FOUNDATION TRUST",5,1,0,4,1,0,0,0,0,0,0,0,4,0,0,1,0]
["QPM","RNS","NORTHAMPTON GENERAL HOSPITAL NHS TRUST",0,"NA","NA",0,0,0,0,0,0,0,0,0,0,0,0,0,0]
["QR1","RTE","GLOUCESTERSHIRE HOSPITALS NHS FOUNDATION TRUST",0,"NA","NA",0,0,0,0,0,0,0,0,0,0,0,0,0,0]
["QRL","RHU","PORTSMOUTH HOSPITALS UNIVERSITY NATIONAL HEALTH SERVICE TRUST",0,"NA","NA",0,0,0,0,0,0,0,0,0,0,0,0,0,0]
["QRL","RN5","HAMPSHIRE HOSPITALS NHS FOUNDATION TRUST",1,"*","*","*","*","*","*","*","*","*","*","*","*","*","*","*","*"]
["QRL","R1F","ISLE OF WIGHT NHS TRUST",8,1,0,"*","*","*","*","*","*","*","*","*","*","*","*","*","*"]
["QRL","RHM","UNIVERSITY HOSPITAL SOUTHAMPTON NHS FOUNDATION TRUST",125,0.85599999999999998,8.7999999999999995E-2,64,43,6,7,4,1,0,0,0,28,0,0,97,0]
["QRV","R1K","LONDON NORTH WEST UNIVERSITY HEALTHCARE NHS TRUST",5,1,0,4,1,0,0,0,0,0,0,0,5,0,0,0,0]
["QRV","RQM","CHELSEA AND WESTMINSTER HOSPITAL NHS FOUNDATION TRUST",22,0.81818181818181823,0.13636363636363635,15,3,1,1,2,0,20,0,0,0,0,0,2,0]
["QRV","RYJ","IMPERIAL COLLEGE HEALTHCARE NHS TRUST",61,0.85245901639344257,6.5573770491803282E-2,35,17,5,3,1,0,61,0,0,0,0,0,0,0]
["QRV","RAS","THE HILLINGDON HOSPITALS NHS FOUNDATION TRUST",216,0.875,5.5555555555555552E-2,122,67,15,4,8,0,0,0,0,0,0,0,216,0]
["QSL","RA4","YEOVIL DISTRICT HOSPITAL NHS FOUNDATION TRUST",0,"NA","NA",0,0,0,0,0,0,0,0,0,0,0,0,0,0]
["QSL","RH5","SOMERSET NHS FOUNDATION TRUST",0,"NA","NA",0,0,0,0,0,0,0,0,0,0,0,0,0,0]
["QT1","RX1","NOTTINGHAM UNIVERSITY HOSPITALS NHS TRUST",16,1,0,15,1,0,0,0,0,0,0,0,0,16,0,0,0]
["QT1","RK5","SHERWOOD FOREST HOSPITALS NHS FOUNDATION TRUST",31,0.80645161290322576,0.12903225806451613,16,9,2,1,3,0,31,0,0,0,0,0,0,0]
["QT6","REF","ROYAL CORNWALL HOSPITALS NHS TRUST",7,1,0,7,0,0,0,0,0,0,0,0,7,0,0,0,0]
["QU9","RTH","OXFORD UNIVERSITY HOSPITALS NHS FOUNDATION TRUST",0,"NA","NA",0,0,0,0,0,0,0,0,0,0,0,0,0,0]
["QU9","RHW","ROYAL BERKSHIRE NHS FOUNDATION TRUST",2,"*","*","*","*","*","*","*","*","*","*","*","*","*","*","*","*"]
["QU9","RXQ","BUCKINGHAMSHIRE HEALTHCARE NHS TRUST",23,0.73913043478260865,0.13043478260869565,"*","*","*","*","*","*","*","*","*","*","*","*","*","*"]
["QUA","RBK","WALSALL HEALTHCARE NHS TRUST",24,0.79166666666666663,0.125,18,1,2,2,1,0,24,0,0,0,0,0,0,0]
["QUA","RNA","THE DUDLEY GROUP NHS FOUNDATION TRUST",33,0.60606060606060608,0,19,1,0,0,0,13,0,0,0,0,17,0,16,0]
["QUA","RXK","SANDWELL AND WEST BIRMINGHAM HOSPITALS NHS TRUST",167,0.77844311377245512,0.11976047904191617,101,29,17,10,10,0,167,0,0,0,0,0,0,0]
["QUE","RGT","CAMBRIDGE UNIVERSITY HOSPITALS NHS FOUNDATION TRUST",4,"*","*","*","*","*","*","*","*","*","*","*","*","*","*","*","*"]
["QUE","RGN","NORTH WEST ANGLIA NHS FOUNDATION TRUST",201,0.97512437810945274,4.9751243781094526E-3,"*","*","*","*","*","*","*","*","*","*","*","*","*","*"]
["QUY","RA7","UNIVERSITY HOSPITALS BRISTOL AND WESTON NHS FOUNDATION TRUST",0,"NA","NA",0,0,0,0,0,0,0,0,0,0,0,0,0,0]
["QUY","RVJ","NORTH BRISTOL NHS TRUST",0,"NA","NA",0,0,0,0,0,0,0,0,0,0,0,0,0,0]
["QVV","RBD","DORSET COUNTY HOSPITAL NHS FOUNDATION TRUST",17,0.88235294117647056,5.8823529411764705E-2,11,4,0,1,0,1,17,0,0,0,0,0,0,0]
["QVV","R0D","UNIVERSITY HOSPITALS DORSET NHS FOUNDATION TRUST",58,0.87931034482758619,8.6206896551724144E-2,32,19,1,2,3,1,22,0,0,36,0,0,0,0]
["QWE","RAX","KINGSTON HOSPITAL NHS FOUNDATION TRUST",1,"*","*","*","*","*","*","*","*","*","*","*","*","*","*","*","*"]
["QWE","RJ7","ST GEORGE'S UNIVERSITY HOSPITALS NHS FOUNDATION TRUST",1,"*","*","*","*","*","*","*","*","*","*","*","*","*","*","*","*"]
["QWE","RVR","EPSOM AND ST HELIER UNIVERSITY HOSPITALS NHS TRUST",16,1,0,15,1,0,0,0,0,0,1,0,12,0,0,3,0]
["QWE","RJ6","CROYDON HEALTH SERVICES NHS TRUST",71,0.84507042253521125,8.4507042253521125E-2,43,17,2,4,2,3,71,0,0,0,0,0,0,0]
["QWO","RAE","BRADFORD TEACHING HOSPITALS NHS FOUNDATION TRUST",0,"NA","NA",0,0,0,0,0,0,0,0,0,0,0,0,0,0]
["QWO","RCF","AIREDALE NHS FOUNDATION TRUST",0,"NA","NA",0,0,0,0,0,0,0,0,0,0,0,0,0,0]
["QWO","RXF","MID YORKSHIRE HOSPITALS NHS TRUST",0,"NA","NA",0,0,0,0,0,0,0,0,0,0,0,0,0,0]
["QWO","RR8","LEEDS TEACHING HOSPITALS NHS TRUST",5,0.2,0.8,1,0,0,3,1,0,0,5,0,0,0,0,0,0]
["QWO","RWY","CALDERDALE AND HUDDERSFIELD NHS FOUNDATION TRUST",5,0.8,0.2,4,0,0,0,1,0,0,0,0,0,0,0,5,0]
["QWU","RJC","SOUTH WARWICKSHIRE NHS FOUNDATION TRUST",2,"*","*","*","*","*","*","*","*","*","*","*","*","*","*","*","*"]
["QWU","RLT","GEORGE ELIOT HOSPITAL NHS TRUST",10,1,0,"*","*","*","*","*","*","*","*","*","*","*","*","*","*"]
["QWU","RKB","UNIVERSITY HOSPITALS COVENTRY AND WARWICKSHIRE NHS TRUST",41,0.95121951219512191,4.878048780487805E-2,32,7,0,1,1,0,0,38,0,0,0,0,3,0]
["QXU","RA2","ROYAL SURREY COUNTY HOSPITAL NHS FOUNDATION TRUST",4,"*","*","*","*","*","*","*","*","*","*","*","*","*","*","*","*"]
["QXU","RTP","SURREY AND SUSSEX HEALTHCARE NHS TRUST",17,1,0,"*","*","*","*","*","*","*","*","*","*","*","*","*","*"]
["QYG","RBL","WIRRAL UNIVERSITY TEACHING HOSPITAL NHS FOUNDATION TRUST",0,"NA","NA",0,0,0,0,0,0,0,0,0,0,0,0,0,0]
["QYG","RJN","EAST CHESHIRE NHS TRUST",0,"NA","NA",0,0,0,0,0,0,0,0,0,0,0,0,0,0]
["QYG","RWW","WARRINGTON AND HALTON TEACHING HOSPITALS NHS FOUNDATION TRUST",0,"NA","NA",0,0,0,0,0,0,0,0,0,0,0,0,0,0]
["QYG","RY2","BRIDGEWATER COMMUNITY HEALTHCARE NHS FOUNDATION TRUST",0,"NA","NA",0,0,0,0,0,0,0,0,0,0,0,0,0,0]
["QYG","RBT","MID CHESHIRE HOSPITALS NHS FOUNDATION TRUST",4,"*","*","*","*","*","*","*","*","*","*","*","*","*","*","*","*"]
["QYG","REP","LIVERPOOL WOMEN'S NHS FOUNDATION TRUST",7,0.42857142857142855,0.2857142857142857,"*","*","*","*","*","*","*","*","*","*","*","*","*","*"]
["QYG","RJR","COUNTESS OF CHESTER HOSPITAL NHS FOUNDATION TRUST",14,0.9285714285714286,7.1428571428571425E-2,8,5,0,1,0,0,14,0,0,0,0,0,0,0]
["QYG","RBN","ST HELENS AND KNOWSLEY TEACHING HOSPITALS NHS TRUST",19,0.94736842105263153,0,12,6,1,0,0,0,0,0,0,19,0,0,0,0]

{"sheet":"Sites Q1","index":4,"n_rows":185,"n_cols":14,"rows_kept":185,"cut":false,"hidden":false,"merged":[[8,6,9,6],[8,7,9,7],[8,8,8,13],[8,0,9,0],[8,1,9,1],[8,2,9,2],[8,3,9,3],[8,4,9,4],[8,5,9,5]]}
[]
[]
[]
[]
[]
[null,"   Sort data by:           "]
[]
[]
["STP Code","Trust Code","Trust Name","Site Code","Site Name","Total Responses","Percentage Positive","Percentage Negative","Breakdown of Responses"]
[null,null,null,null,null,null,null,null,"Very Good","Good","Neither Good nor Poor","Poor","Very Poor","Don't Know"]
[null,null,null,null,"England (including Independent Sector providers)",2273,0.8794544654641443,6.2472503299604049E-2,1525,474,108,72,70,24]
[null,null,null,null,"England (excluding Independent Sector providers)",2273,0.8794544654641443,6.2472503299604049E-2,1525,474,108,72,70,24]
[null,null,null,null,"Selection (excluding suppressed data)",{"$f":"SUBTOTAL(9,F14:F297)","v":2273},{"$f":"IFERROR((I13+J13)/SUM(I13:N13), \"-\")","v":0.87263626251390436},{"$f":"IFERROR((L13+M13)/SUM(I13:N13), \"-\")","v":6.5072302558398215E-2},{"$f":"SUBTOTAL(9,I14:I297)","v":1153},416,89,63,54,23]
["QE1","RXR","EAST LANCASHIRE HOSPITALS NHS TRUST","RXR20","Royal Blackburn Hospital",13,0.76923076923076927,0,7,3,1,0,0,2]
["QE1","RXN","LANCASHIRE TEACHING HOSPITALS NHS FOUNDATION TRUST","RXN01","Chorley and South Ribble Hospital",0,"NA","NA",0,0,0,0,0,0]
["QE1","RXN","LANCASHIRE TEACHING HOSPITALS NHS FOUNDATION TRUST","RXN02","Royal Preston Hospital",31,0.83870967741935487,9.6774193548387094E-2,15,11,2,2,1,0]
["QE1","RTX","UNIVERSITY HOSPITALS OF MORECAMBE BAY NHS FOUNDATION TRUST","RTX02","Royal Lancaster Infirmary",0,"NA","NA",0,0,0,0,0,0]
["QE1","RTX","UNIVERSITY HOSPITALS OF MORECAMBE BAY NHS FOUNDATION TRUST","RTXBU","Furness General Hospital",0,"NA","NA",0,0,0,0,0,0]
["QE1","RTX","UNIVERSITY HOSPITALS OF MORECAMBE BAY NHS FOUNDATION TRUST","RTXBW","Westmorland General Hospital",0,"NA","NA",0,0,0,0,0,0]
["QF7","RFF","BARNSLEY HOSPITAL NHS FOUNDATION TRUST","RFFAA","Barnsley Hospital NHS Foundation Trust HQ",2,"*","*","*","*","*","*","*","*"]
["QF7","RP5","DONCASTER AND BASSETLAW TEACHING HOSPITALS NHS FOUNDATION TRUST","RP5BA","Bassetlaw Hospital",0,"NA","NA",0,0,0,0,0,0]
["QF7","RP5","DONCASTER AND BASSETLAW TEACHING HOSPITALS NHS FOUNDATION TRUST","RP5XXX","Non-hospital site",0,"NA","NA",0,0,0,0,0,0]
["QF7","RP5","DONCASTER AND BASSETLAW TEACHING HOSPITALS NHS FOUNDATION TRUST","RP5DR","Doncaster Royal Infirmary",4,"*","*","*","*","*","*","*","*"]
["QF7","RHQ","SHEFFIELD TEACHING HOSPITALS NHS FOUNDATION TRUST","RHQHH","Royal Hallamshire Hospital",17,0.82352941176470584,5.8823529411764705E-2,12,2,2,0,1,0]
["QF7","RFR","THE ROTHERHAM NHS FOUNDATION TRUST","RFRPA","Rotherham District General Hospital",0,"NA","NA",0,0,0,0,0,0]
["QGH","RWP","WORCESTERSHIRE ACUTE HOSPITALS NHS TRUST","RWP01","Alexandra Hospital",0,"NA","NA",0,0,0,0,0,0]
["QGH","RWP","WORCESTERSHIRE ACUTE HOSPITALS NHS TRUST","RWP50","Worcestershire Royal Hospital",11,1,0,"*","*","*","*","*","*"]
["QGH","RWP","WORCESTERSHIRE ACUTE HOSPITALS NHS TRUST","RWP31","Kidderminster Hospital",15,0.93333333333333335,0,"*","*","*","*","*","*"]
["QGH","RLQ","WYE VALLEY NHS TRUST","RLQ01","Hereford County Hospital",1,"*","*","*","*","*","*","*","*"]
["QHG","RC9","BEDFORDSHIRE HOSPITALS NHS FOUNDATION TRUST","RC979","BEDFORD HOSPITAL SOUTH WING",0,"NA","NA",0,0,0,0,0,0]
["QHG","RC9","BEDFORDSHIRE HOSPITALS NHS FOUNDATION TRUST","RC971","Luton and Dunstable Hospital",31,0.967741935483871,0,14,16,1,0,0,0]
["QHG","RD8","MILTON KEYNES UNIVERSITY HOSPITAL NHS FOUNDATION TRUST","RD816","Milton Keynes Hospital",26,0.5,7.6923076923076927E-2,7,6,11,0,2,0]
["QHL","RQ3","BIRMINGHAM WOMEN'S AND CHILDREN'S NHS FOUNDATION TRUST","RQ370","Birmingham Women's Hospital",9,0.88888888888888884,0.1111111111111111,7,1,0,1,0,0]
["QHL","RRK","UNIVERSITY HOSPITALS BIRMINGHAM NHS FOUNDATION TRUST","RRK97","Heartlands Hospital",0,"NA","NA",0,0,0,0,0,0]
["QHL","RRK","UNIVERSITY HOSPITALS BIRMINGHAM NHS FOUNDATION TRUST","RRK98","Good Hope Hospital",0,"NA","NA",0,0,0,0,0,0]
["QHL","RRK","UNIVERSITY HOSPITALS BIRMINGHAM NHS FOUNDATION TRUST","RRK99","Solihull Hospital",0,"NA","NA",0,0,0,0,0,0]
["QHM","RNN","NORTH CUMBRIA INTEGRATED CARE NHS FOUNDATION TRUST","RNNXXX","Non-hospital site",18,1,0,14,4,0,0,0,0]
["QHM","RVW","NORTH TEES AND HARTLEPOOL NHS FOUNDATION TRUST","RVWAE","University Hospital Of North Tees",0,"NA","NA",0,0,0,0,0,0]
["QHM","RVW","NORTH TEES AND HARTLEPOOL NHS FOUNDATION TRUST","RVWXXX","Non-hospital site",0,"NA","NA",0,0,0,0,0,0]
["QHM","RTF","NORTHUMBRIA HEALTHCARE NHS FOUNDATION TRUST","RTFXXX","Non-hospital site",0,"NA","NA",0,0,0,0,0,0]
["QHM","RTR","SOUTH TEES HOSPITALS NHS FOUNDATION TRUST","RTRAT","The James Cook University Hospital",3,"*","*","*","*","*","*","*","*"]
["QHM","R0B","SOUTH TYNESIDE AND SUNDERLAND NHS FOUNDATION TRUST","R0B0Q","South Tyneside District Hospital",0,"NA","NA",0,0,0,0,0,0]
["QHM","R0B","SOUTH TYNESIDE AND SUNDERLAND NHS FOUNDATION TRUST","R0B01","Sunderland Royal Hospital",2,"*","*","*","*","*","*","*","*"]
["QJ2","RFS","CHESTERFIELD ROYAL HOSPITAL NHS FOUNDATION TRUST","RFSDA","Chesterfield Royal Hospital",1,"*","*","*","*","*","*","*","*"]
["QJ2","RTG","UNIVERSITY HOSPITALS OF DERBY AND BURTON NHS FOUNDATION TRUST","RTG02","Queens Hospital, Burton Upon Trent",1,"*","*","*","*","*","*","*","*"]
["QJ2","RTG","UNIVERSITY HOSPITALS OF DERBY AND BURTON NHS FOUNDATION TRUST","RTGFG","Royal Derby Hospital",6,0.66666666666666663,0.16666666666666666,"*","*","*","*","*","*"]
["QJG","RDE","EAST SUFFOLK AND NORTH ESSEX NHS FOUNDATION TRUST","RDEE4","Colchester General Hospital",1,"*","*","*","*","*","*","*","*"]
["QJG","RGR","WEST SUFFOLK NHS FOUNDATION TRUST","RGR50","West Suffolk Hospital",0,"NA","NA",0,0,0,0,0,0]
["QJK","RBZ","NORTHERN DEVON HEALTHCARE NHS TRUST","RBZ12","North Devon District Hospital",4,"*","*","*","*","*","*","*","*"]
["QJK","RH8","ROYAL DEVON AND EXETER NHS FOUNDATION TRUST","RH801","Royal Devon and Exeter Hospital (Wonford)",0,"NA","NA",0,0,0,0,0,0]
["QJK","RK9","UNIVERSITY HOSPITALS PLYMOUTH NHS TRUST","RK9XXX","Non-hospital site",9,0.88888888888888884,0,"*","*","*","*","*","*"]
["QJM","RWD","UNITED LINCOLNSHIRE HOSPITALS NHS TRUST","RWDLA","Pilgrim Hospital",0,"NA","NA",0,0,0,0,0,0]
["QJM","RWD","UNITED LINCOLNSHIRE HOSPITALS NHS TRUST","RWDLP","Grantham and District Hospital",0,"NA","NA",0,0,0,0,0,0]
["QJM","RWD","UNITED LINCOLNSHIRE HOSPITALS NHS TRUST","RWDXXX","Non-hospital site",0,"NA","NA",0,0,0,0,0,0]
["QJM","RWD","UNITED LINCOLNSHIRE HOSPITALS NHS TRUST","RWDDA","Lincoln County Hospital",5,1,0,"*","*","*","*","*","*"]
["QK1","RWE","UNIVERSITY HOSPITALS OF LEICESTER NHS TRUST","RWEXXX","Non-hospital site",6,1,0,5,1,0,0,0,0]
["QK1","RWE","UNIVERSITY HOSPITALS OF LEICESTER NHS TRUST","RWEAA","Leicester Royal Infirmary",7,1,0,3,4,0,0,0,0]
["QK1","RWE","UNIVERSITY HOSPITALS OF LEICESTER NHS TRUST","RWEAK","Leicester General Hospital",64,0.96875,1.5625E-2,48,14,1,1,0,0]
["QKK","RJ1","GUY'S AND ST THOMAS' NHS FOUNDATION TRUST","RJ122","St Thomas' Hospital",5,0.8,0.2,"*","*","*","*","*","*"]
["QKK","RJZ","KING'S COLLEGE HOSPITAL NHS FOUNDATION TRUST","RJZ30","Princess Royal University Hospital",0,"NA","NA",0,0,0,0,0,0]
["QKK","RJZ","KING'S COLLEGE HOSPITAL NHS FOUNDATION TRUST","RJZ01","King's College Hospital (Denmark Hill)",1,"*","*","*","*","*","*","*","*"]
["QKK","RJ2","LEWISHAM AND GREENWICH NHS TRUST","RJ224","University Hospital Lewisham",0,"NA","NA",0,0,0,0,0,0]
["QKK","RJ2","LEWISHAM AND GREENWICH NHS TRUST","RJ2XXX","Non-hospital site",0,"NA","NA",0,0,0,0,0,0]
["QKK","RJ2","LEWISHAM AND GREENWICH NHS TRUST","RJ231","Queen Elizabeth Hospital",20,0.95,0.05,9,10,0,1,0,0]
["QKS","RVV","EAST KENT HOSPITALS UNIVERSITY NHS FOUNDATION TRUST","RVV01","William Harvey Hospital (Ashford)",323,0.86996904024767807,8.3591331269349839E-2,201,80,15,16,11,0]
["QKS","RWF","MAIDSTONE AND TUNBRIDGE WELLS NHS TRUST","RWF03","Maidstone District General Hospital",0,"NA","NA",0,0,0,0,0,0]
["QKS","RWF","MAIDSTONE AND TUNBRIDGE WELLS NHS TRUST","RWFXXX","Non-hospital site",9,1,0,9,0,0,0,0,0]
["QKS","RWF","MAIDSTONE AND TUNBRIDGE WELLS NHS TRUST","RWFTW","The Tunbridge Wells Hospital",36,0.91666666666666663,2.7777777777777776E-2,29,4,2,1,0,0]
["QKS","RPA","MEDWAY NHS FOUNDATION TRUST","RPA02","Medway Maritime Hospital",79,1,0,79,0,0,0,0,0]
["QM7","RWH","EAST AND NORTH HERTFORDSHIRE NHS TRUST","RWHXXX","Non-hospital site",3,"*","*","*","*","*","*","*","*"]
["QM7","RWH","EAST AND NORTH HERTFORDSHIRE NHS TRUST","RWH01","Lister Hospital",4,"*","*","*","*","*","*","*","*"]
["QM7","RQW","THE PRINCESS ALEXANDRA HOSPITAL NHS TRUST","RQWG0","Princess Alexandra Hospital",0,"NA","NA",0,0,0,0,0,0]
["QM7","RWG","WEST HERTFORDSHIRE HOSPITALS NHS TRUST","RWG02","Watford General Hospital",10,0.9,0,6,3,0,0,0,1]
["QMF","RF4","BARKING, HAVERING AND REDBRIDGE UNIVERSITY HOSPITALS NHS TRUST","RF4XXX","Non-hospital site",0,"NA","NA",0,0,0,0,0,0]
["QMF","R1H","BARTS HEALTH NHS TRUST","R1H12","The Royal London Hospital",12,0.91666666666666663,8.3333333333333329E-2,8,3,0,0,1,0]
["QMF","R1H","BARTS HEALTH NHS TRUST","R1HKH","Whipps Cross University Hospital",28,0.9285714285714286,7.1428571428571425E-2,13,13,0,2,0,0]
["QMF","R1H","BARTS HEALTH NHS TRUST","R1HNH","Newham General Hospital",38,0.89473684210526316,5.2631578947368418E-2,31,3,2,0,2,0]
["QMJ","RAL","ROYAL FREE LONDON NHS FOUNDATION TRUST","RAL01","Royal Free Hospital",1,"*","*","*","*","*","*","*","*"]
["QMJ","RAL","ROYAL FREE LONDON NHS FOUNDATION TRUST","RAL26","Barnet Hospital",13,0.38461538461538464,0.46153846153846156,"*","*","*","*","*","*"]
["QMJ","RKE","WHITTINGTON HEALTH NHS TRUST","RKEQ4","The Whittington Hospital",0,"NA","NA",0,0,0,0,0,0]
["QMJ","RKE","WHITTINGTON HEALTH NHS TRUST","RKEXXX","Non-hospital site",0,"NA","NA",0,0,0,0,0,0]
["QMM","RM1","NORFOLK AND NORWICH UNIVERSITY HOSPITALS NHS FOUNDATION TRUST","RM102","Norfolk and Norwich University Hospital",26,0.84615384615384615,7.6923076923076927E-2,19,3,1,0,2,1]
["QMM","RCX","THE QUEEN ELIZABETH HOSPITAL, KING'S LYNN, NHS FOUNDATION TRUST","RCX66","North Cambridgeshire Hospital",0,"NA","NA",0,0,0,0,0,0]
["QMM","RCX","THE QUEEN ELIZABETH HOSPITAL, KING'S LYNN, NHS FOUNDATION TRUST","RCX70","The Queen Elizabeth Hospital",2,"*","*","*","*","*","*","*","*"]
["QMM","RCX","THE QUEEN ELIZABETH HOSPITAL, KING'S LYNN, NHS FOUNDATION TRUST","RCXXXX","Non-hospital site",4,"*","*","*","*","*","*","*","*"]
["QNC","RJE","UNIVERSITY HOSPITALS OF NORTH MIDLANDS NHS TRUST","RJE01","Royal Stoke University Hospital",0,"NA","NA",0,0,0,0,0,0]
["QNC","RJE","UNIVERSITY HOSPITALS OF NORTH MIDLANDS NHS TRUST","RJE09","County Hospital",0,"NA","NA",0,0,0,0,0,0]
["QNC","RJE","UNIVERSITY HOSPITALS OF NORTH MIDLANDS NHS TRUST","RJEXXX","Non-hospital site",0,"NA","NA",0,0,0,0,0,0]
["QNQ","RDU","FRIMLEY HEALTH NHS FOUNDATION TRUST","RDU01","Frimley Park Hospital",19,1,0,17,2,0,0,0,0]
["QNX","RXH","BRIGHTON AND SUSSEX UNIVERSITY HOSPITALS NHS TRUST","RXH01","Royal Sussex County Hospital",0,"NA","NA",0,0,0,0,0,0]
["QNX","RXC","EAST SUSSEX HEALTHCARE NHS TRUST","RXC01","Conquest Hospital",0,"NA","NA",0,0,0,0,0,0]
["QNX","RXC","EAST SUSSEX HEALTHCARE NHS TRUST","RXC02","Eastbourne District General Hospital",0,"NA","NA",0,0,0,0,0,0]
["QNX","RXC","EAST SUSSEX HEALTHCARE NHS TRUST","RXCXXX","Non-hospital site",0,"NA","NA",0,0,0,0,0,0]
["QNX","RYR","WESTERN SUSSEX HOSPITALS NHS FOUNDATION TRUST","RYR18","Worthing Hospital",1,"*","*","*","*","*","*","*","*"]
["QOC","RXW","THE SHREWSBURY AND TELFORD HOSPITAL NHS TRUST","RXWXXX","Non-hospital site",14,0.9285714285714286,0,"*","*","*","*","*","*"]
["QOP","R0A","MANCHESTER UNIVERSITY NHS FOUNDATION TRUST","R0A05","St Mary's Hospital",39,0.94871794871794868,2.564102564102564E-2,"*","*","*","*","*","*"]
["QOP","RMP","TAMESIDE AND GLOSSOP INTEGRATED CARE NHS FOUNDATION TRUST","RMP01","Tameside General Hospital",1,"*","*","*","*","*","*","*","*"]
["QOQ","RCD","HARROGATE AND DISTRICT NHS FOUNDATION TRUST","RCD01","Harrogate District Hospital",45,1,0,39,6,0,0,0,0]
["QOQ","RJL","NORTHERN LINCOLNSHIRE AND GOOLE NHS FOUNDATION TRUST","RJL30","Diana, Princess Of Wales Hospital",0,"NA","NA",0,0,0,0,0,0]
["QOQ","RJL","NORTHERN LINCOLNSHIRE AND GOOLE NHS FOUNDATION TRUST","RJL32","Scunthorpe General Hospital",0,"NA","NA",0,0,0,0,0,0]
["QOQ","RCB","YORK TEACHING HOSPITAL NHS FOUNDATION TRUST","RCBCA","Scarborough General Hospital",0,"NA","NA",0,0,0,0,0,0]
["QOQ","RCB","YORK TEACHING HOSPITAL NHS FOUNDATION TRUST","RCB55","York Hospital",10,1,0,10,0,0,0,0,0]
["QOX","RN3","GREAT WESTERN HOSPITALS NHS FOUNDATION TRUST","RN325","The Great Western Hospital",0,"NA","NA",0,0,0,0,0,0]
["QOX","RD1","ROYAL UNITED HOSPITALS BATH NHS FOUNDATION TRUST","RD102","Chippenham Community Hospital",1,"*","*","*","*","*","*","*","*"]
["QOX","RD1","ROYAL UNITED HOSPITALS BATH NHS FOUNDATION TRUST","RD121","Frome Community Hospital",4,"*","*","*","*","*","*","*","*"]
["QOX","RNZ","SALISBURY NHS FOUNDATION TRUST","RNZ02","Salisbury District Hospital",0,"NA","NA",0,0,0,0,0,0]
["QPM","RNS","NORTHAMPTON GENERAL HOSPITAL NHS TRUST","RNS01","Northampton General Hospital (Acute)",0,"NA","NA",0,0,0,0,0,0]
["QR1","RTE","GLOUCESTERSHIRE HOSPITALS NHS FOUNDATION TRUST","RTE01","Cheltenham General Hospital",0,"NA","NA",0,0,0,0,0,0]
["QR1","RTE","GLOUCESTERSHIRE HOSPITALS NHS FOUNDATION TRUST","RTE03","Gloucestershire Royal Hospital",0,"NA","NA",0,0,0,0,0,0]
["QR1","RTE","GLOUCESTERSHIRE HOSPITALS NHS FOUNDATION TRUST","RTE27","Stroud Maternity Hospital",0,"NA","NA",0,0,0,0,0,0]
["QR1","RTE","GLOUCESTERSHIRE HOSPITALS NHS FOUNDATION TRUST","RTEXXX","Non-hospital site",0,"NA","NA",0,0,0,0,0,0]
["QRL","RN5","HAMPSHIRE HOSPITALS NHS FOUNDATION TRUST","RN501","North Hampshire Hospital (Parklands) Paediatric Outpatients",0,"NA","NA",0,0,0,0,0,0]
["QRL","RN5","HAMPSHIRE HOSPITALS NHS FOUNDATION TRUST","RN541","Royal Hampshire County Hospital",0,"NA","NA",0,0,0,0,0,0]
["QRL","RN5","HAMPSHIRE HOSPITALS NHS FOUNDATION TRUST","RN506","Basingstoke and North Hampshire Hospital",1,"*","*","*","*","*","*","*","*"]
["QRL","R1F","ISLE OF WIGHT NHS TRUST","R1F01","St Mary's Hospital",8,1,0,"*","*","*","*","*","*"]
["QRL","RHU","PORTSMOUTH HOSPITALS UNIVERSITY NATIONAL HEALTH SERVICE TRUST","RHU02","St Mary's Hospital",0,"NA","NA",0,0,0,0,0,0]
["QRL","RHU","PORTSMOUTH HOSPITALS UNIVERSITY NATIONAL HEALTH SERVICE TRUST","RHU03","Queen Alexandra Hospital",0,"NA","NA",0,0,0,0,0,0]
["QRL","RHU","PORTSMOUTH HOSPITALS UNIVERSITY NATIONAL HEALTH SERVICE TRUST","RHU04","Petersfield Community Hospital",0,"NA","NA",0,0,0,0,0,0]
["QRL","RHU","PORTSMOUTH HOSPITALS UNIVERSITY NATIONAL HEALTH SERVICE TRUST","RHU10","Gosport War Memorial Hospital",0,"NA","NA",0,0,0,0,0,0]
["QRL","RHM","UNIVERSITY HOSPITAL SOUTHAMPTON NHS FOUNDATION TRUST","RHM12","Princess Anne Hospital",125,0.85599999999999998,8.7999999999999995E-2,64,43,6,7,4,1]
["QRV","RQM","CHELSEA AND WESTMINSTER HOSPITAL NHS FOUNDATION TRUST","RQM91","West Middlesex University Hospital",1,"*","*","*","*","*","*","*","*"]
["QRV","RQM","CHELSEA AND WESTMINSTER HOSPITAL NHS FOUNDATION TRUST","RQM01","Chelsea and Westminster Hospital",21,0.80952380952380953,0.14285714285714285,"*","*","*","*","*","*"]
["QRV","RYJ","IMPERIAL COLLEGE HEALTHCARE NHS TRUST","RYJ01","St Mary's Hospital (HQ)",28,0.8571428571428571,7.1428571428571425E-2,17,7,2,1,1,0]
["QRV","RYJ","IMPERIAL COLLEGE HEALTHCARE NHS TRUST","RYJ04","Queen Charlotte's Hospital",33,0.84848484848484851,6.0606060606060608E-2,18,10,3,2,0,0]
["QRV","R1K","LONDON NORTH WEST UNIVERSITY HEALTHCARE NHS TRUST","R1K02","Central Middlesex Hospital",0,"NA","NA",0,0,0,0,0,0]
["QRV","R1K","LONDON NORTH WEST UNIVERSITY HEALTHCARE NHS TRUST","R1K04","Ealing Hospital",0,"NA","NA",0,0,0,0,0,0]
["QRV","R1K","LONDON NORTH WEST UNIVERSITY HEALTHCARE NHS TRUST","R1KXXX","Non-hospital site",0,"NA","NA",0,0,0,0,0,0]
["QRV","R1K","LONDON NORTH WEST UNIVERSITY HEALTHCARE NHS TRUST","R1K01","Northwick Park Hospital",5,1,0,4,1,0,0,0,0]
["QRV","RAS","THE HILLINGDON HOSPITALS NHS FOUNDATION TRUST","RAS01","Hillingdon Hospital",216,0.875,5.5555555555555552E-2,122,67,15,4,8,0]
["QSL","RH5","SOMERSET NHS FOUNDATION TRUST","RH5A8","MUSGROVE PARK HOSPITAL",0,"NA","NA",0,0,0,0,0,0]
["QSL","RA4","YEOVIL DISTRICT HOSPITAL NHS FOUNDATION TRUST","RA430","Yeovil District Hospital",0,"NA","NA",0,0,0,0,0,0]
["QT1","RX1","NOTTINGHAM UNIVERSITY HOSPITALS NHS TRUST","RX1XXX","Non-hospital site",16,1,0,15,1,0,0,0,0]
["QT1","RK5","SHERWOOD FOREST HOSPITALS NHS FOUNDATION TRUST","RK5BC","King's Mill Hospital",31,0.80645161290322576,0.12903225806451613,16,9,2,1,3,0]
["QT6","REF","ROYAL CORNWALL HOSPITALS NHS TRUST","REFXXX","Non-hospital site",7,1,0,7,0,0,0,0,0]
["QU9","RXQ","BUCKINGHAMSHIRE HEALTHCARE NHS TRUST","RXQ50","Wycombe Hospital",11,0.72727272727272729,9.0909090909090912E-2,"*","*","*","*","*","*"]
["QU9","RXQ","BUCKINGHAMSHIRE HEALTHCARE NHS TRUST","RXQ02","Stoke Mandeville Hospital",12,0.75,0.16666666666666666,"*","*","*","*","*","*"]
["QU9","RTH","OXFORD UNIVERSITY HOSPITALS NHS FOUNDATION TRUST","RTH08","John Radcliffe Hospital",0,"NA","NA",0,0,0,0,0,0]
["QU9","RHW","ROYAL BERKSHIRE NHS FOUNDATION TRUST","RHW01","Royal Berkshire Hospital",2,"*","*","*","*","*","*","*","*"]
["QUA","RXK","SANDWELL AND WEST BIRMINGHAM HOSPITALS NHS TRUST","RXK01","Sandwell General Hospital",48,0.79166666666666663,8.3333333333333329E-2,29,9,6,2,2,0]
["QUA","RXK","SANDWELL AND WEST BIRMINGHAM HOSPITALS NHS TRUST","RXK02","City Hospital",119,0.77310924369747902,0.13445378151260504,72,20,11,8,8,0]
["QUA","RNA","THE DUDLEY GROUP NHS FOUNDATION TRUST","RNAXXX","Non-hospital site",16,0.1875,0,3,0,0,0,0,13]
["QUA","RNA","THE DUDLEY GROUP NHS FOUNDATION TRUST","RNA01","Russells Hall Hospital",17,1,0,16,1,0,0,0,0]
["QUA","RBK","WALSALL HEALTHCARE NHS TRUST","RBK02","Manor Hospital",24,0.79166666666666663,0.125,18,1,2,2,1,0]
["QUE","RGT","CAMBRIDGE UNIVERSITY HOSPITALS NHS FOUNDATION TRUST","RGT32","Rosie Hospital",4,"*","*","*","*","*","*","*","*"]
["QUE","RGN","NORTH WEST ANGLIA NHS FOUNDATION TRUST","RGN80","Peterborough City Hospital",75,0.96,1.3333333333333334E-2,"*","*","*","*","*","*"]
["QUE","RGN","NORTH WEST ANGLIA NHS FOUNDATION TRUST","RGN90","Hinchingbrooke Hospital",126,0.98412698412698407,0,"*","*","*","*","*","*"]
["QUY","RVJ","NORTH BRISTOL NHS TRUST","RVJ01","Southmead Hospital",0,"NA","NA",0,0,0,0,0,0]
["QUY","RA7","UNIVERSITY HOSPITALS BRISTOL AND WESTON NHS FOUNDATION TRUST","RA707","St Michael's Hospital",0,"NA","NA",0,0,0,0,0,0]
["QVV","RBD","DORSET COUNTY HOSPITAL NHS FOUNDATION TRUST","RBD01","Dorset County Hospital",17,0.88235294117647056,5.8823529411764705E-2,11,4,0,1,0,1]
["QVV","R0D","UNIVERSITY HOSPITALS DORSET NHS FOUNDATION TRUST","R0D01","Poole Hospital",22,0.86363636363636365,0.13636363636363635,14,5,0,1,2,0]
["QVV","R0D","UNIVERSITY HOSPITALS DORSET NHS FOUNDATION TRUST","R0D02","Royal Bournemouth Hospital",36,0.88888888888888884,5.5555555555555552E-2,18,14,1,1,1,1]
["QWE","RJ6","CROYDON HEALTH SERVICES NHS TRUST","RJ611","Croydon University Hospital",71,0.84507042253521125,8.4507042253521125E-2,43,17,2,4,2,3]
["QWE","RVR","EPSOM AND ST HELIER UNIVERSITY HOSPITALS NHS TRUST","RVRXXX","Non-hospital site",1,"*","*","*","*","*","*","*","*"]
["QWE","RVR","EPSOM AND ST HELIER UNIVERSITY HOSPITALS NHS TRUST","RVR50","Epsom Hospital",4,"*","*","*","*","*","*","*","*"]
["QWE","RVR","EPSOM AND ST HELIER UNIVERSITY HOSPITALS NHS TRUST","RVR05","St Helier Hospital",11,1,0,11,0,0,0,0,0]
["QWE","RAX","KINGSTON HOSPITAL NHS FOUNDATION TRUST","RAX01","Kingston Hospital",1,"*","*","*","*","*","*","*","*"]
["QWE","RJ7","ST GEORGE'S UNIVERSITY HOSPITALS NHS FOUNDATION TRUST","RJ701","St George's Hospital (Tooting)",1,"*","*","*","*","*","*","*","*"]
["QWO","RCF","AIREDALE NHS FOUNDATION TRUST","RCF22","Airedale General Hospital",0,"NA","NA",0,0,0,0,0,0]
["QWO","RAE","BRADFORD TEACHING HOSPITALS NHS FOUNDATION TRUST","RAE01","Bradford Royal Infirmary",0,"NA","NA",0,0,0,0,0,0]
["QWO","RAE","BRADFORD TEACHING HOSPITALS NHS FOUNDATION TRUST","RAEXXX","Non-hospital site",0,"NA","NA",0,0,0,0,0,0]
["QWO","RWY","CALDERDALE AND HUDDERSFIELD NHS FOUNDATION TRUST","RWY01","Huddersfield Royal Infirmary",1,"*","*","*","*","*","*","*","*"]
["QWO","RWY","CALDERDALE AND HUDDERSFIELD NHS FOUNDATION TRUST","RWY02","Calderdale Royal Hospital",1,"*","*","*","*","*","*","*","*"]
["QWO","RWY","CALDERDALE AND HUDDERSFIELD NHS FOUNDATION TRUST","RWYXXX","Non-hospital site",3,"*","*","*","*","*","*","*","*"]
["QWO","RR8","LEEDS TEACHING HOSPITALS NHS TRUST","RR813","St James's University Hospital",0,"NA","NA",0,0,0,0,0,0]
["QWO","RR8","LEEDS TEACHING HOSPITALS NHS TRUST","RR8XXX","Non-hospital site",0,"NA","NA",0,0,0,0,0,0]
["QWO","RR8","LEEDS TEACHING HOSPITALS NHS TRUST","RR801","Leeds General Infirmary",5,0.2,0.8,1,0,0,3,1,0]
["QWO","RXF","MID YORKSHIRE HOSPITALS NHS TRUST","RXF03","Pontefract General Infirmary",0,"NA","NA",0,0,0,0,0,0]
["QWO","RXF","MID YORKSHIRE HOSPITALS NHS TRUST","RXF05","Pinderfields General Hospital",0,"NA","NA",0,0,0,0,0,0]
["QWO","RXF","MID YORKSHIRE HOSPITALS NHS TRUST","RXF10","Dewsbury and District Hospital",0,"NA","NA",0,0,0,0,0,0]
["QWU","RLT","GEORGE ELIOT HOSPITAL NHS TRUST","RLT01","George Eliot Hospital - Acute Services",10,1,0,"*","*","*","*","*","*"]
["QWU","RJC","SOUTH WARWICKSHIRE NHS FOUNDATION TRUST","RJCXXX","Non-hospital site",2,"*","*","*","*","*","*","*","*"]
["QWU","RKB","UNIVERSITY HOSPITALS COVENTRY AND WARWICKSHIRE NHS TRUST","RKB03","Hospital Of St Cross",0,"NA","NA",0,0,0,0,0,0]
["QWU","RKB","UNIVERSITY HOSPITALS COVENTRY AND WARWICKSHIRE NHS TRUST","RKBXXX","Non-hospital site",0,"NA","NA",0,0,0,0,0,0]
["QWU","RKB","UNIVERSITY HOSPITALS COVENTRY AND WARWICKSHIRE NHS TRUST","RKB02","Coventry and Warwickshire Hospital",41,0.95121951219512191,4.878048780487805E-2,32,7,0,1,1,0]
["QXU","RA2","ROYAL SURREY COUNTY HOSPITAL NHS FOUNDATION TRUST","RA201","Royal Surrey County Hospital",4,"*","*","*","*","*","*","*","*"]
["QXU","RTP","SURREY AND SUSSEX HEALTHCARE NHS TRUST","RTP04","East Surrey Hospital",17,1,0,"*","*","*","*","*","*"]
["QYG","RY2","BRIDGEWATER COMMUNITY HEALTHCARE NHS FOUNDATION TRUST","RY28P","Health Care Resource Centre",0,"NA","NA",0,0,0,0,0,0]
["QYG","RY2","BRIDGEWATER COMMUNITY HEALTHCARE NHS FOUNDATION TRUST","RY2XXX","Non-hospital site",0,"NA","NA",0,0,0,0,0,0]
["QYG","RJR","COUNTESS OF CHESTER HOSPITAL NHS FOUNDATION TRUST","RJR05","Countess Of Chester Hospital",14,0.9285714285714286,7.1428571428571425E-2,8,5,0,1,0,0]
["QYG","RJN","EAST CHESHIRE NHS TRUST","RJN71","Macclesfield District General Hospital",0,"NA","NA",0,0,0,0,0,0]
["QYG","REP","LIVERPOOL WOMEN'S NHS FOUNDATION TRUST","REP01","Liverpool Womens Hospital",7,0.42857142857142855,0.2857142857142857,"*","*","*","*","*","*"]
["QYG","RBT","MID CHESHIRE HOSPITALS NHS FOUNDATION TRUST","RBT20","Leighton Hospital",4,"*","*","*","*","*","*","*","*"]
["QYG","RBN","ST HELENS AND KNOWSLEY TEACHING HOSPITALS NHS TRUST","RBN01","Whiston Hospital",19,0.94736842105263153,0,12,6,1,0,0,0]
["QYG","RWW","WARRINGTON AND HALTON TEACHING HOSPITALS NHS FOUNDATION TRUST","RWWWH","Warrington Hospital",0,"NA","NA",0,0,0,0,0,0]
["QYG","RBL","WIRRAL UNIVERSITY TEACHING HOSPITAL NHS FOUNDATION TRUST","RBL14","Arrowe Park Hospital",0,"NA","NA",0,0,0,0,0,0]

{"sheet":"Region (Local Office) Q2","index":5,"n_rows":55,"n_cols":12,"rows_kept":55,"cut":false,"hidden":false,"merged":[[8,6,8,11],[8,0,9,0],[8,1,9,1],[8,2,9,2],[8,3,9,3],[8,4,9,4],[8,5,9,5]]}
[]
[]
[]
[]
[]
[null,"   Sort data by:           "]
[]
[]
["STP Code","STP","Total Responses","Total Eligible","Percentage Positive","Percentage Negative","Breakdown of Responses"]
[null,null,null,null,null,null,"Very Good","Good","Neither Good nor Poor","Poor","Very Poor","Don't Know"]
[null,"England (including Independent Sector providers)",3517,36549,0.9516633494455502,2.7580324139891952E-2,2866,481,51,43,54,22]
[null,"England (excluding Independent Sector providers)",3517,36549,0.9516633494455502,2.7580324139891952E-2,2866,481,51,43,54,22]
[null,"Selection (excluding suppressed data)",{"$f":"SUBTOTAL(9,C14:C298)","v":3517},{"$f":"SUBTOTAL(9,D14:D298)","v":36549},{"$f":"IFERROR((G13+H13)/SUM(G13:L13), \"-\")","v":0.95148714987005489},{"$f":"IFERROR((J13+K13)/SUM(G13:L13), \"-\")","v":2.7721628645682932E-2},{"$f":"SUBTOTAL(9,G14:G298)","v":2818},477,50,43,53,22]
["QE1","HEALTHIER LANCASHIRE AND SOUTH CUMBRIA",142,1126,0.91549295774647887,3.5211267605633804E-2,107,23,5,1,4,2]
["QF7","SOUTH YORKSHIRE AND BASSETLAW STP",160,1033,0.98124999999999996,1.2500000000000001E-2,140,17,1,1,1,0]
["QGH","HEREFORDSHIRE AND WORCESTERSHIRE STP",2,132,"*","*","*","*","*","*","*","*"]
["QH8","MID AND SOUTH ESSEX STP",65,844,0.83076923076923082,0.1076923076923077,48,6,3,2,5,1]
["QHG","BEDFORDSHIRE, LUTON AND MILTON KEYNES STP",57,746,0.98245614035087714,0,46,10,0,0,0,1]
["QHL","BIRMINGHAM AND SOLIHULL STP",2,1535,"*","*","*","*","*","*","*","*"]
["QHM","CUMBRIA AND NORTH EAST STP",129,1734,0.93798449612403101,3.1007751937984496E-2,100,21,4,4,0,0]
["QJ2","JOINED UP CARE DERBYSHIRE STP",5,649,1,0,"*","*","*","*","*","*"]
["QJG","SUFFOLK AND NORTH EAST ESSEX ICS",20,265,0.95,0,17,2,0,0,0,1]
["QJK","DEVON STP",6,485,1,0,5,1,0,0,0,0]
["QJM","LINCOLNSHIRE STP",20,365,1,0,19,1,0,0,0,0]
["QK1","LEICESTER, LEICESTERSHIRE AND RUTLAND STP",286,675,0.95804195804195802,1.7482517482517484E-2,228,46,5,2,3,2]
["QKK","OUR HEALTHIER SOUTH EAST LONDON STP",83,1564,0.95180722891566261,2.4096385542168676E-2,57,22,2,1,1,0]
["QKS","KENT AND MEDWAY STP",242,1082,0.99173553719008267,0,230,10,1,0,0,1]
["QM7","HERTFORDSHIRE AND WEST ESSEX STP",136,983,0.9779411764705882,1.4705882352941176E-2,102,31,1,0,2,0]
["QMF","EAST LONDON HEALTH & CARE PARTNERSHIP (STP)",88,1034,0.95454545454545459,1.1363636363636364E-2,69,15,3,0,1,0]
["QMJ","NORTH LONDON PARTNERS IN HEALTH & CARE (STP)",134,924,0.93283582089552242,0,44,81,9,0,0,0]
["QMM","NORFOLK AND WAVENEY HEALTH & CARE PARTNERSHIP (STP)",28,493,0.9285714285714286,7.1428571428571425E-2,23,3,0,1,1,0]
["QNC","STAFFORDSHIRE & STOKE ON TRENT STP",0,572,"NA","NA",0,0,0,0,0,0]
["QNQ","FRIMLEY HEALTH & CARE (STP)",44,493,1,0,43,1,0,0,0,0]
["QNX","SUSSEX HEALTH AND CARE PARTNERSHIP",116,875,0.93965517241379315,3.4482758620689655E-2,96,13,2,4,0,1]
["QOC","SHROPSHIRE AND TELFORD AND WREKIN STP",101,304,1,0,96,5,0,0,0,0]
["QOP","GREATER MANCHESTER HEALTH & SOCIAL CARE PARTNERSHIP",306,2796,0.93137254901960786,4.2483660130718956E-2,250,35,6,7,6,2]
["QOQ","HUMBER, COAST AND VALE STP",89,791,1,0,84,5,0,0,0,0]
["QOX","BATH AND NORTH EAST SOMERSET, SWINDON AND WILTSHIRE STP",1,850,"*","*","*","*","*","*","*","*"]
["QPM","NORTHAMPTONSHIRE STP",2,571,"*","*","*","*","*","*","*","*"]
["QR1","GLOUCESTERSHIRE STP",30,126,0.96666666666666667,3.3333333333333333E-2,"*","*","*","*","*","*"]
["QRL","HAMPSHIRE AND THE ISLE OF WIGHT STP",138,1244,0.89130434782608692,9.420289855072464E-2,100,23,1,6,7,1]
["QRV","NORTH WEST LONDON HEALTH & CARE PARTNERSHIP (STP)",118,1363,0.9576271186440678,3.3898305084745763E-2,104,9,1,2,2,0]
["QSL","SOMERSET STP",4,352,"*","*","*","*","*","*","*","*"]
["QT1","NOTTINGHAM AND NOTTINGHAMSHIRE HEALTH AND CARE STP",2,584,"*","*","*","*","*","*","*","*"]
["QT6","CORNWALL AND THE ISLES OF SCILLY HEALTH & SOCIAL CARE PARTNERSHIP (STP)",6,322,1,0,"*","*","*","*","*","*"]
["QU9","BUCKINGHAMSHIRE, OXFORDSHIRE AND BERKSHIRE WEST STP",111,1105,0.94594594594594594,3.6036036036036036E-2,71,34,2,2,2,0]
["QUA","THE BLACK COUNTRY AND WEST BIRMINGHAM STP",98,776,0.86734693877551017,8.1632653061224483E-2,76,9,0,2,6,5]
["QUE","CAMBRIDGESHIRE AND PETERBOROUGH STP",74,884,0.98648648648648651,0,65,8,0,0,0,1]
["QUY","BRISTOL, NORTH SOMERSET AND SOUTH GLOUCESTERSHIRE STP",18,362,0.94444444444444442,0,13,4,1,0,0,0]
["QVV","DORSET STP",136,402,0.95588235294117652,2.9411764705882353E-2,120,10,0,2,2,2]
["QWE","SOUTH WEST LONDON HEALTH & CARE PARTNERSHIP (STP)",60,1268,0.93333333333333335,0.05,53,3,0,0,3,1]
["QWO","WEST YORKSHIRE AND HARROGATE HEALTH & CARE PARTNERSHIP (STP)",183,1696,0.97267759562841527,2.185792349726776E-2,170,8,1,0,4,0]
["QWU","COVENTRY AND WARWICKSHIRE STP",103,837,0.94174757281553401,4.8543689320388349E-2,89,8,0,4,1,1]
["QXU","SURREY HEARTLANDS HEALTH & CARE PARTNERSHIP (STP)",53,565,1,0,51,2,0,0,0,0]
["QYG","CHESHIRE AND MERSEYSIDE STP",119,1742,0.94957983193277307,3.3613445378151259E-2,102,11,2,2,2,0]

{"sheet":"Trusts Q2","index":6,"n_rows":126,"n_cols":21,"rows_kept":126,"cut":false,"hidden":false,"merged":[[8,6,9,6],[8,7,8,12],[8,13,8,20],[8,0,9,0],[8,1,9,1],[8,2,9,2],[8,3,9,3],[8,4,9,4],[8,5,9,5]]}
[]
[]
[]
[]
[]
[null,"   Sort data by:           "]
[]
[]
["STP Code","Trust Code","Trust Name","Total Responses","Total Eligible","Percentage Positive","Percentage Negative","Breakdown of Responses",null,null,null,null,null,"Mode of Collection"]
[null,null,null,null,null,null,null,"Very Good","Good","Neither Good nor Poor","Poor","Very Poor","Don't Know","Mode SMS","Mode Electronic Discharge","Mode Electronic Home","Mode Paper Discharge","Mode Paper Home","Mode Telephone","Mode Online","Mode Other"]
[null,null,"England (including Independent Sector providers)",3517,36549,0.9516633494455502,2.7580324139891952E-2,2866,481,51,43,54,22,1211,725,191,1036,122,0,216,16]
[null,null,"England (excluding Independent Sector providers)",3517,36549,0.9516633494455502,2.7580324139891952E-2,2866,481,51,43,54,22,1211,725,191,1036,122,0,216,16]
[null,null,"Selection (excluding suppressed data)",{"$f":"SUBTOTAL(9,D14:D298)","v":3517},{"$f":"SUBTOTAL(9,E14:E298)","v":36549},{"$f":"IFERROR((H13+I13)/SUM(H13:M13), \"-\")","v":0.94952293013234845},{"$f":"IFERROR((K13+L13)/SUM(H13:M13), \"-\")","v":2.8624192059095107E-2},{"$f":"SUBTOTAL(9,H14:H298)","v":2658},427,49,42,51,22,1167,580,187,980,122,0,197,16]
["QE1","RXL","BLACKPOOL TEACHING HOSPITALS NHS FOUNDATION TRUST",20,201,0.9,0.05,12,6,1,0,1,0,20,0,0,0,0,0,0,0]
["QE1","RXR","EAST LANCASHIRE HOSPITALS NHS TRUST",79,478,0.87341772151898733,5.0632911392405063E-2,57,12,4,1,3,2,72,0,0,4,0,0,0,3]
["QE1","RXN","LANCASHIRE TEACHING HOSPITALS NHS FOUNDATION TRUST",20,253,1,0,18,2,0,0,0,0,20,0,0,0,0,0,0,0]
["QE1","RTX","UNIVERSITY HOSPITALS OF MORECAMBE BAY NHS FOUNDATION TRUST",23,194,1,0,20,3,0,0,0,0,23,0,0,0,0,0,0,0]
["QF7","RFF","BARNSLEY HOSPITAL NHS FOUNDATION TRUST",2,78,"*","*","*","*","*","*","*","*","*","*","*","*","*","*","*","*"]
["QF7","RP5","DONCASTER AND BASSETLAW TEACHING HOSPITALS NHS FOUNDATION TRUST",148,477,0.98648648648648651,6.7567567567567571E-3,129,17,1,0,1,0,0,0,0,148,0,0,0,0]
["QF7","RHQ","SHEFFIELD TEACHING HOSPITALS NHS FOUNDATION TRUST",10,478,0.9,0.1,"*","*","*","*","*","*","*","*","*","*","*","*","*","*"]
["QF7","RFR","THE ROTHERHAM NHS FOUNDATION TRUST",0,0,"NA","NA",0,0,0,0,0,0,0,0,0,0,0,0,0,0]
["QGH","RWP","WORCESTERSHIRE ACUTE HOSPITALS NHS TRUST",2,132,"*","*","*","*","*","*","*","*","*","*","*","*","*","*","*","*"]
["QH8","RAJ","MID AND SOUTH ESSEX NHS FOUNDATION TRUST",65,844,0.83076923076923082,0.1076923076923077,48,6,3,2,5,1,65,0,0,0,0,0,0,0]
["QHG","RC9","BEDFORDSHIRE HOSPITALS NHS FOUNDATION TRUST",20,502,1,0,16,4,0,0,0,0,10,0,0,8,0,0,2,0]
["QHG","RD8","MILTON KEYNES UNIVERSITY HOSPITAL NHS FOUNDATION TRUST",37,244,0.97297297297297303,0,30,6,0,0,0,1,0,0,0,29,0,0,8,0]
["QHL","RQ3","BIRMINGHAM WOMEN'S AND CHILDREN'S NHS FOUNDATION TRUST",2,635,"*","*","*","*","*","*","*","*","*","*","*","*","*","*","*","*"]
["QHL","RRK","UNIVERSITY HOSPITALS BIRMINGHAM NHS FOUNDATION TRUST",0,900,"NA","NA",0,0,0,0,0,0,0,0,0,0,0,0,0,0]
["QHM","RXP","COUNTY DURHAM AND DARLINGTON NHS FOUNDATION TRUST",11,356,1,0,11,0,0,0,0,0,0,0,0,11,0,0,0,0]
["QHM","RNN","NORTH CUMBRIA INTEGRATED CARE NHS FOUNDATION TRUST",14,221,0.9285714285714286,0,12,1,1,0,0,0,0,0,0,1,0,0,0,13]
["QHM","RVW","NORTH TEES AND HARTLEPOOL NHS FOUNDATION TRUST",4,256,"*","*","*","*","*","*","*","*","*","*","*","*","*","*","*","*"]
["QHM","RTF","NORTHUMBRIA HEALTHCARE NHS FOUNDATION TRUST",74,251,0.90540540540540537,5.4054054054054057E-2,49,18,3,4,0,0,74,0,0,0,0,0,0,0]
["QHM","RTR","SOUTH TEES HOSPITALS NHS FOUNDATION TRUST",2,351,"*","*","*","*","*","*","*","*","*","*","*","*","*","*","*","*"]
["QHM","R0B","SOUTH TYNESIDE AND SUNDERLAND NHS FOUNDATION TRUST",24,299,1,0,23,1,0,0,0,0,0,0,24,0,0,0,0,0]
["QJ2","RFS","CHESTERFIELD ROYAL HOSPITAL NHS FOUNDATION TRUST",4,194,"*","*","*","*","*","*","*","*","*","*","*","*","*","*","*","*"]
["QJ2","RTG","UNIVERSITY HOSPITALS OF DERBY AND BURTON NHS FOUNDATION TRUST",1,455,"*","*","*","*","*","*","*","*","*","*","*","*","*","*","*","*"]
["QJG","RDE","EAST SUFFOLK AND NORTH ESSEX NHS FOUNDATION TRUST",11,11,0.90909090909090906,0,8,2,0,0,0,1,0,0,0,8,0,0,3,0]
["QJG","RGR","WEST SUFFOLK NHS FOUNDATION TRUST",9,254,1,0,9,0,0,0,0,0,0,0,0,9,0,0,0,0]
["QJK","RBZ","NORTHERN DEVON HEALTHCARE NHS TRUST",0,99,"NA","NA",0,0,0,0,0,0,0,0,0,0,0,0,0,0]
["QJK","RH8","ROYAL DEVON AND EXETER NHS FOUNDATION TRUST",0,301,"NA","NA",0,0,0,0,0,0,0,0,0,0,0,0,0,0]
["QJK","RK9","UNIVERSITY HOSPITALS PLYMOUTH NHS TRUST",6,85,1,0,5,1,0,0,0,0,0,0,0,6,0,0,0,0]
["QJM","RWD","UNITED LINCOLNSHIRE HOSPITALS NHS TRUST",20,365,1,0,19,1,0,0,0,0,0,0,0,20,0,0,0,0]
["QK1","RWE","UNIVERSITY HOSPITALS OF LEICESTER NHS TRUST",286,675,0.95804195804195802,1.7482517482517484E-2,228,46,5,2,3,2,0,266,0,0,20,0,0,0]
["QKK","RJ1","GUY'S AND ST THOMAS' NHS FOUNDATION TRUST",12,448,0.83333333333333337,8.3333333333333329E-2,9,1,1,1,0,0,0,0,0,11,0,0,1,0]
["QKK","RJZ","KING'S COLLEGE HOSPITAL NHS FOUNDATION TRUST",0,549,"NA","NA",0,0,0,0,0,0,0,0,0,0,0,0,0,0]
["QKK","RJ2","LEWISHAM AND GREENWICH NHS TRUST",71,567,0.971830985915493,1.4084507042253521E-2,48,21,1,0,1,0,0,0,0,68,0,0,3,0]
["QKS","RN7","DARTFORD AND GRAVESHAM NHS TRUST",7,304,0.8571428571428571,0,5,1,0,0,0,1,0,0,0,7,0,0,0,0]
["QKS","RWF","MAIDSTONE AND TUNBRIDGE WELLS NHS TRUST",108,423,0.9907407407407407,0,98,9,1,0,0,0,0,0,0,108,0,0,0,0]
["QKS","RPA","MEDWAY NHS FOUNDATION TRUST",127,355,1,0,127,0,0,0,0,0,0,0,127,0,0,0,0,0]
["QM7","RWH","EAST AND NORTH HERTFORDSHIRE NHS TRUST",135,373,0.97777777777777775,1.4814814814814815E-2,"*","*","*","*","*","*","*","*","*","*","*","*","*","*"]
["QM7","RQW","THE PRINCESS ALEXANDRA HOSPITAL NHS TRUST",0,290,"NA","NA",0,0,0,0,0,0,0,0,0,0,0,0,0,0]
["QM7","RWG","WEST HERTFORDSHIRE HOSPITALS NHS TRUST",1,320,"*","*","*","*","*","*","*","*","*","*","*","*","*","*","*","*"]
["QMF","RF4","BARKING, HAVERING AND REDBRIDGE UNIVERSITY HOSPITALS NHS TRUST",0,0,"NA","NA",0,0,0,0,0,0,0,0,0,0,0,0,0,0]
["QMF","R1H","BARTS HEALTH NHS TRUST",88,1034,0.95454545454545459,1.1363636363636364E-2,69,15,3,0,1,0,9,0,0,0,79,0,0,0]
["QMJ","RAL","ROYAL FREE LONDON NHS FOUNDATION TRUST",81,638,0.90123456790123457,0,44,29,8,0,0,0,0,81,0,0,0,0,0,0]
["QMJ","RKE","WHITTINGTON HEALTH NHS TRUST",53,286,0.98113207547169812,0,0,52,1,0,0,0,0,53,0,0,0,0,0,0]
["QMM","RM1","NORFOLK AND NORWICH UNIVERSITY HOSPITALS NHS FOUNDATION TRUST",5,333,1,0,4,1,0,0,0,0,0,0,0,0,0,0,5,0]
["QMM","RCX","THE QUEEN ELIZABETH HOSPITAL, KING'S LYNN, NHS FOUNDATION TRUST",23,160,0.91304347826086951,8.6956521739130432E-2,19,2,0,1,1,0,0,16,0,0,0,0,7,0]
["QNC","RJE","UNIVERSITY HOSPITALS OF NORTH MIDLANDS NHS TRUST",0,572,"NA","NA",0,0,0,0,0,0,0,0,0,0,0,0,0,0]
["QNQ","RDU","FRIMLEY HEALTH NHS FOUNDATION TRUST",44,493,1,0,43,1,0,0,0,0,0,0,0,44,0,0,0,0]
["QNX","RXH","BRIGHTON AND SUSSEX UNIVERSITY HOSPITALS NHS TRUST",48,364,0.89583333333333337,6.25E-2,39,4,2,3,0,0,48,0,0,0,0,0,0,0]
["QNX","RXC","EAST SUSSEX HEALTHCARE NHS TRUST",46,202,0.97826086956521741,0,39,6,0,0,0,1,0,46,0,0,0,0,0,0]
["QNX","RYR","WESTERN SUSSEX HOSPITALS NHS FOUNDATION TRUST",22,309,0.95454545454545459,4.5454545454545456E-2,18,3,0,1,0,0,0,0,0,20,0,0,2,0]
["QOC","RXW","THE SHREWSBURY AND TELFORD HOSPITAL NHS TRUST",101,304,1,0,96,5,0,0,0,0,0,0,0,101,0,0,0,0]
["QOP","RMC","BOLTON NHS FOUNDATION TRUST",164,437,0.90243902439024393,6.097560975609756E-2,125,23,5,5,5,1,164,0,0,0,0,0,0,0]
["QOP","R0A","MANCHESTER UNIVERSITY NHS FOUNDATION TRUST",81,1030,1,0,76,5,0,0,0,0,0,11,0,70,0,0,0,0]
["QOP","RW6","PENNINE ACUTE HOSPITALS NHS TRUST",5,681,0.6,0.4,2,1,0,1,1,0,5,0,0,0,0,0,0,0]
["QOP","RWJ","STOCKPORT NHS FOUNDATION TRUST",44,284,0.93181818181818177,2.2727272727272728E-2,37,4,1,1,0,1,0,0,0,44,0,0,0,0]
["QOP","RMP","TAMESIDE AND GLOSSOP INTEGRATED CARE NHS FOUNDATION TRUST",12,174,1,0,10,2,0,0,0,0,0,12,0,0,0,0,0,0]
["QOP","RRF","WRIGHTINGTON, WIGAN AND LEIGH NHS FOUNDATION TRUST",0,190,"NA","NA",0,0,0,0,0,0,0,0,0,0,0,0,0,0]
["QOQ","RCD","HARROGATE AND DISTRICT NHS FOUNDATION TRUST",43,144,1,0,39,4,0,0,0,0,0,0,0,43,0,0,0,0]
["QOQ","RWA","HULL UNIVERSITY TEACHING HOSPITALS NHS TRUST",10,10,1,0,9,1,0,0,0,0,0,0,0,9,0,0,1,0]
["QOQ","RJL","NORTHERN LINCOLNSHIRE AND GOOLE NHS FOUNDATION TRUST",0,318,"NA","NA",0,0,0,0,0,0,0,0,0,0,0,0,0,0]
["QOQ","RCB","YORK TEACHING HOSPITAL NHS FOUNDATION TRUST",36,319,1,0,36,0,0,0,0,0,0,0,36,0,0,0,0,0]
["QOX","RN3","GREAT WESTERN HOSPITALS NHS FOUNDATION TRUST",0,313,"NA","NA",0,0,0,0,0,0,0,0,0,0,0,0,0,0]
["QOX","RD1","ROYAL UNITED HOSPITALS BATH NHS FOUNDATION TRUST",1,360,"*","*","*","*","*","*","*","*","*","*","*","*","*","*","*","*"]
["QOX","RNZ","SALISBURY NHS FOUNDATION TRUST",0,177,"NA","NA",0,0,0,0,0,0,0,0,0,0,0,0,0,0]
["QPM","RNQ","KETTERING GENERAL HOSPITAL NHS FOUNDATION TRUST",2,265,"*","*","*","*","*","*","*","*","*","*","*","*","*","*","*","*"]
["QPM","RNS","NORTHAMPTON GENERAL HOSPITAL NHS TRUST",0,306,"NA","NA",0,0,0,0,0,0,0,0,0,0,0,0,0,0]
["QR1","RTE","GLOUCESTERSHIRE HOSPITALS NHS FOUNDATION TRUST",30,126,0.96666666666666667,3.3333333333333333E-2,"*","*","*","*","*","*","*","*","*","*","*","*","*","*"]
["QRL","RN5","HAMPSHIRE HOSPITALS NHS FOUNDATION TRUST",8,326,1,0,5,3,0,0,0,0,0,0,0,0,5,0,3,0]
["QRL","R1F","ISLE OF WIGHT NHS TRUST",6,73,1,0,5,1,0,0,0,0,0,0,0,6,0,0,0,0]
["QRL","RHU","PORTSMOUTH HOSPITALS UNIVERSITY NATIONAL HEALTH SERVICE TRUST",0,397,"NA","NA",0,0,0,0,0,0,0,0,0,0,0,0,0,0]
["QRL","RHM","UNIVERSITY HOSPITAL SOUTHAMPTON NHS FOUNDATION TRUST",124,448,0.87903225806451613,0.10483870967741936,90,19,1,6,7,1,0,0,0,28,0,0,96,0]
["QRV","RQM","CHELSEA AND WESTMINSTER HOSPITAL NHS FOUNDATION TRUST",39,143,1,0,37,2,0,0,0,0,19,1,0,0,0,0,19,0]
["QRV","RYJ","IMPERIAL COLLEGE HEALTHCARE NHS TRUST",74,618,0.93243243243243246,5.4054054054054057E-2,63,6,1,2,2,0,65,9,0,0,0,0,0,0]
["QRV","R1K","LONDON NORTH WEST UNIVERSITY HEALTHCARE NHS TRUST",0,294,"NA","NA",0,0,0,0,0,0,0,0,0,0,0,0,0,0]
["QRV","RAS","THE HILLINGDON HOSPITALS NHS FOUNDATION TRUST",5,308,1,0,4,1,0,0,0,0,0,0,0,0,0,0,5,0]
["QSL","RH5","SOMERSET NHS FOUNDATION TRUST",0,244,"NA","NA",0,0,0,0,0,0,0,0,0,0,0,0,0,0]
["QSL","RA4","YEOVIL DISTRICT HOSPITAL NHS FOUNDATION TRUST",4,108,"*","*","*","*","*","*","*","*","*","*","*","*","*","*","*","*"]
["QT1","RX1","NOTTINGHAM UNIVERSITY HOSPITALS NHS TRUST",2,584,"*","*","*","*","*","*","*","*","*","*","*","*","*","*","*","*"]
["QT1","RK5","SHERWOOD FOREST HOSPITALS NHS FOUNDATION TRUST",0,0,"NA","NA",0,0,0,0,0,0,0,0,0,0,0,0,0,0]
["QT6","REF","ROYAL CORNWALL HOSPITALS NHS TRUST",6,322,1,0,"*","*","*","*","*","*","*","*","*","*","*","*","*","*"]
["QU9","RXQ","BUCKINGHAMSHIRE HEALTHCARE NHS TRUST",55,296,0.89090909090909087,7.2727272727272724E-2,32,17,2,2,2,0,55,0,0,0,0,0,0,0]
["QU9","RTH","OXFORD UNIVERSITY HOSPITALS NHS FOUNDATION TRUST",1,507,"*","*","*","*","*","*","*","*","*","*","*","*","*","*","*","*"]
["QU9","RHW","ROYAL BERKSHIRE NHS FOUNDATION TRUST",55,302,1,0,"*","*","*","*","*","*","*","*","*","*","*","*","*","*"]
["QUA","RXK","SANDWELL AND WEST BIRMINGHAM HOSPITALS NHS TRUST",20,308,0.85,0.15,16,1,0,0,3,0,20,0,0,0,0,0,0,0]
["QUA","RNA","THE DUDLEY GROUP NHS FOUNDATION TRUST",47,284,0.8936170212765957,0,37,5,0,0,0,5,0,0,0,47,0,0,0,0]
["QUA","RBK","WALSALL HEALTHCARE NHS TRUST",31,184,0.83870967741935487,0.16129032258064516,23,3,0,2,3,0,31,0,0,0,0,0,0,0]
["QUE","RGT","CAMBRIDGE UNIVERSITY HOSPITALS NHS FOUNDATION TRUST",36,347,0.97222222222222221,0,29,6,0,0,0,1,0,36,0,0,0,0,0,0]
["QUE","RGN","NORTH WEST ANGLIA NHS FOUNDATION TRUST",38,537,1,0,36,2,0,0,0,0,0,0,0,38,0,0,0,0]
["QUY","RVJ","NORTH BRISTOL NHS TRUST",0,0,"NA","NA",0,0,0,0,0,0,0,0,0,0,0,0,0,0]
["QUY","RA7","UNIVERSITY HOSPITALS BRISTOL AND WESTON NHS FOUNDATION TRUST",18,362,0.94444444444444442,0,13,4,1,0,0,0,0,0,0,0,18,0,0,0]
["QVV","RBD","DORSET COUNTY HOSPITAL NHS FOUNDATION TRUST",46,127,0.91304347826086951,6.5217391304347824E-2,41,1,0,1,2,1,46,0,0,0,0,0,0,0]
["QVV","R0D","UNIVERSITY HOSPITALS DORSET NHS FOUNDATION TRUST",90,275,0.97777777777777775,1.1111111111111112E-2,79,9,0,1,0,1,88,0,0,2,0,0,0,0]
["QWE","RJ6","CROYDON HEALTH SERVICES NHS TRUST",22,247,0.86363636363636365,0.13636363636363635,18,1,0,0,3,0,22,0,0,0,0,0,0,0]
["QWE","RVR","EPSOM AND ST HELIER UNIVERSITY HOSPITALS NHS TRUST",34,315,0.97058823529411764,0,32,1,0,0,0,1,11,1,0,20,0,0,2,0]
["QWE","RAX","KINGSTON HOSPITAL NHS FOUNDATION TRUST",2,356,"*","*","*","*","*","*","*","*","*","*","*","*","*","*","*","*"]
["QWE","RJ7","ST GEORGE'S UNIVERSITY HOSPITALS NHS FOUNDATION TRUST",2,350,"*","*","*","*","*","*","*","*","*","*","*","*","*","*","*","*"]
["QWO","RCF","AIREDALE NHS FOUNDATION TRUST",0,0,"NA","NA",0,0,0,0,0,0,0,0,0,0,0,0,0,0]
["QWO","RAE","BRADFORD TEACHING HOSPITALS NHS FOUNDATION TRUST",0,381,"NA","NA",0,0,0,0,0,0,0,0,0,0,0,0,0,0]
["QWO","RWY","CALDERDALE AND HUDDERSFIELD NHS FOUNDATION TRUST",0,355,"NA","NA",0,0,0,0,0,0,0,0,0,0,0,0,0,0]
["QWO","RR8","LEEDS TEACHING HOSPITALS NHS TRUST",171,564,0.97660818713450293,1.7543859649122806E-2,159,8,1,0,3,0,150,21,0,0,0,0,0,0]
["QWO","RXF","MID YORKSHIRE HOSPITALS NHS TRUST",12,396,0.91666666666666663,8.3333333333333329E-2,11,0,0,0,1,0,0,0,0,10,0,0,2,0]
["QWU","RLT","GEORGE ELIOT HOSPITAL NHS TRUST",73,178,0.9178082191780822,6.8493150684931503E-2,62,5,0,4,1,1,69,0,0,4,0,0,0,0]
["QWU","RJC","SOUTH WARWICKSHIRE NHS FOUNDATION TRUST",0,232,"NA","NA",0,0,0,0,0,0,0,0,0,0,0,0,0,0]
["QWU","RKB","UNIVERSITY HOSPITALS COVENTRY AND WARWICKSHIRE NHS TRUST",30,427,1,0,27,3,0,0,0,0,0,27,0,0,0,0,3,0]
["QXU","RA2","ROYAL SURREY COUNTY HOSPITAL NHS FOUNDATION TRUST",22,198,1,0,21,1,0,0,0,0,21,0,0,0,0,0,1,0]
["QXU","RTP","SURREY AND SUSSEX HEALTHCARE NHS TRUST",31,367,1,0,30,1,0,0,0,0,0,0,0,31,0,0,0,0]
["QYG","RJR","COUNTESS OF CHESTER HOSPITAL NHS FOUNDATION TRUST",37,163,0.97297297297297303,2.7027027027027029E-2,33,3,0,0,1,0,37,0,0,0,0,0,0,0]
["QYG","RJN","EAST CHESHIRE NHS TRUST",0,0,"NA","NA",0,0,0,0,0,0,0,0,0,0,0,0,0,0]
["QYG","REP","LIVERPOOL WOMEN'S NHS FOUNDATION TRUST",34,593,0.97058823529411764,2.9411764705882353E-2,31,2,0,1,0,0,0,0,0,0,0,0,34,0]
["QYG","RBT","MID CHESHIRE HOSPITALS NHS FOUNDATION TRUST",12,242,0.91666666666666663,8.3333333333333329E-2,11,0,0,0,1,0,11,0,0,1,0,0,0,0]
["QYG","RVY","SOUTHPORT AND ORMSKIRK HOSPITAL NHS TRUST",12,62,1,0,11,1,0,0,0,0,12,0,0,0,0,0,0,0]
["QYG","RBN","ST HELENS AND KNOWSLEY TEACHING HOSPITALS NHS TRUST",9,312,1,0,8,1,0,0,0,0,0,0,0,9,0,0,0,0]
["QYG","RWW","WARRINGTON AND HALTON TEACHING HOSPITALS NHS FOUNDATION TRUST",0,167,"NA","NA",0,0,0,0,0,0,0,0,0,0,0,0,0,0]
["QYG","RBL","WIRRAL UNIVERSITY TEACHING HOSPITAL NHS FOUNDATION TRUST",15,203,0.8,6.6666666666666666E-2,8,4,2,1,0,0,0,0,0,15,0,0,0,0]

{"sheet":"Sites Q2","index":7,"n_rows":216,"n_cols":14,"rows_kept":216,"cut":false,"hidden":false,"merged":[[8,6,9,6],[8,7,9,7],[8,8,8,13],[8,0,9,0],[8,1,9,1],[8,2,9,2],[8,3,9,3],[8,4,9,4],[8,5,9,5]]}
[]
[]
[]
[]
[]
[null,"   Sort data by:           "]
[]
[]
["STP Code","Trust Code","Trust Name","Site Code","Site Name","Total Responses","Percentage Positive","Percentage Negative","Breakdown of Responses"]
[null,null,null,null,null,null,null,null,"Very Good","Good","Neither Good nor Poor","Poor","Very Poor","Don't Know"]
[null,null,null,null,"England (including Independent Sector providers)",3517,0.9516633494455502,2.7580324139891952E-2,2866,481,51,43,54,22]
[null,null,null,null,"England (excluding Independent Sector providers)",3517,0.9516633494455502,2.7580324139891952E-2,2866,481,51,43,54,22]
[null,null,null,null,"Selection (excluding suppressed data)",{"$f":"SUBTOTAL(9,F14:F298)","v":3517},{"$f":"IFERROR((I13+J13)/SUM(I13:N13), \"-\")","v":0.95063025210084029},{"$f":"IFERROR((L13+M13)/SUM(I13:N13), \"-\")","v":2.976190476190476E-2},{"$f":"SUBTOTAL(9,I14:I298)","v":2358},357,38,35,50,18]
["QE1","RXL","BLACKPOOL TEACHING HOSPITALS NHS FOUNDATION TRUST","RXL01","Blackpool Victoria Hospital",20,0.9,0.05,12,6,1,0,1,0]
["QE1","RXR","EAST LANCASHIRE HOSPITALS NHS TRUST","RXR20","Royal Blackburn Hospital",79,0.87341772151898733,5.0632911392405063E-2,57,12,4,1,3,2]
["QE1","RXN","LANCASHIRE TEACHING HOSPITALS NHS FOUNDATION TRUST","RXN01","Chorley and South Ribble Hospital",0,"NA","NA",0,0,0,0,0,0]
["QE1","RXN","LANCASHIRE TEACHING HOSPITALS NHS FOUNDATION TRUST","RXN02","Royal Preston Hospital",20,1,0,18,2,0,0,0,0]
["QE1","RTX","UNIVERSITY HOSPITALS OF MORECAMBE BAY NHS FOUNDATION TRUST","RTXBW","Westmorland General Hospital",0,"NA","NA",0,0,0,0,0,0]
["QE1","RTX","UNIVERSITY HOSPITALS OF MORECAMBE BAY NHS FOUNDATION TRUST","RTXBU","Furness General Hospital",11,1,0,10,1,0,0,0,0]
["QE1","RTX","UNIVERSITY HOSPITALS OF MORECAMBE BAY NHS FOUNDATION TRUST","RTX02","Royal Lancaster Infirmary",12,1,0,10,2,0,0,0,0]
["QF7","RFF","BARNSLEY HOSPITAL NHS FOUNDATION TRUST","RFFAA","Barnsley Hospital NHS Foundation Trust HQ",2,"*","*","*","*","*","*","*","*"]
["QF7","RP5","DONCASTER AND BASSETLAW TEACHING HOSPITALS NHS FOUNDATION TRUST","RP5XXX","Non-hospital site",0,"NA","NA",0,0,0,0,0,0]
["QF7","RP5","DONCASTER AND BASSETLAW TEACHING HOSPITALS NHS FOUNDATION TRUST","RP5BA","Bassetlaw Hospital",23,1,0,22,1,0,0,0,0]
["QF7","RP5","DONCASTER AND BASSETLAW TEACHING HOSPITALS NHS FOUNDATION TRUST","RP5DR","Doncaster Royal Infirmary",125,0.98399999999999999,8.0000000000000002E-3,107,16,1,0,1,0]
["QF7","RHQ","SHEFFIELD TEACHING HOSPITALS NHS FOUNDATION TRUST","RHQHH","Royal Hallamshire Hospital",10,0.9,0.1,"*","*","*","*","*","*"]
["QF7","RFR","THE ROTHERHAM NHS FOUNDATION TRUST","RFRPA","Rotherham District General Hospital",0,"NA","NA",0,0,0,0,0,0]
["QGH","RWP","WORCESTERSHIRE ACUTE HOSPITALS NHS TRUST","RWP50","Worcestershire Royal Hospital",2,"*","*","*","*","*","*","*","*"]
["QH8","RAJ","MID AND SOUTH ESSEX NHS FOUNDATION TRUST","RAJ12","BASILDON HOSPITAL",7,0.42857142857142855,0.5714285714285714,3,0,0,1,3,0]
["QH8","RAJ","MID AND SOUTH ESSEX NHS FOUNDATION TRUST","RAJ01","Southend Hospital",25,0.92,0.08,22,1,0,1,1,0]
["QH8","RAJ","MID AND SOUTH ESSEX NHS FOUNDATION TRUST","RAJ32","MID ESSEX HOSPITAL",33,0.84848484848484851,3.0303030303030304E-2,23,5,3,0,1,1]
["QHG","RC9","BEDFORDSHIRE HOSPITALS NHS FOUNDATION TRUST","RC971","Luton and Dunstable Hospital",3,"*","*","*","*","*","*","*","*"]
["QHG","RC9","BEDFORDSHIRE HOSPITALS NHS FOUNDATION TRUST","RC979","BEDFORD HOSPITAL SOUTH WING",17,1,0,"*","*","*","*","*","*"]
["QHG","RD8","MILTON KEYNES UNIVERSITY HOSPITAL NHS FOUNDATION TRUST","RD816","Milton Keynes Hospital",37,0.97297297297297303,0,30,6,0,0,0,1]
["QHL","RQ3","BIRMINGHAM WOMEN'S AND CHILDREN'S NHS FOUNDATION TRUST","RQ370","Birmingham Women's Hospital",2,"*","*","*","*","*","*","*","*"]
["QHL","RRK","UNIVERSITY HOSPITALS BIRMINGHAM NHS FOUNDATION TRUST","RRK97","Heartlands Hospital",0,"NA","NA",0,0,0,0,0,0]
["QHL","RRK","UNIVERSITY HOSPITALS BIRMINGHAM NHS FOUNDATION TRUST","RRK98","Good Hope Hospital",0,"NA","NA",0,0,0,0,0,0]
["QHL","RRK","UNIVERSITY HOSPITALS BIRMINGHAM NHS FOUNDATION TRUST","RRK99","Solihull Hospital",0,"NA","NA",0,0,0,0,0,0]
["QHM","RXP","COUNTY DURHAM AND DARLINGTON NHS FOUNDATION TRUST","RXPCP","University Hospital Of North Durham",4,"*","*","*","*","*","*","*","*"]
["QHM","RXP","COUNTY DURHAM AND DARLINGTON NHS FOUNDATION TRUST","RXPDA","Darlington Memorial Hospital",7,1,0,"*","*","*","*","*","*"]
["QHM","RNN","NORTH CUMBRIA INTEGRATED CARE NHS FOUNDATION TRUST","RNNXXX","Non-hospital site",0,"NA","NA",0,0,0,0,0,0]
["QHM","RNN","NORTH CUMBRIA INTEGRATED CARE NHS FOUNDATION TRUST","RNNKV","Penrith Hospital",1,"*","*","*","*","*","*","*","*"]
["QHM","RNN","NORTH CUMBRIA INTEGRATED CARE NHS FOUNDATION TRUST","RNN62","Cumberland Infirmary",5,1,0,"*","*","*","*","*","*"]
["QHM","RNN","NORTH CUMBRIA INTEGRATED CARE NHS FOUNDATION TRUST","RNNBX","West Cumberland Hospital",8,0.875,0,6,1,1,0,0,0]
["QHM","RVW","NORTH TEES AND HARTLEPOOL NHS FOUNDATION TRUST","RVWAE","University Hospital Of North Tees",4,"*","*","*","*","*","*","*","*"]
["QHM","RTF","NORTHUMBRIA HEALTHCARE NHS FOUNDATION TRUST","RTFDH","Berwick Infirmary",0,"NA","NA",0,0,0,0,0,0]
["QHM","RTF","NORTHUMBRIA HEALTHCARE NHS FOUNDATION TRUST","RTFDR","Hexham General Hospital",0,"NA","NA",0,0,0,0,0,0]
["QHM","RTF","NORTHUMBRIA HEALTHCARE NHS FOUNDATION TRUST","RTFXXX","Non-hospital site",0,"NA","NA",0,0,0,0,0,0]
["QHM","RTF","NORTHUMBRIA HEALTHCARE NHS FOUNDATION TRUST","RTFDJ","Alnwick Infirmary",2,"*","*","*","*","*","*","*","*"]
["QHM","RTF","NORTHUMBRIA HEALTHCARE NHS FOUNDATION TRUST","RTF86","The Northumbria",72,0.90277777777777779,5.5555555555555552E-2,"*","*","*","*","*","*"]
["QHM","RTR","SOUTH TEES HOSPITALS NHS FOUNDATION TRUST","RTRAT","The James Cook University Hospital",0,"NA","NA",0,0,0,0,0,0]
["QHM","RTR","SOUTH TEES HOSPITALS NHS FOUNDATION TRUST","RTR45","Friarage Hospital Site",2,"*","*","*","*","*","*","*","*"]
["QHM","R0B","SOUTH TYNESIDE AND SUNDERLAND NHS FOUNDATION TRUST","R0B01","Sunderland Royal Hospital",11,1,0,11,0,0,0,0,0]
["QHM","R0B","SOUTH TYNESIDE AND SUNDERLAND NHS FOUNDATION TRUST","R0B0Q","South Tyneside District Hospital",13,1,0,12,1,0,0,0,0]
["QJ2","RFS","CHESTERFIELD ROYAL HOSPITAL NHS FOUNDATION TRUST","RFSDA","Chesterfield Royal Hospital",4,"*","*","*","*","*","*","*","*"]
["QJ2","RTG","UNIVERSITY HOSPITALS OF DERBY AND BURTON NHS FOUNDATION TRUST","RTGFG","Royal Derby Hospital",1,"*","*","*","*","*","*","*","*"]
["QJG","RDE","EAST SUFFOLK AND NORTH ESSEX NHS FOUNDATION TRUST","RDE03","Ipswich Hospital",1,"*","*","*","*","*","*","*","*"]
["QJG","RDE","EAST SUFFOLK AND NORTH ESSEX NHS FOUNDATION TRUST","RDEE4","Colchester General Hospital",10,0.9,0,"*","*","*","*","*","*"]
["QJG","RGR","WEST SUFFOLK NHS FOUNDATION TRUST","RGR50","West Suffolk Hospital",9,1,0,9,0,0,0,0,0]
["QJK","RBZ","NORTHERN DEVON HEALTHCARE NHS TRUST","RBZ12","North Devon District Hospital",0,"NA","NA",0,0,0,0,0,0]
["QJK","RH8","ROYAL DEVON AND EXETER NHS FOUNDATION TRUST","RH801","Royal Devon and Exeter Hospital (Wonford)",0,"NA","NA",0,0,0,0,0,0]
["QJK","RK9","UNIVERSITY HOSPITALS PLYMOUTH NHS TRUST","RK953","Royal Eye Infirmary",0,"NA","NA",0,0,0,0,0,0]
["QJK","RK9","UNIVERSITY HOSPITALS PLYMOUTH NHS TRUST","RK950","Derriford Hospital",6,1,0,5,1,0,0,0,0]
["QJM","RWD","UNITED LINCOLNSHIRE HOSPITALS NHS TRUST","RWDDA","Lincoln County Hospital",0,"NA","NA",0,0,0,0,0,0]
["QJM","RWD","UNITED LINCOLNSHIRE HOSPITALS NHS TRUST","RWDLP","Grantham and District Hospital",0,"NA","NA",0,0,0,0,0,0]
["QJM","RWD","UNITED LINCOLNSHIRE HOSPITALS NHS TRUST","RWDXXX","Non-hospital site",0,"NA","NA",0,0,0,0,0,0]
["QJM","RWD","UNITED LINCOLNSHIRE HOSPITALS NHS TRUST","RWDLA","Pilgrim Hospital",20,1,0,19,1,0,0,0,0]
["QK1","RWE","UNIVERSITY HOSPITALS OF LEICESTER NHS TRUST","RWE10","St Mary's Hospital",10,1,0,10,0,0,0,0,0]
["QK1","RWE","UNIVERSITY HOSPITALS OF LEICESTER NHS TRUST","RWEXXX","Non-hospital site",54,0.96296296296296291,1.8518518518518517E-2,42,10,0,0,1,1]
["QK1","RWE","UNIVERSITY HOSPITALS OF LEICESTER NHS TRUST","RWEAK","Leicester General Hospital",71,0.95774647887323938,2.8169014084507043E-2,60,8,1,0,2,0]
["QK1","RWE","UNIVERSITY HOSPITALS OF LEICESTER NHS TRUST","RWEAA","Leicester Royal Infirmary",151,0.95364238410596025,1.3245033112582781E-2,116,28,4,2,0,1]
["QKK","RJ1","GUY'S AND ST THOMAS' NHS FOUNDATION TRUST","RJ1XXX","Non-hospital site",0,"NA","NA",0,0,0,0,0,0]
["QKK","RJ1","GUY'S AND ST THOMAS' NHS FOUNDATION TRUST","RJ122","St Thomas' Hospital",12,0.83333333333333337,8.3333333333333329E-2,9,1,1,1,0,0]
["QKK","RJZ","KING'S COLLEGE HOSPITAL NHS FOUNDATION TRUST","RJZ01","King's College Hospital (Denmark Hill)",0,"NA","NA",0,0,0,0,0,0]
["QKK","RJZ","KING'S COLLEGE HOSPITAL NHS FOUNDATION TRUST","RJZ30","Princess Royal University Hospital",0,"NA","NA",0,0,0,0,0,0]
["QKK","RJ2","LEWISHAM AND GREENWICH NHS TRUST","RJ2XXX","Non-hospital site",0,"NA","NA",0,0,0,0,0,0]
["QKK","RJ2","LEWISHAM AND GREENWICH NHS TRUST","RJ231","Queen Elizabeth Hospital",18,0.94444444444444442,5.5555555555555552E-2,12,5,0,0,1,0]
["QKK","RJ2","LEWISHAM AND GREENWICH NHS TRUST","RJ224","University Hospital Lewisham",53,0.98113207547169812,0,36,16,1,0,0,0]
["QKS","RN7","DARTFORD AND GRAVESHAM NHS TRUST","RN707","Darent Valley Hospital",7,0.8571428571428571,0,5,1,0,0,0,1]
["QKS","RWF","MAIDSTONE AND TUNBRIDGE WELLS NHS TRUST","RWFXXX","Non-hospital site",0,"NA","NA",0,0,0,0,0,0]
["QKS","RWF","MAIDSTONE AND TUNBRIDGE WELLS NHS TRUST","RWF08","Crowborough Birthing Centre",1,"*","*","*","*","*","*","*","*"]
["QKS","RWF","MAIDSTONE AND TUNBRIDGE WELLS NHS TRUST","RWF03","Maidstone District General Hospital",32,1,0,"*","*","*","*","*","*"]
["QKS","RWF","MAIDSTONE AND TUNBRIDGE WELLS NHS TRUST","RWFTW","The Tunbridge Wells Hospital",75,0.98666666666666669,0,66,8,1,0,0,0]
["QKS","RPA","MEDWAY NHS FOUNDATION TRUST","RPA02","Medway Maritime Hospital",127,1,0,127,0,0,0,0,0]
["QM7","RWH","EAST AND NORTH HERTFORDSHIRE NHS TRUST","RWHXXX","Non-hospital site",0,"NA","NA",0,0,0,0,0,0]
["QM7","RWH","EAST AND NORTH HERTFORDSHIRE NHS TRUST","RWH01","Lister Hospital",135,0.97777777777777775,1.4814814814814815E-2,"*","*","*","*","*","*"]
["QM7","RQW","THE PRINCESS ALEXANDRA HOSPITAL NHS TRUST","RQWG0","Princess Alexandra Hospital",0,"NA","NA",0,0,0,0,0,0]
["QM7","RWG","WEST HERTFORDSHIRE HOSPITALS NHS TRUST","RWG02","Watford General Hospital",1,"*","*","*","*","*","*","*","*"]
["QMF","RF4","BARKING, HAVERING AND REDBRIDGE UNIVERSITY HOSPITALS NHS TRUST","RF4QH","Queen's Hospital",0,"NA","NA",0,0,0,0,0,0]
["QMF","R1H","BARTS HEALTH NHS TRUST","R1H12","The Royal London Hospital",0,"NA","NA",0,0,0,0,0,0]
["QMF","R1H","BARTS HEALTH NHS TRUST","R1HNH","Newham General Hospital",42,0.9285714285714286,2.3809523809523808E-2,30,9,2,0,1,0]
["QMF","R1H","BARTS HEALTH NHS TRUST","R1HKH","Whipps Cross University Hospital",46,0.97826086956521741,0,39,6,1,0,0,0]
["QMJ","RAL","ROYAL FREE LONDON NHS FOUNDATION TRUST","RAL26","Barnet Hospital",2,"*","*","*","*","*","*","*","*"]
["QMJ","RAL","ROYAL FREE LONDON NHS FOUNDATION TRUST","RAL01","Royal Free Hospital",79,0.89873417721518989,0,"*","*","*","*","*","*"]
["QMJ","RKE","WHITTINGTON HEALTH NHS TRUST","RKEXXX","Non-hospital site",0,"NA","NA",0,0,0,0,0,0]
["QMJ","RKE","WHITTINGTON HEALTH NHS TRUST","RKEQ4","The Whittington Hospital",53,0.98113207547169812,0,0,52,1,0,0,0]
["QMM","RM1","NORFOLK AND NORWICH UNIVERSITY HOSPITALS NHS FOUNDATION TRUST","RM102","Norfolk and Norwich University Hospital",5,1,0,4,1,0,0,0,0]
["QMM","RCX","THE QUEEN ELIZABETH HOSPITAL, KING'S LYNN, NHS FOUNDATION TRUST","RCXXXX","Non-hospital site",1,"*","*","*","*","*","*","*","*"]
["QMM","RCX","THE QUEEN ELIZABETH HOSPITAL, KING'S LYNN, NHS FOUNDATION TRUST","RCX70","The Queen Elizabeth Hospital",22,0.90909090909090906,9.0909090909090912E-2,"*","*","*","*","*","*"]
["QNC","RJE","UNIVERSITY HOSPITALS OF NORTH MIDLANDS NHS TRUST","RJE01","Royal Stoke University Hospital",0,"NA","NA",0,0,0,0,0,0]
["QNC","RJE","UNIVERSITY HOSPITALS OF NORTH MIDLANDS NHS TRUST","RJE09","County Hospital",0,"NA","NA",0,0,0,0,0,0]
["QNC","RJE","UNIVERSITY HOSPITALS OF NORTH MIDLANDS NHS TRUST","RJEXXX","Non-hospital site",0,"NA","NA",0,0,0,0,0,0]
["QNQ","RDU","FRIMLEY HEALTH NHS FOUNDATION TRUST","RDU50","Wexham Park Hospital",21,1,0,20,1,0,0,0,0]
["QNQ","RDU","FRIMLEY HEALTH NHS FOUNDATION TRUST","RDU01","Frimley Park Hospital",23,1,0,23,0,0,0,0,0]
["QNX","RXH","BRIGHTON AND SUSSEX UNIVERSITY HOSPITALS NHS TRUST","RXHXXX","Non-hospital site",0,"NA","NA",0,0,0,0,0,0]
["QNX","RXH","BRIGHTON AND SUSSEX UNIVERSITY HOSPITALS NHS TRUST","RXH09","Princess Royal Hospital",6,0.66666666666666663,0,3,1,2,0,0,0]
["QNX","RXH","BRIGHTON AND SUSSEX UNIVERSITY HOSPITALS NHS TRUST","RXH01","Royal Sussex County Hospital",42,0.9285714285714286,7.1428571428571425E-2,36,3,0,3,0,0]
["QNX","RXC","EAST SUSSEX HEALTHCARE NHS TRUST","RXCXXX","Non-hospital site",0,"NA","NA",0,0,0,0,0,0]
["QNX","RXC","EAST SUSSEX HEALTHCARE NHS TRUST","RXC02","Eastbourne District General Hospital",1,"*","*","*","*","*","*","*","*"]
["QNX","RXC","EAST SUSSEX HEALTHCARE NHS TRUST","RXC01","Conquest Hospital",45,0.97777777777777775,0,"*","*","*","*","*","*"]
["QNX","RYR","WESTERN SUSSEX HOSPITALS NHS FOUNDATION TRUST","RYR18","Worthing Hospital",6,1,0,6,0,0,0,0,0]
["QNX","RYR","WESTERN SUSSEX HOSPITALS NHS FOUNDATION TRUST","RYR16","St Richard's Hospital",16,0.9375,6.25E-2,12,3,0,1,0,0]
["QOC","RXW","THE SHREWSBURY AND TELFORD HOSPITAL NHS TRUST","RXWAS","Royal Shrewsbury Hospital",0,"NA","NA",0,0,0,0,0,0]
["QOC","RXW","THE SHREWSBURY AND TELFORD HOSPITAL NHS TRUST","RXWMB","Bridgnorth Hospital (Maternity)",0,"NA","NA",0,0,0,0,0,0]
["QOC","RXW","THE SHREWSBURY AND TELFORD HOSPITAL NHS TRUST","RXWMJ","Robert Jones & Agnes Hunt Orthopaedic & District Hospital",0,"NA","NA",0,0,0,0,0,0]
["QOC","RXW","THE SHREWSBURY AND TELFORD HOSPITAL NHS TRUST","RXWXXX","Non-hospital site",0,"NA","NA",0,0,0,0,0,0]
["QOC","RXW","THE SHREWSBURY AND TELFORD HOSPITAL NHS TRUST","RXWAT","The Princess Royal Hospital",101,1,0,96,5,0,0,0,0]
["QOP","RMC","BOLTON NHS FOUNDATION TRUST","RMC01","Royal Bolton Hospital",164,0.90243902439024393,6.097560975609756E-2,125,23,5,5,5,1]
["QOP","R0A","MANCHESTER UNIVERSITY NHS FOUNDATION TRUST","R0A05","St Mary's Hospital",81,1,0,76,5,0,0,0,0]
["QOP","RW6","PENNINE ACUTE HOSPITALS NHS TRUST","RW602","North Manchester General Hospital",1,"*","*","*","*","*","*","*","*"]
["QOP","RW6","PENNINE ACUTE HOSPITALS NHS TRUST","RW603","Royal Oldham Hospital",4,"*","*","*","*","*","*","*","*"]
["QOP","RWJ","STOCKPORT NHS FOUNDATION TRUST","RWJ09","Stepping Hill Hospital",44,0.93181818181818177,2.2727272727272728E-2,37,4,1,1,0,1]
["QOP","RMP","TAMESIDE AND GLOSSOP INTEGRATED CARE NHS FOUNDATION TRUST","RMP01","Tameside General Hospital",12,1,0,10,2,0,0,0,0]
["QOP","RRF","WRIGHTINGTON, WIGAN AND LEIGH NHS FOUNDATION TRUST","RRF02","Royal Albert Edward Infirmary",0,"NA","NA",0,0,0,0,0,0]
["QOQ","RCD","HARROGATE AND DISTRICT NHS FOUNDATION TRUST","RCD01","Harrogate District Hospital",43,1,0,39,4,0,0,0,0]
["QOQ","RWA","HULL UNIVERSITY TEACHING HOSPITALS NHS TRUST","RWA01","Hull Royal Infirmary",10,1,0,9,1,0,0,0,0]
["QOQ","RJL","NORTHERN LINCOLNSHIRE AND GOOLE NHS FOUNDATION TRUST","RJL30","Diana, Princess Of Wales Hospital",0,"NA","NA",0,0,0,0,0,0]
["QOQ","RJL","NORTHERN LINCOLNSHIRE AND GOOLE NHS FOUNDATION TRUST","RJL32","Scunthorpe General Hospital",0,"NA","NA",0,0,0,0,0,0]
["QOQ","RCB","YORK TEACHING HOSPITAL NHS FOUNDATION TRUST","RCB55","York Hospital",10,1,0,10,0,0,0,0,0]
["QOQ","RCB","YORK TEACHING HOSPITAL NHS FOUNDATION TRUST","RCBCA","Scarborough General Hospital",26,1,0,26,0,0,0,0,0]
["QOX","RN3","GREAT WESTERN HOSPITALS NHS FOUNDATION TRUST","RN325","The Great Western Hospital",0,"NA","NA",0,0,0,0,0,0]
["QOX","RN3","GREAT WESTERN HOSPITALS NHS FOUNDATION TRUST","RN3XXX","Non-hospital site",0,"NA","NA",0,0,0,0,0,0]
["QOX","RD1","ROYAL UNITED HOSPITALS BATH NHS FOUNDATION TRUST","RD102","Chippenham Community Hospital",0,"NA","NA",0,0,0,0,0,0]
["QOX","RD1","ROYAL UNITED HOSPITALS BATH NHS FOUNDATION TRUST","RD108","Trowbridge Community Hospital",0,"NA","NA",0,0,0,0,0,0]
["QOX","RD1","ROYAL UNITED HOSPITALS BATH NHS FOUNDATION TRUST","RD121","Frome Community Hospital",0,"NA","NA",0,0,0,0,0,0]
["QOX","RD1","ROYAL UNITED HOSPITALS BATH NHS FOUNDATION TRUST","RD1XXX","Non Hospital Site",0,"NA","NA",0,0,0,0,0,0]
["QOX","RD1","ROYAL UNITED HOSPITALS BATH NHS FOUNDATION TRUST","RD130","Princess Anne Wing RUH",1,"*","*","*","*","*","*","*","*"]
["QOX","RNZ","SALISBURY NHS FOUNDATION TRUST","RNZ02","Salisbury District Hospital",0,"NA","NA",0,0,0,0,0,0]
["QOX","RNZ","SALISBURY NHS FOUNDATION TRUST","RNZXXX","Non-hospital site",0,"NA","NA",0,0,0,0,0,0]
["QPM","RNQ","KETTERING GENERAL HOSPITAL NHS FOUNDATION TRUST","RNQ51","Kettering General Hospital",2,"*","*","*","*","*","*","*","*"]
["QPM","RNS","NORTHAMPTON GENERAL HOSPITAL NHS TRUST","RNS01","Northampton General Hospital (Acute)",0,"NA","NA",0,0,0,0,0,0]
["QR1","RTE","GLOUCESTERSHIRE HOSPITALS NHS FOUNDATION TRUST","RTEXXX","Non-hospital site",0,"NA","NA",0,0,0,0,0,0]
["QR1","RTE","GLOUCESTERSHIRE HOSPITALS NHS FOUNDATION TRUST","RTE01","Cheltenham General Hospital",3,"*","*","*","*","*","*","*","*"]
["QR1","RTE","GLOUCESTERSHIRE HOSPITALS NHS FOUNDATION TRUST","RTE27","Stroud Maternity Hospital",3,"*","*","*","*","*","*","*","*"]
["QR1","RTE","GLOUCESTERSHIRE HOSPITALS NHS FOUNDATION TRUST","RTE03","Gloucestershire Royal Hospital",24,0.95833333333333337,4.1666666666666664E-2,20,3,0,0,1,0]
["QRL","RN5","HAMPSHIRE HOSPITALS NHS FOUNDATION TRUST","RN541","Royal Hampshire County Hospital",0,"NA","NA",0,0,0,0,0,0]
["QRL","RN5","HAMPSHIRE HOSPITALS NHS FOUNDATION TRUST","RN542","Andover War Memorial Hospital",0,"NA","NA",0,0,0,0,0,0]
["QRL","RN5","HAMPSHIRE HOSPITALS NHS FOUNDATION TRUST","RN506","Basingstoke and North Hampshire Hospital",8,1,0,5,3,0,0,0,0]
["QRL","R1F","ISLE OF WIGHT NHS TRUST","R1F01","St Mary's Hospital",6,1,0,5,1,0,0,0,0]
["QRL","RHU","PORTSMOUTH HOSPITALS UNIVERSITY NATIONAL HEALTH SERVICE TRUST","RHU02","St Mary's Hospital",0,"NA","NA",0,0,0,0,0,0]
["QRL","RHU","PORTSMOUTH HOSPITALS UNIVERSITY NATIONAL HEALTH SERVICE TRUST","RHU03","Queen Alexandra Hospital",0,"NA","NA",0,0,0,0,0,0]
["QRL","RHU","PORTSMOUTH HOSPITALS UNIVERSITY NATIONAL HEALTH SERVICE TRUST","RHU04","Petersfield Community Hospital",0,"NA","NA",0,0,0,0,0,0]
["QRL","RHU","PORTSMOUTH HOSPITALS UNIVERSITY NATIONAL HEALTH SERVICE TRUST","RHU10","Gosport War Memorial Hospital",0,"NA","NA",0,0,0,0,0,0]
["QRL","RHM","UNIVERSITY HOSPITAL SOUTHAMPTON NHS FOUNDATION TRUST","RHM12","Princess Anne Hospital",124,0.87903225806451613,0.10483870967741936,90,19,1,6,7,1]
["QRV","RQM","CHELSEA AND WESTMINSTER HOSPITAL NHS FOUNDATION TRUST","RQM91","West Middlesex University Hospital",11,1,0,11,0,0,0,0,0]
["QRV","RQM","CHELSEA AND WESTMINSTER HOSPITAL NHS FOUNDATION TRUST","RQM01","Chelsea and Westminster Hospital",28,1,0,26,2,0,0,0,0]
["QRV","RYJ","IMPERIAL COLLEGE HEALTHCARE NHS TRUST","RYJ01","St Mary's Hospital (HQ)",29,0.93103448275862066,3.4482758620689655E-2,24,3,1,1,0,0]
["QRV","RYJ","IMPERIAL COLLEGE HEALTHCARE NHS TRUST","RYJ04","Queen Charlotte's Hospital",45,0.93333333333333335,6.6666666666666666E-2,39,3,0,1,2,0]
["QRV","R1K","LONDON NORTH WEST UNIVERSITY HEALTHCARE NHS TRUST","R1K01","Northwick Park Hospital",0,"NA","NA",0,0,0,0,0,0]
["QRV","RAS","THE HILLINGDON HOSPITALS NHS FOUNDATION TRUST","RAS01","Hillingdon Hospital",5,1,0,4,1,0,0,0,0]
["QSL","RH5","SOMERSET NHS FOUNDATION TRUST","RH5A8","MUSGROVE PARK HOSPITAL",0,"NA","NA",0,0,0,0,0,0]
["QSL","RA4","YEOVIL DISTRICT HOSPITAL NHS FOUNDATION TRUST","RA430","Yeovil District Hospital",4,"*","*","*","*","*","*","*","*"]
["QT1","RX1","NOTTINGHAM UNIVERSITY HOSPITALS NHS TRUST","RX1CC","Nottingham University Hospitals NHS Trust - City Campus",2,"*","*","*","*","*","*","*","*"]
["QT1","RK5","SHERWOOD FOREST HOSPITALS NHS FOUNDATION TRUST","RK5BC","King's Mill Hospital",0,"NA","NA",0,0,0,0,0,0]
["QT1","RK5","SHERWOOD FOREST HOSPITALS NHS FOUNDATION TRUST","RK5XXX","Non-hospital site",0,"NA","NA",0,0,0,0,0,0]
["QT6","REF","ROYAL CORNWALL HOSPITALS NHS TRUST","REFXXX","Non-hospital site",0,"NA","NA",0,0,0,0,0,0]
["QT6","REF","ROYAL CORNWALL HOSPITALS NHS TRUST","REF12","Royal Cornwall Hospital (Treliske)",6,1,0,"*","*","*","*","*","*"]
["QU9","RXQ","BUCKINGHAMSHIRE HEALTHCARE NHS TRUST","RXQ02","Stoke Mandeville Hospital",55,0.89090909090909087,7.2727272727272724E-2,32,17,2,2,2,0]
["QU9","RTH","OXFORD UNIVERSITY HOSPITALS NHS FOUNDATION TRUST","RTH05","Horton General Hospital",0,"NA","NA",0,0,0,0,0,0]
["QU9","RTH","OXFORD UNIVERSITY HOSPITALS NHS FOUNDATION TRUST","RTH16","Wallingford Community Hospital",0,"NA","NA",0,0,0,0,0,0]
["QU9","RTH","OXFORD UNIVERSITY HOSPITALS NHS FOUNDATION TRUST","RTH19","Chipping Norton Community Hospital",0,"NA","NA",0,0,0,0,0,0]
["QU9","RTH","OXFORD UNIVERSITY HOSPITALS NHS FOUNDATION TRUST","RTH21","Wantage Community Hospital",0,"NA","NA",0,0,0,0,0,0]
["QU9","RTH","OXFORD UNIVERSITY HOSPITALS NHS FOUNDATION TRUST","RTH08","John Radcliffe Hospital",1,"*","*","*","*","*","*","*","*"]
["QU9","RHW","ROYAL BERKSHIRE NHS FOUNDATION TRUST","RHW01","Royal Berkshire Hospital",55,1,0,"*","*","*","*","*","*"]
["QUA","RXK","SANDWELL AND WEST BIRMINGHAM HOSPITALS NHS TRUST","RXK02","City Hospital",20,0.85,0.15,16,1,0,0,3,0]
["QUA","RNA","THE DUDLEY GROUP NHS FOUNDATION TRUST","RNA01","Russells Hall Hospital",47,0.8936170212765957,0,37,5,0,0,0,5]
["QUA","RBK","WALSALL HEALTHCARE NHS TRUST","RBK02","Manor Hospital",31,0.83870967741935487,0.16129032258064516,23,3,0,2,3,0]
["QUE","RGT","CAMBRIDGE UNIVERSITY HOSPITALS NHS FOUNDATION TRUST","RGT32","Rosie Hospital",36,0.97222222222222221,0,29,6,0,0,0,1]
["QUE","RGN","NORTH WEST ANGLIA NHS FOUNDATION TRUST","RGN90","Hinchingbrooke Hospital",11,1,0,11,0,0,0,0,0]
["QUE","RGN","NORTH WEST ANGLIA NHS FOUNDATION TRUST","RGN80","Peterborough City Hospital",27,1,0,25,2,0,0,0,0]
["QUY","RVJ","NORTH BRISTOL NHS TRUST","RVJ01","Southmead Hospital",0,"NA","NA",0,0,0,0,0,0]
["QUY","RA7","UNIVERSITY HOSPITALS BRISTOL AND WESTON NHS FOUNDATION TRUST","RA707","St Michael's Hospital",18,0.94444444444444442,0,13,4,1,0,0,0]
["QVV","RBD","DORSET COUNTY HOSPITAL NHS FOUNDATION TRUST","RBD01","Dorset County Hospital",46,0.91304347826086951,6.5217391304347824E-2,41,1,0,1,2,1]
["QVV","R0D","UNIVERSITY HOSPITALS DORSET NHS FOUNDATION TRUST","R0D02","Royal Bournemouth Hospital",2,"*","*","*","*","*","*","*","*"]
["QVV","R0D","UNIVERSITY HOSPITALS DORSET NHS FOUNDATION TRUST","R0D01","Poole Hospital",88,0.97727272727272729,1.1363636363636364E-2,"*","*","*","*","*","*"]
["QWE","RJ6","CROYDON HEALTH SERVICES NHS TRUST","RJ611","Croydon University Hospital",22,0.86363636363636365,0.13636363636363635,18,1,0,0,3,0]
["QWE","RVR","EPSOM AND ST HELIER UNIVERSITY HOSPITALS NHS TRUST","RVRXXX","Non-hospital site",1,"*","*","*","*","*","*","*","*"]
["QWE","RVR","EPSOM AND ST HELIER UNIVERSITY HOSPITALS NHS TRUST","RVR05","St Helier Hospital",16,0.9375,0,"*","*","*","*","*","*"]
["QWE","RVR","EPSOM AND ST HELIER UNIVERSITY HOSPITALS NHS TRUST","RVR50","Epsom Hospital",17,1,0,17,0,0,0,0,0]
["QWE","RAX","KINGSTON HOSPITAL NHS FOUNDATION TRUST","RAX01","Kingston Hospital",2,"*","*","*","*","*","*","*","*"]
["QWE","RJ7","ST GEORGE'S UNIVERSITY HOSPITALS NHS FOUNDATION TRUST","RJ701","St George's Hospital (Tooting)",2,"*","*","*","*","*","*","*","*"]
["QWO","RCF","AIREDALE NHS FOUNDATION TRUST","RCF22","Airedale General Hospital",0,"NA","NA",0,0,0,0,0,0]
["QWO","RAE","BRADFORD TEACHING HOSPITALS NHS FOUNDATION TRUST","RAE01","Bradford Royal Infirmary",0,"NA","NA",0,0,0,0,0,0]
["QWO","RWY","CALDERDALE AND HUDDERSFIELD NHS FOUNDATION TRUST","RWY02","Calderdale Royal Hospital",0,"NA","NA",0,0,0,0,0,0]
["QWO","RR8","LEEDS TEACHING HOSPITALS NHS TRUST","RR8XXX","Non-hospital site",0,"NA","NA",0,0,0,0,0,0]
["QWO","RR8","LEEDS TEACHING HOSPITALS NHS TRUST","RR813","St James's University Hospital",77,0.98701298701298701,1.2987012987012988E-2,71,5,0,0,1,0]
["QWO","RR8","LEEDS TEACHING HOSPITALS NHS TRUST","RR801","Leeds General Infirmary",94,0.96808510638297873,2.1276595744680851E-2,88,3,1,0,2,0]
["QWO","RXF","MID YORKSHIRE HOSPITALS NHS TRUST","RXF03","Pontefract General Infirmary",0,"NA","NA",0,0,0,0,0,0]
["QWO","RXF","MID YORKSHIRE HOSPITALS NHS TRUST","RXFXXX","Non-hospital site",0,"NA","NA",0,0,0,0,0,0]
["QWO","RXF","MID YORKSHIRE HOSPITALS NHS TRUST","RXF10","Dewsbury and District Hospital",5,1,0,5,0,0,0,0,0]
["QWO","RXF","MID YORKSHIRE HOSPITALS NHS TRUST","RXF05","Pinderfields General Hospital",7,0.8571428571428571,0.14285714285714285,6,0,0,0,1,0]
["QWU","RLT","GEORGE ELIOT HOSPITAL NHS TRUST","RLT01","George Eliot Hospital - Acute Services",73,0.9178082191780822,6.8493150684931503E-2,62,5,0,4,1,1]
["QWU","RJC","SOUTH WARWICKSHIRE NHS FOUNDATION TRUST","RJC02","Warwick Hospital",0,"NA","NA",0,0,0,0,0,0]
["QWU","RJC","SOUTH WARWICKSHIRE NHS FOUNDATION TRUST","RJCXXX","Non-hospital site",0,"NA","NA",0,0,0,0,0,0]
["QWU","RKB","UNIVERSITY HOSPITALS COVENTRY AND WARWICKSHIRE NHS TRUST","RKB03","Hospital Of St Cross",0,"NA","NA",0,0,0,0,0,0]
["QWU","RKB","UNIVERSITY HOSPITALS COVENTRY AND WARWICKSHIRE NHS TRUST","RKBXXX","Non-hospital site",0,"NA","NA",0,0,0,0,0,0]
["QWU","RKB","UNIVERSITY HOSPITALS COVENTRY AND WARWICKSHIRE NHS TRUST","RKB01","University Hospital (Coventry)",30,1,0,27,3,0,0,0,0]
["QXU","RA2","ROYAL SURREY COUNTY HOSPITAL NHS FOUNDATION TRUST","RA201","Royal Surrey County Hospital",22,1,0,21,1,0,0,0,0]
["QXU","RTP","SURREY AND SUSSEX HEALTHCARE NHS TRUST","RTP04","East Surrey Hospital",31,1,0,30,1,0,0,0,0]
["QYG","RJR","COUNTESS OF CHESTER HOSPITAL NHS FOUNDATION TRUST","RJR05","Countess Of Chester Hospital",37,0.97297297297297303,2.7027027027027029E-2,33,3,0,0,1,0]
["QYG","RJN","EAST CHESHIRE NHS TRUST","RJN71","Macclesfield District General Hospital",0,"NA","NA",0,0,0,0,0,0]
["QYG","REP","LIVERPOOL WOMEN'S NHS FOUNDATION TRUST","REP01","Liverpool Womens Hospital",34,0.97058823529411764,2.9411764705882353E-2,31,2,0,1,0,0]
["QYG","RBT","MID CHESHIRE HOSPITALS NHS FOUNDATION TRUST","RBT20","Leighton Hospital",12,0.91666666666666663,8.3333333333333329E-2,11,0,0,0,1,0]
["QYG","RVY","SOUTHPORT AND ORMSKIRK HOSPITAL NHS TRUST","RVY02","Ormskirk and District General Hospital",12,1,0,11,1,0,0,0,0]
["QYG","RBN","ST HELENS AND KNOWSLEY TEACHING HOSPITALS NHS TRUST","RBN01","Whiston Hospital",9,1,0,8,1,0,0,0,0]
["QYG","RWW","WARRINGTON AND HALTON TEACHING HOSPITALS NHS FOUNDATION TRUST","RWWWH","Warrington Hospital",0,"NA","NA",0,0,0,0,0,0]
["QYG","RBL","WIRRAL UNIVERSITY TEACHING HOSPITAL NHS FOUNDATION TRUST","RBL14","Arrowe Park Hospital",15,0.8,6.6666666666666666E-2,8,4,2,1,0,0]

{"sheet":"Region (Local Office) Q3","index":8,"n_rows":55,"n_cols":11,"rows_kept":55,"cut":false,"hidden":false,"merged":[[8,5,8,10],[8,0,9,0],[8,1,9,1],[8,2,9,2],[8,3,9,3],[8,4,9,4]]}
[]
[]
[]
[]
[]
[null,"   Sort data by:           "]
[]
[]
["STP Code","STP","Total Responses","Percentage Positive","Percentage Negative","Breakdown of Responses"]
[null,null,null,null,null,"Very Good","Good","Neither Good nor Poor","Poor","Very Poor","Don't Know"]
[null,"England (including Independent Sector providers)",4356,0.9302112029384757,3.2139577594123052E-2,3199,853,111,77,63,53]
[null,"England (excluding Independent Sector providers)",4356,0.9302112029384757,3.2139577594123052E-2,3199,853,111,77,63,53]
[null,"Selection (excluding suppressed data)",{"$f":"SUBTOTAL(9,C14:C60)","v":4356},{"$f":"IFERROR((F13+G13)/SUM(F13:K13), \"-\")","v":0.92964705882352938},{"$f":"IFERROR((I13+J13)/SUM(F13:K13), \"-\")","v":3.2470588235294119E-2},{"$f":"SUBTOTAL(9,F14:F60)","v":3119},832,108,77,61,53]
["QE1","HEALTHIER LANCASHIRE AND SOUTH CUMBRIA",169,0.85798816568047342,0.10650887573964497,109,36,2,11,7,4]
["QF7","SOUTH YORKSHIRE AND BASSETLAW STP",220,0.91818181818181821,4.5454545454545456E-2,156,46,5,6,4,3]
["QGH","HEREFORDSHIRE AND WORCESTERSHIRE STP",6,1,0,5,1,0,0,0,0]
["QH8","MID AND SOUTH ESSEX STP",82,0.78048780487804881,0.15853658536585366,46,18,5,4,9,0]
["QHG","BEDFORDSHIRE, LUTON AND MILTON KEYNES STP",188,0.93617021276595747,4.2553191489361701E-2,131,45,3,5,3,1]
["QHL","BIRMINGHAM AND SOLIHULL STP",18,0.94444444444444442,0,13,4,1,0,0,0]
["QHM","CUMBRIA AND NORTH EAST STP",115,0.93043478260869561,3.4782608695652174E-2,85,22,4,4,0,0]
["QJ2","JOINED UP CARE DERBYSHIRE STP",77,0.97402597402597402,0,60,15,2,0,0,0]
["QJG","SUFFOLK AND NORTH EAST ESSEX ICS",27,1,0,20,7,0,0,0,0]
["QJK","DEVON STP",45,1,0,36,9,0,0,0,0]
["QJM","LINCOLNSHIRE STP",18,1,0,17,1,0,0,0,0]
["QK1","LEICESTER, LEICESTERSHIRE AND RUTLAND STP",306,0.95751633986928109,9.8039215686274508E-3,232,61,8,2,1,2]
["QKK","OUR HEALTHIER SOUTH EAST LONDON STP",233,0.94420600858369097,2.1459227467811159E-2,146,74,7,4,1,1]
["QKS","KENT AND MEDWAY STP",235,0.98723404255319147,4.2553191489361703E-3,203,29,2,0,1,0]
["QM7","HERTFORDSHIRE AND WEST ESSEX STP",197,0.949238578680203,5.076142131979695E-3,144,43,7,0,1,2]
["QMF","EAST LONDON HEALTH & CARE PARTNERSHIP (STP)",88,0.95454545454545459,2.2727272727272728E-2,64,20,2,1,1,0]
["QMJ","NORTH LONDON PARTNERS IN HEALTH & CARE (STP)",123,0.95121951219512191,2.4390243902439025E-2,39,78,3,2,1,0]
["QMM","NORFOLK AND WAVENEY HEALTH & CARE PARTNERSHIP (STP)",26,0.96153846153846156,0,24,1,1,0,0,0]
["QNC","STAFFORDSHIRE & STOKE ON TRENT STP",4,"*","*","*","*","*","*","*","*"]
["QNQ","FRIMLEY HEALTH & CARE (STP)",76,1,0,"*","*","*","*","*","*"]
["QNX","SUSSEX HEALTH AND CARE PARTNERSHIP",111,0.97297297297297303,1.8018018018018018E-2,90,18,1,1,1,0]
["QOC","SHROPSHIRE AND TELFORD AND WREKIN STP",49,1,0,41,8,0,0,0,0]
["QOP","GREATER MANCHESTER HEALTH & SOCIAL CARE PARTNERSHIP",304,0.96710526315789469,1.9736842105263157E-2,260,34,2,3,3,2]
["QOQ","HUMBER, COAST AND VALE STP",195,0.99487179487179489,0,173,21,1,0,0,0]
["QOX","BATH AND NORTH EAST SOMERSET, SWINDON AND WILTSHIRE STP",1,"*","*","*","*","*","*","*","*"]
["QPM","NORTHAMPTONSHIRE STP",3,"*","*","*","*","*","*","*","*"]
["QR1","GLOUCESTERSHIRE STP",22,0.81818181818181823,9.0909090909090912E-2,"*","*","*","*","*","*"]
["QRL","HAMPSHIRE AND THE ISLE OF WIGHT STP",126,0.67460317460317465,0.12698412698412698,53,32,10,12,4,15]
["QRV","NORTH WEST LONDON HEALTH & CARE PARTNERSHIP (STP)",113,0.83185840707964598,0.10619469026548672,76,18,7,5,7,0]
["QSL","SOMERSET STP",23,1,0,22,1,0,0,0,0]
["QT1","NOTTINGHAM AND NOTTINGHAMSHIRE HEALTH AND CARE STP",37,0.89189189189189189,2.7027027027027029E-2,25,8,2,0,1,1]
["QT6","CORNWALL AND THE ISLES OF SCILLY HEALTH & SOCIAL CARE PARTNERSHIP (STP)",0,"NA","NA",0,0,0,0,0,0]
["QU9","BUCKINGHAMSHIRE, OXFORDSHIRE AND BERKSHIRE WEST STP",89,0.9101123595505618,2.247191011235955E-2,54,27,6,1,1,0]
["QUA","THE BLACK COUNTRY AND WEST BIRMINGHAM STP",65,0.8,4.6153846153846156E-2,42,10,1,1,2,9]
["QUE","CAMBRIDGESHIRE AND PETERBOROUGH STP",309,0.96116504854368934,6.4724919093851136E-3,235,62,9,2,0,1]
["QUY","BRISTOL, NORTH SOMERSET AND SOUTH GLOUCESTERSHIRE STP",51,0.88235294117647056,5.8823529411764705E-2,38,7,2,2,1,1]
["QVV","DORSET STP",122,0.86885245901639341,6.5573770491803282E-2,91,15,3,4,4,5]
["QWE","SOUTH WEST LONDON HEALTH & CARE PARTNERSHIP (STP)",87,0.95402298850574707,2.2988505747126436E-2,79,4,1,0,2,1]
["QWO","WEST YORKSHIRE AND HARROGATE HEALTH & CARE PARTNERSHIP (STP)",104,0.93269230769230771,2.8846153846153848E-2,79,18,4,1,2,0]
["QWU","COVENTRY AND WARWICKSHIRE STP",97,0.94845360824742264,2.0618556701030927E-2,81,11,2,2,0,1]
["QXU","SURREY HEARTLANDS HEALTH & CARE PARTNERSHIP (STP)",32,0.9375,3.125E-2,24,6,0,0,1,1]
["QYG","CHESHIRE AND MERSEYSIDE STP",163,0.90797546012269936,4.2944785276073622E-2,126,22,5,4,3,3]

{"sheet":"Trusts Q3","index":9,"n_rows":120,"n_cols":20,"rows_kept":120,"cut":false,"hidden":false,"merged":[[8,6,8,11],[8,12,8,19],[8,0,9,0],[8,1,9,1],[8,2,9,2],[8,3,9,3],[8,4,9,4],[8,5,9,5]]}
[]
[]
[]
[]
[]
[null,"   Sort data by:           "]
[]
[]
["STP Code","Trust Code","Name","Total Responses","Percentage Positive","Percentage Negative","Breakdown of Responses",null,null,null,null,null,"Mode of Collection"]
[null,null,null,null,null,null,"Very Good","Good","Neither Good nor Poor","Poor","Very Poor","Don't Know","Mode SMS","Mode Electronic Discharge","Mode Electronic Home","Mode Paper Discharge","Mode Paper Home","Mode Telephone","Mode Online","Mode Other"]
[null,null,"England (including Independent Sector providers)",4356,0.9302112029384757,3.2139577594123052E-2,3199,853,111,77,63,53,1153,1356,161,1322,94,0,270,0]
[null,null,"England (excluding Independent Sector providers)",4356,0.9302112029384757,3.2139577594123052E-2,3199,853,111,77,63,53,1153,1356,161,1322,94,0,270,0]
[null,null,"Selection (excluding suppressed data)",{"$f":"SUBTOTAL(9,D14:D298)","v":4356},{"$f":"IFERROR((G13+H13)/SUM(G13:L13), \"-\")","v":0.92962159556519641},{"$f":"IFERROR((J13+K13)/SUM(G13:L13), \"-\")","v":3.2537960954446853E-2},{"$f":"SUBTOTAL(9,G14:G298)","v":3036},821,105,76,59,52,1094,1334,145,1223,94,0,259,0]
["QE1","RTX","UNIVERSITY HOSPITALS OF MORECAMBE BAY NHS FOUNDATION TRUST",23,1,0,20,3,0,0,0,0,23,0,0,0,0,0,0,0]
["QE1","RXN","LANCASHIRE TEACHING HOSPITALS NHS FOUNDATION TRUST",28,0.8214285714285714,0.14285714285714285,20,3,1,3,1,0,28,0,0,0,0,0,0,0]
["QE1","RXR","EAST LANCASHIRE HOSPITALS NHS TRUST",118,0.83898305084745761,0.11864406779661017,69,30,1,8,6,4,116,0,0,0,0,0,2,0]
["QF7","RFR","THE ROTHERHAM NHS FOUNDATION TRUST",18,0.94444444444444442,0,15,2,0,0,0,1,0,0,0,18,0,0,0,0]
["QF7","RFF","BARNSLEY HOSPITAL NHS FOUNDATION TRUST",22,0.90909090909090906,4.5454545454545456E-2,11,9,1,1,0,0,0,22,0,0,0,0,0,0]
["QF7","RP5","DONCASTER AND BASSETLAW TEACHING HOSPITALS NHS FOUNDATION TRUST",74,0.98648648648648651,0,63,10,1,0,0,0,0,0,0,74,0,0,0,0]
["QF7","RHQ","SHEFFIELD TEACHING HOSPITALS NHS FOUNDATION TRUST",106,0.86792452830188682,8.4905660377358486E-2,67,25,3,5,4,2,106,0,0,0,0,0,0,0]
["QGH","RWP","WORCESTERSHIRE ACUTE HOSPITALS NHS TRUST",2,"*","*","*","*","*","*","*","*","*","*","*","*","*","*","*","*"]
["QGH","RLQ","WYE VALLEY NHS TRUST",4,"*","*","*","*","*","*","*","*","*","*","*","*","*","*","*","*"]
["QH8","RAJ","MID AND SOUTH ESSEX NHS FOUNDATION TRUST",82,0.78048780487804881,0.15853658536585366,46,18,5,4,9,0,81,0,0,0,0,0,1,0]
["QHG","RD8","MILTON KEYNES UNIVERSITY HOSPITAL NHS FOUNDATION TRUST",58,0.94827586206896552,3.4482758620689655E-2,39,16,0,0,2,1,0,0,0,48,0,0,10,0]
["QHG","RC9","BEDFORDSHIRE HOSPITALS NHS FOUNDATION TRUST",130,0.93076923076923079,4.6153846153846156E-2,92,29,3,5,1,0,10,108,0,1,7,0,4,0]
["QHL","RQ3","BIRMINGHAM WOMEN'S AND CHILDREN'S NHS FOUNDATION TRUST",2,"*","*","*","*","*","*","*","*","*","*","*","*","*","*","*","*"]
["QHL","RRK","UNIVERSITY HOSPITALS BIRMINGHAM NHS FOUNDATION TRUST",16,0.9375,0,"*","*","*","*","*","*","*","*","*","*","*","*","*","*"]
["QHM","R0B","SOUTH TYNESIDE AND SUNDERLAND NHS FOUNDATION TRUST",0,"NA","NA",0,0,0,0,0,0,0,0,0,0,0,0,0,0]
["QHM","RVW","NORTH TEES AND HARTLEPOOL NHS FOUNDATION TRUST",2,"*","*","*","*","*","*","*","*","*","*","*","*","*","*","*","*"]
["QHM","RXP","COUNTY DURHAM AND DARLINGTON NHS FOUNDATION TRUST",10,1,0,"*","*","*","*","*","*","*","*","*","*","*","*","*","*"]
["QHM","RNN","NORTH CUMBRIA INTEGRATED CARE NHS FOUNDATION TRUST",13,0.92307692307692313,0,11,1,1,0,0,0,0,0,0,13,0,0,0,0]
["QHM","RTR","SOUTH TEES HOSPITALS NHS FOUNDATION TRUST",16,1,0,15,1,0,0,0,0,0,16,0,0,0,0,0,0]
["QHM","RTF","NORTHUMBRIA HEALTHCARE NHS FOUNDATION TRUST",74,0.90540540540540537,5.4054054054054057E-2,49,18,3,4,0,0,74,0,0,0,0,0,0,0]
["QJ2","RFS","CHESTERFIELD ROYAL HOSPITAL NHS FOUNDATION TRUST",37,1,0,32,5,0,0,0,0,0,37,0,0,0,0,0,0]
["QJ2","RTG","UNIVERSITY HOSPITALS OF DERBY AND BURTON NHS FOUNDATION TRUST",40,0.95,0,28,10,2,0,0,0,0,40,0,0,0,0,0,0]
["QJG","RGR","WEST SUFFOLK NHS FOUNDATION TRUST",0,"NA","NA",0,0,0,0,0,0,0,0,0,0,0,0,0,0]
["QJG","RDE","EAST SUFFOLK AND NORTH ESSEX NHS FOUNDATION TRUST",27,1,0,20,7,0,0,0,0,0,0,0,0,0,0,27,0]
["QJK","RH8","ROYAL DEVON AND EXETER NHS FOUNDATION TRUST",0,"NA","NA",0,0,0,0,0,0,0,0,0,0,0,0,0,0]
["QJK","RBZ","NORTHERN DEVON HEALTHCARE NHS TRUST",13,1,0,12,1,0,0,0,0,0,0,0,13,0,0,0,0]
["QJK","RK9","UNIVERSITY HOSPITALS PLYMOUTH NHS TRUST",32,1,0,24,8,0,0,0,0,0,32,0,0,0,0,0,0]
["QJM","RWD","UNITED LINCOLNSHIRE HOSPITALS NHS TRUST",18,1,0,17,1,0,0,0,0,0,0,0,18,0,0,0,0]
["QK1","RWE","UNIVERSITY HOSPITALS OF LEICESTER NHS TRUST",306,0.95751633986928109,9.8039215686274508E-3,232,61,8,2,1,2,0,242,0,64,0,0,0,0]
["QKK","RJ1","GUY'S AND ST THOMAS' NHS FOUNDATION TRUST",12,0.91666666666666663,0,9,2,1,0,0,0,0,0,0,11,0,0,1,0]
["QKK","RJ2","LEWISHAM AND GREENWICH NHS TRUST",63,0.90476190476190477,3.1746031746031744E-2,32,25,3,1,1,1,0,0,0,60,0,0,3,0]
["QKK","RJZ","KING'S COLLEGE HOSPITAL NHS FOUNDATION TRUST",158,0.96202531645569622,1.8987341772151899E-2,105,47,3,3,0,0,0,157,0,0,0,0,1,0]
["QKS","RN7","DARTFORD AND GRAVESHAM NHS TRUST",45,0.9555555555555556,2.2222222222222223E-2,38,5,1,0,1,0,0,0,0,45,0,0,0,0]
["QKS","RPA","MEDWAY NHS FOUNDATION TRUST",74,0.98648648648648651,0,63,10,1,0,0,0,0,0,0,74,0,0,0,0]
["QKS","RWF","MAIDSTONE AND TUNBRIDGE WELLS NHS TRUST",116,1,0,102,14,0,0,0,0,0,0,0,116,0,0,0,0]
["QM7","RQW","THE PRINCESS ALEXANDRA HOSPITAL NHS TRUST",0,"NA","NA",0,0,0,0,0,0,0,0,0,0,0,0,0,0]
["QM7","RWG","WEST HERTFORDSHIRE HOSPITALS NHS TRUST",72,0.95833333333333337,1.3888888888888888E-2,55,14,1,0,1,1,0,72,0,0,0,0,0,0]
["QM7","RWH","EAST AND NORTH HERTFORDSHIRE NHS TRUST",125,0.94399999999999995,0,89,29,6,0,0,1,0,125,0,0,0,0,0,0]
["QMF","RF4","BARKING, HAVERING AND REDBRIDGE UNIVERSITY HOSPITALS NHS TRUST",0,"NA","NA",0,0,0,0,0,0,0,0,0,0,0,0,0,0]
["QMF","R1H","BARTS HEALTH NHS TRUST",88,0.95454545454545459,2.2727272727272728E-2,64,20,2,1,1,0,2,0,0,0,86,0,0,0]
["QMJ","RKE","WHITTINGTON HEALTH NHS TRUST",53,1,0,0,53,0,0,0,0,0,53,0,0,0,0,0,0]
["QMJ","RAL","ROYAL FREE LONDON NHS FOUNDATION TRUST",70,0.91428571428571426,4.2857142857142858E-2,39,25,3,2,1,0,0,70,0,0,0,0,0,0]
["QMM","RM1","NORFOLK AND NORWICH UNIVERSITY HOSPITALS NHS FOUNDATION TRUST",4,"*","*","*","*","*","*","*","*","*","*","*","*","*","*","*","*"]
["QMM","RCX","THE QUEEN ELIZABETH HOSPITAL, KING'S LYNN, NHS FOUNDATION TRUST",22,1,0,"*","*","*","*","*","*","*","*","*","*","*","*","*","*"]
["QNC","RJE","UNIVERSITY HOSPITALS OF NORTH MIDLANDS NHS TRUST",4,"*","*","*","*","*","*","*","*","*","*","*","*","*","*","*","*"]
["QNQ","RDU","FRIMLEY HEALTH NHS FOUNDATION TRUST",76,1,0,"*","*","*","*","*","*","*","*","*","*","*","*","*","*"]
["QNX","RYR","WESTERN SUSSEX HOSPITALS NHS FOUNDATION TRUST",22,0.95454545454545459,4.5454545454545456E-2,18,3,0,1,0,0,0,0,0,20,0,0,2,0]
["QNX","RXC","EAST SUSSEX HEALTHCARE NHS TRUST",44,0.97727272727272729,0,34,9,1,0,0,0,0,44,0,0,0,0,0,0]
["QNX","RXH","BRIGHTON AND SUSSEX UNIVERSITY HOSPITALS NHS TRUST",45,0.97777777777777775,2.2222222222222223E-2,38,6,0,0,1,0,45,0,0,0,0,0,0,0]
["QOC","RXW","THE SHREWSBURY AND TELFORD HOSPITAL NHS TRUST",49,1,0,41,8,0,0,0,0,0,0,0,49,0,0,0,0]
["QOP","RMP","TAMESIDE AND GLOSSOP INTEGRATED CARE NHS FOUNDATION TRUST",1,"*","*","*","*","*","*","*","*","*","*","*","*","*","*","*","*"]
["QOP","RW6","PENNINE ACUTE HOSPITALS NHS TRUST",32,0.84375,9.375E-2,"*","*","*","*","*","*","*","*","*","*","*","*","*","*"]
["QOP","RWJ","STOCKPORT NHS FOUNDATION TRUST",57,0.96491228070175439,1.7543859649122806E-2,49,6,0,0,1,1,0,0,0,57,0,0,0,0]
["QOP","R0A","MANCHESTER UNIVERSITY NHS FOUNDATION TRUST",214,0.98598130841121501,9.3457943925233638E-3,186,25,1,2,0,0,0,9,0,205,0,0,0,0]
["QOQ","RWA","HULL UNIVERSITY TEACHING HOSPITALS NHS TRUST",7,1,0,5,2,0,0,0,0,0,0,0,7,0,0,0,0]
["QOQ","RCD","HARROGATE AND DISTRICT NHS FOUNDATION TRUST",43,1,0,38,5,0,0,0,0,0,0,0,43,0,0,0,0]
["QOQ","RCB","YORK TEACHING HOSPITAL NHS FOUNDATION TRUST",145,0.99310344827586206,0,130,14,1,0,0,0,0,0,145,0,0,0,0,0]
["QOX","RN3","GREAT WESTERN HOSPITALS NHS FOUNDATION TRUST",0,"NA","NA",0,0,0,0,0,0,0,0,0,0,0,0,0,0]
["QOX","RNZ","SALISBURY NHS FOUNDATION TRUST",0,"NA","NA",0,0,0,0,0,0,0,0,0,0,0,0,0,0]
["QOX","RD1","ROYAL UNITED HOSPITALS BATH NHS FOUNDATION TRUST",1,"*","*","*","*","*","*","*","*","*","*","*","*","*","*","*","*"]
["QPM","RNS","NORTHAMPTON GENERAL HOSPITAL NHS TRUST",3,"*","*","*","*","*","*","*","*","*","*","*","*","*","*","*","*"]
["QR1","RTE","GLOUCESTERSHIRE HOSPITALS NHS FOUNDATION TRUST",22,0.81818181818181823,9.0909090909090912E-2,"*","*","*","*","*","*","*","*","*","*","*","*","*","*"]
["QRL","RHU","PORTSMOUTH HOSPITALS UNIVERSITY NATIONAL HEALTH SERVICE TRUST",0,"NA","NA",0,0,0,0,0,0,0,0,0,0,0,0,0,0]
["QRL","RN5","HAMPSHIRE HOSPITALS NHS FOUNDATION TRUST",2,"*","*","*","*","*","*","*","*","*","*","*","*","*","*","*","*"]
["QRL","R1F","ISLE OF WIGHT NHS TRUST",4,"*","*","*","*","*","*","*","*","*","*","*","*","*","*","*","*"]
["QRL","RHM","UNIVERSITY HOSPITAL SOUTHAMPTON NHS FOUNDATION TRUST",120,0.65833333333333333,0.13333333333333333,47,32,10,12,4,15,0,0,0,23,0,0,97,0]
["QRV","R1K","LONDON NORTH WEST UNIVERSITY HEALTHCARE NHS TRUST",0,"NA","NA",0,0,0,0,0,0,0,0,0,0,0,0,0,0]
["QRV","RAS","THE HILLINGDON HOSPITALS NHS FOUNDATION TRUST",5,1,0,5,0,0,0,0,0,0,0,0,0,0,0,5,0]
["QRV","RYJ","IMPERIAL COLLEGE HEALTHCARE NHS TRUST",19,0.78947368421052633,5.2631578947368418E-2,11,4,3,1,0,0,19,0,0,0,0,0,0,0]
["QRV","RQM","CHELSEA AND WESTMINSTER HOSPITAL NHS FOUNDATION TRUST",89,0.8314606741573034,0.12359550561797752,60,14,4,4,7,0,79,0,0,0,0,0,10,0]
["QSL","RH5","SOMERSET NHS FOUNDATION TRUST",0,"NA","NA",0,0,0,0,0,0,0,0,0,0,0,0,0,0]
["QSL","RA4","YEOVIL DISTRICT HOSPITAL NHS FOUNDATION TRUST",23,1,0,22,1,0,0,0,0,0,22,0,0,1,0,0,0]
["QT1","RK5","SHERWOOD FOREST HOSPITALS NHS FOUNDATION TRUST",16,0.8125,6.25E-2,11,2,1,0,1,1,16,0,0,0,0,0,0,0]
["QT1","RX1","NOTTINGHAM UNIVERSITY HOSPITALS NHS TRUST",21,0.95238095238095233,0,14,6,1,0,0,0,0,0,0,0,0,0,21,0]
["QT6","REF","ROYAL CORNWALL HOSPITALS NHS TRUST",0,"NA","NA",0,0,0,0,0,0,0,0,0,0,0,0,0,0]
["QU9","RTH","OXFORD UNIVERSITY HOSPITALS NHS FOUNDATION TRUST",0,"NA","NA",0,0,0,0,0,0,0,0,0,0,0,0,0,0]
["QU9","RXQ","BUCKINGHAMSHIRE HEALTHCARE NHS TRUST",43,0.83720930232558144,4.6511627906976744E-2,25,11,5,1,1,0,43,0,0,0,0,0,0,0]
["QU9","RHW","ROYAL BERKSHIRE NHS FOUNDATION TRUST",46,0.97826086956521741,0,29,16,1,0,0,0,0,0,0,45,0,0,1,0]
["QUA","RXK","SANDWELL AND WEST BIRMINGHAM HOSPITALS NHS TRUST",0,"NA","NA",0,0,0,0,0,0,0,0,0,0,0,0,0,0]
["QUA","RBK","WALSALL HEALTHCARE NHS TRUST",18,0.77777777777777779,0.16666666666666666,12,2,1,1,2,0,18,0,0,0,0,0,0,0]
["QUA","RNA","THE DUDLEY GROUP NHS FOUNDATION TRUST",47,0.80851063829787229,0,30,8,0,0,0,9,0,0,0,47,0,0,0,0]
["QUE","RGN","NORTH WEST ANGLIA NHS FOUNDATION TRUST",101,0.98019801980198018,0,87,12,1,0,0,1,0,0,0,101,0,0,0,0]
["QUE","RGT","CAMBRIDGE UNIVERSITY HOSPITALS NHS FOUNDATION TRUST",208,0.95192307692307687,9.6153846153846159E-3,148,50,8,2,0,0,0,196,0,11,0,0,1,0]
["QUY","RA7","UNIVERSITY HOSPITALS BRISTOL AND WESTON NHS FOUNDATION TRUST",0,"NA","NA",0,0,0,0,0,0,0,0,0,0,0,0,0,0]
["QUY","RVJ","NORTH BRISTOL NHS TRUST",51,0.88235294117647056,5.8823529411764705E-2,38,7,2,2,1,1,51,0,0,0,0,0,0,0]
["QVV","RBD","DORSET COUNTY HOSPITAL NHS FOUNDATION TRUST",39,0.94871794871794868,5.128205128205128E-2,32,5,0,0,2,0,39,0,0,0,0,0,0,0]
["QVV","R0D","UNIVERSITY HOSPITALS DORSET NHS FOUNDATION TRUST",83,0.83132530120481929,7.2289156626506021E-2,59,10,3,4,2,5,83,0,0,0,0,0,0,0]
["QWE","RVR","EPSOM AND ST HELIER UNIVERSITY HOSPITALS NHS TRUST",18,1,0,18,0,0,0,0,0,0,0,0,18,0,0,0,0]
["QWE","RJ6","CROYDON HEALTH SERVICES NHS TRUST",29,0.86206896551724133,6.8965517241379309E-2,23,2,1,0,2,1,29,0,0,0,0,0,0,0]
["QWE","RJ7","ST GEORGE'S UNIVERSITY HOSPITALS NHS FOUNDATION TRUST",40,1,0,38,2,0,0,0,0,0,40,0,0,0,0,0,0]
["QWO","RAE","BRADFORD TEACHING HOSPITALS NHS FOUNDATION TRUST",0,"NA","NA",0,0,0,0,0,0,0,0,0,0,0,0,0,0]
["QWO","RCF","AIREDALE NHS FOUNDATION TRUST",0,"NA","NA",0,0,0,0,0,0,0,0,0,0,0,0,0,0]
["QWO","RXF","MID YORKSHIRE HOSPITALS NHS TRUST",8,0.75,0.25,6,0,0,1,1,0,0,0,0,5,0,0,3,0]
["QWO","RR8","LEEDS TEACHING HOSPITALS NHS TRUST",96,0.94791666666666663,1.0416666666666666E-2,73,18,4,0,1,0,96,0,0,0,0,0,0,0]
["QWU","RJC","SOUTH WARWICKSHIRE NHS FOUNDATION TRUST",0,"NA","NA",0,0,0,0,0,0,0,0,0,0,0,0,0,0]
["QWU","RKB","UNIVERSITY HOSPITALS COVENTRY AND WARWICKSHIRE NHS TRUST",44,0.95454545454545459,2.2727272727272728E-2,40,2,1,1,0,0,0,40,0,0,0,0,4,0]
["QWU","RLT","GEORGE ELIOT HOSPITAL NHS TRUST",53,0.94339622641509435,1.8867924528301886E-2,41,9,1,1,0,1,50,0,0,3,0,0,0,0]
["QXU","RA2","ROYAL SURREY COUNTY HOSPITAL NHS FOUNDATION TRUST",0,"NA","NA",0,0,0,0,0,0,0,0,0,0,0,0,0,0]
["QXU","RTP","SURREY AND SUSSEX HEALTHCARE NHS TRUST",32,0.9375,3.125E-2,24,6,0,0,1,1,0,9,0,19,0,0,4,0]
["QYG","RBN","ST HELENS AND KNOWSLEY TEACHING HOSPITALS NHS TRUST",0,"NA","NA",0,0,0,0,0,0,0,0,0,0,0,0,0,0]
["QYG","RJN","EAST CHESHIRE NHS TRUST",0,"NA","NA",0,0,0,0,0,0,0,0,0,0,0,0,0,0]
["QYG","RWW","WARRINGTON AND HALTON TEACHING HOSPITALS NHS FOUNDATION TRUST",0,"NA","NA",0,0,0,0,0,0,0,0,0,0,0,0,0,0]
["QYG","RVY","SOUTHPORT AND ORMSKIRK HOSPITAL NHS TRUST",13,0.84615384615384615,7.6923076923076927E-2,9,2,0,0,1,1,13,0,0,0,0,0,0,0]
["QYG","RBL","WIRRAL UNIVERSITY TEACHING HOSPITAL NHS FOUNDATION TRUST",15,0.8,6.6666666666666666E-2,8,4,2,1,0,0,0,0,0,15,0,0,0,0]
["QYG","RJR","COUNTESS OF CHESTER HOSPITAL NHS FOUNDATION TRUST",20,0.95,0,19,0,0,0,0,1,20,0,0,0,0,0,0,0]
["QYG","RBT","MID CHESHIRE HOSPITALS NHS FOUNDATION TRUST",53,0.94339622641509435,3.7735849056603772E-2,43,7,0,1,1,1,53,0,0,0,0,0,0,0]
["QYG","REP","LIVERPOOL WOMEN'S NHS FOUNDATION TRUST",62,0.90322580645161288,4.8387096774193547E-2,47,9,3,2,1,0,0,0,0,0,0,0,62,0]

{"sheet":"Sites Q3","index":10,"n_rows":173,"n_cols":14,"rows_kept":173,"cut":false,"hidden":false,"merged":[[8,6,9,6],[8,7,9,7],[8,8,8,13],[8,0,9,0],[8,1,9,1],[8,2,9,2],[8,3,9,3],[8,4,9,4],[8,5,9,5]]}
[]
[]
[]
[]
[]
[null,"   Sort data by:           "]
[]
[]
["STP Code","Trust Code","Trust Name","Site Code","Site Name","Total Responses","Percentage Positive","Percentage Negative","Breakdown of Responses"]
[null,null,null,null,null,null,null,null,"Very Good","Good","Neither Good nor Poor","Poor","Very Poor","Don't Know"]
[null,null,null,null,"England (including Independent Sector providers)",4356,0.9302112029384757,3.2139577594123052E-2,3199,853,111,77,63,53]
[null,null,null,null,"England (excluding Independent Sector providers)",4356,0.9302112029384757,3.2139577594123052E-2,3199,853,111,77,63,53]
[null,null,null,null,"Selection (excluding suppressed data)",{"$f":"SUBTOTAL(9,F14:F297)","v":4356},{"$f":"IFERROR((I13+J13)/SUM(I13:N13), \"-\")","v":0.928903005130711},{"$f":"IFERROR((L13+M13)/SUM(I13:N13), \"-\")","v":3.2983141949670169E-2},{"$f":"SUBTOTAL(9,I14:I297)","v":2994},808,104,76,59,52]
["QE1","RXR","EAST LANCASHIRE HOSPITALS NHS TRUST","RXR20","Royal Blackburn Hospital",118,0.83898305084745761,0.11864406779661017,69,30,1,8,6,4]
["QE1","RXN","LANCASHIRE TEACHING HOSPITALS NHS FOUNDATION TRUST","RXN01","Chorley and South Ribble Hospital",0,"NA","NA",0,0,0,0,0,0]
["QE1","RXN","LANCASHIRE TEACHING HOSPITALS NHS FOUNDATION TRUST","RXN02","Royal Preston Hospital",28,0.8214285714285714,0.14285714285714285,20,3,1,3,1,0]
["QE1","RTX","UNIVERSITY HOSPITALS OF MORECAMBE BAY NHS FOUNDATION TRUST","RTXBW","Westmorland General Hospital",0,"NA","NA",0,0,0,0,0,0]
["QE1","RTX","UNIVERSITY HOSPITALS OF MORECAMBE BAY NHS FOUNDATION TRUST","RTXBU","Furness General Hospital",11,1,0,10,1,0,0,0,0]
["QE1","RTX","UNIVERSITY HOSPITALS OF MORECAMBE BAY NHS FOUNDATION TRUST","RTX02","Royal Lancaster Infirmary",12,1,0,10,2,0,0,0,0]
["QF7","RFF","BARNSLEY HOSPITAL NHS FOUNDATION TRUST","RFFAA","Barnsley Hospital NHS Foundation Trust HQ",22,0.90909090909090906,4.5454545454545456E-2,11,9,1,1,0,0]
["QF7","RP5","DONCASTER AND BASSETLAW TEACHING HOSPITALS NHS FOUNDATION TRUST","RP5BA","Bassetlaw Hospital",0,"NA","NA",0,0,0,0,0,0]
["QF7","RP5","DONCASTER AND BASSETLAW TEACHING HOSPITALS NHS FOUNDATION TRUST","RP5DR","Doncaster Royal Infirmary",74,0.98648648648648651,0,63,10,1,0,0,0]
["QF7","RHQ","SHEFFIELD TEACHING HOSPITALS NHS FOUNDATION TRUST","RHQHH","Royal Hallamshire Hospital",106,0.86792452830188682,8.4905660377358486E-2,67,25,3,5,4,2]
["QF7","RFR","THE ROTHERHAM NHS FOUNDATION TRUST","RFRPA","Rotherham District General Hospital",18,0.94444444444444442,0,15,2,0,0,0,1]
["QGH","RWP","WORCESTERSHIRE ACUTE HOSPITALS NHS TRUST","RWP50","Worcestershire Royal Hospital",2,"*","*","*","*","*","*","*","*"]
["QGH","RLQ","WYE VALLEY NHS TRUST","RLQ01","Hereford County Hospital",4,"*","*","*","*","*","*","*","*"]
["QH8","RAJ","MID AND SOUTH ESSEX NHS FOUNDATION TRUST","RAJ01","Southend Hospital",9,0.88888888888888884,0,4,4,1,0,0,0]
["QH8","RAJ","MID AND SOUTH ESSEX NHS FOUNDATION TRUST","RAJ32","MID ESSEX HOSPITAL",21,0.7142857142857143,0.23809523809523808,12,3,1,2,3,0]
["QH8","RAJ","MID AND SOUTH ESSEX NHS FOUNDATION TRUST","RAJ12","BASILDON HOSPITAL",52,0.78846153846153844,0.15384615384615385,30,11,3,2,6,0]
["QHG","RC9","BEDFORDSHIRE HOSPITALS NHS FOUNDATION TRUST","RC979","BEDFORD HOSPITAL SOUTH WING",18,0.88888888888888884,5.5555555555555552E-2,14,2,1,1,0,0]
["QHG","RC9","BEDFORDSHIRE HOSPITALS NHS FOUNDATION TRUST","RC971","Luton and Dunstable Hospital",112,0.9375,4.4642857142857144E-2,78,27,2,4,1,0]
["QHG","RD8","MILTON KEYNES UNIVERSITY HOSPITAL NHS FOUNDATION TRUST","RD816","Milton Keynes Hospital",58,0.94827586206896552,3.4482758620689655E-2,39,16,0,0,2,1]
["QHL","RQ3","BIRMINGHAM WOMEN'S AND CHILDREN'S NHS FOUNDATION TRUST","RQ370","Birmingham Women's Hospital",2,"*","*","*","*","*","*","*","*"]
["QHL","RRK","UNIVERSITY HOSPITALS BIRMINGHAM NHS FOUNDATION TRUST","RRK97","Heartlands Hospital",0,"NA","NA",0,0,0,0,0,0]
["QHL","RRK","UNIVERSITY HOSPITALS BIRMINGHAM NHS FOUNDATION TRUST","RRK99","Solihull Hospital",0,"NA","NA",0,0,0,0,0,0]
["QHL","RRK","UNIVERSITY HOSPITALS BIRMINGHAM NHS FOUNDATION TRUST","RRK98","Good Hope Hospital",16,0.9375,0,"*","*","*","*","*","*"]
["QHM","RXP","COUNTY DURHAM AND DARLINGTON NHS FOUNDATION TRUST","RXPDA","Darlington Memorial Hospital",10,1,0,"*","*","*","*","*","*"]
["QHM","RNN","NORTH CUMBRIA INTEGRATED CARE NHS FOUNDATION TRUST","RNN62","Cumberland Infirmary",5,1,0,5,0,0,0,0,0]
["QHM","RNN","NORTH CUMBRIA INTEGRATED CARE NHS FOUNDATION TRUST","RNNBX","West Cumberland Hospital",8,0.875,0,6,1,1,0,0,0]
["QHM","RVW","NORTH TEES AND HARTLEPOOL NHS FOUNDATION TRUST","RVWAE","University Hospital Of North Tees",2,"*","*","*","*","*","*","*","*"]
["QHM","RTF","NORTHUMBRIA HEALTHCARE NHS FOUNDATION TRUST","RTFDH","Berwick Infirmary",0,"NA","NA",0,0,0,0,0,0]
["QHM","RTF","NORTHUMBRIA HEALTHCARE NHS FOUNDATION TRUST","RTFDR","Hexham General Hospital",0,"NA","NA",0,0,0,0,0,0]
["QHM","RTF","NORTHUMBRIA HEALTHCARE NHS FOUNDATION TRUST","RTFDJ","Alnwick Infirmary",2,"*","*","*","*","*","*","*","*"]
["QHM","RTF","NORTHUMBRIA HEALTHCARE NHS FOUNDATION TRUST","RTF86","The Northumbria",72,0.90277777777777779,5.5555555555555552E-2,47,18,3,4,0,0]
["QHM","RTR","SOUTH TEES HOSPITALS NHS FOUNDATION TRUST","RTRAT","The James Cook University Hospital",16,1,0,15,1,0,0,0,0]
["QHM","R0B","SOUTH TYNESIDE AND SUNDERLAND NHS FOUNDATION TRUST","R0B01","Sunderland Royal Hospital",0,"NA","NA",0,0,0,0,0,0]
["QHM","R0B","SOUTH TYNESIDE AND SUNDERLAND NHS FOUNDATION TRUST","R0B0Q","South Tyneside District Hospital",0,"NA","NA",0,0,0,0,0,0]
["QJ2","RFS","CHESTERFIELD ROYAL HOSPITAL NHS FOUNDATION TRUST","RFSDA","Chesterfield Royal Hospital",37,1,0,32,5,0,0,0,0]
["QJ2","RTG","UNIVERSITY HOSPITALS OF DERBY AND BURTON NHS FOUNDATION TRUST","RTG02","Queens Hospital, Burton Upon Trent",6,1,0,4,2,0,0,0,0]
["QJ2","RTG","UNIVERSITY HOSPITALS OF DERBY AND BURTON NHS FOUNDATION TRUST","RTGFG","Royal Derby Hospital",34,0.94117647058823528,0,24,8,2,0,0,0]
["QJG","RDE","EAST SUFFOLK AND NORTH ESSEX NHS FOUNDATION TRUST","RDE03","Ipswich Hospital",0,"NA","NA",0,0,0,0,0,0]
["QJG","RDE","EAST SUFFOLK AND NORTH ESSEX NHS FOUNDATION TRUST","RDEE4","Colchester General Hospital",27,1,0,20,7,0,0,0,0]
["QJG","RGR","WEST SUFFOLK NHS FOUNDATION TRUST","RGR50","West Suffolk Hospital",0,"NA","NA",0,0,0,0,0,0]
["QJK","RBZ","NORTHERN DEVON HEALTHCARE NHS TRUST","RBZ12","North Devon District Hospital",13,1,0,12,1,0,0,0,0]
["QJK","RH8","ROYAL DEVON AND EXETER NHS FOUNDATION TRUST","RH801","Royal Devon and Exeter Hospital (Wonford)",0,"NA","NA",0,0,0,0,0,0]
["QJK","RK9","UNIVERSITY HOSPITALS PLYMOUTH NHS TRUST","RK950","Derriford Hospital",32,1,0,24,8,0,0,0,0]
["QJM","RWD","UNITED LINCOLNSHIRE HOSPITALS NHS TRUST","RWDLA","Pilgrim Hospital",0,"NA","NA",0,0,0,0,0,0]
["QJM","RWD","UNITED LINCOLNSHIRE HOSPITALS NHS TRUST","RWDLP","Grantham and District Hospital",0,"NA","NA",0,0,0,0,0,0]
["QJM","RWD","UNITED LINCOLNSHIRE HOSPITALS NHS TRUST","RWDDA","Lincoln County Hospital",18,1,0,17,1,0,0,0,0]
["QK1","RWE","UNIVERSITY HOSPITALS OF LEICESTER NHS TRUST","RWE10","St Mary's Hospital",14,1,0,14,0,0,0,0,0]
["QK1","RWE","UNIVERSITY HOSPITALS OF LEICESTER NHS TRUST","RWEAK","Leicester General Hospital",75,0.98666666666666669,1.3333333333333334E-2,60,14,0,0,1,0]
["QK1","RWE","UNIVERSITY HOSPITALS OF LEICESTER NHS TRUST","RWEAA","Leicester Royal Infirmary",217,0.9447004608294931,9.2165898617511521E-3,158,47,8,2,0,2]
["QKK","RJ1","GUY'S AND ST THOMAS' NHS FOUNDATION TRUST","RJ122","St Thomas' Hospital",12,0.91666666666666663,0,9,2,1,0,0,0]
["QKK","RJZ","KING'S COLLEGE HOSPITAL NHS FOUNDATION TRUST","RJZ01","King's College Hospital (Denmark Hill)",46,0.95652173913043481,2.1739130434782608E-2,29,15,1,1,0,0]
["QKK","RJZ","KING'S COLLEGE HOSPITAL NHS FOUNDATION TRUST","RJZ30","Princess Royal University Hospital",112,0.9642857142857143,1.7857142857142856E-2,76,32,2,2,0,0]
["QKK","RJ2","LEWISHAM AND GREENWICH NHS TRUST","RJ231","Queen Elizabeth Hospital",22,0.72727272727272729,9.0909090909090912E-2,8,8,3,1,1,1]
["QKK","RJ2","LEWISHAM AND GREENWICH NHS TRUST","RJ224","University Hospital Lewisham",41,1,0,24,17,0,0,0,0]
["QKS","RN7","DARTFORD AND GRAVESHAM NHS TRUST","RN707","Darent Valley Hospital",45,0.9555555555555556,2.2222222222222223E-2,38,5,1,0,1,0]
["QKS","RWF","MAIDSTONE AND TUNBRIDGE WELLS NHS TRUST","RWFTW","The Tunbridge Wells Hospital",116,1,0,102,14,0,0,0,0]
["QKS","RPA","MEDWAY NHS FOUNDATION TRUST","RPA02","Medway Maritime Hospital",74,0.98648648648648651,0,63,10,1,0,0,0]
["QM7","RWH","EAST AND NORTH HERTFORDSHIRE NHS TRUST","RWH01","Lister Hospital",125,0.94399999999999995,0,89,29,6,0,0,1]
["QM7","RQW","THE PRINCESS ALEXANDRA HOSPITAL NHS TRUST","RQWG0","Princess Alexandra Hospital",0,"NA","NA",0,0,0,0,0,0]
["QM7","RWG","WEST HERTFORDSHIRE HOSPITALS NHS TRUST","RWG02","Watford General Hospital",72,0.95833333333333337,1.3888888888888888E-2,55,14,1,0,1,1]
["QMF","RF4","BARKING, HAVERING AND REDBRIDGE UNIVERSITY HOSPITALS NHS TRUST","RF4QH","Queen's Hospital",0,"NA","NA",0,0,0,0,0,0]
["QMF","R1H","BARTS HEALTH NHS TRUST","R1H12","The Royal London Hospital",2,"*","*","*","*","*","*","*","*"]
["QMF","R1H","BARTS HEALTH NHS TRUST","R1HKH","Whipps Cross University Hospital",25,1,0,"*","*","*","*","*","*"]
["QMF","R1H","BARTS HEALTH NHS TRUST","R1HNH","Newham General Hospital",61,0.93442622950819676,3.2786885245901641E-2,44,13,2,1,1,0]
["QMJ","RAL","ROYAL FREE LONDON NHS FOUNDATION TRUST","RAL26","Barnet Hospital",2,"*","*","*","*","*","*","*","*"]
["QMJ","RAL","ROYAL FREE LONDON NHS FOUNDATION TRUST","RAL01","Royal Free Hospital",68,0.91176470588235292,4.4117647058823532E-2,37,25,3,2,1,0]
["QMJ","RKE","WHITTINGTON HEALTH NHS TRUST","RKEXXX","Non-hospital site",0,"NA","NA",0,0,0,0,0,0]
["QMJ","RKE","WHITTINGTON HEALTH NHS TRUST","RKEQ4","The Whittington Hospital",53,1,0,0,53,0,0,0,0]
["QMM","RM1","NORFOLK AND NORWICH UNIVERSITY HOSPITALS NHS FOUNDATION TRUST","RM102","Norfolk and Norwich University Hospital",4,"*","*","*","*","*","*","*","*"]
["QMM","RCX","THE QUEEN ELIZABETH HOSPITAL, KING'S LYNN, NHS FOUNDATION TRUST","RCX70","The Queen Elizabeth Hospital",22,1,0,"*","*","*","*","*","*"]
["QNC","RJE","UNIVERSITY HOSPITALS OF NORTH MIDLANDS NHS TRUST","RJE01","Royal Stoke University Hospital",4,"*","*","*","*","*","*","*","*"]
["QNQ","RDU","FRIMLEY HEALTH NHS FOUNDATION TRUST","RDU01","Frimley Park Hospital",38,1,0,"*","*","*","*","*","*"]
["QNQ","RDU","FRIMLEY HEALTH NHS FOUNDATION TRUST","RDU50","Wexham Park Hospital",38,1,0,"*","*","*","*","*","*"]
["QNX","RXH","BRIGHTON AND SUSSEX UNIVERSITY HOSPITALS NHS TRUST","RXH09","Princess Royal Hospital",22,1,0,18,4,0,0,0,0]
["QNX","RXH","BRIGHTON AND SUSSEX UNIVERSITY HOSPITALS NHS TRUST","RXH01","Royal Sussex County Hospital",23,0.95652173913043481,4.3478260869565216E-2,20,2,0,0,1,0]
["QNX","RXC","EAST SUSSEX HEALTHCARE NHS TRUST","RXC02","Eastbourne District General Hospital",0,"NA","NA",0,0,0,0,0,0]
["QNX","RXC","EAST SUSSEX HEALTHCARE NHS TRUST","RXC01","Conquest Hospital",44,0.97727272727272729,0,34,9,1,0,0,0]
["QNX","RYR","WESTERN SUSSEX HOSPITALS NHS FOUNDATION TRUST","RYR18","Worthing Hospital",6,1,0,6,0,0,0,0,0]
["QNX","RYR","WESTERN SUSSEX HOSPITALS NHS FOUNDATION TRUST","RYR16","St Richard's Hospital",16,0.9375,6.25E-2,12,3,0,1,0,0]
["QOC","RXW","THE SHREWSBURY AND TELFORD HOSPITAL NHS TRUST","RXWAS","Royal Shrewsbury Hospital",0,"NA","NA",0,0,0,0,0,0]
["QOC","RXW","THE SHREWSBURY AND TELFORD HOSPITAL NHS TRUST","RXWMB","Bridgnorth Hospital (Maternity)",0,"NA","NA",0,0,0,0,0,0]
["QOC","RXW","THE SHREWSBURY AND TELFORD HOSPITAL NHS TRUST","RXWMJ","Robert Jones & Agnes Hunt Orthopaedic & District Hospital",0,"NA","NA",0,0,0,0,0,0]
["QOC","RXW","THE SHREWSBURY AND TELFORD HOSPITAL NHS TRUST","RXWAT","The Princess Royal Hospital",49,1,0,41,8,0,0,0,0]
["QOP","R0A","MANCHESTER UNIVERSITY NHS FOUNDATION TRUST","R0A05","St Mary's Hospital",214,0.98598130841121501,9.3457943925233638E-3,186,25,1,2,0,0]
["QOP","RW6","PENNINE ACUTE HOSPITALS NHS TRUST","RW602","North Manchester General Hospital",15,0.73333333333333328,0.2,"*","*","*","*","*","*"]
["QOP","RW6","PENNINE ACUTE HOSPITALS NHS TRUST","RW603","Royal Oldham Hospital",17,0.94117647058823528,0,"*","*","*","*","*","*"]
["QOP","RWJ","STOCKPORT NHS FOUNDATION TRUST","RWJ09","Stepping Hill Hospital",57,0.96491228070175439,1.7543859649122806E-2,49,6,0,0,1,1]
["QOP","RMP","TAMESIDE AND GLOSSOP INTEGRATED CARE NHS FOUNDATION TRUST","RMP01","Tameside General Hospital",1,"*","*","*","*","*","*","*","*"]
["QOQ","RCD","HARROGATE AND DISTRICT NHS FOUNDATION TRUST","RCD01","Harrogate District Hospital",43,1,0,38,5,0,0,0,0]
["QOQ","RWA","HULL UNIVERSITY TEACHING HOSPITALS NHS TRUST","RWA01","Hull Royal Infirmary",7,1,0,5,2,0,0,0,0]
["QOQ","RCB","YORK TEACHING HOSPITAL NHS FOUNDATION TRUST","RCBCA","Scarborough General Hospital",47,0.97872340425531912,0,42,4,1,0,0,0]
["QOQ","RCB","YORK TEACHING HOSPITAL NHS FOUNDATION TRUST","RCB55","York Hospital",98,1,0,88,10,0,0,0,0]
["QOX","RN3","GREAT WESTERN HOSPITALS NHS FOUNDATION TRUST","RN325","The Great Western Hospital",0,"NA","NA",0,0,0,0,0,0]
["QOX","RD1","ROYAL UNITED HOSPITALS BATH NHS FOUNDATION TRUST","RD130","Princess Anne Wing RUH",1,"*","*","*","*","*","*","*","*"]
["QOX","RNZ","SALISBURY NHS FOUNDATION TRUST","RNZ02","Salisbury District Hospital",0,"NA","NA",0,0,0,0,0,0]
["QPM","RNS","NORTHAMPTON GENERAL HOSPITAL NHS TRUST","RNS01","Northampton General Hospital (Acute)",3,"*","*","*","*","*","*","*","*"]
["QR1","RTE","GLOUCESTERSHIRE HOSPITALS NHS FOUNDATION TRUST","RTE01","Cheltenham General Hospital",0,"NA","NA",0,0,0,0,0,0]
["QR1","RTE","GLOUCESTERSHIRE HOSPITALS NHS FOUNDATION TRUST","RTE27","Stroud Maternity Hospital",0,"NA","NA",0,0,0,0,0,0]
["QR1","RTE","GLOUCESTERSHIRE HOSPITALS NHS FOUNDATION TRUST","RTEXXX","Non-hospital site",0,"NA","NA",0,0,0,0,0,0]
["QR1","RTE","GLOUCESTERSHIRE HOSPITALS NHS FOUNDATION TRUST","RTE03","Gloucestershire Royal Hospital",22,0.81818181818181823,9.0909090909090912E-2,"*","*","*","*","*","*"]
["QRL","RN5","HAMPSHIRE HOSPITALS NHS FOUNDATION TRUST","RN541","Royal Hampshire County Hospital",0,"NA","NA",0,0,0,0,0,0]
["QRL","RN5","HAMPSHIRE HOSPITALS NHS FOUNDATION TRUST","RN506","Basingstoke and North Hampshire Hospital",2,"*","*","*","*","*","*","*","*"]
["QRL","R1F","ISLE OF WIGHT NHS TRUST","R1F01","St Mary's Hospital",4,"*","*","*","*","*","*","*","*"]
["QRL","RHU","PORTSMOUTH HOSPITALS UNIVERSITY NATIONAL HEALTH SERVICE TRUST","RHU02","St Mary's Hospital",0,"NA","NA",0,0,0,0,0,0]
["QRL","RHU","PORTSMOUTH HOSPITALS UNIVERSITY NATIONAL HEALTH SERVICE TRUST","RHU03","Queen Alexandra Hospital",0,"NA","NA",0,0,0,0,0,0]
["QRL","RHU","PORTSMOUTH HOSPITALS UNIVERSITY NATIONAL HEALTH SERVICE TRUST","RHU04","Petersfield Community Hospital",0,"NA","NA",0,0,0,0,0,0]
["QRL","RHU","PORTSMOUTH HOSPITALS UNIVERSITY NATIONAL HEALTH SERVICE TRUST","RHU10","Gosport War Memorial Hospital",0,"NA","NA",0,0,0,0,0,0]
["QRL","RHM","UNIVERSITY HOSPITAL SOUTHAMPTON NHS FOUNDATION TRUST","RHM12","Princess Anne Hospital",120,0.65833333333333333,0.13333333333333333,47,32,10,12,4,15]
["QRV","RQM","CHELSEA AND WESTMINSTER HOSPITAL NHS FOUNDATION TRUST","RQM91","West Middlesex University Hospital",6,1,0,6,0,0,0,0,0]
["QRV","RQM","CHELSEA AND WESTMINSTER HOSPITAL NHS FOUNDATION TRUST","RQM01","Chelsea and Westminster Hospital",83,0.81927710843373491,0.13253012048192772,54,14,4,4,7,0]
["QRV","RYJ","IMPERIAL COLLEGE HEALTHCARE NHS TRUST","RYJ04","Queen Charlotte's Hospital",9,0.88888888888888884,0.1111111111111111,7,1,0,1,0,0]
["QRV","RYJ","IMPERIAL COLLEGE HEALTHCARE NHS TRUST","RYJ01","St Mary's Hospital (HQ)",10,0.7,0,4,3,3,0,0,0]
["QRV","R1K","LONDON NORTH WEST UNIVERSITY HEALTHCARE NHS TRUST","R1K01","Northwick Park Hospital",0,"NA","NA",0,0,0,0,0,0]
["QRV","RAS","THE HILLINGDON HOSPITALS NHS FOUNDATION TRUST","RAS01","Hillingdon Hospital",5,1,0,5,0,0,0,0,0]
["QSL","RH5","SOMERSET NHS FOUNDATION TRUST","RH5A8","MUSGROVE PARK HOSPITAL",0,"NA","NA",0,0,0,0,0,0]
["QSL","RA4","YEOVIL DISTRICT HOSPITAL NHS FOUNDATION TRUST","RA430","Yeovil District Hospital",23,1,0,22,1,0,0,0,0]
["QT1","RX1","NOTTINGHAM UNIVERSITY HOSPITALS NHS TRUST","RX1CC","Nottingham University Hospitals NHS Trust - City Campus",1,"*","*","*","*","*","*","*","*"]
["QT1","RX1","NOTTINGHAM UNIVERSITY HOSPITALS NHS TRUST","RX1RA","Nottingham University Hospitals NHS Trust - Queen's Medical Centre Campus",20,0.95,0,"*","*","*","*","*","*"]
["QT1","RK5","SHERWOOD FOREST HOSPITALS NHS FOUNDATION TRUST","RK5BC","King's Mill Hospital",16,0.8125,6.25E-2,11,2,1,0,1,1]
["QT6","REF","ROYAL CORNWALL HOSPITALS NHS TRUST","REF12","Royal Cornwall Hospital (Treliske)",0,"NA","NA",0,0,0,0,0,0]
["QT6","REF","ROYAL CORNWALL HOSPITALS NHS TRUST","REFXXX","Non-hospital site",0,"NA","NA",0,0,0,0,0,0]
["QU9","RXQ","BUCKINGHAMSHIRE HEALTHCARE NHS TRUST","RXQ02","Stoke Mandeville Hospital",43,0.83720930232558144,4.6511627906976744E-2,25,11,5,1,1,0]
["QU9","RTH","OXFORD UNIVERSITY HOSPITALS NHS FOUNDATION TRUST","RTH08","John Radcliffe Hospital",0,"NA","NA",0,0,0,0,0,0]
["QU9","RTH","OXFORD UNIVERSITY HOSPITALS NHS FOUNDATION TRUST","RTH16","Wallingford Community Hospital",0,"NA","NA",0,0,0,0,0,0]
["QU9","RTH","OXFORD UNIVERSITY HOSPITALS NHS FOUNDATION TRUST","RTH19","Chipping Norton Community Hospital",0,"NA","NA",0,0,0,0,0,0]
["QU9","RTH","OXFORD UNIVERSITY HOSPITALS NHS FOUNDATION TRUST","RTH21","Wantage Community Hospital",0,"NA","NA",0,0,0,0,0,0]
["QU9","RHW","ROYAL BERKSHIRE NHS FOUNDATION TRUST","RHW01","Royal Berkshire Hospital",46,0.97826086956521741,0,29,16,1,0,0,0]
["QUA","RXK","SANDWELL AND WEST BIRMINGHAM HOSPITALS NHS TRUST","RXK02","City Hospital",0,"NA","NA",0,0,0,0,0,0]
["QUA","RXK","SANDWELL AND WEST BIRMINGHAM HOSPITALS NHS TRUST","RXKTC","Birmingham Treatment Centre",0,"NA","NA",0,0,0,0,0,0]
["QUA","RNA","THE DUDLEY GROUP NHS FOUNDATION TRUST","RNA01","Russells Hall Hospital",47,0.80851063829787229,0,30,8,0,0,0,9]
["QUA","RBK","WALSALL HEALTHCARE NHS TRUST","RBK02","Manor Hospital",18,0.77777777777777779,0.16666666666666666,12,2,1,1,2,0]
["QUE","RGT","CAMBRIDGE UNIVERSITY HOSPITALS NHS FOUNDATION TRUST","RGT32","Rosie Hospital",208,0.95192307692307687,9.6153846153846159E-3,148,50,8,2,0,0]
["QUE","RGN","NORTH WEST ANGLIA NHS FOUNDATION TRUST","RGN80","Peterborough City Hospital",33,1,0,32,1,0,0,0,0]
["QUE","RGN","NORTH WEST ANGLIA NHS FOUNDATION TRUST","RGN90","Hinchingbrooke Hospital",68,0.97058823529411764,0,55,11,1,0,0,1]
["QUY","RVJ","NORTH BRISTOL NHS TRUST","RVJ01","Southmead Hospital",51,0.88235294117647056,5.8823529411764705E-2,38,7,2,2,1,1]
["QUY","RA7","UNIVERSITY HOSPITALS BRISTOL AND WESTON NHS FOUNDATION TRUST","RA707","St Michael's Hospital",0,"NA","NA",0,0,0,0,0,0]
["QVV","RBD","DORSET COUNTY HOSPITAL NHS FOUNDATION TRUST","RBD01","Dorset County Hospital",39,0.94871794871794868,5.128205128205128E-2,32,5,0,0,2,0]
["QVV","R0D","UNIVERSITY HOSPITALS DORSET NHS FOUNDATION TRUST","R0D01","Poole Hospital",83,0.83132530120481929,7.2289156626506021E-2,59,10,3,4,2,5]
["QWE","RJ6","CROYDON HEALTH SERVICES NHS TRUST","RJ611","Croydon University Hospital",29,0.86206896551724133,6.8965517241379309E-2,23,2,1,0,2,1]
["QWE","RVR","EPSOM AND ST HELIER UNIVERSITY HOSPITALS NHS TRUST","RVR50","Epsom Hospital",4,"*","*","*","*","*","*","*","*"]
["QWE","RVR","EPSOM AND ST HELIER UNIVERSITY HOSPITALS NHS TRUST","RVR05","St Helier Hospital",14,1,0,14,0,0,0,0,0]
["QWE","RJ7","ST GEORGE'S UNIVERSITY HOSPITALS NHS FOUNDATION TRUST","RJ701","St George's Hospital (Tooting)",40,1,0,38,2,0,0,0,0]
["QWO","RCF","AIREDALE NHS FOUNDATION TRUST","RCF22","Airedale General Hospital",0,"NA","NA",0,0,0,0,0,0]
["QWO","RAE","BRADFORD TEACHING HOSPITALS NHS FOUNDATION TRUST","RAE01","Bradford Royal Infirmary",0,"NA","NA",0,0,0,0,0,0]
["QWO","RR8","LEEDS TEACHING HOSPITALS NHS TRUST","RR801","Leeds General Infirmary",48,0.9375,0,35,10,3,0,0,0]
["QWO","RR8","LEEDS TEACHING HOSPITALS NHS TRUST","RR813","St James's University Hospital",48,0.95833333333333337,2.0833333333333332E-2,38,8,1,0,1,0]
["QWO","RXF","MID YORKSHIRE HOSPITALS NHS TRUST","RXF05","Pinderfields General Hospital",8,0.75,0.25,6,0,0,1,1,0]
["QWU","RLT","GEORGE ELIOT HOSPITAL NHS TRUST","RLT01","George Eliot Hospital - Acute Services",53,0.94339622641509435,1.8867924528301886E-2,41,9,1,1,0,1]
["QWU","RJC","SOUTH WARWICKSHIRE NHS FOUNDATION TRUST","RJC02","Warwick Hospital",0,"NA","NA",0,0,0,0,0,0]
["QWU","RKB","UNIVERSITY HOSPITALS COVENTRY AND WARWICKSHIRE NHS TRUST","RKB01","University Hospital (Coventry)",44,0.95454545454545459,2.2727272727272728E-2,40,2,1,1,0,0]
["QXU","RA2","ROYAL SURREY COUNTY HOSPITAL NHS FOUNDATION TRUST","RA201","Royal Surrey County Hospital",0,"NA","NA",0,0,0,0,0,0]
["QXU","RTP","SURREY AND SUSSEX HEALTHCARE NHS TRUST","RTP04","East Surrey Hospital",32,0.9375,3.125E-2,24,6,0,0,1,1]
["QYG","RJR","COUNTESS OF CHESTER HOSPITAL NHS FOUNDATION TRUST","RJR05","Countess Of Chester Hospital",20,0.95,0,19,0,0,0,0,1]
["QYG","RJN","EAST CHESHIRE NHS TRUST","RJN71","Macclesfield District General Hospital",0,"NA","NA",0,0,0,0,0,0]
["QYG","REP","LIVERPOOL WOMEN'S NHS FOUNDATION TRUST","REP01","Liverpool Womens Hospital",62,0.90322580645161288,4.8387096774193547E-2,47,9,3,2,1,0]
["QYG","RBT","MID CHESHIRE HOSPITALS NHS FOUNDATION TRUST","RBT20","Leighton Hospital",53,0.94339622641509435,3.7735849056603772E-2,43,7,0,1,1,1]
["QYG","RVY","SOUTHPORT AND ORMSKIRK HOSPITAL NHS TRUST","RVY02","Ormskirk and District General Hospital",13,0.84615384615384615,7.6923076923076927E-2,9,2,0,0,1,1]
["QYG","RBN","ST HELENS AND KNOWSLEY TEACHING HOSPITALS NHS TRUST","RBN01","Whiston Hospital",0,"NA","NA",0,0,0,0,0,0]
["QYG","RWW","WARRINGTON AND HALTON TEACHING HOSPITALS NHS FOUNDATION TRUST","RWWWH","Warrington Hospital",0,"NA","NA",0,0,0,0,0,0]
["QYG","RBL","WIRRAL UNIVERSITY TEACHING HOSPITAL NHS FOUNDATION TRUST","RBL14","Arrowe Park Hospital",15,0.8,6.6666666666666666E-2,8,4,2,1,0,0]

{"sheet":"Region (Local Office) Q4","index":11,"n_rows":55,"n_cols":11,"rows_kept":55,"cut":false,"hidden":false,"merged":[[8,5,8,10],[8,0,9,0],[8,1,9,1],[8,2,9,2],[8,3,9,3],[8,4,9,4]]}
[]
[]
[]
[]
[]
[null,"   Sort data by:           "]
[]
[]
["STP Code","STP","Total Responses","Percentage Positive","Percentage Negative","Breakdown of Responses"]
[null,null,null,null,null,"Very Good","Good","Neither Good nor Poor","Poor","Very Poor","Don't Know"]
[null,"England (including Independent Sector providers)",1156,0.88235294117647056,4.6712802768166091E-2,853,167,32,38,16,50]
[null,"England (excluding Independent Sector providers)",1156,0.88235294117647056,4.6712802768166091E-2,853,167,32,38,16,50]
[null,"Selection (excluding suppressed data)",{"$f":"SUBTOTAL(9,C14:C55)","v":1156},{"$f":"IFERROR((F13+G13)/SUM(F13:K13), \"-\")","v":0.8778195488721805},{"$f":"IFERROR((I13+J13)/SUM(F13:K13), \"-\")","v":4.6052631578947366E-2},{"$f":"SUBTOTAL(9,F14:F55)","v":776},158,31,34,15,50]
["QE1","HEALTHIER LANCASHIRE AND SOUTH CUMBRIA",120,0.93333333333333335,2.5000000000000001E-2,84,28,2,2,1,3]
["QF7","SOUTH YORKSHIRE AND BASSETLAW STP",45,0.97777777777777775,2.2222222222222223E-2,35,9,0,0,1,0]
["QGH","HEREFORDSHIRE AND WORCESTERSHIRE STP",10,1,0,8,2,0,0,0,0]
["QH8","MID AND SOUTH ESSEX STP",59,0.77966101694915257,0.15254237288135594,35,11,3,5,4,1]
["QHG","BEDFORDSHIRE, LUTON AND MILTON KEYNES STP",11,1,0,9,2,0,0,0,0]
["QHL","BIRMINGHAM AND SOLIHULL STP",1,"*","*","*","*","*","*","*","*"]
["QHM","CUMBRIA AND NORTH EAST STP",92,0.90217391304347827,5.434782608695652E-2,66,17,4,2,3,0]
["QJ2","JOINED UP CARE DERBYSHIRE STP",0,"NA","NA",0,0,0,0,0,0]
["QJG","SUFFOLK AND NORTH EAST ESSEX ICS",27,1,0,26,1,0,0,0,0]
["QJK","DEVON STP",5,1,0,"*","*","*","*","*","*"]
["QJM","LINCOLNSHIRE STP",1,"*","*","*","*","*","*","*","*"]
["QK1","LEICESTER, LEICESTERSHIRE AND RUTLAND STP",36,1,0,31,5,0,0,0,0]
["QKK","OUR HEALTHIER SOUTH EAST LONDON STP",8,1,0,6,2,0,0,0,0]
["QKS","KENT AND MEDWAY STP",29,1,0,28,1,0,0,0,0]
["QM7","HERTFORDSHIRE AND WEST ESSEX STP",10,1,0,10,0,0,0,0,0]
["QMF","EAST LONDON HEALTH & CARE PARTNERSHIP (STP)",0,"NA","NA",0,0,0,0,0,0]
["QMJ","NORTH LONDON PARTNERS IN HEALTH & CARE (STP)",0,"NA","NA",0,0,0,0,0,0]
["QMM","NORFOLK AND WAVENEY HEALTH & CARE PARTNERSHIP (STP)",11,1,0,11,0,0,0,0,0]
["QNC","STAFFORDSHIRE & STOKE ON TRENT STP",4,"*","*","*","*","*","*","*","*"]
["QNQ","FRIMLEY HEALTH & CARE (STP)",37,0.97297297297297303,2.7027027027027029E-2,"*","*","*","*","*","*"]
["QNX","SUSSEX HEALTH AND CARE PARTNERSHIP",39,0.92307692307692313,2.564102564102564E-2,32,4,2,1,0,0]
["QOC","SHROPSHIRE AND TELFORD AND WREKIN STP",12,1,0,12,0,0,0,0,0]
["QOP","GREATER MANCHESTER HEALTH & SOCIAL CARE PARTNERSHIP",38,0.68421052631578949,0.31578947368421051,23,3,0,12,0,0]
["QOQ","HUMBER, COAST AND VALE STP",11,1,0,10,1,0,0,0,0]
["QOX","BATH AND NORTH EAST SOMERSET, SWINDON AND WILTSHIRE STP",5,1,0,5,0,0,0,0,0]
["QPM","NORTHAMPTONSHIRE STP",1,"*","*","*","*","*","*","*","*"]
["QR1","GLOUCESTERSHIRE STP",0,"NA","NA","*","*","*","*","*","*"]
["QRL","HAMPSHIRE AND THE ISLE OF WIGHT STP",129,0.68217054263565891,9.3023255813953487E-2,45,43,12,8,4,17]
["QRV","NORTH WEST LONDON HEALTH & CARE PARTNERSHIP (STP)",19,0.94736842105263153,5.2631578947368418E-2,13,5,0,1,0,0]
["QSL","SOMERSET STP",0,"NA","NA",0,0,0,0,0,0]
["QT1","NOTTINGHAM AND NOTTINGHAMSHIRE HEALTH AND CARE STP",13,1,0,12,1,0,0,0,0]
["QT6","CORNWALL AND THE ISLES OF SCILLY HEALTH & SOCIAL CARE PARTNERSHIP (STP)",1,"*","*","*","*","*","*","*","*"]
["QU9","BUCKINGHAMSHIRE, OXFORDSHIRE AND BERKSHIRE WEST STP",32,0.84375,0.125,"*","*","*","*","*","*"]
["QUA","THE BLACK COUNTRY AND WEST BIRMINGHAM STP",41,0.29268292682926828,2.4390243902439025E-2,11,1,0,0,1,28]
["QUE","CAMBRIDGESHIRE AND PETERBOROUGH STP",93,1,0,92,1,0,0,0,0]
["QUY","BRISTOL, NORTH SOMERSET AND SOUTH GLOUCESTERSHIRE STP",18,0.88888888888888884,0.1111111111111111,14,2,0,2,0,0]
["QVV","DORSET STP",65,0.87692307692307692,1.5384615384615385E-2,49,8,7,0,1,0]
["QWE","SOUTH WEST LONDON HEALTH & CARE PARTNERSHIP (STP)",3,"*","*","*","*","*","*","*","*"]
["QWO","WEST YORKSHIRE AND HARROGATE HEALTH & CARE PARTNERSHIP (STP)",7,1,0,"*","*","*","*","*","*"]
["QWU","COVENTRY AND WARWICKSHIRE STP",19,0.94736842105263153,0,14,4,1,0,0,0]
["QXU","SURREY HEARTLANDS HEALTH & CARE PARTNERSHIP (STP)",62,0.9838709677419355,1.6129032258064516E-2,55,6,0,1,0,0]
["QYG","CHESHIRE AND MERSEYSIDE STP",42,0.97619047619047616,0,40,1,0,0,0,1]

{"sheet":"Trusts Q4","index":12,"n_rows":133,"n_cols":20,"rows_kept":133,"cut":false,"hidden":false,"merged":[[8,6,8,11],[8,12,8,19],[8,0,9,0],[8,1,9,1],[8,2,9,2],[8,3,9,3],[8,4,9,4],[8,5,9,5]]}
[]
[]
[]
[]
[]
[null,"   Sort data by:           "]
[]
[]
["STP Code","Trust Code","Trust Name","Total Responses","Percentage Positive","Percentage Negative","Breakdown of Responses",null,null,null,null,null,"Mode of Collection"]
[null,null,null,null,null,null,"Very Good","Good","Neither Good nor Poor","Poor","Very Poor","Don't Know","Mode SMS","Mode Electronic Discharge","Mode Electronic Home","Mode Paper Discharge","Mode Paper Home","Mode Telephone","Mode Online","Mode Other"]
[null,null,"England (including Independent Sector providers)",1156,0.88235294117647056,4.6712802768166091E-2,853,167,32,38,16,50,481,14,5,443,26,0,187,0]
[null,null,"England (excluding Independent Sector providers)",1156,0.88235294117647056,4.6712802768166091E-2,853,167,32,38,16,50,481,14,5,443,26,0,187,0]
[null,null,"Selection (excluding suppressed data)",{"$f":"SUBTOTAL(9,D14:D299)","v":1156},{"$f":"IFERROR((G13+H13)/SUM(G13:L13), \"-\")","v":0.85945273631840791},{"$f":"IFERROR((J13+K13)/SUM(G13:L13), \"-\")","v":4.3532338308457715E-2},{"$f":"SUBTOTAL(9,G14:G299)","v":551},140,28,20,15,50,324,13,5,276,21,0,165,0]
["QE1","RTX","UNIVERSITY HOSPITALS OF MORECAMBE BAY NHS FOUNDATION TRUST",0,"NA","NA",0,0,0,0,0,0,0,0,0,0,0,0,0,0]
["QE1","RXL","BLACKPOOL TEACHING HOSPITALS NHS FOUNDATION TRUST",0,"NA","NA",0,0,0,0,0,0,0,0,0,0,0,0,0,0]
["QE1","RXN","LANCASHIRE TEACHING HOSPITALS NHS FOUNDATION TRUST",45,1,0,36,9,0,0,0,0,45,0,0,0,0,0,0,0]
["QE1","RXR","EAST LANCASHIRE HOSPITALS NHS TRUST",75,0.89333333333333331,0.04,48,19,2,2,1,3,2,0,0,73,0,0,0,0]
["QF7","RFF","BARNSLEY HOSPITAL NHS FOUNDATION TRUST",0,"NA","NA",0,0,0,0,0,0,0,0,0,0,0,0,0,0]
["QF7","RFR","THE ROTHERHAM NHS FOUNDATION TRUST",0,"NA","NA",0,0,0,0,0,0,0,0,0,0,0,0,0,0]
["QF7","RHQ","SHEFFIELD TEACHING HOSPITALS NHS FOUNDATION TRUST",0,"NA","NA",0,0,0,0,0,0,0,0,0,0,0,0,0,0]
["QF7","RP5","DONCASTER AND BASSETLAW TEACHING HOSPITALS NHS FOUNDATION TRUST",45,0.97777777777777775,2.2222222222222223E-2,35,9,0,0,1,0,0,0,0,45,0,0,0,0]
["QGH","RWP","WORCESTERSHIRE ACUTE HOSPITALS NHS TRUST",0,"NA","NA",0,0,0,0,0,0,0,0,0,0,0,0,0,0]
["QGH","RLQ","WYE VALLEY NHS TRUST",10,1,0,8,2,0,0,0,0,0,0,0,0,0,0,10,0]
["QH8","RAJ","MID AND SOUTH ESSEX NHS FOUNDATION TRUST",59,0.77966101694915257,0.15254237288135594,35,11,3,5,4,1,59,0,0,0,0,0,0,0]
["QHG","RD8","MILTON KEYNES UNIVERSITY HOSPITAL NHS FOUNDATION TRUST",1,"*","*","*","*","*","*","*","*","*","*","*","*","*","*","*","*"]
["QHG","RC9","BEDFORDSHIRE HOSPITALS NHS FOUNDATION TRUST",10,1,0,"*","*","*","*","*","*","*","*","*","*","*","*","*","*"]
["QHL","RRK","UNIVERSITY HOSPITALS BIRMINGHAM NHS FOUNDATION TRUST",0,"NA","NA",0,0,0,0,0,0,0,0,0,0,0,0,0,0]
["QHL","RQ3","BIRMINGHAM WOMEN'S AND CHILDREN'S NHS FOUNDATION TRUST",1,"*","*","*","*","*","*","*","*","*","*","*","*","*","*","*","*"]
["QHM","R0B","SOUTH TYNESIDE AND SUNDERLAND NHS FOUNDATION TRUST",0,"NA","NA",0,0,0,0,0,0,0,0,0,0,0,0,0,0]
["QHM","RR7","GATESHEAD HEALTH NHS FOUNDATION TRUST",0,"NA","NA",0,0,0,0,0,0,0,0,0,0,0,0,0,0]
["QHM","RTD","THE NEWCASTLE UPON TYNE HOSPITALS NHS FOUNDATION TRUST",0,"NA","NA",0,0,0,0,0,0,0,0,0,0,0,0,0,0]
["QHM","RTR","SOUTH TEES HOSPITALS NHS FOUNDATION TRUST",0,"NA","NA",0,0,0,0,0,0,0,0,0,0,0,0,0,0]
["QHM","RXP","COUNTY DURHAM AND DARLINGTON NHS FOUNDATION TRUST",0,"NA","NA",0,0,0,0,0,0,0,0,0,0,0,0,0,0]
["QHM","RVW","NORTH TEES AND HARTLEPOOL NHS FOUNDATION TRUST",2,"*","*","*","*","*","*","*","*","*","*","*","*","*","*","*","*"]
["QHM","RNN","NORTH CUMBRIA INTEGRATED CARE NHS FOUNDATION TRUST",10,1,0,"*","*","*","*","*","*","*","*","*","*","*","*","*","*"]
["QHM","RTF","NORTHUMBRIA HEALTHCARE NHS FOUNDATION TRUST",80,0.88749999999999996,6.25E-2,56,15,4,2,3,0,80,0,0,0,0,0,0,0]
["QJ2","RFS","CHESTERFIELD ROYAL HOSPITAL NHS FOUNDATION TRUST",0,"NA","NA",0,0,0,0,0,0,0,0,0,0,0,0,0,0]
["QJ2","RTG","UNIVERSITY HOSPITALS OF DERBY AND BURTON NHS FOUNDATION TRUST",0,"NA","NA",0,0,0,0,0,0,0,0,0,0,0,0,0,0]
["QJG","RDE","EAST SUFFOLK AND NORTH ESSEX NHS FOUNDATION TRUST",0,"NA","NA",0,0,0,0,0,0,0,0,0,0,0,0,0,0]
["QJG","RGR","WEST SUFFOLK NHS FOUNDATION TRUST",27,1,0,26,1,0,0,0,0,15,0,0,12,0,0,0,0]
["QJK","RBZ","NORTHERN DEVON HEALTHCARE NHS TRUST",0,"NA","NA",0,0,0,0,0,0,0,0,0,0,0,0,0,0]
["QJK","RH8","ROYAL DEVON AND EXETER NHS FOUNDATION TRUST",0,"NA","NA",0,0,0,0,0,0,0,0,0,0,0,0,0,0]
["QJK","RK9","UNIVERSITY HOSPITALS PLYMOUTH NHS TRUST",5,1,0,"*","*","*","*","*","*","*","*","*","*","*","*","*","*"]
["QJM","RWD","UNITED LINCOLNSHIRE HOSPITALS NHS TRUST",1,"*","*","*","*","*","*","*","*","*","*","*","*","*","*","*","*"]
["QK1","RWE","UNIVERSITY HOSPITALS OF LEICESTER NHS TRUST",36,1,0,31,5,0,0,0,0,0,0,5,31,0,0,0,0]
["QKK","RJ2","LEWISHAM AND GREENWICH NHS TRUST",0,"NA","NA",0,0,0,0,0,0,0,0,0,0,0,0,0,0]
["QKK","RJZ","KING'S COLLEGE HOSPITAL NHS FOUNDATION TRUST",0,"NA","NA",0,0,0,0,0,0,0,0,0,0,0,0,0,0]
["QKK","RJ1","GUY'S AND ST THOMAS' NHS FOUNDATION TRUST",8,1,0,6,2,0,0,0,0,0,0,0,0,0,0,8,0]
["QKS","RN7","DARTFORD AND GRAVESHAM NHS TRUST",0,"NA","NA",0,0,0,0,0,0,0,0,0,0,0,0,0,0]
["QKS","RPA","MEDWAY NHS FOUNDATION TRUST",0,"NA","NA",0,0,0,0,0,0,0,0,0,0,0,0,0,0]
["QKS","RVV","EAST KENT HOSPITALS UNIVERSITY NHS FOUNDATION TRUST",0,"NA","NA",0,0,0,0,0,0,0,0,0,0,0,0,0,0]
["QKS","RWF","MAIDSTONE AND TUNBRIDGE WELLS NHS TRUST",29,1,0,28,1,0,0,0,0,0,0,0,29,0,0,0,0]
["QM7","RQW","THE PRINCESS ALEXANDRA HOSPITAL NHS TRUST",0,"NA","NA",0,0,0,0,0,0,0,0,0,0,0,0,0,0]
["QM7","RWG","WEST HERTFORDSHIRE HOSPITALS NHS TRUST",0,"NA","NA",0,0,0,0,0,0,0,0,0,0,0,0,0,0]
["QM7","RWH","EAST AND NORTH HERTFORDSHIRE NHS TRUST",10,1,0,10,0,0,0,0,0,0,10,0,0,0,0,0,0]
["QMF","R1H","BARTS HEALTH NHS TRUST",0,"NA","NA",0,0,0,0,0,0,0,0,0,0,0,0,0,0]
["QMF","RF4","BARKING, HAVERING AND REDBRIDGE UNIVERSITY HOSPITALS NHS TRUST",0,"NA","NA",0,0,0,0,0,0,0,0,0,0,0,0,0,0]
["QMJ","RAL","ROYAL FREE LONDON NHS FOUNDATION TRUST",0,"NA","NA",0,0,0,0,0,0,0,0,0,0,0,0,0,0]
["QMJ","RAP","NORTH MIDDLESEX UNIVERSITY HOSPITAL NHS TRUST",0,"NA","NA",0,0,0,0,0,0,0,0,0,0,0,0,0,0]
["QMJ","RKE","WHITTINGTON HEALTH NHS TRUST",0,"NA","NA",0,0,0,0,0,0,0,0,0,0,0,0,0,0]
["QMJ","RRV","UNIVERSITY COLLEGE LONDON HOSPITALS NHS FOUNDATION TRUST",0,"NA","NA",0,0,0,0,0,0,0,0,0,0,0,0,0,0]
["QMM","RGP","JAMES PAGET UNIVERSITY HOSPITALS NHS FOUNDATION TRUST",0,"NA","NA",0,0,0,0,0,0,0,0,0,0,0,0,0,0]
["QMM","RM1","NORFOLK AND NORWICH UNIVERSITY HOSPITALS NHS FOUNDATION TRUST",5,1,0,5,0,0,0,0,0,0,0,0,5,0,0,0,0]
["QMM","RCX","THE QUEEN ELIZABETH HOSPITAL, KING'S LYNN, NHS FOUNDATION TRUST",6,1,0,6,0,0,0,0,0,0,3,0,0,0,0,3,0]
["QNC","RJE","UNIVERSITY HOSPITALS OF NORTH MIDLANDS NHS TRUST",4,"*","*","*","*","*","*","*","*","*","*","*","*","*","*","*","*"]
["QNQ","RDU","FRIMLEY HEALTH NHS FOUNDATION TRUST",37,0.97297297297297303,2.7027027027027029E-2,"*","*","*","*","*","*","*","*","*","*","*","*","*","*"]
["QNX","RXC","EAST SUSSEX HEALTHCARE NHS TRUST",0,"NA","NA",0,0,0,0,0,0,0,0,0,0,0,0,0,0]
["QNX","RYR","WESTERN SUSSEX HOSPITALS NHS FOUNDATION TRUST",1,"*","*","*","*","*","*","*","*","*","*","*","*","*","*","*","*"]
["QNX","RXH","BRIGHTON AND SUSSEX UNIVERSITY HOSPITALS NHS TRUST",38,0.92105263157894735,2.6315789473684209E-2,"*","*","*","*","*","*","*","*","*","*","*","*","*","*"]
["QOC","RXW","THE SHREWSBURY AND TELFORD HOSPITAL NHS TRUST",12,1,0,12,0,0,0,0,0,0,0,0,12,0,0,0,0]
["QOP","RMC","BOLTON NHS FOUNDATION TRUST",0,"NA","NA",0,0,0,0,0,0,0,0,0,0,0,0,0,0]
["QOP","RMP","TAMESIDE AND GLOSSOP INTEGRATED CARE NHS FOUNDATION TRUST",0,"NA","NA",0,0,0,0,0,0,0,0,0,0,0,0,0,0]
["QOP","RRF","WRIGHTINGTON, WIGAN AND LEIGH NHS FOUNDATION TRUST",0,"NA","NA",0,0,0,0,0,0,0,0,0,0,0,0,0,0]
["QOP","RWJ","STOCKPORT NHS FOUNDATION TRUST",3,"*","*","*","*","*","*","*","*","*","*","*","*","*","*","*","*"]
["QOP","RW6","PENNINE ACUTE HOSPITALS NHS TRUST",17,0.29411764705882354,0.70588235294117652,"*","*","*","*","*","*","*","*","*","*","*","*","*","*"]
["QOP","R0A","MANCHESTER UNIVERSITY NHS FOUNDATION TRUST",18,1,0,17,1,0,0,0,0,0,0,0,18,0,0,0,0]
["QOQ","RCD","HARROGATE AND DISTRICT NHS FOUNDATION TRUST",0,"NA","NA",0,0,0,0,0,0,0,0,0,0,0,0,0,0]
["QOQ","RWA","HULL UNIVERSITY TEACHING HOSPITALS NHS TRUST",0,"NA","NA",0,0,0,0,0,0,0,0,0,0,0,0,0,0]
["QOQ","RCB","YORK TEACHING HOSPITAL NHS FOUNDATION TRUST",11,1,0,10,1,0,0,0,0,11,0,0,0,0,0,0,0]
["QOX","RN3","GREAT WESTERN HOSPITALS NHS FOUNDATION TRUST",0,"NA","NA",0,0,0,0,0,0,0,0,0,0,0,0,0,0]
["QOX","RNZ","SALISBURY NHS FOUNDATION TRUST",1,"*","*","*","*","*","*","*","*","*","*","*","*","*","*","*","*"]
["QOX","RD1","ROYAL UNITED HOSPITALS BATH NHS FOUNDATION TRUST",4,"*","*","*","*","*","*","*","*","*","*","*","*","*","*","*","*"]
["QPM","RNS","NORTHAMPTON GENERAL HOSPITAL NHS TRUST",0,"NA","NA",0,0,0,0,0,0,0,0,0,0,0,0,0,0]
["QPM","RNQ","KETTERING GENERAL HOSPITAL NHS FOUNDATION TRUST",1,"*","*","*","*","*","*","*","*","*","*","*","*","*","*","*","*"]
["QR1","RTE","GLOUCESTERSHIRE HOSPITALS NHS FOUNDATION TRUST",0,"NA","NA",0,0,0,0,0,0,0,0,0,0,0,0,0,0]
["QRL","R1F","ISLE OF WIGHT NHS TRUST",0,"NA","NA",0,0,0,0,0,0,0,0,0,0,0,0,0,0]
["QRL","RHU","PORTSMOUTH HOSPITALS UNIVERSITY NATIONAL HEALTH SERVICE TRUST",0,"NA","NA",0,0,0,0,0,0,0,0,0,0,0,0,0,0]
["QRL","RN5","HAMPSHIRE HOSPITALS NHS FOUNDATION TRUST",10,0.9,0.1,7,2,0,1,0,0,0,0,0,1,0,0,9,0]
["QRL","RHM","UNIVERSITY HOSPITAL SOUTHAMPTON NHS FOUNDATION TRUST",119,0.66386554621848737,9.2436974789915971E-2,38,41,12,7,4,17,0,0,0,22,0,0,97,0]
["QRV","R1K","LONDON NORTH WEST UNIVERSITY HEALTHCARE NHS TRUST",0,"NA","NA",0,0,0,0,0,0,0,0,0,0,0,0,0,0]
["QRV","RAS","THE HILLINGDON HOSPITALS NHS FOUNDATION TRUST",0,"NA","NA",0,0,0,0,0,0,0,0,0,0,0,0,0,0]
["QRV","RQM","CHELSEA AND WESTMINSTER HOSPITAL NHS FOUNDATION TRUST",9,1,0,9,0,0,0,0,0,1,0,0,0,0,0,8,0]
["QRV","RYJ","IMPERIAL COLLEGE HEALTHCARE NHS TRUST",10,0.9,0.1,4,5,0,1,0,0,10,0,0,0,0,0,0,0]
["QSL","RA4","YEOVIL DISTRICT HOSPITAL NHS FOUNDATION TRUST",0,"NA","NA",0,0,0,0,0,0,0,0,0,0,0,0,0,0]
["QSL","RH5","SOMERSET NHS FOUNDATION TRUST",0,"NA","NA",0,0,0,0,0,0,0,0,0,0,0,0,0,0]
["QT1","RK5","SHERWOOD FOREST HOSPITALS NHS FOUNDATION TRUST",4,"*","*","*","*","*","*","*","*","*","*","*","*","*","*","*","*"]
["QT1","RX1","NOTTINGHAM UNIVERSITY HOSPITALS NHS TRUST",9,1,0,"*","*","*","*","*","*","*","*","*","*","*","*","*","*"]
["QT6","REF","ROYAL CORNWALL HOSPITALS NHS TRUST",1,"*","*","*","*","*","*","*","*","*","*","*","*","*","*","*","*"]
["QU9","RHW","ROYAL BERKSHIRE NHS FOUNDATION TRUST",0,"NA","NA",0,0,0,0,0,0,0,0,0,0,0,0,0,0]
["QU9","RTH","OXFORD UNIVERSITY HOSPITALS NHS FOUNDATION TRUST",0,"NA","NA",0,0,0,0,0,0,0,0,0,0,0,0,0,0]
["QU9","RXQ","BUCKINGHAMSHIRE HEALTHCARE NHS TRUST",32,0.84375,0.125,"*","*","*","*","*","*","*","*","*","*","*","*","*","*"]
["QUA","RXK","SANDWELL AND WEST BIRMINGHAM HOSPITALS NHS TRUST",0,"NA","NA",0,0,0,0,0,0,0,0,0,0,0,0,0,0]
["QUA","RBK","WALSALL HEALTHCARE NHS TRUST",6,0.83333333333333337,0.16666666666666666,4,1,0,0,1,0,6,0,0,0,0,0,0,0]
["QUA","RNA","THE DUDLEY GROUP NHS FOUNDATION TRUST",35,0.2,0,7,0,0,0,0,28,0,0,0,5,0,0,30,0]
["QUE","RGT","CAMBRIDGE UNIVERSITY HOSPITALS NHS FOUNDATION TRUST",4,"*","*","*","*","*","*","*","*","*","*","*","*","*","*","*","*"]
["QUE","RGN","NORTH WEST ANGLIA NHS FOUNDATION TRUST",89,1,0,"*","*","*","*","*","*","*","*","*","*","*","*","*","*"]
["QUY","RA7","UNIVERSITY HOSPITALS BRISTOL AND WESTON NHS FOUNDATION TRUST",0,"NA","NA",0,0,0,0,0,0,0,0,0,0,0,0,0,0]
["QUY","RVJ","NORTH BRISTOL NHS TRUST",18,0.88888888888888884,0.1111111111111111,14,2,0,2,0,0,18,0,0,0,0,0,0,0]
["QVV","RBD","DORSET COUNTY HOSPITAL NHS FOUNDATION TRUST",27,0.92592592592592593,0,23,2,2,0,0,0,27,0,0,0,0,0,0,0]
["QVV","R0D","UNIVERSITY HOSPITALS DORSET NHS FOUNDATION TRUST",38,0.84210526315789469,2.6315789473684209E-2,26,6,5,0,1,0,17,0,0,0,21,0,0,0]
["QWE","RAX","KINGSTON HOSPITAL NHS FOUNDATION TRUST",0,"NA","NA",0,0,0,0,0,0,0,0,0,0,0,0,0,0]
["QWE","RJ6","CROYDON HEALTH SERVICES NHS TRUST",0,"NA","NA",0,0,0,0,0,0,0,0,0,0,0,0,0,0]
["QWE","RJ7","ST GEORGE'S UNIVERSITY HOSPITALS NHS FOUNDATION TRUST",0,"NA","NA",0,0,0,0,0,0,0,0,0,0,0,0,0,0]
["QWE","RVR","EPSOM AND ST HELIER UNIVERSITY HOSPITALS NHS TRUST",3,"*","*","*","*","*","*","*","*","*","*","*","*","*","*","*","*"]
["QWO","RAE","BRADFORD TEACHING HOSPITALS NHS FOUNDATION TRUST",0,"NA","NA",0,0,0,0,0,0,0,0,0,0,0,0,0,0]
["QWO","RCF","AIREDALE NHS FOUNDATION TRUST",0,"NA","NA",0,0,0,0,0,0,0,0,0,0,0,0,0,0]
["QWO","RR8","LEEDS TEACHING HOSPITALS NHS TRUST",0,"NA","NA",0,0,0,0,0,0,0,0,0,0,0,0,0,0]
["QWO","RXF","MID YORKSHIRE HOSPITALS NHS TRUST",0,"NA","NA",0,0,0,0,0,0,0,0,0,0,0,0,0,0]
["QWO","RWY","CALDERDALE AND HUDDERSFIELD NHS FOUNDATION TRUST",7,1,0,"*","*","*","*","*","*","*","*","*","*","*","*","*","*"]
["QWU","RKB","UNIVERSITY HOSPITALS COVENTRY AND WARWICKSHIRE NHS TRUST",2,"*","*","*","*","*","*","*","*","*","*","*","*","*","*","*","*"]
["QWU","RJC","SOUTH WARWICKSHIRE NHS FOUNDATION TRUST",3,"*","*","*","*","*","*","*","*","*","*","*","*","*","*","*","*"]
["QWU","RLT","GEORGE ELIOT HOSPITAL NHS TRUST",14,1,0,10,4,0,0,0,0,13,0,0,1,0,0,0,0]
["QXU","RTP","SURREY AND SUSSEX HEALTHCARE NHS TRUST",3,"*","*","*","*","*","*","*","*","*","*","*","*","*","*","*","*"]
["QXU","RA2","ROYAL SURREY COUNTY HOSPITAL NHS FOUNDATION TRUST",59,0.98305084745762716,1.6949152542372881E-2,"*","*","*","*","*","*","*","*","*","*","*","*","*","*"]
["QYG","RBL","WIRRAL UNIVERSITY TEACHING HOSPITAL NHS FOUNDATION TRUST",0,"NA","NA",0,0,0,0,0,0,0,0,0,0,0,0,0,0]
["QYG","RBT","MID CHESHIRE HOSPITALS NHS FOUNDATION TRUST",0,"NA","NA",0,0,0,0,0,0,0,0,0,0,0,0,0,0]
["QYG","REP","LIVERPOOL WOMEN'S NHS FOUNDATION TRUST",0,"NA","NA",0,0,0,0,0,0,0,0,0,0,0,0,0,0]
["QYG","RJN","EAST CHESHIRE NHS TRUST",0,"NA","NA",0,0,0,0,0,0,0,0,0,0,0,0,0,0]
["QYG","RVY","SOUTHPORT AND ORMSKIRK HOSPITAL NHS TRUST",0,"NA","NA",0,0,0,0,0,0,0,0,0,0,0,0,0,0]
["QYG","RWW","WARRINGTON AND HALTON TEACHING HOSPITALS NHS FOUNDATION TRUST",0,"NA","NA",0,0,0,0,0,0,0,0,0,0,0,0,0,0]
["QYG","RY2","BRIDGEWATER COMMUNITY HEALTHCARE NHS FOUNDATION TRUST",0,"NA","NA",0,0,0,0,0,0,0,0,0,0,0,0,0,0]
["QYG","RJR","COUNTESS OF CHESTER HOSPITAL NHS FOUNDATION TRUST",20,0.95,0,18,1,0,0,0,1,20,0,0,0,0,0,0,0]
["QYG","RBN","ST HELENS AND KNOWSLEY TEACHING HOSPITALS NHS TRUST",22,1,0,22,0,0,0,0,0,0,0,0,22,0,0,0,0]

{"sheet":"BSQ1","index":13,"n_rows":173,"n_cols":33,"rows_kept":173,"cut":false,"hidden":true,"merged":[]}
[null,"Sort","Region (LO)","Region (LO)","Trusts","Trusts","Sites","Sites",null,"Sort ranges:","Sort range…","Sort range…","Sort range…","Reference Region List:","Code…","Name…","Linked Region List:","Code…","Name…","Reference Lists:","Code…","Code…","Name…","Code…","Name…","Trusts Linked Lists:","Code…","Name…","Site Linked Lists:","Code…","Name…","Code…","Name…"]
["Region (LO)",1,1,1,"-","-","-","-",null,null,"Region (LO) Code","Region (LO) Code","Region (LO) Code",null,"QE1","HEALTHIER LANCASHIRE AND SOUTH CUMBRIA",null,"QE1","HEALTHIER LANCASHIRE AND SOUTH CUMBRIA",null,"QE1","RXR","EAST LANCASHIRE HOSPITALS NHS TRUST","RXR20","Royal Blackburn Hospital",null,"R0A","AIREDALE NHS FOUNDATION TRUST",null,"R0A","AIREDALE NHS FOUNDATION TRUST","R0A05","Airedale General Hospital"]
["Trusts",1,1,1,1,1,"-","-",null,null,"Region (Local Office)","Trust Code","Trust Code",null,"QF7","SOUTH YORKSHIRE AND BASSETLAW STP",null,"QF7","SOUTH YORKSHIRE AND BASSETLAW STP",null,"QE1","RXN","LANCASHIRE TEACHING HOSPITALS NHS FOUNDATION TRUST","RXN01","Chorley and South Ribble Hospital",null,"R0B","BARKING, HAVERING AND REDBRIDGE UNIVERSITY HOSPITALS NHS TRUST",null,"R0B","BARKING, HAVERING AND REDBRIDGE UNIVERSITY HOSPITALS NHS TRUST","R0B01","Alexandra Hospital"]
["Sites",1,1,1,1,1,1,1,null,null,"Total Responses","Trust Name","Trust Name",null,"QGH","HEREFORDSHIRE AND WORCESTERSHIRE STP",null,"QGH","HEREFORDSHIRE AND WORCESTERSHIRE STP",null,"QE1","RXN","LANCASHIRE TEACHING HOSPITALS NHS FOUNDATION TRUST","RXN02","Royal Preston Hospital",null,"R0D","BARNSLEY HOSPITAL NHS FOUNDATION TRUST",null,"R0D","BARNSLEY HOSPITAL NHS FOUNDATION TRUST","R0B0Q","Arrowe Park Hospital"]
[null,null,null,null,null,null,null,null,null,null,"Percentage Recommended","Total Responses","Site Code",null,"QH8","MID AND SOUTH ESSEX STP",null,"QH8","MID AND SOUTH ESSEX STP",null,"QE1","RTX","UNIVERSITY HOSPITALS OF MORECAMBE BAY NHS FOUNDATION TRUST","RTX02","Royal Lancaster Infirmary",null,"R1F","BARTS HEALTH NHS TRUST",null,"R1F","BARTS HEALTH NHS TRUST","R0D01","Barnet Hospital"]
[null,null,null,null,null,null,null,null,null,null,"Percentage Not  Recommended","Percentage Recommended","Site Name",null,"QHG","BEDFORDSHIRE, LUTON AND MILTON KEYNES STP",null,"QHG","BEDFORDSHIRE, LUTON AND MILTON KEYNES STP",null,"QE1","RTX","UNIVERSITY HOSPITALS OF MORECAMBE BAY NHS FOUNDATION TRUST","RTXBU","Furness General Hospital",null,"R1H","BEDFORDSHIRE HOSPITALS NHS FOUNDATION TRUST",null,"R1H","BEDFORDSHIRE HOSPITALS NHS FOUNDATION TRUST","R0D02","Barnsley Hospital NHS Foundation Trust HQ"]
[null,null,null,null,null,null,null,null,null,null,"Extremely Likely","Percentage Not  Recommended","Total Responses",null,"QHL","BIRMINGHAM AND SOLIHULL STP",null,"QHL","BIRMINGHAM AND SOLIHULL STP",null,"QE1","RTX","UNIVERSITY HOSPITALS OF MORECAMBE BAY NHS FOUNDATION TRUST","RTXBW","Westmorland General Hospital",null,"R1K","BIRMINGHAM WOMEN'S AND CHILDREN'S NHS FOUNDATION TRUST",null,"R1K","BIRMINGHAM WOMEN'S AND CHILDREN'S NHS FOUNDATION TRUST","R1F01","Basingstoke and North Hampshire Hospital"]
[null,null,null,null,null,null,null,null,null,null,"Likely","Extremely Likely","Percentage Recommended",null,"QHM","CUMBRIA AND NORTH EAST STP",null,"QHM","CUMBRIA AND NORTH EAST STP",null,"QF7","RFF","BARNSLEY HOSPITAL NHS FOUNDATION TRUST","RFFAA","Barnsley Hospital NHS Foundation Trust HQ",null,"RA2","BRADFORD TEACHING HOSPITALS NHS FOUNDATION TRUST",null,"RA2","BRADFORD TEACHING HOSPITALS NHS FOUNDATION TRUST","R1H12","Bassetlaw Hospital"]
[null,null,null,null,null,null,null,null,null,null,"Neither","Likely","Percentage Not  Recommended",null,"QJ2","JOINED UP CARE DERBYSHIRE STP",null,"QJ2","JOINED UP CARE DERBYSHIRE STP",null,"QF7","RP5","DONCASTER AND BASSETLAW TEACHING HOSPITALS NHS FOUNDATION TRUST","RP5BA","Bassetlaw Hospital",null,"RA4","BRIDGEWATER COMMUNITY HEALTHCARE NHS FOUNDATION TRUST",null,"RA4","BRIDGEWATER COMMUNITY HEALTHCARE NHS FOUNDATION TRUST","R1HKH","BEDFORD HOSPITAL SOUTH WING"]
[null,null,null,null,null,null,null,null,null,null,"Unlikely","Neither","Extremely Likely",null,"QJG","SUFFOLK AND NORTH EAST ESSEX ICS",null,"QJG","SUFFOLK AND NORTH EAST ESSEX ICS",null,"QF7","RP5","DONCASTER AND BASSETLAW TEACHING HOSPITALS NHS FOUNDATION TRUST","RP5XXX","Non-hospital site",null,"RA7","BRIGHTON AND SUSSEX UNIVERSITY HOSPITALS NHS TRUST",null,"RA7","BRIGHTON AND SUSSEX UNIVERSITY HOSPITALS NHS TRUST","R1HNH","Birmingham Women's Hospital"]
[null,null,null,null,null,null,null,null,null,null,"Extremely Unlikely","Unlikely","Likely",null,"QJK","DEVON STP",null,"QJK","DEVON STP",null,"QF7","RP5","DONCASTER AND BASSETLAW TEACHING HOSPITALS NHS FOUNDATION TRUST","RP5DR","Doncaster Royal Infirmary",null,"RAE","BUCKINGHAMSHIRE HEALTHCARE NHS TRUST",null,"RAE","BUCKINGHAMSHIRE HEALTHCARE NHS TRUST","R1K01","Bradford Royal Infirmary"]
[null,null,null,null,null,null,null,null,null,null,"Don't Know","Extremely Unlikely","Neither",null,"QJM","LINCOLNSHIRE STP",null,"QJM","LINCOLNSHIRE STP",null,"QF7","RHQ","SHEFFIELD TEACHING HOSPITALS NHS FOUNDATION TRUST","RHQHH","Royal Hallamshire Hospital",null,"RAL","CALDERDALE AND HUDDERSFIELD NHS FOUNDATION TRUST",null,"RAL","CALDERDALE AND HUDDERSFIELD NHS FOUNDATION TRUST","R1K02","Calderdale Royal Hospital"]
[null,null,null,null,null,null,null,null,null,null,null,"Don't Know","Unlikely",null,"QK1","LEICESTER, LEICESTERSHIRE AND RUTLAND STP",null,"QK1","LEICESTER, LEICESTERSHIRE AND RUTLAND STP",null,"QF7","RFR","THE ROTHERHAM NHS FOUNDATION TRUST","RFRPA","Rotherham District General Hospital",null,"RAS","CAMBRIDGE UNIVERSITY HOSPITALS NHS FOUNDATION TRUST",null,"RAS","CAMBRIDGE UNIVERSITY HOSPITALS NHS FOUNDATION TRUST","R1K04","Central Middlesex Hospital"]
[null,null,null,null,null,null,null,null,null,null,null,"SMS/Text / Smartphone App","Extremely Unlikely",null,"QKK","OUR HEALTHIER SOUTH EAST LONDON STP",null,"QKK","OUR HEALTHIER SOUTH EAST LONDON STP",null,"QGH","RWP","WORCESTERSHIRE ACUTE HOSPITALS NHS TRUST","RWP01","Alexandra Hospital",null,"RAX","CHELSEA AND WESTMINSTER HOSPITAL NHS FOUNDATION TRUST",null,"RAX","CHELSEA AND WESTMINSTER HOSPITAL NHS FOUNDATION TRUST","R1KXXX","Chelsea and Westminster Hospital"]
[null,null,null,null,null,null,null,null,null,null,null,"Electronic tablet/kiosk at point of discharge","Don't Know",null,"QKS","KENT AND MEDWAY STP",null,"QKS","KENT AND MEDWAY STP",null,"QGH","RWP","WORCESTERSHIRE ACUTE HOSPITALS NHS TRUST","RWP50","Worcestershire Royal Hospital",null,"RBD","CHESTERFIELD ROYAL HOSPITAL NHS FOUNDATION TRUST",null,"RBD","CHESTERFIELD ROYAL HOSPITAL NHS FOUNDATION TRUST","RA201","Cheltenham General Hospital"]
[null,null,null,null,null,null,null,null,null,null,null,"Paper / postcard at point of discharge",null,null,"QM7","HERTFORDSHIRE AND WEST ESSEX STP",null,"QM7","HERTFORDSHIRE AND WEST ESSEX STP",null,"QGH","RWP","WORCESTERSHIRE ACUTE HOSPITALS NHS TRUST","RWP31","Kidderminster Hospital",null,"RBK","COUNTESS OF CHESTER HOSPITAL NHS FOUNDATION TRUST",null,"RBK","COUNTESS OF CHESTER HOSPITAL NHS FOUNDATION TRUST","RA430","Chesterfield Royal Hospital"]
[null,null,null,null,null,null,null,null,null,null,null,"Paper survey, sent to the patients home",null,null,"QMF","EAST LONDON HEALTH & CARE PARTNERSHIP (STP)",null,"QMF","EAST LONDON HEALTH & CARE PARTNERSHIP (STP)",null,"QGH","RLQ","WYE VALLEY NHS TRUST","RLQ01","Hereford County Hospital",null,"RBL","CROYDON HEALTH SERVICES NHS TRUST",null,"RBL","CROYDON HEALTH SERVICES NHS TRUST","RA707","Chippenham Community Hospital"]
[null,null,null,null,null,null,null,null,null,null,null,"Telephone survey once patient is home",null,null,"QMJ","NORTH LONDON PARTNERS IN HEALTH & CARE (STP)",null,"QMJ","NORTH LONDON PARTNERS IN HEALTH & CARE (STP)",null,"QHG","RC9","BEDFORDSHIRE HOSPITALS NHS FOUNDATION TRUST","RC979","BEDFORD HOSPITAL SOUTH WING",null,"RBN","DONCASTER AND BASSETLAW TEACHING HOSPITALS NHS FOUNDATION TRUST",null,"RBN","DONCASTER AND BASSETLAW TEACHING HOSPITALS NHS FOUNDATION TRUST","RAE01","Chorley and South Ribble Hospital"]
[null,null,null,null,null,null,null,null,null,null,null,"Online survey once patient is home",null,null,"QMM","NORFOLK AND WAVENEY HEALTH & CARE PARTNERSHIP (STP)",null,"QMM","NORFOLK AND WAVENEY HEALTH & CARE PARTNERSHIP (STP)",null,"QHG","RC9","BEDFORDSHIRE HOSPITALS NHS FOUNDATION TRUST","RC971","Luton and Dunstable Hospital",null,"RBT","DORSET COUNTY HOSPITAL NHS FOUNDATION TRUST",null,"RBT","DORSET COUNTY HOSPITAL NHS FOUNDATION TRUST","RAEXXX","City Hospital"]
[null,null,null,null,null,null,null,null,null,null,null,"Other",null,null,"QNC","STAFFORDSHIRE & STOKE ON TRENT STP",null,"QNC","STAFFORDSHIRE & STOKE ON TRENT STP",null,"QHG","RD8","MILTON KEYNES UNIVERSITY HOSPITAL NHS FOUNDATION TRUST","RD816","Milton Keynes Hospital",null,"RBZ","EAST AND NORTH HERTFORDSHIRE NHS TRUST",null,"RBZ","EAST AND NORTH HERTFORDSHIRE NHS TRUST","RAL01","Colchester General Hospital"]
[null,null,null,null,null,null,null,null,null,null,null,null,null,null,"QNQ","FRIMLEY HEALTH & CARE (STP)",null,"QNQ","FRIMLEY HEALTH & CARE (STP)",null,"QHL","RQ3","BIRMINGHAM WOMEN'S AND CHILDREN'S NHS FOUNDATION TRUST","RQ370","Birmingham Women's Hospital",null,"RC9","EAST CHESHIRE NHS TRUST",null,"RC9","EAST CHESHIRE NHS TRUST","RAL26","Conquest Hospital"]
[null,null,null,null,null,null,null,null,null,null,null,null,null,null,"QNX","SUSSEX HEALTH AND CARE PARTNERSHIP",null,"QNX","SUSSEX HEALTH AND CARE PARTNERSHIP",null,"QHL","RRK","UNIVERSITY HOSPITALS BIRMINGHAM NHS FOUNDATION TRUST","RRK97","Heartlands Hospital",null,"RCB","EAST KENT HOSPITALS UNIVERSITY NHS FOUNDATION TRUST",null,"RCB","EAST KENT HOSPITALS UNIVERSITY NHS FOUNDATION TRUST","RAS01","Countess Of Chester Hospital"]
[null,null,null,null,null,null,null,null,null,null,null,null,null,null,"QOC","SHROPSHIRE AND TELFORD AND WREKIN STP",null,"QOC","SHROPSHIRE AND TELFORD AND WREKIN STP",null,"QHL","RRK","UNIVERSITY HOSPITALS BIRMINGHAM NHS FOUNDATION TRUST","RRK98","Good Hope Hospital",null,"RCD","EAST LANCASHIRE HOSPITALS NHS TRUST",null,"RCD","EAST LANCASHIRE HOSPITALS NHS TRUST","RAX01","County Hospital"]
[null,null,null,null,null,null,null,null,null,null,null,null,null,null,"QOP","GREATER MANCHESTER HEALTH & SOCIAL CARE PARTNERSHIP",null,"QOP","GREATER MANCHESTER HEALTH & SOCIAL CARE PARTNERSHIP",null,"QHL","RRK","UNIVERSITY HOSPITALS BIRMINGHAM NHS FOUNDATION TRUST","RRK99","Solihull Hospital",null,"RCF","EAST SUFFOLK AND NORTH ESSEX NHS FOUNDATION TRUST",null,"RCF","EAST SUFFOLK AND NORTH ESSEX NHS FOUNDATION TRUST","RBD01","Coventry and Warwickshire Hospital"]
[null,null,null,null,null,null,null,null,null,null,null,null,null,null,"QOQ","HUMBER, COAST AND VALE STP",null,"QOQ","HUMBER, COAST AND VALE STP",null,"QHM","RNN","NORTH CUMBRIA INTEGRATED CARE NHS FOUNDATION TRUST","RNNXXX","Non-hospital site",null,"RCX","EAST SUSSEX HEALTHCARE NHS TRUST",null,"RCX","EAST SUSSEX HEALTHCARE NHS TRUST","RBK02","Croydon University Hospital"]
[null,null,null,null,null,null,null,null,null,null,null,null,null,null,"QOX","BATH AND NORTH EAST SOMERSET, SWINDON AND WILTSHIRE STP",null,"QOX","BATH AND NORTH EAST SOMERSET, SWINDON AND WILTSHIRE STP",null,"QHM","RVW","NORTH TEES AND HARTLEPOOL NHS FOUNDATION TRUST","RVWAE","University Hospital Of North Tees",null,"RD1","EPSOM AND ST HELIER UNIVERSITY HOSPITALS NHS TRUST",null,"RD1","EPSOM AND ST HELIER UNIVERSITY HOSPITALS NHS TRUST","RBL14","Dewsbury and District Hospital"]
[null,null,null,null,null,null,null,null,null,null,null,null,null,null,"QPM","NORTHAMPTONSHIRE STP",null,"QPM","NORTHAMPTONSHIRE STP",null,"QHM","RVW","NORTH TEES AND HARTLEPOOL NHS FOUNDATION TRUST","RVWXXX","Non-hospital site",null,"RD8","FRIMLEY HEALTH NHS FOUNDATION TRUST",null,"RD8","FRIMLEY HEALTH NHS FOUNDATION TRUST","RBN01","Diana, Princess Of Wales Hospital"]
[null,null,null,null,null,null,null,null,null,null,null,null,null,null,"QR1","GLOUCESTERSHIRE STP",null,"QR1","GLOUCESTERSHIRE STP",null,"QHM","RTF","NORTHUMBRIA HEALTHCARE NHS FOUNDATION TRUST","RTFXXX","Non-hospital site",null,"RDE","GEORGE ELIOT HOSPITAL NHS TRUST",null,"RDE","GEORGE ELIOT HOSPITAL NHS TRUST","RBT20","Doncaster Royal Infirmary"]
[null,null,null,null,null,null,null,null,null,null,null,null,null,null,"QRL","HAMPSHIRE AND THE ISLE OF WIGHT STP",null,"QRL","HAMPSHIRE AND THE ISLE OF WIGHT STP",null,"QHM","RTR","SOUTH TEES HOSPITALS NHS FOUNDATION TRUST","RTRAT","The James Cook University Hospital",null,"RDU","GLOUCESTERSHIRE HOSPITALS NHS FOUNDATION TRUST",null,"RDU","GLOUCESTERSHIRE HOSPITALS NHS FOUNDATION TRUST","RBZ12","Dorset County Hospital"]
[null,null,null,null,null,null,null,null,null,null,null,null,null,null,"QRV","NORTH WEST LONDON HEALTH & CARE PARTNERSHIP (STP)",null,"QRV","NORTH WEST LONDON HEALTH & CARE PARTNERSHIP (STP)",null,"QHM","R0B","SOUTH TYNESIDE AND SUNDERLAND NHS FOUNDATION TRUST","R0B0Q","South Tyneside District Hospital",null,"REF","GREAT WESTERN HOSPITALS NHS FOUNDATION TRUST",null,"REF","GREAT WESTERN HOSPITALS NHS FOUNDATION TRUST","RC971","Ealing Hospital"]
[null,null,null,null,null,null,null,null,null,null,null,null,null,null,"QSL","SOMERSET STP",null,"QSL","SOMERSET STP",null,"QHM","R0B","SOUTH TYNESIDE AND SUNDERLAND NHS FOUNDATION TRUST","R0B01","Sunderland Royal Hospital",null,"REP","GUY'S AND ST THOMAS' NHS FOUNDATION TRUST",null,"REP","GUY'S AND ST THOMAS' NHS FOUNDATION TRUST","RC979","East Surrey Hospital"]
[null,null,null,null,null,null,null,null,null,null,null,null,null,null,"QT1","NOTTINGHAM AND NOTTINGHAMSHIRE HEALTH AND CARE STP",null,"QT1","NOTTINGHAM AND NOTTINGHAMSHIRE HEALTH AND CARE STP",null,"QJ2","RFS","CHESTERFIELD ROYAL HOSPITAL NHS FOUNDATION TRUST","RFSDA","Chesterfield Royal Hospital",null,"RF4","HAMPSHIRE HOSPITALS NHS FOUNDATION TRUST",null,"RF4","HAMPSHIRE HOSPITALS NHS FOUNDATION TRUST","RCB55","Eastbourne District General Hospital"]
[null,null,null,null,null,null,null,null,null,null,null,null,null,null,"QT6","CORNWALL AND THE ISLES OF SCILLY HEALTH & SOCIAL CARE PARTNERSHIP (STP)",null,"QT6","CORNWALL AND THE ISLES OF SCILLY HEALTH & SOCIAL CARE PARTNERSHIP (STP)",null,"QJ2","RTG","UNIVERSITY HOSPITALS OF DERBY AND BURTON NHS FOUNDATION TRUST","RTG02","Queens Hospital, Burton Upon Trent",null,"RFF","HARROGATE AND DISTRICT NHS FOUNDATION TRUST",null,"RFF","HARROGATE AND DISTRICT NHS FOUNDATION TRUST","RCBCA","Epsom Hospital"]
[null,null,null,null,null,null,null,null,null,null,null,null,null,null,"QU9","BUCKINGHAMSHIRE, OXFORDSHIRE AND BERKSHIRE WEST STP",null,"QU9","BUCKINGHAMSHIRE, OXFORDSHIRE AND BERKSHIRE WEST STP",null,"QJ2","RTG","UNIVERSITY HOSPITALS OF DERBY AND BURTON NHS FOUNDATION TRUST","RTGFG","Royal Derby Hospital",null,"RFR","IMPERIAL COLLEGE HEALTHCARE NHS TRUST",null,"RFR","IMPERIAL COLLEGE HEALTHCARE NHS TRUST","RCD01","Frimley Park Hospital"]
[null,null,null,null,null,null,null,null,null,null,null,null,null,null,"QUA","THE BLACK COUNTRY AND WEST BIRMINGHAM STP",null,"QUA","THE BLACK COUNTRY AND WEST BIRMINGHAM STP",null,"QJG","RDE","EAST SUFFOLK AND NORTH ESSEX NHS FOUNDATION TRUST","RDEE4","Colchester General Hospital",null,"RFS","ISLE OF WIGHT NHS TRUST",null,"RFS","ISLE OF WIGHT NHS TRUST","RCF22","Frome Community Hospital"]
[null,null,null,null,null,null,null,null,null,null,null,null,null,null,"QUE","CAMBRIDGESHIRE AND PETERBOROUGH STP",null,"QUE","CAMBRIDGESHIRE AND PETERBOROUGH STP",null,"QJG","RGR","WEST SUFFOLK NHS FOUNDATION TRUST","RGR50","West Suffolk Hospital",null,"RGN","KING'S COLLEGE HOSPITAL NHS FOUNDATION TRUST",null,"RGN","KING'S COLLEGE HOSPITAL NHS FOUNDATION TRUST","RCX66","Furness General Hospital"]
[null,null,null,null,null,null,null,null,null,null,null,null,null,null,"QUY","BRISTOL, NORTH SOMERSET AND SOUTH GLOUCESTERSHIRE STP",null,"QUY","BRISTOL, NORTH SOMERSET AND SOUTH GLOUCESTERSHIRE STP",null,"QJK","RBZ","NORTHERN DEVON HEALTHCARE NHS TRUST","RBZ12","North Devon District Hospital",null,"RGR","KINGSTON HOSPITAL NHS FOUNDATION TRUST",null,"RGR","KINGSTON HOSPITAL NHS FOUNDATION TRUST","RCX70","George Eliot Hospital - Acute Services"]
[null,null,null,null,null,null,null,null,null,null,null,null,null,null,"QVV","DORSET STP",null,"QVV","DORSET STP",null,"QJK","RH8","ROYAL DEVON AND EXETER NHS FOUNDATION TRUST","RH801","Royal Devon and Exeter Hospital (Wonford)",null,"RGT","LANCASHIRE TEACHING HOSPITALS NHS FOUNDATION TRUST",null,"RGT","LANCASHIRE TEACHING HOSPITALS NHS FOUNDATION TRUST","RCXXXX","Gloucestershire Royal Hospital"]
[null,null,null,null,null,null,null,null,null,null,null,null,null,null,"QWE","SOUTH WEST LONDON HEALTH & CARE PARTNERSHIP (STP)",null,"QWE","SOUTH WEST LONDON HEALTH & CARE PARTNERSHIP (STP)",null,"QJK","RK9","UNIVERSITY HOSPITALS PLYMOUTH NHS TRUST","RK9XXX","Non-hospital site",null,"RH5","LEEDS TEACHING HOSPITALS NHS TRUST",null,"RH5","LEEDS TEACHING HOSPITALS NHS TRUST","RD102","Good Hope Hospital"]
[null,null,null,null,null,null,null,null,null,null,null,null,null,null,"QWO","WEST YORKSHIRE AND HARROGATE HEALTH & CARE PARTNERSHIP (STP)",null,"QWO","WEST YORKSHIRE AND HARROGATE HEALTH & CARE PARTNERSHIP (STP)",null,"QJM","RWD","UNITED LINCOLNSHIRE HOSPITALS NHS TRUST","RWDLA","Pilgrim Hospital",null,"RH8","LEWISHAM AND GREENWICH NHS TRUST",null,"RH8","LEWISHAM AND GREENWICH NHS TRUST","RD121","Gosport War Memorial Hospital"]
[null,null,null,null,null,null,null,null,null,null,null,null,null,null,"QWU","COVENTRY AND WARWICKSHIRE STP",null,"QWU","COVENTRY AND WARWICKSHIRE STP",null,"QJM","RWD","UNITED LINCOLNSHIRE HOSPITALS NHS TRUST","RWDLP","Grantham and District Hospital",null,"RHM","LIVERPOOL WOMEN'S NHS FOUNDATION TRUST",null,"RHM","LIVERPOOL WOMEN'S NHS FOUNDATION TRUST","RD816","Grantham and District Hospital"]
[null,null,null,null,null,null,null,null,null,null,null,null,null,null,"QXU","SURREY HEARTLANDS HEALTH & CARE PARTNERSHIP (STP)",null,"QXU","SURREY HEARTLANDS HEALTH & CARE PARTNERSHIP (STP)",null,"QJM","RWD","UNITED LINCOLNSHIRE HOSPITALS NHS TRUST","RWDXXX","Non-hospital site",null,"RHQ","LONDON NORTH WEST UNIVERSITY HEALTHCARE NHS TRUST",null,"RHQ","LONDON NORTH WEST UNIVERSITY HEALTHCARE NHS TRUST","RDEE4","Harrogate District Hospital"]
[null,null,null,null,null,null,null,null,null,null,null,null,null,null,"QYG","CHESHIRE AND MERSEYSIDE STP",null,"QYG","CHESHIRE AND MERSEYSIDE STP",null,"QJM","RWD","UNITED LINCOLNSHIRE HOSPITALS NHS TRUST","RWDDA","Lincoln County Hospital",null,"RHU","MAIDSTONE AND TUNBRIDGE WELLS NHS TRUST",null,"RHU","MAIDSTONE AND TUNBRIDGE WELLS NHS TRUST","RDU01","Health Care Resource Centre"]
[null,null,null,null,null,null,null,null,null,null,null,null,null,null,"zIS1","Independent Sector Provider",null,"zIS1","Independent Sector Provider",null,"QK1","RWE","UNIVERSITY HOSPITALS OF LEICESTER NHS TRUST","RWEXXX","Non-hospital site",null,"RHW","MANCHESTER UNIVERSITY NHS FOUNDATION TRUST",null,"RHW","MANCHESTER UNIVERSITY NHS FOUNDATION TRUST","REFXXX","Heartlands Hospital"]
[null,null,null,null,null,null,null,null,null,null,null,null,null,null,null,null,null,null,null,null,"QK1","RWE","UNIVERSITY HOSPITALS OF LEICESTER NHS TRUST","RWEAA","Leicester Royal Infirmary",null,"RJ1","MEDWAY NHS FOUNDATION TRUST",null,"RJ1","MEDWAY NHS FOUNDATION TRUST","REP01","Hereford County Hospital"]
[null,null,null,null,null,null,null,null,null,null,null,null,null,null,null,null,null,null,null,null,"QK1","RWE","UNIVERSITY HOSPITALS OF LEICESTER NHS TRUST","RWEAK","Leicester General Hospital",null,"RJ2","MID CHESHIRE HOSPITALS NHS FOUNDATION TRUST",null,"RJ2","MID CHESHIRE HOSPITALS NHS FOUNDATION TRUST","RF4XXX","Hillingdon Hospital"]
[null,null,null,null,null,null,null,null,null,null,null,null,null,null,null,null,null,null,null,null,"QKK","RJ1","GUY'S AND ST THOMAS' NHS FOUNDATION TRUST","RJ122","St Thomas' Hospital",null,"RJ6","MID YORKSHIRE HOSPITALS NHS TRUST",null,"RJ6","MID YORKSHIRE HOSPITALS NHS TRUST","RFFAA","Hinchingbrooke Hospital"]
[null,null,null,null,null,null,null,null,null,null,null,null,null,null,null,null,null,null,null,null,"QKK","RJZ","KING'S COLLEGE HOSPITAL NHS FOUNDATION TRUST","RJZ30","Princess Royal University Hospital",null,"RJ7","MILTON KEYNES UNIVERSITY HOSPITAL NHS FOUNDATION TRUST",null,"RJ7","MILTON KEYNES UNIVERSITY HOSPITAL NHS FOUNDATION TRUST","RFRPA","Hospital Of St Cross"]
[null,null,null,null,null,null,null,null,null,null,null,null,null,null,null,null,null,null,null,null,"QKK","RJZ","KING'S COLLEGE HOSPITAL NHS FOUNDATION TRUST","RJZ01","King's College Hospital (Denmark Hill)",null,"RJC","NORFOLK AND NORWICH UNIVERSITY HOSPITALS NHS FOUNDATION TRUST",null,"RJC","NORFOLK AND NORWICH UNIVERSITY HOSPITALS NHS FOUNDATION TRUST","RFSDA","Huddersfield Royal Infirmary"]
[null,null,null,null,null,null,null,null,null,null,null,null,null,null,null,null,null,null,null,null,"QKK","RJ2","LEWISHAM AND GREENWICH NHS TRUST","RJ224","University Hospital Lewisham",null,"RJE","NORTH BRISTOL NHS TRUST",null,"RJE","NORTH BRISTOL NHS TRUST","RGN80","John Radcliffe Hospital"]
[null,null,null,null,null,null,null,null,null,null,null,null,null,null,null,null,null,null,null,null,"QKK","RJ2","LEWISHAM AND GREENWICH NHS TRUST","RJ2XXX","Non-hospital site",null,"RJL","NORTH CUMBRIA INTEGRATED CARE NHS FOUNDATION TRUST",null,"RJL","NORTH CUMBRIA INTEGRATED CARE NHS FOUNDATION TRUST","RGN90","Kidderminster Hospital"]
[null,null,null,null,null,null,null,null,null,null,null,null,null,null,null,null,null,null,null,null,"QKK","RJ2","LEWISHAM AND GREENWICH NHS TRUST","RJ231","Queen Elizabeth Hospital",null,"RJN","NORTH TEES AND HARTLEPOOL NHS FOUNDATION TRUST",null,"RJN","NORTH TEES AND HARTLEPOOL NHS FOUNDATION TRUST","RGR50","King's College Hospital (Denmark Hill)"]
[null,null,null,null,null,null,null,null,null,null,null,null,null,null,null,null,null,null,null,null,"QKS","RVV","EAST KENT HOSPITALS UNIVERSITY NHS FOUNDATION TRUST","RVV01","William Harvey Hospital (Ashford)",null,"RJR","NORTH WEST ANGLIA NHS FOUNDATION TRUST",null,"RJR","NORTH WEST ANGLIA NHS FOUNDATION TRUST","RGT32","King's Mill Hospital"]
[null,null,null,null,null,null,null,null,null,null,null,null,null,null,null,null,null,null,null,null,"QKS","RWF","MAIDSTONE AND TUNBRIDGE WELLS NHS TRUST","RWF03","Maidstone District General Hospital",null,"RJZ","NORTHAMPTON GENERAL HOSPITAL NHS TRUST",null,"RJZ","NORTHAMPTON GENERAL HOSPITAL NHS TRUST","RH5A8","Kingston Hospital"]
[null,null,null,null,null,null,null,null,null,null,null,null,null,null,null,null,null,null,null,null,"QKS","RWF","MAIDSTONE AND TUNBRIDGE WELLS NHS TRUST","RWFXXX","Non-hospital site",null,"RK5","NORTHERN DEVON HEALTHCARE NHS TRUST",null,"RK5","NORTHERN DEVON HEALTHCARE NHS TRUST","RH801","Leeds General Infirmary"]
[null,null,null,null,null,null,null,null,null,null,null,null,null,null,null,null,null,null,null,null,"QKS","RWF","MAIDSTONE AND TUNBRIDGE WELLS NHS TRUST","RWFTW","The Tunbridge Wells Hospital",null,"RK9","NORTHERN LINCOLNSHIRE AND GOOLE NHS FOUNDATION TRUST",null,"RK9","NORTHERN LINCOLNSHIRE AND GOOLE NHS FOUNDATION TRUST","RHM12","Leicester General Hospital"]
[null,null,null,null,null,null,null,null,null,null,null,null,null,null,null,null,null,null,null,null,"QKS","RPA","MEDWAY NHS FOUNDATION TRUST","RPA02","Medway Maritime Hospital",null,"RKB","NORTHUMBRIA HEALTHCARE NHS FOUNDATION TRUST",null,"RKB","NORTHUMBRIA HEALTHCARE NHS FOUNDATION TRUST","RHQHH","Leicester Royal Infirmary"]
[null,null,null,null,null,null,null,null,null,null,null,null,null,null,null,null,null,null,null,null,"QM7","RWH","EAST AND NORTH HERTFORDSHIRE NHS TRUST","RWHXXX","Non-hospital site",null,"RKE","NOTTINGHAM UNIVERSITY HOSPITALS NHS TRUST",null,"RKE","NOTTINGHAM UNIVERSITY HOSPITALS NHS TRUST","RHU02","Leighton Hospital"]
[null,null,null,null,null,null,null,null,null,null,null,null,null,null,null,null,null,null,null,null,"QM7","RWH","EAST AND NORTH HERTFORDSHIRE NHS TRUST","RWH01","Lister Hospital",null,"RLQ","OXFORD UNIVERSITY HOSPITALS NHS FOUNDATION TRUST",null,"RLQ","OXFORD UNIVERSITY HOSPITALS NHS FOUNDATION TRUST","RHU03","Lincoln County Hospital"]
[null,null,null,null,null,null,null,null,null,null,null,null,null,null,null,null,null,null,null,null,"QM7","RQW","THE PRINCESS ALEXANDRA HOSPITAL NHS TRUST","RQWG0","Princess Alexandra Hospital",null,"RLT","PORTSMOUTH HOSPITALS UNIVERSITY NATIONAL HEALTH SERVICE TRUST",null,"RLT","PORTSMOUTH HOSPITALS UNIVERSITY NATIONAL HEALTH SERVICE TRUST","RHU04","Lister Hospital"]
[null,null,null,null,null,null,null,null,null,null,null,null,null,null,null,null,null,null,null,null,"QM7","RWG","WEST HERTFORDSHIRE HOSPITALS NHS TRUST","RWG02","Watford General Hospital",null,"RM1","ROYAL BERKSHIRE NHS FOUNDATION TRUST",null,"RM1","ROYAL BERKSHIRE NHS FOUNDATION TRUST","RHU10","Liverpool Womens Hospital"]
[null,null,null,null,null,null,null,null,null,null,null,null,null,null,null,null,null,null,null,null,"QMF","RF4","BARKING, HAVERING AND REDBRIDGE UNIVERSITY HOSPITALS NHS TRUST","RF4XXX","Non-hospital site",null,"RMP","ROYAL CORNWALL HOSPITALS NHS TRUST",null,"RMP","ROYAL CORNWALL HOSPITALS NHS TRUST","RHW01","Luton and Dunstable Hospital"]
[null,null,null,null,null,null,null,null,null,null,null,null,null,null,null,null,null,null,null,null,"QMF","R1H","BARTS HEALTH NHS TRUST","R1H12","The Royal London Hospital",null,"RN3","ROYAL DEVON AND EXETER NHS FOUNDATION TRUST",null,"RN3","ROYAL DEVON AND EXETER NHS FOUNDATION TRUST","RJ122","Macclesfield District General Hospital"]
[null,null,null,null,null,null,null,null,null,null,null,null,null,null,null,null,null,null,null,null,"QMF","R1H","BARTS HEALTH NHS TRUST","R1HKH","Whipps Cross University Hospital",null,"RN5","ROYAL FREE LONDON NHS FOUNDATION TRUST",null,"RN5","ROYAL FREE LONDON NHS FOUNDATION TRUST","RJ224","Maidstone District General Hospital"]
[null,null,null,null,null,null,null,null,null,null,null,null,null,null,null,null,null,null,null,null,"QMF","R1H","BARTS HEALTH NHS TRUST","R1HNH","Newham General Hospital",null,"RNA","ROYAL SURREY COUNTY HOSPITAL NHS FOUNDATION TRUST",null,"RNA","ROYAL SURREY COUNTY HOSPITAL NHS FOUNDATION TRUST","RJ231","Manor Hospital"]
[null,null,null,null,null,null,null,null,null,null,null,null,null,null,null,null,null,null,null,null,"QMJ","RAL","ROYAL FREE LONDON NHS FOUNDATION TRUST","RAL01","Royal Free Hospital",null,"RNN","ROYAL UNITED HOSPITALS BATH NHS FOUNDATION TRUST",null,"RNN","ROYAL UNITED HOSPITALS BATH NHS FOUNDATION TRUST","RJ2XXX","Medway Maritime Hospital"]
[null,null,null,null,null,null,null,null,null,null,null,null,null,null,null,null,null,null,null,null,"QMJ","RAL","ROYAL FREE LONDON NHS FOUNDATION TRUST","RAL26","Barnet Hospital",null,"RNS","SALISBURY NHS FOUNDATION TRUST",null,"RNS","SALISBURY NHS FOUNDATION TRUST","RJ611","Milton Keynes Hospital"]
[null,null,null,null,null,null,null,null,null,null,null,null,null,null,null,null,null,null,null,null,"QMJ","RKE","WHITTINGTON HEALTH NHS TRUST","RKEQ4","The Whittington Hospital",null,"RNZ","SANDWELL AND WEST BIRMINGHAM HOSPITALS NHS TRUST",null,"RNZ","SANDWELL AND WEST BIRMINGHAM HOSPITALS NHS TRUST","RJ701","MUSGROVE PARK HOSPITAL"]
[null,null,null,null,null,null,null,null,null,null,null,null,null,null,null,null,null,null,null,null,"QMJ","RKE","WHITTINGTON HEALTH NHS TRUST","RKEXXX","Non-hospital site",null,"RP5","SHEFFIELD TEACHING HOSPITALS NHS FOUNDATION TRUST",null,"RP5","SHEFFIELD TEACHING HOSPITALS NHS FOUNDATION TRUST","RJCXXX","Newham General Hospital"]
[null,null,null,null,null,null,null,null,null,null,null,null,null,null,null,null,null,null,null,null,"QMM","RM1","NORFOLK AND NORWICH UNIVERSITY HOSPITALS NHS FOUNDATION TRUST","RM102","Norfolk and Norwich University Hospital",null,"RPA","SHERWOOD FOREST HOSPITALS NHS FOUNDATION TRUST",null,"RPA","SHERWOOD FOREST HOSPITALS NHS FOUNDATION TRUST","RJE01","Non-hospital site"]
[null,null,null,null,null,null,null,null,null,null,null,null,null,null,null,null,null,null,null,null,"QMM","RCX","THE QUEEN ELIZABETH HOSPITAL, KING'S LYNN, NHS FOUNDATION TRUST","RCX66","North Cambridgeshire Hospital",null,"RQ3","SOMERSET NHS FOUNDATION TRUST",null,"RQ3","SOMERSET NHS FOUNDATION TRUST","RJE09","Non-hospital site"]
[null,null,null,null,null,null,null,null,null,null,null,null,null,null,null,null,null,null,null,null,"QMM","RCX","THE QUEEN ELIZABETH HOSPITAL, KING'S LYNN, NHS FOUNDATION TRUST","RCX70","The Queen Elizabeth Hospital",null,"RQM","SOUTH TEES HOSPITALS NHS FOUNDATION TRUST",null,"RQM","SOUTH TEES HOSPITALS NHS FOUNDATION TRUST","RJEXXX","Non-hospital site"]
[null,null,null,null,null,null,null,null,null,null,null,null,null,null,null,null,null,null,null,null,"QMM","RCX","THE QUEEN ELIZABETH HOSPITAL, KING'S LYNN, NHS FOUNDATION TRUST","RCXXXX","Non-hospital site",null,"RQW","SOUTH TYNESIDE AND SUNDERLAND NHS FOUNDATION TRUST",null,"RQW","SOUTH TYNESIDE AND SUNDERLAND NHS FOUNDATION TRUST","RJL30","Non-hospital site"]
[null,null,null,null,null,null,null,null,null,null,null,null,null,null,null,null,null,null,null,null,"QNC","RJE","UNIVERSITY HOSPITALS OF NORTH MIDLANDS NHS TRUST","RJE01","Royal Stoke University Hospital",null,"RR8","SOUTH WARWICKSHIRE NHS FOUNDATION TRUST",null,"RR8","SOUTH WARWICKSHIRE NHS FOUNDATION TRUST","RJL32","Non-hospital site"]
[null,null,null,null,null,null,null,null,null,null,null,null,null,null,null,null,null,null,null,null,"QNC","RJE","UNIVERSITY HOSPITALS OF NORTH MIDLANDS NHS TRUST","RJE09","County Hospital",null,"RRK","ST GEORGE'S UNIVERSITY HOSPITALS NHS FOUNDATION TRUST",null,"RRK","ST GEORGE'S UNIVERSITY HOSPITALS NHS FOUNDATION TRUST","RJN71","Non-hospital site"]
[null,null,null,null,null,null,null,null,null,null,null,null,null,null,null,null,null,null,null,null,"QNC","RJE","UNIVERSITY HOSPITALS OF NORTH MIDLANDS NHS TRUST","RJEXXX","Non-hospital site",null,"RTE","ST HELENS AND KNOWSLEY TEACHING HOSPITALS NHS TRUST",null,"RTE","ST HELENS AND KNOWSLEY TEACHING HOSPITALS NHS TRUST","RJR05","Non-hospital site"]
[null,null,null,null,null,null,null,null,null,null,null,null,null,null,null,null,null,null,null,null,"QNQ","RDU","FRIMLEY HEALTH NHS FOUNDATION TRUST","RDU01","Frimley Park Hospital",null,"RTF","SURREY AND SUSSEX HEALTHCARE NHS TRUST",null,"RTF","SURREY AND SUSSEX HEALTHCARE NHS TRUST","RJZ01","Non-hospital site"]
[null,null,null,null,null,null,null,null,null,null,null,null,null,null,null,null,null,null,null,null,"QNX","RXH","BRIGHTON AND SUSSEX UNIVERSITY HOSPITALS NHS TRUST","RXH01","Royal Sussex County Hospital",null,"RTG","TAMESIDE AND GLOSSOP INTEGRATED CARE NHS FOUNDATION TRUST",null,"RTG","TAMESIDE AND GLOSSOP INTEGRATED CARE NHS FOUNDATION TRUST","RJZ30","Non-hospital site"]
[null,null,null,null,null,null,null,null,null,null,null,null,null,null,null,null,null,null,null,null,"QNX","RXC","EAST SUSSEX HEALTHCARE NHS TRUST","RXC01","Conquest Hospital",null,"RTH","THE DUDLEY GROUP NHS FOUNDATION TRUST",null,"RTH","THE DUDLEY GROUP NHS FOUNDATION TRUST","RK5BC","Non-hospital site"]
[null,null,null,null,null,null,null,null,null,null,null,null,null,null,null,null,null,null,null,null,"QNX","RXC","EAST SUSSEX HEALTHCARE NHS TRUST","RXC02","Eastbourne District General Hospital",null,"RTP","THE HILLINGDON HOSPITALS NHS FOUNDATION TRUST",null,"RTP","THE HILLINGDON HOSPITALS NHS FOUNDATION TRUST","RK9XXX","Non-hospital site"]
[null,null,null,null,null,null,null,null,null,null,null,null,null,null,null,null,null,null,null,null,"QNX","RXC","EAST SUSSEX HEALTHCARE NHS TRUST","RXCXXX","Non-hospital site",null,"RTR","THE PRINCESS ALEXANDRA HOSPITAL NHS TRUST",null,"RTR","THE PRINCESS ALEXANDRA HOSPITAL NHS TRUST","RKB02","Non-hospital site"]
[null,null,null,null,null,null,null,null,null,null,null,null,null,null,null,null,null,null,null,null,"QNX","RYR","WESTERN SUSSEX HOSPITALS NHS FOUNDATION TRUST","RYR18","Worthing Hospital",null,"RTX","THE QUEEN ELIZABETH HOSPITAL, KING'S LYNN, NHS FOUNDATION TRUST",null,"RTX","THE QUEEN ELIZABETH HOSPITAL, KING'S LYNN, NHS FOUNDATION TRUST","RKB03","Non-hospital site"]
[null,null,null,null,null,null,null,null,null,null,null,null,null,null,null,null,null,null,null,null,"QOC","RXW","THE SHREWSBURY AND TELFORD HOSPITAL NHS TRUST","RXWXXX","Non-hospital site",null,"RVJ","THE ROTHERHAM NHS FOUNDATION TRUST",null,"RVJ","THE ROTHERHAM NHS FOUNDATION TRUST","RKBXXX","Non-hospital site"]
[null,null,null,null,null,null,null,null,null,null,null,null,null,null,null,null,null,null,null,null,"QOP","R0A","MANCHESTER UNIVERSITY NHS FOUNDATION TRUST","R0A05","St Mary's Hospital",null,"RVR","THE SHREWSBURY AND TELFORD HOSPITAL NHS TRUST",null,"RVR","THE SHREWSBURY AND TELFORD HOSPITAL NHS TRUST","RKEQ4","Non-hospital site"]
[null,null,null,null,null,null,null,null,null,null,null,null,null,null,null,null,null,null,null,null,"QOP","RMP","TAMESIDE AND GLOSSOP INTEGRATED CARE NHS FOUNDATION TRUST","RMP01","Tameside General Hospital",null,"RVV","UNITED LINCOLNSHIRE HOSPITALS NHS TRUST",null,"RVV","UNITED LINCOLNSHIRE HOSPITALS NHS TRUST","RKEXXX","Non-hospital site"]
[null,null,null,null,null,null,null,null,null,null,null,null,null,null,null,null,null,null,null,null,"QOQ","RCD","HARROGATE AND DISTRICT NHS FOUNDATION TRUST","RCD01","Harrogate District Hospital",null,"RVW","UNIVERSITY HOSPITAL SOUTHAMPTON NHS FOUNDATION TRUST",null,"RVW","UNIVERSITY HOSPITAL SOUTHAMPTON NHS FOUNDATION TRUST","RLQ01","Non-hospital site"]
[null,null,null,null,null,null,null,null,null,null,null,null,null,null,null,null,null,null,null,null,"QOQ","RJL","NORTHERN LINCOLNSHIRE AND GOOLE NHS FOUNDATION TRUST","RJL30","Diana, Princess Of Wales Hospital",null,"RWD","UNIVERSITY HOSPITALS BIRMINGHAM NHS FOUNDATION TRUST",null,"RWD","UNIVERSITY HOSPITALS BIRMINGHAM NHS FOUNDATION TRUST","RLT01","Non-hospital site"]
[null,null,null,null,null,null,null,null,null,null,null,null,null,null,null,null,null,null,null,null,"QOQ","RJL","NORTHERN LINCOLNSHIRE AND GOOLE NHS FOUNDATION TRUST","RJL32","Scunthorpe General Hospital",null,"RWE","UNIVERSITY HOSPITALS BRISTOL AND WESTON NHS FOUNDATION TRUST",null,"RWE","UNIVERSITY HOSPITALS BRISTOL AND WESTON NHS FOUNDATION TRUST","RM102","Non-hospital site"]
[null,null,null,null,null,null,null,null,null,null,null,null,null,null,null,null,null,null,null,null,"QOQ","RCB","YORK TEACHING HOSPITAL NHS FOUNDATION TRUST","RCBCA","Scarborough General Hospital",null,"RWF","UNIVERSITY HOSPITALS COVENTRY AND WARWICKSHIRE NHS TRUST",null,"RWF","UNIVERSITY HOSPITALS COVENTRY AND WARWICKSHIRE NHS TRUST","RMP01","Non-hospital site"]
[null,null,null,null,null,null,null,null,null,null,null,null,null,null,null,null,null,null,null,null,"QOQ","RCB","YORK TEACHING HOSPITAL NHS FOUNDATION TRUST","RCB55","York Hospital",null,"RWG","UNIVERSITY HOSPITALS DORSET NHS FOUNDATION TRUST",null,"RWG","UNIVERSITY HOSPITALS DORSET NHS FOUNDATION TRUST","RN325","Non-hospital site"]
[null,null,null,null,null,null,null,null,null,null,null,null,null,null,null,null,null,null,null,null,"QOX","RN3","GREAT WESTERN HOSPITALS NHS FOUNDATION TRUST","RN325","The Great Western Hospital",null,"RWH","UNIVERSITY HOSPITALS OF DERBY AND BURTON NHS FOUNDATION TRUST",null,"RWH","UNIVERSITY HOSPITALS OF DERBY AND BURTON NHS FOUNDATION TRUST","RN501","Non-hospital site"]
[null,null,null,null,null,null,null,null,null,null,null,null,null,null,null,null,null,null,null,null,"QOX","RD1","ROYAL UNITED HOSPITALS BATH NHS FOUNDATION TRUST","RD102","Chippenham Community Hospital",null,"RWP","UNIVERSITY HOSPITALS OF LEICESTER NHS TRUST",null,"RWP","UNIVERSITY HOSPITALS OF LEICESTER NHS TRUST","RN506","Non-hospital site"]
[null,null,null,null,null,null,null,null,null,null,null,null,null,null,null,null,null,null,null,null,"QOX","RD1","ROYAL UNITED HOSPITALS BATH NHS FOUNDATION TRUST","RD121","Frome Community Hospital",null,"RWW","UNIVERSITY HOSPITALS OF MORECAMBE BAY NHS FOUNDATION TRUST",null,"RWW","UNIVERSITY HOSPITALS OF MORECAMBE BAY NHS FOUNDATION TRUST","RN541","Non-hospital site"]
[null,null,null,null,null,null,null,null,null,null,null,null,null,null,null,null,null,null,null,null,"QOX","RNZ","SALISBURY NHS FOUNDATION TRUST","RNZ02","Salisbury District Hospital",null,"RWY","UNIVERSITY HOSPITALS OF NORTH MIDLANDS NHS TRUST",null,"RWY","UNIVERSITY HOSPITALS OF NORTH MIDLANDS NHS TRUST","RNA01","Non-hospital site"]
[null,null,null,null,null,null,null,null,null,null,null,null,null,null,null,null,null,null,null,null,"QPM","RNS","NORTHAMPTON GENERAL HOSPITAL NHS TRUST","RNS01","Northampton General Hospital (Acute)",null,"RX1","UNIVERSITY HOSPITALS PLYMOUTH NHS TRUST",null,"RX1","UNIVERSITY HOSPITALS PLYMOUTH NHS TRUST","RNAXXX","Non-hospital site"]
[null,null,null,null,null,null,null,null,null,null,null,null,null,null,null,null,null,null,null,null,"QR1","RTE","GLOUCESTERSHIRE HOSPITALS NHS FOUNDATION TRUST","RTE01","Cheltenham General Hospital",null,"RXC","WALSALL HEALTHCARE NHS TRUST",null,"RXC","WALSALL HEALTHCARE NHS TRUST","RNNXXX","Non-hospital site"]
[null,null,null,null,null,null,null,null,null,null,null,null,null,null,null,null,null,null,null,null,"QR1","RTE","GLOUCESTERSHIRE HOSPITALS NHS FOUNDATION TRUST","RTE03","Gloucestershire Royal Hospital",null,"RXF","WARRINGTON AND HALTON TEACHING HOSPITALS NHS FOUNDATION TRUST",null,"RXF","WARRINGTON AND HALTON TEACHING HOSPITALS NHS FOUNDATION TRUST","RNS01","Non-hospital site"]
[null,null,null,null,null,null,null,null,null,null,null,null,null,null,null,null,null,null,null,null,"QR1","RTE","GLOUCESTERSHIRE HOSPITALS NHS FOUNDATION TRUST","RTE27","Stroud Maternity Hospital",null,"RXH","WEST HERTFORDSHIRE HOSPITALS NHS TRUST",null,"RXH","WEST HERTFORDSHIRE HOSPITALS NHS TRUST","RNZ02","Norfolk and Norwich University Hospital"]
[null,null,null,null,null,null,null,null,null,null,null,null,null,null,null,null,null,null,null,null,"QR1","RTE","GLOUCESTERSHIRE HOSPITALS NHS FOUNDATION TRUST","RTEXXX","Non-hospital site",null,"RXK","WEST SUFFOLK NHS FOUNDATION TRUST",null,"RXK","WEST SUFFOLK NHS FOUNDATION TRUST","RP5BA","North Cambridgeshire Hospital"]
[null,null,null,null,null,null,null,null,null,null,null,null,null,null,null,null,null,null,null,null,"QRL","RN5","HAMPSHIRE HOSPITALS NHS FOUNDATION TRUST","RN501","North Hampshire Hospital (Parklands) Paediatric Outpatients",null,"RXN","WESTERN SUSSEX HOSPITALS NHS FOUNDATION TRUST",null,"RXN","WESTERN SUSSEX HOSPITALS NHS FOUNDATION TRUST","RP5DR","North Devon District Hospital"]
[null,null,null,null,null,null,null,null,null,null,null,null,null,null,null,null,null,null,null,null,"QRL","RN5","HAMPSHIRE HOSPITALS NHS FOUNDATION TRUST","RN541","Royal Hampshire County Hospital",null,"RXQ","WHITTINGTON HEALTH NHS TRUST",null,"RXQ","WHITTINGTON HEALTH NHS TRUST","RP5XXX","North Hampshire Hospital (Parklands) Paediatric Outpatients"]
[null,null,null,null,null,null,null,null,null,null,null,null,null,null,null,null,null,null,null,null,"QRL","RN5","HAMPSHIRE HOSPITALS NHS FOUNDATION TRUST","RN506","Basingstoke and North Hampshire Hospital",null,"RXR","WIRRAL UNIVERSITY TEACHING HOSPITAL NHS FOUNDATION TRUST",null,"RXR","WIRRAL UNIVERSITY TEACHING HOSPITAL NHS FOUNDATION TRUST","RPA02","Northampton General Hospital (Acute)"]
[null,null,null,null,null,null,null,null,null,null,null,null,null,null,null,null,null,null,null,null,"QRL","R1F","ISLE OF WIGHT NHS TRUST","R1F01","St Mary's Hospital",null,"RXW","WORCESTERSHIRE ACUTE HOSPITALS NHS TRUST",null,"RXW","WORCESTERSHIRE ACUTE HOSPITALS NHS TRUST","RQ370","Northwick Park Hospital"]
[null,null,null,null,null,null,null,null,null,null,null,null,null,null,null,null,null,null,null,null,"QRL","RHU","PORTSMOUTH HOSPITALS UNIVERSITY NATIONAL HEALTH SERVICE TRUST","RHU02","St Mary's Hospital",null,"RY2","WYE VALLEY NHS TRUST",null,"RY2","WYE VALLEY NHS TRUST","RQM01","Peterborough City Hospital"]
[null,null,null,null,null,null,null,null,null,null,null,null,null,null,null,null,null,null,null,null,"QRL","RHU","PORTSMOUTH HOSPITALS UNIVERSITY NATIONAL HEALTH SERVICE TRUST","RHU03","Queen Alexandra Hospital",null,"RYJ","YEOVIL DISTRICT HOSPITAL NHS FOUNDATION TRUST",null,"RYJ","YEOVIL DISTRICT HOSPITAL NHS FOUNDATION TRUST","RQM91","Petersfield Community Hospital"]
[null,null,null,null,null,null,null,null,null,null,null,null,null,null,null,null,null,null,null,null,"QRL","RHU","PORTSMOUTH HOSPITALS UNIVERSITY NATIONAL HEALTH SERVICE TRUST","RHU04","Petersfield Community Hospital",null,"RYR","YORK TEACHING HOSPITAL NHS FOUNDATION TRUST",null,"RYR","YORK TEACHING HOSPITAL NHS FOUNDATION TRUST","RQWG0","Pilgrim Hospital"]
[null,null,null,null,null,null,null,null,null,null,null,null,null,null,null,null,null,null,null,null,"QRL","RHU","PORTSMOUTH HOSPITALS UNIVERSITY NATIONAL HEALTH SERVICE TRUST","RHU10","Gosport War Memorial Hospital",null,null,null,null,null,null,"RR801","Pinderfields General Hospital"]
[null,null,null,null,null,null,null,null,null,null,null,null,null,null,null,null,null,null,null,null,"QRL","RHM","UNIVERSITY HOSPITAL SOUTHAMPTON NHS FOUNDATION TRUST","RHM12","Princess Anne Hospital",null,null,null,null,null,null,"RR813","Pontefract General Infirmary"]
[null,null,null,null,null,null,null,null,null,null,null,null,null,null,null,null,null,null,null,null,"QRV","RQM","CHELSEA AND WESTMINSTER HOSPITAL NHS FOUNDATION TRUST","RQM91","West Middlesex University Hospital",null,null,null,null,null,null,"RR8XXX","Poole Hospital"]
[null,null,null,null,null,null,null,null,null,null,null,null,null,null,null,null,null,null,null,null,"QRV","RQM","CHELSEA AND WESTMINSTER HOSPITAL NHS FOUNDATION TRUST","RQM01","Chelsea and Westminster Hospital",null,null,null,null,null,null,"RRK97","Princess Alexandra Hospital"]
[null,null,null,null,null,null,null,null,null,null,null,null,null,null,null,null,null,null,null,null,"QRV","RYJ","IMPERIAL COLLEGE HEALTHCARE NHS TRUST","RYJ01","St Mary's Hospital (HQ)",null,null,null,null,null,null,"RRK98","Princess Anne Hospital"]
[null,null,null,null,null,null,null,null,null,null,null,null,null,null,null,null,null,null,null,null,"QRV","RYJ","IMPERIAL COLLEGE HEALTHCARE NHS TRUST","RYJ04","Queen Charlotte's Hospital",null,null,null,null,null,null,"RRK99","Princess Royal University Hospital"]
[null,null,null,null,null,null,null,null,null,null,null,null,null,null,null,null,null,null,null,null,"QRV","R1K","LONDON NORTH WEST UNIVERSITY HEALTHCARE NHS TRUST","R1K02","Central Middlesex Hospital",null,null,null,null,null,null,"RTE01","Queen Alexandra Hospital"]
[null,null,null,null,null,null,null,null,null,null,null,null,null,null,null,null,null,null,null,null,"QRV","R1K","LONDON NORTH WEST UNIVERSITY HEALTHCARE NHS TRUST","R1K04","Ealing Hospital",null,null,null,null,null,null,"RTE03","Queen Charlotte's Hospital"]
[null,null,null,null,null,null,null,null,null,null,null,null,null,null,null,null,null,null,null,null,"QRV","R1K","LONDON NORTH WEST UNIVERSITY HEALTHCARE NHS TRUST","R1KXXX","Non-hospital site",null,null,null,null,null,null,"RTE27","Queen Elizabeth Hospital"]
[null,null,null,null,null,null,null,null,null,null,null,null,null,null,null,null,null,null,null,null,"QRV","R1K","LONDON NORTH WEST UNIVERSITY HEALTHCARE NHS TRUST","R1K01","Northwick Park Hospital",null,null,null,null,null,null,"RTEXXX","Queens Hospital, Burton Upon Trent"]
[null,null,null,null,null,null,null,null,null,null,null,null,null,null,null,null,null,null,null,null,"QRV","RAS","THE HILLINGDON HOSPITALS NHS FOUNDATION TRUST","RAS01","Hillingdon Hospital",null,null,null,null,null,null,"RTFXXX","Rosie Hospital"]
[null,null,null,null,null,null,null,null,null,null,null,null,null,null,null,null,null,null,null,null,"QSL","RH5","SOMERSET NHS FOUNDATION TRUST","RH5A8","MUSGROVE PARK HOSPITAL",null,null,null,null,null,null,"RTG02","Rotherham District General Hospital"]
[null,null,null,null,null,null,null,null,null,null,null,null,null,null,null,null,null,null,null,null,"QSL","RA4","YEOVIL DISTRICT HOSPITAL NHS FOUNDATION TRUST","RA430","Yeovil District Hospital",null,null,null,null,null,null,"RTGFG","Royal Berkshire Hospital"]
[null,null,null,null,null,null,null,null,null,null,null,null,null,null,null,null,null,null,null,null,"QT1","RX1","NOTTINGHAM UNIVERSITY HOSPITALS NHS TRUST","RX1XXX","Non-hospital site",null,null,null,null,null,null,"RTH08","Royal Blackburn Hospital"]
[null,null,null,null,null,null,null,null,null,null,null,null,null,null,null,null,null,null,null,null,"QT1","RK5","SHERWOOD FOREST HOSPITALS NHS FOUNDATION TRUST","RK5BC","King's Mill Hospital",null,null,null,null,null,null,"RTP04","Royal Bournemouth Hospital"]
[null,null,null,null,null,null,null,null,null,null,null,null,null,null,null,null,null,null,null,null,"QT6","REF","ROYAL CORNWALL HOSPITALS NHS TRUST","REFXXX","Non-hospital site",null,null,null,null,null,null,"RTRAT","Royal Derby Hospital"]
[null,null,null,null,null,null,null,null,null,null,null,null,null,null,null,null,null,null,null,null,"QU9","RXQ","BUCKINGHAMSHIRE HEALTHCARE NHS TRUST","RXQ50","Wycombe Hospital",null,null,null,null,null,null,"RTX02","Royal Devon and Exeter Hospital (Wonford)"]
[null,null,null,null,null,null,null,null,null,null,null,null,null,null,null,null,null,null,null,null,"QU9","RXQ","BUCKINGHAMSHIRE HEALTHCARE NHS TRUST","RXQ02","Stoke Mandeville Hospital",null,null,null,null,null,null,"RTXBU","Royal Free Hospital"]
[null,null,null,null,null,null,null,null,null,null,null,null,null,null,null,null,null,null,null,null,"QU9","RTH","OXFORD UNIVERSITY HOSPITALS NHS FOUNDATION TRUST","RTH08","John Radcliffe Hospital",null,null,null,null,null,null,"RTXBW","Royal Hallamshire Hospital"]
[null,null,null,null,null,null,null,null,null,null,null,null,null,null,null,null,null,null,null,null,"QU9","RHW","ROYAL BERKSHIRE NHS FOUNDATION TRUST","RHW01","Royal Berkshire Hospital",null,null,null,null,null,null,"RVJ01","Royal Hampshire County Hospital"]
[null,null,null,null,null,null,null,null,null,null,null,null,null,null,null,null,null,null,null,null,"QUA","RXK","SANDWELL AND WEST BIRMINGHAM HOSPITALS NHS TRUST","RXK01","Sandwell General Hospital",null,null,null,null,null,null,"RVR05","Royal Lancaster Infirmary"]
[null,null,null,null,null,null,null,null,null,null,null,null,null,null,null,null,null,null,null,null,"QUA","RXK","SANDWELL AND WEST BIRMINGHAM HOSPITALS NHS TRUST","RXK02","City Hospital",null,null,null,null,null,null,"RVR50","Royal Preston Hospital"]
[null,null,null,null,null,null,null,null,null,null,null,null,null,null,null,null,null,null,null,null,"QUA","RNA","THE DUDLEY GROUP NHS FOUNDATION TRUST","RNAXXX","Non-hospital site",null,null,null,null,null,null,"RVRXXX","Royal Stoke University Hospital"]
[null,null,null,null,null,null,null,null,null,null,null,null,null,null,null,null,null,null,null,null,"QUA","RNA","THE DUDLEY GROUP NHS FOUNDATION TRUST","RNA01","Russells Hall Hospital",null,null,null,null,null,null,"RVV01","Royal Surrey County Hospital"]
[null,null,null,null,null,null,null,null,null,null,null,null,null,null,null,null,null,null,null,null,"QUA","RBK","WALSALL HEALTHCARE NHS TRUST","RBK02","Manor Hospital",null,null,null,null,null,null,"RVWAE","Royal Sussex County Hospital"]
[null,null,null,null,null,null,null,null,null,null,null,null,null,null,null,null,null,null,null,null,"QUE","RGT","CAMBRIDGE UNIVERSITY HOSPITALS NHS FOUNDATION TRUST","RGT32","Rosie Hospital",null,null,null,null,null,null,"RVWXXX","Russells Hall Hospital"]
[null,null,null,null,null,null,null,null,null,null,null,null,null,null,null,null,null,null,null,null,"QUE","RGN","NORTH WEST ANGLIA NHS FOUNDATION TRUST","RGN80","Peterborough City Hospital",null,null,null,null,null,null,"RWDDA","Salisbury District Hospital"]
[null,null,null,null,null,null,null,null,null,null,null,null,null,null,null,null,null,null,null,null,"QUE","RGN","NORTH WEST ANGLIA NHS FOUNDATION TRUST","RGN90","Hinchingbrooke Hospital",null,null,null,null,null,null,"RWDLA","Sandwell General Hospital"]
[null,null,null,null,null,null,null,null,null,null,null,null,null,null,null,null,null,null,null,null,"QUY","RVJ","NORTH BRISTOL NHS TRUST","RVJ01","Southmead Hospital",null,null,null,null,null,null,"RWDLP","Scarborough General Hospital"]
[null,null,null,null,null,null,null,null,null,null,null,null,null,null,null,null,null,null,null,null,"QUY","RA7","UNIVERSITY HOSPITALS BRISTOL AND WESTON NHS FOUNDATION TRUST","RA707","St Michael's Hospital",null,null,null,null,null,null,"RWDXXX","Scunthorpe General Hospital"]
[null,null,null,null,null,null,null,null,null,null,null,null,null,null,null,null,null,null,null,null,"QVV","RBD","DORSET COUNTY HOSPITAL NHS FOUNDATION TRUST","RBD01","Dorset County Hospital",null,null,null,null,null,null,"RWEAA","Solihull Hospital"]
[null,null,null,null,null,null,null,null,null,null,null,null,null,null,null,null,null,null,null,null,"QVV","R0D","UNIVERSITY HOSPITALS DORSET NHS FOUNDATION TRUST","R0D01","Poole Hospital",null,null,null,null,null,null,"RWEAK","South Tyneside District Hospital"]
[null,null,null,null,null,null,null,null,null,null,null,null,null,null,null,null,null,null,null,null,"QVV","R0D","UNIVERSITY HOSPITALS DORSET NHS FOUNDATION TRUST","R0D02","Royal Bournemouth Hospital",null,null,null,null,null,null,"RWEXXX","Southmead Hospital"]
[null,null,null,null,null,null,null,null,null,null,null,null,null,null,null,null,null,null,null,null,"QWE","RJ6","CROYDON HEALTH SERVICES NHS TRUST","RJ611","Croydon University Hospital",null,null,null,null,null,null,"RWF03","St George's Hospital (Tooting)"]
[null,null,null,null,null,null,null,null,null,null,null,null,null,null,null,null,null,null,null,null,"QWE","RVR","EPSOM AND ST HELIER UNIVERSITY HOSPITALS NHS TRUST","RVRXXX","Non-hospital site",null,null,null,null,null,null,"RWFTW","St Helier Hospital"]
[null,null,null,null,null,null,null,null,null,null,null,null,null,null,null,null,null,null,null,null,"QWE","RVR","EPSOM AND ST HELIER UNIVERSITY HOSPITALS NHS TRUST","RVR50","Epsom Hospital",null,null,null,null,null,null,"RWFXXX","St James's University Hospital"]
[null,null,null,null,null,null,null,null,null,null,null,null,null,null,null,null,null,null,null,null,"QWE","RVR","EPSOM AND ST HELIER UNIVERSITY HOSPITALS NHS TRUST","RVR05","St Helier Hospital",null,null,null,null,null,null,"RWG02","St Mary's Hospital"]
[null,null,null,null,null,null,null,null,null,null,null,null,null,null,null,null,null,null,null,null,"QWE","RAX","KINGSTON HOSPITAL NHS FOUNDATION TRUST","RAX01","Kingston Hospital",null,null,null,null,null,null,"RWH01","St Mary's Hospital"]
[null,null,null,null,null,null,null,null,null,null,null,null,null,null,null,null,null,null,null,null,"QWE","RJ7","ST GEORGE'S UNIVERSITY HOSPITALS NHS FOUNDATION TRUST","RJ701","St George's Hospital (Tooting)",null,null,null,null,null,null,"RWHXXX","St Mary's Hospital"]
[null,null,null,null,null,null,null,null,null,null,null,null,null,null,null,null,null,null,null,null,"QWO","RCF","AIREDALE NHS FOUNDATION TRUST","RCF22","Airedale General Hospital",null,null,null,null,null,null,"RWP01","St Mary's Hospital (HQ)"]
[null,null,null,null,null,null,null,null,null,null,null,null,null,null,null,null,null,null,null,null,"QWO","RAE","BRADFORD TEACHING HOSPITALS NHS FOUNDATION TRUST","RAE01","Bradford Royal Infirmary",null,null,null,null,null,null,"RWP31","St Michael's Hospital"]
[null,null,null,null,null,null,null,null,null,null,null,null,null,null,null,null,null,null,null,null,"QWO","RAE","BRADFORD TEACHING HOSPITALS NHS FOUNDATION TRUST","RAEXXX","Non-hospital site",null,null,null,null,null,null,"RWP50","St Thomas' Hospital"]
[null,null,null,null,null,null,null,null,null,null,null,null,null,null,null,null,null,null,null,null,"QWO","RWY","CALDERDALE AND HUDDERSFIELD NHS FOUNDATION TRUST","RWY01","Huddersfield Royal Infirmary",null,null,null,null,null,null,"RWWWH","Stoke Mandeville Hospital"]
[null,null,null,null,null,null,null,null,null,null,null,null,null,null,null,null,null,null,null,null,"QWO","RWY","CALDERDALE AND HUDDERSFIELD NHS FOUNDATION TRUST","RWY02","Calderdale Royal Hospital",null,null,null,null,null,null,"RWY01","Stroud Maternity Hospital"]
[null,null,null,null,null,null,null,null,null,null,null,null,null,null,null,null,null,null,null,null,"QWO","RWY","CALDERDALE AND HUDDERSFIELD NHS FOUNDATION TRUST","RWYXXX","Non-hospital site",null,null,null,null,null,null,"RWY02","Sunderland Royal Hospital"]
[null,null,null,null,null,null,null,null,null,null,null,null,null,null,null,null,null,null,null,null,"QWO","RR8","LEEDS TEACHING HOSPITALS NHS TRUST","RR813","St James's University Hospital",null,null,null,null,null,null,"RWYXXX","Tameside General Hospital"]
[null,null,null,null,null,null,null,null,null,null,null,null,null,null,null,null,null,null,null,null,"QWO","RR8","LEEDS TEACHING HOSPITALS NHS TRUST","RR8XXX","Non-hospital site",null,null,null,null,null,null,"RX1XXX","The Great Western Hospital"]
[null,null,null,null,null,null,null,null,null,null,null,null,null,null,null,null,null,null,null,null,"QWO","RR8","LEEDS TEACHING HOSPITALS NHS TRUST","RR801","Leeds General Infirmary",null,null,null,null,null,null,"RXC01","The James Cook University Hospital"]
[null,null,null,null,null,null,null,null,null,null,null,null,null,null,null,null,null,null,null,null,"QWO","RXF","MID YORKSHIRE HOSPITALS NHS TRUST","RXF03","Pontefract General Infirmary",null,null,null,null,null,null,"RXC02","The Queen Elizabeth Hospital"]
[null,null,null,null,null,null,null,null,null,null,null,null,null,null,null,null,null,null,null,null,"QWO","RXF","MID YORKSHIRE HOSPITALS NHS TRUST","RXF05","Pinderfields General Hospital",null,null,null,null,null,null,"RXCXXX","The Royal London Hospital"]
[null,null,null,null,null,null,null,null,null,null,null,null,null,null,null,null,null,null,null,null,"QWO","RXF","MID YORKSHIRE HOSPITALS NHS TRUST","RXF10","Dewsbury and District Hospital",null,null,null,null,null,null,"RXF03","The Tunbridge Wells Hospital"]
[null,null,null,null,null,null,null,null,null,null,null,null,null,null,null,null,null,null,null,null,"QWU","RLT","GEORGE ELIOT HOSPITAL NHS TRUST","RLT01","George Eliot Hospital - Acute Services",null,null,null,null,null,null,"RXF05","The Whittington Hospital"]
[null,null,null,null,null,null,null,null,null,null,null,null,null,null,null,null,null,null,null,null,"QWU","RJC","SOUTH WARWICKSHIRE NHS FOUNDATION TRUST","RJCXXX","Non-hospital site",null,null,null,null,null,null,"RXF10","University Hospital Lewisham"]
[null,null,null,null,null,null,null,null,null,null,null,null,null,null,null,null,null,null,null,null,"QWU","RKB","UNIVERSITY HOSPITALS COVENTRY AND WARWICKSHIRE NHS TRUST","RKB03","Hospital Of St Cross",null,null,null,null,null,null,"RXH01","University Hospital Of North Tees"]
[null,null,null,null,null,null,null,null,null,null,null,null,null,null,null,null,null,null,null,null,"QWU","RKB","UNIVERSITY HOSPITALS COVENTRY AND WARWICKSHIRE NHS TRUST","RKBXXX","Non-hospital site",null,null,null,null,null,null,"RXK01","Warrington Hospital"]
[null,null,null,null,null,null,null,null,null,null,null,null,null,null,null,null,null,null,null,null,"QWU","RKB","UNIVERSITY HOSPITALS COVENTRY AND WARWICKSHIRE NHS TRUST","RKB02","Coventry and Warwickshire Hospital",null,null,null,null,null,null,"RXK02","Watford General Hospital"]
[null,null,null,null,null,null,null,null,null,null,null,null,null,null,null,null,null,null,null,null,"QXU","RA2","ROYAL SURREY COUNTY HOSPITAL NHS FOUNDATION TRUST","RA201","Royal Surrey County Hospital",null,null,null,null,null,null,"RXN01","West Middlesex University Hospital"]
[null,null,null,null,null,null,null,null,null,null,null,null,null,null,null,null,null,null,null,null,"QXU","RTP","SURREY AND SUSSEX HEALTHCARE NHS TRUST","RTP04","East Surrey Hospital",null,null,null,null,null,null,"RXN02","West Suffolk Hospital"]
[null,null,null,null,null,null,null,null,null,null,null,null,null,null,null,null,null,null,null,null,"QYG","RY2","BRIDGEWATER COMMUNITY HEALTHCARE NHS FOUNDATION TRUST","RY28P","Health Care Resource Centre",null,null,null,null,null,null,"RXQ02","Westmorland General Hospital"]
[null,null,null,null,null,null,null,null,null,null,null,null,null,null,null,null,null,null,null,null,"QYG","RY2","BRIDGEWATER COMMUNITY HEALTHCARE NHS FOUNDATION TRUST","RY2XXX","Non-hospital site",null,null,null,null,null,null,"RXQ50","Whipps Cross University Hospital"]
[null,null,null,null,null,null,null,null,null,null,null,null,null,null,null,null,null,null,null,null,"QYG","RJR","COUNTESS OF CHESTER HOSPITAL NHS FOUNDATION TRUST","RJR05","Countess Of Chester Hospital",null,null,null,null,null,null,"RXR20","Whiston Hospital"]
[null,null,null,null,null,null,null,null,null,null,null,null,null,null,null,null,null,null,null,null,"QYG","RJN","EAST CHESHIRE NHS TRUST","RJN71","Macclesfield District General Hospital",null,null,null,null,null,null,"RXWXXX","William Harvey Hospital (Ashford)"]
[null,null,null,null,null,null,null,null,null,null,null,null,null,null,null,null,null,null,null,null,"QYG","REP","LIVERPOOL WOMEN'S NHS FOUNDATION TRUST","REP01","Liverpool Womens Hospital",null,null,null,null,null,null,"RY28P","Worcestershire Royal Hospital"]
[null,null,null,null,null,null,null,null,null,null,null,null,null,null,null,null,null,null,null,null,"QYG","RBT","MID CHESHIRE HOSPITALS NHS FOUNDATION TRUST","RBT20","Leighton Hospital",null,null,null,null,null,null,"RY2XXX","Worthing Hospital"]
[null,null,null,null,null,null,null,null,null,null,null,null,null,null,null,null,null,null,null,null,"QYG","RBN","ST HELENS AND KNOWSLEY TEACHING HOSPITALS NHS TRUST","RBN01","Whiston Hospital",null,null,null,null,null,null,"RYJ01","Wycombe Hospital"]
[null,null,null,null,null,null,null,null,null,null,null,null,null,null,null,null,null,null,null,null,"QYG","RWW","WARRINGTON AND HALTON TEACHING HOSPITALS NHS FOUNDATION TRUST","RWWWH","Warrington Hospital",null,null,null,null,null,null,"RYJ04","Yeovil District Hospital"]
[null,null,null,null,null,null,null,null,null,null,null,null,null,null,null,null,null,null,null,null,"QYG","RBL","WIRRAL UNIVERSITY TEACHING HOSPITAL NHS FOUNDATION TRUST","RBL14","Arrowe Park Hospital",null,null,null,null,null,null,"RYR18","York Hospital"]

{"sheet":"BSQ2","index":14,"n_rows":204,"n_cols":33,"rows_kept":204,"cut":false,"hidden":true,"merged":[]}
[null,"Sort","Region (LO)","Region (LO)","Trusts","Trusts","Sites","Sites",null,"Sort ranges:","Sort range…","Sort range…","Sort range…","Reference Region List:","Code…","Name…","Linked Region List:","Code…","Name…","Reference Lists:","Code…","Code…","Name…","Code…","Name…","Trusts Linked Lists:","Code…","Name…","Site Linked Lists:","Code…","Name…","Code…","Name…"]
["Region (LO)",1,1,1,"-","-","-","-",null,null,"Region (LO) Code","Region (LO) Code","Region (LO) Code",null,"QE1","HEALTHIER LANCASHIRE AND SOUTH CUMBRIA",null,"QE1","HEALTHIER LANCASHIRE AND SOUTH CUMBRIA",null,"QE1","RXL","BLACKPOOL TEACHING HOSPITALS NHS FOUNDATION TRUST","RXL01","Blackpool Victoria Hospital",null,"R0A","AIREDALE NHS FOUNDATION TRUST",null,"R0A","AIREDALE NHS FOUNDATION TRUST","R0A05","Airedale General Hospital"]
["Trusts",1,1,1,1,1,"-","-",null,null,"Region (Local Office)","Trust Code","Trust Code",null,"QF7","SOUTH YORKSHIRE AND BASSETLAW STP",null,"QF7","SOUTH YORKSHIRE AND BASSETLAW STP",null,"QE1","RXR","EAST LANCASHIRE HOSPITALS NHS TRUST","RXR20","Royal Blackburn Hospital",null,"R0B","BARKING, HAVERING AND REDBRIDGE UNIVERSITY HOSPITALS NHS TRUST",null,"R0B","BARKING, HAVERING AND REDBRIDGE UNIVERSITY HOSPITALS NHS TRUST","R0B01","Alnwick Infirmary"]
["Sites",1,1,1,1,1,1,1,null,null,"Total Responses","Trust Name","Trust Name",null,"QGH","HEREFORDSHIRE AND WORCESTERSHIRE STP",null,"QGH","HEREFORDSHIRE AND WORCESTERSHIRE STP",null,"QE1","RXN","LANCASHIRE TEACHING HOSPITALS NHS FOUNDATION TRUST","RXN01","Chorley and South Ribble Hospital",null,"R0D","BARNSLEY HOSPITAL NHS FOUNDATION TRUST",null,"R0D","BARNSLEY HOSPITAL NHS FOUNDATION TRUST","R0B0Q","Andover War Memorial Hospital"]
[null,null,null,null,null,null,null,null,null,null,"Total Eligible","Total Responses","Site Code",null,"QH8","MID AND SOUTH ESSEX STP",null,"QH8","MID AND SOUTH ESSEX STP",null,"QE1","RXN","LANCASHIRE TEACHING HOSPITALS NHS FOUNDATION TRUST","RXN02","Royal Preston Hospital",null,"R1F","BARTS HEALTH NHS TRUST",null,"R1F","BARTS HEALTH NHS TRUST","R0D01","Arrowe Park Hospital"]
[null,null,null,null,null,null,null,null,null,null,"Response Rate","Total Eligible","Site Name",null,"QHG","BEDFORDSHIRE, LUTON AND MILTON KEYNES STP",null,"QHG","BEDFORDSHIRE, LUTON AND MILTON KEYNES STP",null,"QE1","RTX","UNIVERSITY HOSPITALS OF MORECAMBE BAY NHS FOUNDATION TRUST","RTXBW","Westmorland General Hospital",null,"R1H","BEDFORDSHIRE HOSPITALS NHS FOUNDATION TRUST",null,"R1H","BEDFORDSHIRE HOSPITALS NHS FOUNDATION TRUST","R0D02","Barnet Hospital"]
[null,null,null,null,null,null,null,null,null,null,"Percentage Recommended","Response Rate","Total Responses",null,"QHL","BIRMINGHAM AND SOLIHULL STP",null,"QHL","BIRMINGHAM AND SOLIHULL STP",null,"QE1","RTX","UNIVERSITY HOSPITALS OF MORECAMBE BAY NHS FOUNDATION TRUST","RTXBU","Furness General Hospital",null,"R1K","BIRMINGHAM WOMEN'S AND CHILDREN'S NHS FOUNDATION TRUST",null,"R1K","BIRMINGHAM WOMEN'S AND CHILDREN'S NHS FOUNDATION TRUST","R1F01","Barnsley Hospital NHS Foundation Trust HQ"]
[null,null,null,null,null,null,null,null,null,null,"Percentage Not  Recommended","Percentage Recommended","Total Eligible",null,"QHM","CUMBRIA AND NORTH EAST STP",null,"QHM","CUMBRIA AND NORTH EAST STP",null,"QE1","RTX","UNIVERSITY HOSPITALS OF MORECAMBE BAY NHS FOUNDATION TRUST","RTX02","Royal Lancaster Infirmary",null,"RA2","BLACKPOOL TEACHING HOSPITALS NHS FOUNDATION TRUST",null,"RA2","BLACKPOOL TEACHING HOSPITALS NHS FOUNDATION TRUST","R1H12","BASILDON HOSPITAL"]
[null,null,null,null,null,null,null,null,null,null,"Extremely Likely","Percentage Not  Recommended","Response Rate",null,"QJ2","JOINED UP CARE DERBYSHIRE STP",null,"QJ2","JOINED UP CARE DERBYSHIRE STP",null,"QF7","RFF","BARNSLEY HOSPITAL NHS FOUNDATION TRUST","RFFAA","Barnsley Hospital NHS Foundation Trust HQ",null,"RA4","BOLTON NHS FOUNDATION TRUST",null,"RA4","BOLTON NHS FOUNDATION TRUST","R1HKH","Basingstoke and North Hampshire Hospital"]
[null,null,null,null,null,null,null,null,null,null,"Likely","Extremely Likely","Percentage Recommended",null,"QJG","SUFFOLK AND NORTH EAST ESSEX ICS",null,"QJG","SUFFOLK AND NORTH EAST ESSEX ICS",null,"QF7","RP5","DONCASTER AND BASSETLAW TEACHING HOSPITALS NHS FOUNDATION TRUST","RP5XXX","Non-hospital site",null,"RA7","BRADFORD TEACHING HOSPITALS NHS FOUNDATION TRUST",null,"RA7","BRADFORD TEACHING HOSPITALS NHS FOUNDATION TRUST","R1HNH","Bassetlaw Hospital"]
[null,null,null,null,null,null,null,null,null,null,"Neither","Likely","Percentage Not  Recommended",null,"QJK","DEVON STP",null,"QJK","DEVON STP",null,"QF7","RP5","DONCASTER AND BASSETLAW TEACHING HOSPITALS NHS FOUNDATION TRUST","RP5BA","Bassetlaw Hospital",null,"RAE","BRIGHTON AND SUSSEX UNIVERSITY HOSPITALS NHS TRUST",null,"RAE","BRIGHTON AND SUSSEX UNIVERSITY HOSPITALS NHS TRUST","R1K01","BEDFORD HOSPITAL SOUTH WING"]
[null,null,null,null,null,null,null,null,null,null,"Unlikely","Neither","Extremely Likely",null,"QJM","LINCOLNSHIRE STP",null,"QJM","LINCOLNSHIRE STP",null,"QF7","RP5","DONCASTER AND BASSETLAW TEACHING HOSPITALS NHS FOUNDATION TRUST","RP5DR","Doncaster Royal Infirmary",null,"RAJ","BUCKINGHAMSHIRE HEALTHCARE NHS TRUST",null,"RAJ","BUCKINGHAMSHIRE HEALTHCARE NHS TRUST","RA201","Berwick Infirmary"]
[null,null,null,null,null,null,null,null,null,null,"Extremely Unlikely","Unlikely","Likely",null,"QK1","LEICESTER, LEICESTERSHIRE AND RUTLAND STP",null,"QK1","LEICESTER, LEICESTERSHIRE AND RUTLAND STP",null,"QF7","RHQ","SHEFFIELD TEACHING HOSPITALS NHS FOUNDATION TRUST","RHQHH","Royal Hallamshire Hospital",null,"RAL","CALDERDALE AND HUDDERSFIELD NHS FOUNDATION TRUST",null,"RAL","CALDERDALE AND HUDDERSFIELD NHS FOUNDATION TRUST","RA430","Birmingham Women's Hospital"]
[null,null,null,null,null,null,null,null,null,null,"Don't Know","Extremely Unlikely","Neither",null,"QKK","OUR HEALTHIER SOUTH EAST LONDON STP",null,"QKK","OUR HEALTHIER SOUTH EAST LONDON STP",null,"QF7","RFR","THE ROTHERHAM NHS FOUNDATION TRUST","RFRPA","Rotherham District General Hospital",null,"RAS","CAMBRIDGE UNIVERSITY HOSPITALS NHS FOUNDATION TRUST",null,"RAS","CAMBRIDGE UNIVERSITY HOSPITALS NHS FOUNDATION TRUST","RA707","Blackpool Victoria Hospital"]
[null,null,null,null,null,null,null,null,null,null,null,"Don't Know","Unlikely",null,"QKS","KENT AND MEDWAY STP",null,"QKS","KENT AND MEDWAY STP",null,"QGH","RWP","WORCESTERSHIRE ACUTE HOSPITALS NHS TRUST","RWP50","Worcestershire Royal Hospital",null,"RAX","CHELSEA AND WESTMINSTER HOSPITAL NHS FOUNDATION TRUST",null,"RAX","CHELSEA AND WESTMINSTER HOSPITAL NHS FOUNDATION TRUST","RAE01","Bradford Royal Infirmary"]
[null,null,null,null,null,null,null,null,null,null,null,"SMS/Text / Smartphone App","Extremely Unlikely",null,"QM7","HERTFORDSHIRE AND WEST ESSEX STP",null,"QM7","HERTFORDSHIRE AND WEST ESSEX STP",null,"QH8","RAJ","MID AND SOUTH ESSEX NHS FOUNDATION TRUST","RAJ12","BASILDON HOSPITAL",null,"RBD","CHESTERFIELD ROYAL HOSPITAL NHS FOUNDATION TRUST",null,"RBD","CHESTERFIELD ROYAL HOSPITAL NHS FOUNDATION TRUST","RAJ01","Bridgnorth Hospital (Maternity)"]
[null,null,null,null,null,null,null,null,null,null,null,"Electronic tablet/kiosk at point of discharge","Don't Know",null,"QMF","EAST LONDON HEALTH & CARE PARTNERSHIP (STP)",null,"QMF","EAST LONDON HEALTH & CARE PARTNERSHIP (STP)",null,"QH8","RAJ","MID AND SOUTH ESSEX NHS FOUNDATION TRUST","RAJ01","Southend Hospital",null,"RBK","COUNTESS OF CHESTER HOSPITAL NHS FOUNDATION TRUST",null,"RBK","COUNTESS OF CHESTER HOSPITAL NHS FOUNDATION TRUST","RAJ12","Calderdale Royal Hospital"]
[null,null,null,null,null,null,null,null,null,null,null,"Paper / postcard at point of discharge",null,null,"QMJ","NORTH LONDON PARTNERS IN HEALTH & CARE (STP)",null,"QMJ","NORTH LONDON PARTNERS IN HEALTH & CARE (STP)",null,"QH8","RAJ","MID AND SOUTH ESSEX NHS FOUNDATION TRUST","RAJ32","MID ESSEX HOSPITAL",null,"RBL","COUNTY DURHAM AND DARLINGTON NHS FOUNDATION TRUST",null,"RBL","COUNTY DURHAM AND DARLINGTON NHS FOUNDATION TRUST","RAJ32","Chelsea and Westminster Hospital"]
[null,null,null,null,null,null,null,null,null,null,null,"Paper survey, sent to the patients home",null,null,"QMM","NORFOLK AND WAVENEY HEALTH & CARE PARTNERSHIP (STP)",null,"QMM","NORFOLK AND WAVENEY HEALTH & CARE PARTNERSHIP (STP)",null,"QHG","RC9","BEDFORDSHIRE HOSPITALS NHS FOUNDATION TRUST","RC971","Luton and Dunstable Hospital",null,"RBN","CROYDON HEALTH SERVICES NHS TRUST",null,"RBN","CROYDON HEALTH SERVICES NHS TRUST","RAL01","Cheltenham General Hospital"]
[null,null,null,null,null,null,null,null,null,null,null,"Telephone survey once patient is home",null,null,"QNC","STAFFORDSHIRE & STOKE ON TRENT STP",null,"QNC","STAFFORDSHIRE & STOKE ON TRENT STP",null,"QHG","RC9","BEDFORDSHIRE HOSPITALS NHS FOUNDATION TRUST","RC979","BEDFORD HOSPITAL SOUTH WING",null,"RBT","DARTFORD AND GRAVESHAM NHS TRUST",null,"RBT","DARTFORD AND GRAVESHAM NHS TRUST","RAL26","Chesterfield Royal Hospital"]
[null,null,null,null,null,null,null,null,null,null,null,"Online survey once patient is home",null,null,"QNQ","FRIMLEY HEALTH & CARE (STP)",null,"QNQ","FRIMLEY HEALTH & CARE (STP)",null,"QHG","RD8","MILTON KEYNES UNIVERSITY HOSPITAL NHS FOUNDATION TRUST","RD816","Milton Keynes Hospital",null,"RBZ","DONCASTER AND BASSETLAW TEACHING HOSPITALS NHS FOUNDATION TRUST",null,"RBZ","DONCASTER AND BASSETLAW TEACHING HOSPITALS NHS FOUNDATION TRUST","RAS01","Chippenham Community Hospital"]
[null,null,null,null,null,null,null,null,null,null,null,"Other",null,null,"QNX","SUSSEX HEALTH AND CARE PARTNERSHIP",null,"QNX","SUSSEX HEALTH AND CARE PARTNERSHIP",null,"QHL","RQ3","BIRMINGHAM WOMEN'S AND CHILDREN'S NHS FOUNDATION TRUST","RQ370","Birmingham Women's Hospital",null,"RC9","DORSET COUNTY HOSPITAL NHS FOUNDATION TRUST",null,"RC9","DORSET COUNTY HOSPITAL NHS FOUNDATION TRUST","RAX01","Chipping Norton Community Hospital"]
[null,null,null,null,null,null,null,null,null,null,null,null,null,null,"QOC","SHROPSHIRE AND TELFORD AND WREKIN STP",null,"QOC","SHROPSHIRE AND TELFORD AND WREKIN STP",null,"QHL","RRK","UNIVERSITY HOSPITALS BIRMINGHAM NHS FOUNDATION TRUST","RRK97","Heartlands Hospital",null,"RCB","EAST AND NORTH HERTFORDSHIRE NHS TRUST",null,"RCB","EAST AND NORTH HERTFORDSHIRE NHS TRUST","RBD01","Chorley and South Ribble Hospital"]
[null,null,null,null,null,null,null,null,null,null,null,null,null,null,"QOP","GREATER MANCHESTER HEALTH & SOCIAL CARE PARTNERSHIP",null,"QOP","GREATER MANCHESTER HEALTH & SOCIAL CARE PARTNERSHIP",null,"QHL","RRK","UNIVERSITY HOSPITALS BIRMINGHAM NHS FOUNDATION TRUST","RRK98","Good Hope Hospital",null,"RCD","EAST CHESHIRE NHS TRUST",null,"RCD","EAST CHESHIRE NHS TRUST","RBK02","City Hospital"]
[null,null,null,null,null,null,null,null,null,null,null,null,null,null,"QOQ","HUMBER, COAST AND VALE STP",null,"QOQ","HUMBER, COAST AND VALE STP",null,"QHL","RRK","UNIVERSITY HOSPITALS BIRMINGHAM NHS FOUNDATION TRUST","RRK99","Solihull Hospital",null,"RCF","EAST LANCASHIRE HOSPITALS NHS TRUST",null,"RCF","EAST LANCASHIRE HOSPITALS NHS TRUST","RBL14","Colchester General Hospital"]
[null,null,null,null,null,null,null,null,null,null,null,null,null,null,"QOX","BATH AND NORTH EAST SOMERSET, SWINDON AND WILTSHIRE STP",null,"QOX","BATH AND NORTH EAST SOMERSET, SWINDON AND WILTSHIRE STP",null,"QHM","RXP","COUNTY DURHAM AND DARLINGTON NHS FOUNDATION TRUST","RXPCP","University Hospital Of North Durham",null,"RCX","EAST SUFFOLK AND NORTH ESSEX NHS FOUNDATION TRUST",null,"RCX","EAST SUFFOLK AND NORTH ESSEX NHS FOUNDATION TRUST","RBN01","Conquest Hospital"]
[null,null,null,null,null,null,null,null,null,null,null,null,null,null,"QPM","NORTHAMPTONSHIRE STP",null,"QPM","NORTHAMPTONSHIRE STP",null,"QHM","RXP","COUNTY DURHAM AND DARLINGTON NHS FOUNDATION TRUST","RXPDA","Darlington Memorial Hospital",null,"RD1","EAST SUSSEX HEALTHCARE NHS TRUST",null,"RD1","EAST SUSSEX HEALTHCARE NHS TRUST","RBT20","Countess Of Chester Hospital"]
[null,null,null,null,null,null,null,null,null,null,null,null,null,null,"QR1","GLOUCESTERSHIRE STP",null,"QR1","GLOUCESTERSHIRE STP",null,"QHM","RNN","NORTH CUMBRIA INTEGRATED CARE NHS FOUNDATION TRUST","RNNXXX","Non-hospital site",null,"RD8","EPSOM AND ST HELIER UNIVERSITY HOSPITALS NHS TRUST",null,"RD8","EPSOM AND ST HELIER UNIVERSITY HOSPITALS NHS TRUST","RBZ12","County Hospital"]
[null,null,null,null,null,null,null,null,null,null,null,null,null,null,"QRL","HAMPSHIRE AND THE ISLE OF WIGHT STP",null,"QRL","HAMPSHIRE AND THE ISLE OF WIGHT STP",null,"QHM","RNN","NORTH CUMBRIA INTEGRATED CARE NHS FOUNDATION TRUST","RNNKV","Penrith Hospital",null,"RDE","FRIMLEY HEALTH NHS FOUNDATION TRUST",null,"RDE","FRIMLEY HEALTH NHS FOUNDATION TRUST","RC971","Crowborough Birthing Centre"]
[null,null,null,null,null,null,null,null,null,null,null,null,null,null,"QRV","NORTH WEST LONDON HEALTH & CARE PARTNERSHIP (STP)",null,"QRV","NORTH WEST LONDON HEALTH & CARE PARTNERSHIP (STP)",null,"QHM","RNN","NORTH CUMBRIA INTEGRATED CARE NHS FOUNDATION TRUST","RNN62","Cumberland Infirmary",null,"RDU","GEORGE ELIOT HOSPITAL NHS TRUST",null,"RDU","GEORGE ELIOT HOSPITAL NHS TRUST","RC979","Croydon University Hospital"]
[null,null,null,null,null,null,null,null,null,null,null,null,null,null,"QSL","SOMERSET STP",null,"QSL","SOMERSET STP",null,"QHM","RNN","NORTH CUMBRIA INTEGRATED CARE NHS FOUNDATION TRUST","RNNBX","West Cumberland Hospital",null,"REF","GLOUCESTERSHIRE HOSPITALS NHS FOUNDATION TRUST",null,"REF","GLOUCESTERSHIRE HOSPITALS NHS FOUNDATION TRUST","RCB55","Cumberland Infirmary"]
[null,null,null,null,null,null,null,null,null,null,null,null,null,null,"QT1","NOTTINGHAM AND NOTTINGHAMSHIRE HEALTH AND CARE STP",null,"QT1","NOTTINGHAM AND NOTTINGHAMSHIRE HEALTH AND CARE STP",null,"QHM","RVW","NORTH TEES AND HARTLEPOOL NHS FOUNDATION TRUST","RVWAE","University Hospital Of North Tees",null,"REP","GREAT WESTERN HOSPITALS NHS FOUNDATION TRUST",null,"REP","GREAT WESTERN HOSPITALS NHS FOUNDATION TRUST","RCBCA","Darent Valley Hospital"]
[null,null,null,null,null,null,null,null,null,null,null,null,null,null,"QT6","CORNWALL AND THE ISLES OF SCILLY HEALTH & SOCIAL CARE PARTNERSHIP (STP)",null,"QT6","CORNWALL AND THE ISLES OF SCILLY HEALTH & SOCIAL CARE PARTNERSHIP (STP)",null,"QHM","RTF","NORTHUMBRIA HEALTHCARE NHS FOUNDATION TRUST","RTFDH","Berwick Infirmary",null,"RF4","GUY'S AND ST THOMAS' NHS FOUNDATION TRUST",null,"RF4","GUY'S AND ST THOMAS' NHS FOUNDATION TRUST","RCD01","Darlington Memorial Hospital"]
[null,null,null,null,null,null,null,null,null,null,null,null,null,null,"QU9","BUCKINGHAMSHIRE, OXFORDSHIRE AND BERKSHIRE WEST STP",null,"QU9","BUCKINGHAMSHIRE, OXFORDSHIRE AND BERKSHIRE WEST STP",null,"QHM","RTF","NORTHUMBRIA HEALTHCARE NHS FOUNDATION TRUST","RTFDR","Hexham General Hospital",null,"RFF","HAMPSHIRE HOSPITALS NHS FOUNDATION TRUST",null,"RFF","HAMPSHIRE HOSPITALS NHS FOUNDATION TRUST","RCF22","Derriford Hospital"]
[null,null,null,null,null,null,null,null,null,null,null,null,null,null,"QUA","THE BLACK COUNTRY AND WEST BIRMINGHAM STP",null,"QUA","THE BLACK COUNTRY AND WEST BIRMINGHAM STP",null,"QHM","RTF","NORTHUMBRIA HEALTHCARE NHS FOUNDATION TRUST","RTFXXX","Non-hospital site",null,"RFR","HARROGATE AND DISTRICT NHS FOUNDATION TRUST",null,"RFR","HARROGATE AND DISTRICT NHS FOUNDATION TRUST","RCX70","Dewsbury and District Hospital"]
[null,null,null,null,null,null,null,null,null,null,null,null,null,null,"QUE","CAMBRIDGESHIRE AND PETERBOROUGH STP",null,"QUE","CAMBRIDGESHIRE AND PETERBOROUGH STP",null,"QHM","RTF","NORTHUMBRIA HEALTHCARE NHS FOUNDATION TRUST","RTFDJ","Alnwick Infirmary",null,"RFS","HULL UNIVERSITY TEACHING HOSPITALS NHS TRUST",null,"RFS","HULL UNIVERSITY TEACHING HOSPITALS NHS TRUST","RCXXXX","Diana, Princess Of Wales Hospital"]
[null,null,null,null,null,null,null,null,null,null,null,null,null,null,"QUY","BRISTOL, NORTH SOMERSET AND SOUTH GLOUCESTERSHIRE STP",null,"QUY","BRISTOL, NORTH SOMERSET AND SOUTH GLOUCESTERSHIRE STP",null,"QHM","RTF","NORTHUMBRIA HEALTHCARE NHS FOUNDATION TRUST","RTF86","The Northumbria",null,"RGN","IMPERIAL COLLEGE HEALTHCARE NHS TRUST",null,"RGN","IMPERIAL COLLEGE HEALTHCARE NHS TRUST","RD102","Doncaster Royal Infirmary"]
[null,null,null,null,null,null,null,null,null,null,null,null,null,null,"QVV","DORSET STP",null,"QVV","DORSET STP",null,"QHM","RTR","SOUTH TEES HOSPITALS NHS FOUNDATION TRUST","RTRAT","The James Cook University Hospital",null,"RGR","ISLE OF WIGHT NHS TRUST",null,"RGR","ISLE OF WIGHT NHS TRUST","RD108","Dorset County Hospital"]
[null,null,null,null,null,null,null,null,null,null,null,null,null,null,"QWE","SOUTH WEST LONDON HEALTH & CARE PARTNERSHIP (STP)",null,"QWE","SOUTH WEST LONDON HEALTH & CARE PARTNERSHIP (STP)",null,"QHM","RTR","SOUTH TEES HOSPITALS NHS FOUNDATION TRUST","RTR45","Friarage Hospital Site",null,"RGT","KETTERING GENERAL HOSPITAL NHS FOUNDATION TRUST",null,"RGT","KETTERING GENERAL HOSPITAL NHS FOUNDATION TRUST","RD121","East Surrey Hospital"]
[null,null,null,null,null,null,null,null,null,null,null,null,null,null,"QWO","WEST YORKSHIRE AND HARROGATE HEALTH & CARE PARTNERSHIP (STP)",null,"QWO","WEST YORKSHIRE AND HARROGATE HEALTH & CARE PARTNERSHIP (STP)",null,"QHM","R0B","SOUTH TYNESIDE AND SUNDERLAND NHS FOUNDATION TRUST","R0B01","Sunderland Royal Hospital",null,"RH5","KING'S COLLEGE HOSPITAL NHS FOUNDATION TRUST",null,"RH5","KING'S COLLEGE HOSPITAL NHS FOUNDATION TRUST","RD130","Eastbourne District General Hospital"]
[null,null,null,null,null,null,null,null,null,null,null,null,null,null,"QWU","COVENTRY AND WARWICKSHIRE STP",null,"QWU","COVENTRY AND WARWICKSHIRE STP",null,"QHM","R0B","SOUTH TYNESIDE AND SUNDERLAND NHS FOUNDATION TRUST","R0B0Q","South Tyneside District Hospital",null,"RH8","KINGSTON HOSPITAL NHS FOUNDATION TRUST",null,"RH8","KINGSTON HOSPITAL NHS FOUNDATION TRUST","RD1XXX","Epsom Hospital"]
[null,null,null,null,null,null,null,null,null,null,null,null,null,null,"QXU","SURREY HEARTLANDS HEALTH & CARE PARTNERSHIP (STP)",null,"QXU","SURREY HEARTLANDS HEALTH & CARE PARTNERSHIP (STP)",null,"QJ2","RFS","CHESTERFIELD ROYAL HOSPITAL NHS FOUNDATION TRUST","RFSDA","Chesterfield Royal Hospital",null,"RHM","LANCASHIRE TEACHING HOSPITALS NHS FOUNDATION TRUST",null,"RHM","LANCASHIRE TEACHING HOSPITALS NHS FOUNDATION TRUST","RD816","Friarage Hospital Site"]
[null,null,null,null,null,null,null,null,null,null,null,null,null,null,"QYG","CHESHIRE AND MERSEYSIDE STP",null,"QYG","CHESHIRE AND MERSEYSIDE STP",null,"QJ2","RTG","UNIVERSITY HOSPITALS OF DERBY AND BURTON NHS FOUNDATION TRUST","RTGFG","Royal Derby Hospital",null,"RHQ","LEEDS TEACHING HOSPITALS NHS TRUST",null,"RHQ","LEEDS TEACHING HOSPITALS NHS TRUST","RDE03","Frimley Park Hospital"]
[null,null,null,null,null,null,null,null,null,null,null,null,null,null,"zIS1","Independent Sector Provider",null,"zIS1","Independent Sector Provider",null,"QJG","RDE","EAST SUFFOLK AND NORTH ESSEX NHS FOUNDATION TRUST","RDE03","Ipswich Hospital",null,"RHU","LEWISHAM AND GREENWICH NHS TRUST",null,"RHU","LEWISHAM AND GREENWICH NHS TRUST","RDEE4","Frome Community Hospital"]
[null,null,null,null,null,null,null,null,null,null,null,null,null,null,null,null,null,null,null,null,"QJG","RDE","EAST SUFFOLK AND NORTH ESSEX NHS FOUNDATION TRUST","RDEE4","Colchester General Hospital",null,"RHW","LIVERPOOL WOMEN'S NHS FOUNDATION TRUST",null,"RHW","LIVERPOOL WOMEN'S NHS FOUNDATION TRUST","RDU01","Furness General Hospital"]
[null,null,null,null,null,null,null,null,null,null,null,null,null,null,null,null,null,null,null,null,"QJG","RGR","WEST SUFFOLK NHS FOUNDATION TRUST","RGR50","West Suffolk Hospital",null,"RJ1","LONDON NORTH WEST UNIVERSITY HEALTHCARE NHS TRUST",null,"RJ1","LONDON NORTH WEST UNIVERSITY HEALTHCARE NHS TRUST","RDU50","George Eliot Hospital - Acute Services"]
[null,null,null,null,null,null,null,null,null,null,null,null,null,null,null,null,null,null,null,null,"QJK","RBZ","NORTHERN DEVON HEALTHCARE NHS TRUST","RBZ12","North Devon District Hospital",null,"RJ2","MAIDSTONE AND TUNBRIDGE WELLS NHS TRUST",null,"RJ2","MAIDSTONE AND TUNBRIDGE WELLS NHS TRUST","REF12","Gloucestershire Royal Hospital"]
[null,null,null,null,null,null,null,null,null,null,null,null,null,null,null,null,null,null,null,null,"QJK","RH8","ROYAL DEVON AND EXETER NHS FOUNDATION TRUST","RH801","Royal Devon and Exeter Hospital (Wonford)",null,"RJ6","MANCHESTER UNIVERSITY NHS FOUNDATION TRUST",null,"RJ6","MANCHESTER UNIVERSITY NHS FOUNDATION TRUST","REFXXX","Good Hope Hospital"]
[null,null,null,null,null,null,null,null,null,null,null,null,null,null,null,null,null,null,null,null,"QJK","RK9","UNIVERSITY HOSPITALS PLYMOUTH NHS TRUST","RK953","Royal Eye Infirmary",null,"RJ7","MEDWAY NHS FOUNDATION TRUST",null,"RJ7","MEDWAY NHS FOUNDATION TRUST","REP01","Gosport War Memorial Hospital"]
[null,null,null,null,null,null,null,null,null,null,null,null,null,null,null,null,null,null,null,null,"QJK","RK9","UNIVERSITY HOSPITALS PLYMOUTH NHS TRUST","RK950","Derriford Hospital",null,"RJC","MID AND SOUTH ESSEX NHS FOUNDATION TRUST",null,"RJC","MID AND SOUTH ESSEX NHS FOUNDATION TRUST","RF4QH","Grantham and District Hospital"]
[null,null,null,null,null,null,null,null,null,null,null,null,null,null,null,null,null,null,null,null,"QJM","RWD","UNITED LINCOLNSHIRE HOSPITALS NHS TRUST","RWDDA","Lincoln County Hospital",null,"RJE","MID CHESHIRE HOSPITALS NHS FOUNDATION TRUST",null,"RJE","MID CHESHIRE HOSPITALS NHS FOUNDATION TRUST","RFFAA","Harrogate District Hospital"]
[null,null,null,null,null,null,null,null,null,null,null,null,null,null,null,null,null,null,null,null,"QJM","RWD","UNITED LINCOLNSHIRE HOSPITALS NHS TRUST","RWDLP","Grantham and District Hospital",null,"RJL","MID YORKSHIRE HOSPITALS NHS TRUST",null,"RJL","MID YORKSHIRE HOSPITALS NHS TRUST","RFRPA","Heartlands Hospital"]
[null,null,null,null,null,null,null,null,null,null,null,null,null,null,null,null,null,null,null,null,"QJM","RWD","UNITED LINCOLNSHIRE HOSPITALS NHS TRUST","RWDXXX","Non-hospital site",null,"RJN","MILTON KEYNES UNIVERSITY HOSPITAL NHS FOUNDATION TRUST",null,"RJN","MILTON KEYNES UNIVERSITY HOSPITAL NHS FOUNDATION TRUST","RFSDA","Hexham General Hospital"]
[null,null,null,null,null,null,null,null,null,null,null,null,null,null,null,null,null,null,null,null,"QJM","RWD","UNITED LINCOLNSHIRE HOSPITALS NHS TRUST","RWDLA","Pilgrim Hospital",null,"RJR","NORFOLK AND NORWICH UNIVERSITY HOSPITALS NHS FOUNDATION TRUST",null,"RJR","NORFOLK AND NORWICH UNIVERSITY HOSPITALS NHS FOUNDATION TRUST","RGN80","Hillingdon Hospital"]
[null,null,null,null,null,null,null,null,null,null,null,null,null,null,null,null,null,null,null,null,"QK1","RWE","UNIVERSITY HOSPITALS OF LEICESTER NHS TRUST","RWE10","St Mary's Hospital",null,"RJZ","NORTH BRISTOL NHS TRUST",null,"RJZ","NORTH BRISTOL NHS TRUST","RGN90","Hinchingbrooke Hospital"]
[null,null,null,null,null,null,null,null,null,null,null,null,null,null,null,null,null,null,null,null,"QK1","RWE","UNIVERSITY HOSPITALS OF LEICESTER NHS TRUST","RWEXXX","Non-hospital site",null,"RK5","NORTH CUMBRIA INTEGRATED CARE NHS FOUNDATION TRUST",null,"RK5","NORTH CUMBRIA INTEGRATED CARE NHS FOUNDATION TRUST","RGR50","Horton General Hospital"]
[null,null,null,null,null,null,null,null,null,null,null,null,null,null,null,null,null,null,null,null,"QK1","RWE","UNIVERSITY HOSPITALS OF LEICESTER NHS TRUST","RWEAK","Leicester General Hospital",null,"RK9","NORTH TEES AND HARTLEPOOL NHS FOUNDATION TRUST",null,"RK9","NORTH TEES AND HARTLEPOOL NHS FOUNDATION TRUST","RGT32","Hospital Of St Cross"]
[null,null,null,null,null,null,null,null,null,null,null,null,null,null,null,null,null,null,null,null,"QK1","RWE","UNIVERSITY HOSPITALS OF LEICESTER NHS TRUST","RWEAA","Leicester Royal Infirmary",null,"RKB","NORTH WEST ANGLIA NHS FOUNDATION TRUST",null,"RKB","NORTH WEST ANGLIA NHS FOUNDATION TRUST","RH5A8","Hull Royal Infirmary"]
[null,null,null,null,null,null,null,null,null,null,null,null,null,null,null,null,null,null,null,null,"QKK","RJ1","GUY'S AND ST THOMAS' NHS FOUNDATION TRUST","RJ1XXX","Non-hospital site",null,"RKE","NORTHAMPTON GENERAL HOSPITAL NHS TRUST",null,"RKE","NORTHAMPTON GENERAL HOSPITAL NHS TRUST","RH801","Ipswich Hospital"]
[null,null,null,null,null,null,null,null,null,null,null,null,null,null,null,null,null,null,null,null,"QKK","RJ1","GUY'S AND ST THOMAS' NHS FOUNDATION TRUST","RJ122","St Thomas' Hospital",null,"RLT","NORTHERN DEVON HEALTHCARE NHS TRUST",null,"RLT","NORTHERN DEVON HEALTHCARE NHS TRUST","RHM12","John Radcliffe Hospital"]
[null,null,null,null,null,null,null,null,null,null,null,null,null,null,null,null,null,null,null,null,"QKK","RJZ","KING'S COLLEGE HOSPITAL NHS FOUNDATION TRUST","RJZ01","King's College Hospital (Denmark Hill)",null,"RM1","NORTHERN LINCOLNSHIRE AND GOOLE NHS FOUNDATION TRUST",null,"RM1","NORTHERN LINCOLNSHIRE AND GOOLE NHS FOUNDATION TRUST","RHQHH","Kettering General Hospital"]
[null,null,null,null,null,null,null,null,null,null,null,null,null,null,null,null,null,null,null,null,"QKK","RJZ","KING'S COLLEGE HOSPITAL NHS FOUNDATION TRUST","RJZ30","Princess Royal University Hospital",null,"RMC","NORTHUMBRIA HEALTHCARE NHS FOUNDATION TRUST",null,"RMC","NORTHUMBRIA HEALTHCARE NHS FOUNDATION TRUST","RHU02","King's College Hospital (Denmark Hill)"]
[null,null,null,null,null,null,null,null,null,null,null,null,null,null,null,null,null,null,null,null,"QKK","RJ2","LEWISHAM AND GREENWICH NHS TRUST","RJ2XXX","Non-hospital site",null,"RMP","NOTTINGHAM UNIVERSITY HOSPITALS NHS TRUST",null,"RMP","NOTTINGHAM UNIVERSITY HOSPITALS NHS TRUST","RHU03","King's Mill Hospital"]
[null,null,null,null,null,null,null,null,null,null,null,null,null,null,null,null,null,null,null,null,"QKK","RJ2","LEWISHAM AND GREENWICH NHS TRUST","RJ231","Queen Elizabeth Hospital",null,"RN3","OXFORD UNIVERSITY HOSPITALS NHS FOUNDATION TRUST",null,"RN3","OXFORD UNIVERSITY HOSPITALS NHS FOUNDATION TRUST","RHU04","Kingston Hospital"]
[null,null,null,null,null,null,null,null,null,null,null,null,null,null,null,null,null,null,null,null,"QKK","RJ2","LEWISHAM AND GREENWICH NHS TRUST","RJ224","University Hospital Lewisham",null,"RN5","PENNINE ACUTE HOSPITALS NHS TRUST",null,"RN5","PENNINE ACUTE HOSPITALS NHS TRUST","RHU10","Leeds General Infirmary"]
[null,null,null,null,null,null,null,null,null,null,null,null,null,null,null,null,null,null,null,null,"QKS","RN7","DARTFORD AND GRAVESHAM NHS TRUST","RN707","Darent Valley Hospital",null,"RN7","PORTSMOUTH HOSPITALS UNIVERSITY NATIONAL HEALTH SERVICE TRUST",null,"RN7","PORTSMOUTH HOSPITALS UNIVERSITY NATIONAL HEALTH SERVICE TRUST","RHW01","Leicester General Hospital"]
[null,null,null,null,null,null,null,null,null,null,null,null,null,null,null,null,null,null,null,null,"QKS","RWF","MAIDSTONE AND TUNBRIDGE WELLS NHS TRUST","RWFXXX","Non-hospital site",null,"RNA","ROYAL BERKSHIRE NHS FOUNDATION TRUST",null,"RNA","ROYAL BERKSHIRE NHS FOUNDATION TRUST","RJ122","Leicester Royal Infirmary"]
[null,null,null,null,null,null,null,null,null,null,null,null,null,null,null,null,null,null,null,null,"QKS","RWF","MAIDSTONE AND TUNBRIDGE WELLS NHS TRUST","RWF08","Crowborough Birthing Centre",null,"RNN","ROYAL CORNWALL HOSPITALS NHS TRUST",null,"RNN","ROYAL CORNWALL HOSPITALS NHS TRUST","RJ1XXX","Leighton Hospital"]
[null,null,null,null,null,null,null,null,null,null,null,null,null,null,null,null,null,null,null,null,"QKS","RWF","MAIDSTONE AND TUNBRIDGE WELLS NHS TRUST","RWF03","Maidstone District General Hospital",null,"RNQ","ROYAL DEVON AND EXETER NHS FOUNDATION TRUST",null,"RNQ","ROYAL DEVON AND EXETER NHS FOUNDATION TRUST","RJ224","Lincoln County Hospital"]
[null,null,null,null,null,null,null,null,null,null,null,null,null,null,null,null,null,null,null,null,"QKS","RWF","MAIDSTONE AND TUNBRIDGE WELLS NHS TRUST","RWFTW","The Tunbridge Wells Hospital",null,"RNS","ROYAL FREE LONDON NHS FOUNDATION TRUST",null,"RNS","ROYAL FREE LONDON NHS FOUNDATION TRUST","RJ231","Lister Hospital"]
[null,null,null,null,null,null,null,null,null,null,null,null,null,null,null,null,null,null,null,null,"QKS","RPA","MEDWAY NHS FOUNDATION TRUST","RPA02","Medway Maritime Hospital",null,"RNZ","ROYAL SURREY COUNTY HOSPITAL NHS FOUNDATION TRUST",null,"RNZ","ROYAL SURREY COUNTY HOSPITAL NHS FOUNDATION TRUST","RJ2XXX","Liverpool Womens Hospital"]
[null,null,null,null,null,null,null,null,null,null,null,null,null,null,null,null,null,null,null,null,"QM7","RWH","EAST AND NORTH HERTFORDSHIRE NHS TRUST","RWHXXX","Non-hospital site",null,"RP5","ROYAL UNITED HOSPITALS BATH NHS FOUNDATION TRUST",null,"RP5","ROYAL UNITED HOSPITALS BATH NHS FOUNDATION TRUST","RJ611","Luton and Dunstable Hospital"]
[null,null,null,null,null,null,null,null,null,null,null,null,null,null,null,null,null,null,null,null,"QM7","RWH","EAST AND NORTH HERTFORDSHIRE NHS TRUST","RWH01","Lister Hospital",null,"RPA","SALISBURY NHS FOUNDATION TRUST",null,"RPA","SALISBURY NHS FOUNDATION TRUST","RJ701","Macclesfield District General Hospital"]
[null,null,null,null,null,null,null,null,null,null,null,null,null,null,null,null,null,null,null,null,"QM7","RQW","THE PRINCESS ALEXANDRA HOSPITAL NHS TRUST","RQWG0","Princess Alexandra Hospital",null,"RQ3","SANDWELL AND WEST BIRMINGHAM HOSPITALS NHS TRUST",null,"RQ3","SANDWELL AND WEST BIRMINGHAM HOSPITALS NHS TRUST","RJC02","Maidstone District General Hospital"]
[null,null,null,null,null,null,null,null,null,null,null,null,null,null,null,null,null,null,null,null,"QM7","RWG","WEST HERTFORDSHIRE HOSPITALS NHS TRUST","RWG02","Watford General Hospital",null,"RQM","SHEFFIELD TEACHING HOSPITALS NHS FOUNDATION TRUST",null,"RQM","SHEFFIELD TEACHING HOSPITALS NHS FOUNDATION TRUST","RJCXXX","Manor Hospital"]
[null,null,null,null,null,null,null,null,null,null,null,null,null,null,null,null,null,null,null,null,"QMF","RF4","BARKING, HAVERING AND REDBRIDGE UNIVERSITY HOSPITALS NHS TRUST","RF4QH","Queen's Hospital",null,"RQW","SHERWOOD FOREST HOSPITALS NHS FOUNDATION TRUST",null,"RQW","SHERWOOD FOREST HOSPITALS NHS FOUNDATION TRUST","RJE01","Medway Maritime Hospital"]
[null,null,null,null,null,null,null,null,null,null,null,null,null,null,null,null,null,null,null,null,"QMF","R1H","BARTS HEALTH NHS TRUST","R1H12","The Royal London Hospital",null,"RR8","SOMERSET NHS FOUNDATION TRUST",null,"RR8","SOMERSET NHS FOUNDATION TRUST","RJE09","MID ESSEX HOSPITAL"]
[null,null,null,null,null,null,null,null,null,null,null,null,null,null,null,null,null,null,null,null,"QMF","R1H","BARTS HEALTH NHS TRUST","R1HNH","Newham General Hospital",null,"RRF","SOUTH TEES HOSPITALS NHS FOUNDATION TRUST",null,"RRF","SOUTH TEES HOSPITALS NHS FOUNDATION TRUST","RJEXXX","Milton Keynes Hospital"]
[null,null,null,null,null,null,null,null,null,null,null,null,null,null,null,null,null,null,null,null,"QMF","R1H","BARTS HEALTH NHS TRUST","R1HKH","Whipps Cross University Hospital",null,"RRK","SOUTH TYNESIDE AND SUNDERLAND NHS FOUNDATION TRUST",null,"RRK","SOUTH TYNESIDE AND SUNDERLAND NHS FOUNDATION TRUST","RJL30","MUSGROVE PARK HOSPITAL"]
[null,null,null,null,null,null,null,null,null,null,null,null,null,null,null,null,null,null,null,null,"QMJ","RAL","ROYAL FREE LONDON NHS FOUNDATION TRUST","RAL26","Barnet Hospital",null,"RTE","SOUTH WARWICKSHIRE NHS FOUNDATION TRUST",null,"RTE","SOUTH WARWICKSHIRE NHS FOUNDATION TRUST","RJL32","Newham General Hospital"]
[null,null,null,null,null,null,null,null,null,null,null,null,null,null,null,null,null,null,null,null,"QMJ","RAL","ROYAL FREE LONDON NHS FOUNDATION TRUST","RAL01","Royal Free Hospital",null,"RTF","SOUTHPORT AND ORMSKIRK HOSPITAL NHS TRUST",null,"RTF","SOUTHPORT AND ORMSKIRK HOSPITAL NHS TRUST","RJN71","Non Hospital Site"]
[null,null,null,null,null,null,null,null,null,null,null,null,null,null,null,null,null,null,null,null,"QMJ","RKE","WHITTINGTON HEALTH NHS TRUST","RKEXXX","Non-hospital site",null,"RTG","ST GEORGE'S UNIVERSITY HOSPITALS NHS FOUNDATION TRUST",null,"RTG","ST GEORGE'S UNIVERSITY HOSPITALS NHS FOUNDATION TRUST","RJR05","Non-hospital site"]
[null,null,null,null,null,null,null,null,null,null,null,null,null,null,null,null,null,null,null,null,"QMJ","RKE","WHITTINGTON HEALTH NHS TRUST","RKEQ4","The Whittington Hospital",null,"RTH","ST HELENS AND KNOWSLEY TEACHING HOSPITALS NHS TRUST",null,"RTH","ST HELENS AND KNOWSLEY TEACHING HOSPITALS NHS TRUST","RJZ01","Non-hospital site"]
[null,null,null,null,null,null,null,null,null,null,null,null,null,null,null,null,null,null,null,null,"QMM","RM1","NORFOLK AND NORWICH UNIVERSITY HOSPITALS NHS FOUNDATION TRUST","RM102","Norfolk and Norwich University Hospital",null,"RTP","STOCKPORT NHS FOUNDATION TRUST",null,"RTP","STOCKPORT NHS FOUNDATION TRUST","RJZ30","Non-hospital site"]
[null,null,null,null,null,null,null,null,null,null,null,null,null,null,null,null,null,null,null,null,"QMM","RCX","THE QUEEN ELIZABETH HOSPITAL, KING'S LYNN, NHS FOUNDATION TRUST","RCXXXX","Non-hospital site",null,"RTR","SURREY AND SUSSEX HEALTHCARE NHS TRUST",null,"RTR","SURREY AND SUSSEX HEALTHCARE NHS TRUST","RK5BC","Non-hospital site"]
[null,null,null,null,null,null,null,null,null,null,null,null,null,null,null,null,null,null,null,null,"QMM","RCX","THE QUEEN ELIZABETH HOSPITAL, KING'S LYNN, NHS FOUNDATION TRUST","RCX70","The Queen Elizabeth Hospital",null,"RTX","TAMESIDE AND GLOSSOP INTEGRATED CARE NHS FOUNDATION TRUST",null,"RTX","TAMESIDE AND GLOSSOP INTEGRATED CARE NHS FOUNDATION TRUST","RK5XXX","Non-hospital site"]
[null,null,null,null,null,null,null,null,null,null,null,null,null,null,null,null,null,null,null,null,"QNC","RJE","UNIVERSITY HOSPITALS OF NORTH MIDLANDS NHS TRUST","RJE01","Royal Stoke University Hospital",null,"RVJ","THE DUDLEY GROUP NHS FOUNDATION TRUST",null,"RVJ","THE DUDLEY GROUP NHS FOUNDATION TRUST","RK950","Non-hospital site"]
[null,null,null,null,null,null,null,null,null,null,null,null,null,null,null,null,null,null,null,null,"QNC","RJE","UNIVERSITY HOSPITALS OF NORTH MIDLANDS NHS TRUST","RJE09","County Hospital",null,"RVR","THE HILLINGDON HOSPITALS NHS FOUNDATION TRUST",null,"RVR","THE HILLINGDON HOSPITALS NHS FOUNDATION TRUST","RK953","Non-hospital site"]
[null,null,null,null,null,null,null,null,null,null,null,null,null,null,null,null,null,null,null,null,"QNC","RJE","UNIVERSITY HOSPITALS OF NORTH MIDLANDS NHS TRUST","RJEXXX","Non-hospital site",null,"RVW","THE PRINCESS ALEXANDRA HOSPITAL NHS TRUST",null,"RVW","THE PRINCESS ALEXANDRA HOSPITAL NHS TRUST","RKB01","Non-hospital site"]
[null,null,null,null,null,null,null,null,null,null,null,null,null,null,null,null,null,null,null,null,"QNQ","RDU","FRIMLEY HEALTH NHS FOUNDATION TRUST","RDU50","Wexham Park Hospital",null,"RVY","THE QUEEN ELIZABETH HOSPITAL, KING'S LYNN, NHS FOUNDATION TRUST",null,"RVY","THE QUEEN ELIZABETH HOSPITAL, KING'S LYNN, NHS FOUNDATION TRUST","RKB03","Non-hospital site"]
[null,null,null,null,null,null,null,null,null,null,null,null,null,null,null,null,null,null,null,null,"QNQ","RDU","FRIMLEY HEALTH NHS FOUNDATION TRUST","RDU01","Frimley Park Hospital",null,"RW6","THE ROTHERHAM NHS FOUNDATION TRUST",null,"RW6","THE ROTHERHAM NHS FOUNDATION TRUST","RKBXXX","Non-hospital site"]
[null,null,null,null,null,null,null,null,null,null,null,null,null,null,null,null,null,null,null,null,"QNX","RXH","BRIGHTON AND SUSSEX UNIVERSITY HOSPITALS NHS TRUST","RXHXXX","Non-hospital site",null,"RWA","THE SHREWSBURY AND TELFORD HOSPITAL NHS TRUST",null,"RWA","THE SHREWSBURY AND TELFORD HOSPITAL NHS TRUST","RKEQ4","Non-hospital site"]
[null,null,null,null,null,null,null,null,null,null,null,null,null,null,null,null,null,null,null,null,"QNX","RXH","BRIGHTON AND SUSSEX UNIVERSITY HOSPITALS NHS TRUST","RXH09","Princess Royal Hospital",null,"RWD","UNITED LINCOLNSHIRE HOSPITALS NHS TRUST",null,"RWD","UNITED LINCOLNSHIRE HOSPITALS NHS TRUST","RKEXXX","Non-hospital site"]
[null,null,null,null,null,null,null,null,null,null,null,null,null,null,null,null,null,null,null,null,"QNX","RXH","BRIGHTON AND SUSSEX UNIVERSITY HOSPITALS NHS TRUST","RXH01","Royal Sussex County Hospital",null,"RWE","UNIVERSITY HOSPITAL SOUTHAMPTON NHS FOUNDATION TRUST",null,"RWE","UNIVERSITY HOSPITAL SOUTHAMPTON NHS FOUNDATION TRUST","RLT01","Non-hospital site"]
[null,null,null,null,null,null,null,null,null,null,null,null,null,null,null,null,null,null,null,null,"QNX","RXC","EAST SUSSEX HEALTHCARE NHS TRUST","RXCXXX","Non-hospital site",null,"RWF","UNIVERSITY HOSPITALS BIRMINGHAM NHS FOUNDATION TRUST",null,"RWF","UNIVERSITY HOSPITALS BIRMINGHAM NHS FOUNDATION TRUST","RM102","Non-hospital site"]
[null,null,null,null,null,null,null,null,null,null,null,null,null,null,null,null,null,null,null,null,"QNX","RXC","EAST SUSSEX HEALTHCARE NHS TRUST","RXC02","Eastbourne District General Hospital",null,"RWG","UNIVERSITY HOSPITALS BRISTOL AND WESTON NHS FOUNDATION TRUST",null,"RWG","UNIVERSITY HOSPITALS BRISTOL AND WESTON NHS FOUNDATION TRUST","RMC01","Non-hospital site"]
[null,null,null,null,null,null,null,null,null,null,null,null,null,null,null,null,null,null,null,null,"QNX","RXC","EAST SUSSEX HEALTHCARE NHS TRUST","RXC01","Conquest Hospital",null,"RWH","UNIVERSITY HOSPITALS COVENTRY AND WARWICKSHIRE NHS TRUST",null,"RWH","UNIVERSITY HOSPITALS COVENTRY AND WARWICKSHIRE NHS TRUST","RMP01","Non-hospital site"]
[null,null,null,null,null,null,null,null,null,null,null,null,null,null,null,null,null,null,null,null,"QNX","RYR","WESTERN SUSSEX HOSPITALS NHS FOUNDATION TRUST","RYR18","Worthing Hospital",null,"RWJ","UNIVERSITY HOSPITALS DORSET NHS FOUNDATION TRUST",null,"RWJ","UNIVERSITY HOSPITALS DORSET NHS FOUNDATION TRUST","RN325","Non-hospital site"]
[null,null,null,null,null,null,null,null,null,null,null,null,null,null,null,null,null,null,null,null,"QNX","RYR","WESTERN SUSSEX HOSPITALS NHS FOUNDATION TRUST","RYR16","St Richard's Hospital",null,"RWP","UNIVERSITY HOSPITALS OF DERBY AND BURTON NHS FOUNDATION TRUST",null,"RWP","UNIVERSITY HOSPITALS OF DERBY AND BURTON NHS FOUNDATION TRUST","RN3XXX","Non-hospital site"]
[null,null,null,null,null,null,null,null,null,null,null,null,null,null,null,null,null,null,null,null,"QOC","RXW","THE SHREWSBURY AND TELFORD HOSPITAL NHS TRUST","RXWAS","Royal Shrewsbury Hospital",null,"RWW","UNIVERSITY HOSPITALS OF LEICESTER NHS TRUST",null,"RWW","UNIVERSITY HOSPITALS OF LEICESTER NHS TRUST","RN506","Non-hospital site"]
[null,null,null,null,null,null,null,null,null,null,null,null,null,null,null,null,null,null,null,null,"QOC","RXW","THE SHREWSBURY AND TELFORD HOSPITAL NHS TRUST","RXWMB","Bridgnorth Hospital (Maternity)",null,"RWY","UNIVERSITY HOSPITALS OF MORECAMBE BAY NHS FOUNDATION TRUST",null,"RWY","UNIVERSITY HOSPITALS OF MORECAMBE BAY NHS FOUNDATION TRUST","RN541","Non-hospital site"]
[null,null,null,null,null,null,null,null,null,null,null,null,null,null,null,null,null,null,null,null,"QOC","RXW","THE SHREWSBURY AND TELFORD HOSPITAL NHS TRUST","RXWMJ","Robert Jones & Agnes Hunt Orthopaedic & District Hospital",null,"RX1","UNIVERSITY HOSPITALS OF NORTH MIDLANDS NHS TRUST",null,"RX1","UNIVERSITY HOSPITALS OF NORTH MIDLANDS NHS TRUST","RN542","Non-hospital site"]
[null,null,null,null,null,null,null,null,null,null,null,null,null,null,null,null,null,null,null,null,"QOC","RXW","THE SHREWSBURY AND TELFORD HOSPITAL NHS TRUST","RXWXXX","Non-hospital site",null,"RXC","UNIVERSITY HOSPITALS PLYMOUTH NHS TRUST",null,"RXC","UNIVERSITY HOSPITALS PLYMOUTH NHS TRUST","RN707","Non-hospital site"]
[null,null,null,null,null,null,null,null,null,null,null,null,null,null,null,null,null,null,null,null,"QOC","RXW","THE SHREWSBURY AND TELFORD HOSPITAL NHS TRUST","RXWAT","The Princess Royal Hospital",null,"RXF","WALSALL HEALTHCARE NHS TRUST",null,"RXF","WALSALL HEALTHCARE NHS TRUST","RNA01","Non-hospital site"]
[null,null,null,null,null,null,null,null,null,null,null,null,null,null,null,null,null,null,null,null,"QOP","RMC","BOLTON NHS FOUNDATION TRUST","RMC01","Royal Bolton Hospital",null,"RXH","WARRINGTON AND HALTON TEACHING HOSPITALS NHS FOUNDATION TRUST",null,"RXH","WARRINGTON AND HALTON TEACHING HOSPITALS NHS FOUNDATION TRUST","RNN62","Non-hospital site"]
[null,null,null,null,null,null,null,null,null,null,null,null,null,null,null,null,null,null,null,null,"QOP","R0A","MANCHESTER UNIVERSITY NHS FOUNDATION TRUST","R0A05","St Mary's Hospital",null,"RXK","WEST HERTFORDSHIRE HOSPITALS NHS TRUST",null,"RXK","WEST HERTFORDSHIRE HOSPITALS NHS TRUST","RNNBX","Non-hospital site"]
[null,null,null,null,null,null,null,null,null,null,null,null,null,null,null,null,null,null,null,null,"QOP","RW6","PENNINE ACUTE HOSPITALS NHS TRUST","RW602","North Manchester General Hospital",null,"RXL","WEST SUFFOLK NHS FOUNDATION TRUST",null,"RXL","WEST SUFFOLK NHS FOUNDATION TRUST","RNNKV","Norfolk and Norwich University Hospital"]
[null,null,null,null,null,null,null,null,null,null,null,null,null,null,null,null,null,null,null,null,"QOP","RW6","PENNINE ACUTE HOSPITALS NHS TRUST","RW603","Royal Oldham Hospital",null,"RXN","WESTERN SUSSEX HOSPITALS NHS FOUNDATION TRUST",null,"RXN","WESTERN SUSSEX HOSPITALS NHS FOUNDATION TRUST","RNNXXX","North Devon District Hospital"]
[null,null,null,null,null,null,null,null,null,null,null,null,null,null,null,null,null,null,null,null,"QOP","RWJ","STOCKPORT NHS FOUNDATION TRUST","RWJ09","Stepping Hill Hospital",null,"RXP","WHITTINGTON HEALTH NHS TRUST",null,"RXP","WHITTINGTON HEALTH NHS TRUST","RNQ51","North Manchester General Hospital"]
[null,null,null,null,null,null,null,null,null,null,null,null,null,null,null,null,null,null,null,null,"QOP","RMP","TAMESIDE AND GLOSSOP INTEGRATED CARE NHS FOUNDATION TRUST","RMP01","Tameside General Hospital",null,"RXQ","WIRRAL UNIVERSITY TEACHING HOSPITAL NHS FOUNDATION TRUST",null,"RXQ","WIRRAL UNIVERSITY TEACHING HOSPITAL NHS FOUNDATION TRUST","RNS01","Northampton General Hospital (Acute)"]
[null,null,null,null,null,null,null,null,null,null,null,null,null,null,null,null,null,null,null,null,"QOP","RRF","WRIGHTINGTON, WIGAN AND LEIGH NHS FOUNDATION TRUST","RRF02","Royal Albert Edward Infirmary",null,"RXR","WORCESTERSHIRE ACUTE HOSPITALS NHS TRUST",null,"RXR","WORCESTERSHIRE ACUTE HOSPITALS NHS TRUST","RNZ02","Northwick Park Hospital"]
[null,null,null,null,null,null,null,null,null,null,null,null,null,null,null,null,null,null,null,null,"QOQ","RCD","HARROGATE AND DISTRICT NHS FOUNDATION TRUST","RCD01","Harrogate District Hospital",null,"RXW","WRIGHTINGTON, WIGAN AND LEIGH NHS FOUNDATION TRUST",null,"RXW","WRIGHTINGTON, WIGAN AND LEIGH NHS FOUNDATION TRUST","RNZXXX","Nottingham University Hospitals NHS Trust - City Campus"]
[null,null,null,null,null,null,null,null,null,null,null,null,null,null,null,null,null,null,null,null,"QOQ","RWA","HULL UNIVERSITY TEACHING HOSPITALS NHS TRUST","RWA01","Hull Royal Infirmary",null,"RYJ","YEOVIL DISTRICT HOSPITAL NHS FOUNDATION TRUST",null,"RYJ","YEOVIL DISTRICT HOSPITAL NHS FOUNDATION TRUST","RP5BA","Ormskirk and District General Hospital"]
[null,null,null,null,null,null,null,null,null,null,null,null,null,null,null,null,null,null,null,null,"QOQ","RJL","NORTHERN LINCOLNSHIRE AND GOOLE NHS FOUNDATION TRUST","RJL30","Diana, Princess Of Wales Hospital",null,"RYR","YORK TEACHING HOSPITAL NHS FOUNDATION TRUST",null,"RYR","YORK TEACHING HOSPITAL NHS FOUNDATION TRUST","RP5DR","Penrith Hospital"]
[null,null,null,null,null,null,null,null,null,null,null,null,null,null,null,null,null,null,null,null,"QOQ","RJL","NORTHERN LINCOLNSHIRE AND GOOLE NHS FOUNDATION TRUST","RJL32","Scunthorpe General Hospital",null,null,null,null,null,null,"RP5XXX","Peterborough City Hospital"]
[null,null,null,null,null,null,null,null,null,null,null,null,null,null,null,null,null,null,null,null,"QOQ","RCB","YORK TEACHING HOSPITAL NHS FOUNDATION TRUST","RCB55","York Hospital",null,null,null,null,null,null,"RPA02","Petersfield Community Hospital"]
[null,null,null,null,null,null,null,null,null,null,null,null,null,null,null,null,null,null,null,null,"QOQ","RCB","YORK TEACHING HOSPITAL NHS FOUNDATION TRUST","RCBCA","Scarborough General Hospital",null,null,null,null,null,null,"RQ370","Pilgrim Hospital"]
[null,null,null,null,null,null,null,null,null,null,null,null,null,null,null,null,null,null,null,null,"QOX","RN3","GREAT WESTERN HOSPITALS NHS FOUNDATION TRUST","RN325","The Great Western Hospital",null,null,null,null,null,null,"RQM01","Pinderfields General Hospital"]
[null,null,null,null,null,null,null,null,null,null,null,null,null,null,null,null,null,null,null,null,"QOX","RN3","GREAT WESTERN HOSPITALS NHS FOUNDATION TRUST","RN3XXX","Non-hospital site",null,null,null,null,null,null,"RQM91","Pontefract General Infirmary"]
[null,null,null,null,null,null,null,null,null,null,null,null,null,null,null,null,null,null,null,null,"QOX","RD1","ROYAL UNITED HOSPITALS BATH NHS FOUNDATION TRUST","RD102","Chippenham Community Hospital",null,null,null,null,null,null,"RQWG0","Poole Hospital"]
[null,null,null,null,null,null,null,null,null,null,null,null,null,null,null,null,null,null,null,null,"QOX","RD1","ROYAL UNITED HOSPITALS BATH NHS FOUNDATION TRUST","RD108","Trowbridge Community Hospital",null,null,null,null,null,null,"RR801","Princess Alexandra Hospital"]
[null,null,null,null,null,null,null,null,null,null,null,null,null,null,null,null,null,null,null,null,"QOX","RD1","ROYAL UNITED HOSPITALS BATH NHS FOUNDATION TRUST","RD121","Frome Community Hospital",null,null,null,null,null,null,"RR813","Princess Anne Hospital"]
[null,null,null,null,null,null,null,null,null,null,null,null,null,null,null,null,null,null,null,null,"QOX","RD1","ROYAL UNITED HOSPITALS BATH NHS FOUNDATION TRUST","RD1XXX","Non Hospital Site",null,null,null,null,null,null,"RR8XXX","Princess Anne Wing RUH"]
[null,null,null,null,null,null,null,null,null,null,null,null,null,null,null,null,null,null,null,null,"QOX","RD1","ROYAL UNITED HOSPITALS BATH NHS FOUNDATION TRUST","RD130","Princess Anne Wing RUH",null,null,null,null,null,null,"RRF02","Princess Royal Hospital"]
[null,null,null,null,null,null,null,null,null,null,null,null,null,null,null,null,null,null,null,null,"QOX","RNZ","SALISBURY NHS FOUNDATION TRUST","RNZ02","Salisbury District Hospital",null,null,null,null,null,null,"RRK97","Princess Royal University Hospital"]
[null,null,null,null,null,null,null,null,null,null,null,null,null,null,null,null,null,null,null,null,"QOX","RNZ","SALISBURY NHS FOUNDATION TRUST","RNZXXX","Non-hospital site",null,null,null,null,null,null,"RRK98","Queen Alexandra Hospital"]
[null,null,null,null,null,null,null,null,null,null,null,null,null,null,null,null,null,null,null,null,"QPM","RNQ","KETTERING GENERAL HOSPITAL NHS FOUNDATION TRUST","RNQ51","Kettering General Hospital",null,null,null,null,null,null,"RRK99","Queen Charlotte's Hospital"]
[null,null,null,null,null,null,null,null,null,null,null,null,null,null,null,null,null,null,null,null,"QPM","RNS","NORTHAMPTON GENERAL HOSPITAL NHS TRUST","RNS01","Northampton General Hospital (Acute)",null,null,null,null,null,null,"RTE01","Queen Elizabeth Hospital"]
[null,null,null,null,null,null,null,null,null,null,null,null,null,null,null,null,null,null,null,null,"QR1","RTE","GLOUCESTERSHIRE HOSPITALS NHS FOUNDATION TRUST","RTEXXX","Non-hospital site",null,null,null,null,null,null,"RTE03","Queen's Hospital"]
[null,null,null,null,null,null,null,null,null,null,null,null,null,null,null,null,null,null,null,null,"QR1","RTE","GLOUCESTERSHIRE HOSPITALS NHS FOUNDATION TRUST","RTE01","Cheltenham General Hospital",null,null,null,null,null,null,"RTE27","Robert Jones & Agnes Hunt Orthopaedic & District Hospital"]
[null,null,null,null,null,null,null,null,null,null,null,null,null,null,null,null,null,null,null,null,"QR1","RTE","GLOUCESTERSHIRE HOSPITALS NHS FOUNDATION TRUST","RTE27","Stroud Maternity Hospital",null,null,null,null,null,null,"RTEXXX","Rosie Hospital"]
[null,null,null,null,null,null,null,null,null,null,null,null,null,null,null,null,null,null,null,null,"QR1","RTE","GLOUCESTERSHIRE HOSPITALS NHS FOUNDATION TRUST","RTE03","Gloucestershire Royal Hospital",null,null,null,null,null,null,"RTF86","Rotherham District General Hospital"]
[null,null,null,null,null,null,null,null,null,null,null,null,null,null,null,null,null,null,null,null,"QRL","RN5","HAMPSHIRE HOSPITALS NHS FOUNDATION TRUST","RN541","Royal Hampshire County Hospital",null,null,null,null,null,null,"RTFDH","Royal Albert Edward Infirmary"]
[null,null,null,null,null,null,null,null,null,null,null,null,null,null,null,null,null,null,null,null,"QRL","RN5","HAMPSHIRE HOSPITALS NHS FOUNDATION TRUST","RN542","Andover War Memorial Hospital",null,null,null,null,null,null,"RTFDJ","Royal Berkshire Hospital"]
[null,null,null,null,null,null,null,null,null,null,null,null,null,null,null,null,null,null,null,null,"QRL","RN5","HAMPSHIRE HOSPITALS NHS FOUNDATION TRUST","RN506","Basingstoke and North Hampshire Hospital",null,null,null,null,null,null,"RTFDR","Royal Blackburn Hospital"]
[null,null,null,null,null,null,null,null,null,null,null,null,null,null,null,null,null,null,null,null,"QRL","R1F","ISLE OF WIGHT NHS TRUST","R1F01","St Mary's Hospital",null,null,null,null,null,null,"RTFXXX","Royal Bolton Hospital"]
[null,null,null,null,null,null,null,null,null,null,null,null,null,null,null,null,null,null,null,null,"QRL","RHU","PORTSMOUTH HOSPITALS UNIVERSITY NATIONAL HEALTH SERVICE TRUST","RHU02","St Mary's Hospital",null,null,null,null,null,null,"RTGFG","Royal Bournemouth Hospital"]
[null,null,null,null,null,null,null,null,null,null,null,null,null,null,null,null,null,null,null,null,"QRL","RHU","PORTSMOUTH HOSPITALS UNIVERSITY NATIONAL HEALTH SERVICE TRUST","RHU03","Queen Alexandra Hospital",null,null,null,null,null,null,"RTH05","Royal Cornwall Hospital (Treliske)"]
[null,null,null,null,null,null,null,null,null,null,null,null,null,null,null,null,null,null,null,null,"QRL","RHU","PORTSMOUTH HOSPITALS UNIVERSITY NATIONAL HEALTH SERVICE TRUST","RHU04","Petersfield Community Hospital",null,null,null,null,null,null,"RTH08","Royal Derby Hospital"]
[null,null,null,null,null,null,null,null,null,null,null,null,null,null,null,null,null,null,null,null,"QRL","RHU","PORTSMOUTH HOSPITALS UNIVERSITY NATIONAL HEALTH SERVICE TRUST","RHU10","Gosport War Memorial Hospital",null,null,null,null,null,null,"RTH16","Royal Devon and Exeter Hospital (Wonford)"]
[null,null,null,null,null,null,null,null,null,null,null,null,null,null,null,null,null,null,null,null,"QRL","RHM","UNIVERSITY HOSPITAL SOUTHAMPTON NHS FOUNDATION TRUST","RHM12","Princess Anne Hospital",null,null,null,null,null,null,"RTH19","Royal Eye Infirmary"]
[null,null,null,null,null,null,null,null,null,null,null,null,null,null,null,null,null,null,null,null,"QRV","RQM","CHELSEA AND WESTMINSTER HOSPITAL NHS FOUNDATION TRUST","RQM91","West Middlesex University Hospital",null,null,null,null,null,null,"RTH21","Royal Free Hospital"]
[null,null,null,null,null,null,null,null,null,null,null,null,null,null,null,null,null,null,null,null,"QRV","RQM","CHELSEA AND WESTMINSTER HOSPITAL NHS FOUNDATION TRUST","RQM01","Chelsea and Westminster Hospital",null,null,null,null,null,null,"RTP04","Royal Hallamshire Hospital"]
[null,null,null,null,null,null,null,null,null,null,null,null,null,null,null,null,null,null,null,null,"QRV","RYJ","IMPERIAL COLLEGE HEALTHCARE NHS TRUST","RYJ01","St Mary's Hospital (HQ)",null,null,null,null,null,null,"RTR45","Royal Hampshire County Hospital"]
[null,null,null,null,null,null,null,null,null,null,null,null,null,null,null,null,null,null,null,null,"QRV","RYJ","IMPERIAL COLLEGE HEALTHCARE NHS TRUST","RYJ04","Queen Charlotte's Hospital",null,null,null,null,null,null,"RTRAT","Royal Lancaster Infirmary"]
[null,null,null,null,null,null,null,null,null,null,null,null,null,null,null,null,null,null,null,null,"QRV","R1K","LONDON NORTH WEST UNIVERSITY HEALTHCARE NHS TRUST","R1K01","Northwick Park Hospital",null,null,null,null,null,null,"RTX02","Royal Oldham Hospital"]
[null,null,null,null,null,null,null,null,null,null,null,null,null,null,null,null,null,null,null,null,"QRV","RAS","THE HILLINGDON HOSPITALS NHS FOUNDATION TRUST","RAS01","Hillingdon Hospital",null,null,null,null,null,null,"RTXBU","Royal Preston Hospital"]
[null,null,null,null,null,null,null,null,null,null,null,null,null,null,null,null,null,null,null,null,"QSL","RH5","SOMERSET NHS FOUNDATION TRUST","RH5A8","MUSGROVE PARK HOSPITAL",null,null,null,null,null,null,"RTXBW","Royal Shrewsbury Hospital"]
[null,null,null,null,null,null,null,null,null,null,null,null,null,null,null,null,null,null,null,null,"QSL","RA4","YEOVIL DISTRICT HOSPITAL NHS FOUNDATION TRUST","RA430","Yeovil District Hospital",null,null,null,null,null,null,"RVJ01","Royal Stoke University Hospital"]
[null,null,null,null,null,null,null,null,null,null,null,null,null,null,null,null,null,null,null,null,"QT1","RX1","NOTTINGHAM UNIVERSITY HOSPITALS NHS TRUST","RX1CC","Nottingham University Hospitals NHS Trust - City Campus",null,null,null,null,null,null,"RVR05","Royal Surrey County Hospital"]
[null,null,null,null,null,null,null,null,null,null,null,null,null,null,null,null,null,null,null,null,"QT1","RK5","SHERWOOD FOREST HOSPITALS NHS FOUNDATION TRUST","RK5BC","King's Mill Hospital",null,null,null,null,null,null,"RVR50","Royal Sussex County Hospital"]
[null,null,null,null,null,null,null,null,null,null,null,null,null,null,null,null,null,null,null,null,"QT1","RK5","SHERWOOD FOREST HOSPITALS NHS FOUNDATION TRUST","RK5XXX","Non-hospital site",null,null,null,null,null,null,"RVRXXX","Russells Hall Hospital"]
[null,null,null,null,null,null,null,null,null,null,null,null,null,null,null,null,null,null,null,null,"QT6","REF","ROYAL CORNWALL HOSPITALS NHS TRUST","REFXXX","Non-hospital site",null,null,null,null,null,null,"RVWAE","Salisbury District Hospital"]
[null,null,null,null,null,null,null,null,null,null,null,null,null,null,null,null,null,null,null,null,"QT6","REF","ROYAL CORNWALL HOSPITALS NHS TRUST","REF12","Royal Cornwall Hospital (Treliske)",null,null,null,null,null,null,"RVY02","Scarborough General Hospital"]
[null,null,null,null,null,null,null,null,null,null,null,null,null,null,null,null,null,null,null,null,"QU9","RXQ","BUCKINGHAMSHIRE HEALTHCARE NHS TRUST","RXQ02","Stoke Mandeville Hospital",null,null,null,null,null,null,"RW602","Scunthorpe General Hospital"]
[null,null,null,null,null,null,null,null,null,null,null,null,null,null,null,null,null,null,null,null,"QU9","RTH","OXFORD UNIVERSITY HOSPITALS NHS FOUNDATION TRUST","RTH05","Horton General Hospital",null,null,null,null,null,null,"RW603","Solihull Hospital"]
[null,null,null,null,null,null,null,null,null,null,null,null,null,null,null,null,null,null,null,null,"QU9","RTH","OXFORD UNIVERSITY HOSPITALS NHS FOUNDATION TRUST","RTH16","Wallingford Community Hospital",null,null,null,null,null,null,"RWA01","South Tyneside District Hospital"]
[null,null,null,null,null,null,null,null,null,null,null,null,null,null,null,null,null,null,null,null,"QU9","RTH","OXFORD UNIVERSITY HOSPITALS NHS FOUNDATION TRUST","RTH19","Chipping Norton Community Hospital",null,null,null,null,null,null,"RWDDA","Southend Hospital"]
[null,null,null,null,null,null,null,null,null,null,null,null,null,null,null,null,null,null,null,null,"QU9","RTH","OXFORD UNIVERSITY HOSPITALS NHS FOUNDATION TRUST","RTH21","Wantage Community Hospital",null,null,null,null,null,null,"RWDLA","Southmead Hospital"]
[null,null,null,null,null,null,null,null,null,null,null,null,null,null,null,null,null,null,null,null,"QU9","RTH","OXFORD UNIVERSITY HOSPITALS NHS FOUNDATION TRUST","RTH08","John Radcliffe Hospital",null,null,null,null,null,null,"RWDLP","St George's Hospital (Tooting)"]
[null,null,null,null,null,null,null,null,null,null,null,null,null,null,null,null,null,null,null,null,"QU9","RHW","ROYAL BERKSHIRE NHS FOUNDATION TRUST","RHW01","Royal Berkshire Hospital",null,null,null,null,null,null,"RWDXXX","St Helier Hospital"]
[null,null,null,null,null,null,null,null,null,null,null,null,null,null,null,null,null,null,null,null,"QUA","RXK","SANDWELL AND WEST BIRMINGHAM HOSPITALS NHS TRUST","RXK02","City Hospital",null,null,null,null,null,null,"RWE10","St James's University Hospital"]
[null,null,null,null,null,null,null,null,null,null,null,null,null,null,null,null,null,null,null,null,"QUA","RNA","THE DUDLEY GROUP NHS FOUNDATION TRUST","RNA01","Russells Hall Hospital",null,null,null,null,null,null,"RWEAA","St Mary's Hospital"]
[null,null,null,null,null,null,null,null,null,null,null,null,null,null,null,null,null,null,null,null,"QUA","RBK","WALSALL HEALTHCARE NHS TRUST","RBK02","Manor Hospital",null,null,null,null,null,null,"RWEAK","St Mary's Hospital"]
[null,null,null,null,null,null,null,null,null,null,null,null,null,null,null,null,null,null,null,null,"QUE","RGT","CAMBRIDGE UNIVERSITY HOSPITALS NHS FOUNDATION TRUST","RGT32","Rosie Hospital",null,null,null,null,null,null,"RWEXXX","St Mary's Hospital"]
[null,null,null,null,null,null,null,null,null,null,null,null,null,null,null,null,null,null,null,null,"QUE","RGN","NORTH WEST ANGLIA NHS FOUNDATION TRUST","RGN90","Hinchingbrooke Hospital",null,null,null,null,null,null,"RWF03","St Mary's Hospital"]
[null,null,null,null,null,null,null,null,null,null,null,null,null,null,null,null,null,null,null,null,"QUE","RGN","NORTH WEST ANGLIA NHS FOUNDATION TRUST","RGN80","Peterborough City Hospital",null,null,null,null,null,null,"RWF08","St Mary's Hospital (HQ)"]
[null,null,null,null,null,null,null,null,null,null,null,null,null,null,null,null,null,null,null,null,"QUY","RVJ","NORTH BRISTOL NHS TRUST","RVJ01","Southmead Hospital",null,null,null,null,null,null,"RWFTW","St Michael's Hospital"]
[null,null,null,null,null,null,null,null,null,null,null,null,null,null,null,null,null,null,null,null,"QUY","RA7","UNIVERSITY HOSPITALS BRISTOL AND WESTON NHS FOUNDATION TRUST","RA707","St Michael's Hospital",null,null,null,null,null,null,"RWFXXX","St Richard's Hospital"]
[null,null,null,null,null,null,null,null,null,null,null,null,null,null,null,null,null,null,null,null,"QVV","RBD","DORSET COUNTY HOSPITAL NHS FOUNDATION TRUST","RBD01","Dorset County Hospital",null,null,null,null,null,null,"RWG02","St Thomas' Hospital"]
[null,null,null,null,null,null,null,null,null,null,null,null,null,null,null,null,null,null,null,null,"QVV","R0D","UNIVERSITY HOSPITALS DORSET NHS FOUNDATION TRUST","R0D02","Royal Bournemouth Hospital",null,null,null,null,null,null,"RWH01","Stepping Hill Hospital"]
[null,null,null,null,null,null,null,null,null,null,null,null,null,null,null,null,null,null,null,null,"QVV","R0D","UNIVERSITY HOSPITALS DORSET NHS FOUNDATION TRUST","R0D01","Poole Hospital",null,null,null,null,null,null,"RWHXXX","Stoke Mandeville Hospital"]
[null,null,null,null,null,null,null,null,null,null,null,null,null,null,null,null,null,null,null,null,"QWE","RJ6","CROYDON HEALTH SERVICES NHS TRUST","RJ611","Croydon University Hospital",null,null,null,null,null,null,"RWJ09","Stroud Maternity Hospital"]
[null,null,null,null,null,null,null,null,null,null,null,null,null,null,null,null,null,null,null,null,"QWE","RVR","EPSOM AND ST HELIER UNIVERSITY HOSPITALS NHS TRUST","RVRXXX","Non-hospital site",null,null,null,null,null,null,"RWP50","Sunderland Royal Hospital"]
[null,null,null,null,null,null,null,null,null,null,null,null,null,null,null,null,null,null,null,null,"QWE","RVR","EPSOM AND ST HELIER UNIVERSITY HOSPITALS NHS TRUST","RVR05","St Helier Hospital",null,null,null,null,null,null,"RWWWH","Tameside General Hospital"]
[null,null,null,null,null,null,null,null,null,null,null,null,null,null,null,null,null,null,null,null,"QWE","RVR","EPSOM AND ST HELIER UNIVERSITY HOSPITALS NHS TRUST","RVR50","Epsom Hospital",null,null,null,null,null,null,"RWY02","The Great Western Hospital"]
[null,null,null,null,null,null,null,null,null,null,null,null,null,null,null,null,null,null,null,null,"QWE","RAX","KINGSTON HOSPITAL NHS FOUNDATION TRUST","RAX01","Kingston Hospital",null,null,null,null,null,null,"RX1CC","The James Cook University Hospital"]
[null,null,null,null,null,null,null,null,null,null,null,null,null,null,null,null,null,null,null,null,"QWE","RJ7","ST GEORGE'S UNIVERSITY HOSPITALS NHS FOUNDATION TRUST","RJ701","St George's Hospital (Tooting)",null,null,null,null,null,null,"RXC01","The Northumbria"]
[null,null,null,null,null,null,null,null,null,null,null,null,null,null,null,null,null,null,null,null,"QWO","RCF","AIREDALE NHS FOUNDATION TRUST","RCF22","Airedale General Hospital",null,null,null,null,null,null,"RXC02","The Princess Royal Hospital"]
[null,null,null,null,null,null,null,null,null,null,null,null,null,null,null,null,null,null,null,null,"QWO","RAE","BRADFORD TEACHING HOSPITALS NHS FOUNDATION TRUST","RAE01","Bradford Royal Infirmary",null,null,null,null,null,null,"RXCXXX","The Queen Elizabeth Hospital"]
[null,null,null,null,null,null,null,null,null,null,null,null,null,null,null,null,null,null,null,null,"QWO","RWY","CALDERDALE AND HUDDERSFIELD NHS FOUNDATION TRUST","RWY02","Calderdale Royal Hospital",null,null,null,null,null,null,"RXF03","The Royal London Hospital"]
[null,null,null,null,null,null,null,null,null,null,null,null,null,null,null,null,null,null,null,null,"QWO","RR8","LEEDS TEACHING HOSPITALS NHS TRUST","RR8XXX","Non-hospital site",null,null,null,null,null,null,"RXF05","The Tunbridge Wells Hospital"]
[null,null,null,null,null,null,null,null,null,null,null,null,null,null,null,null,null,null,null,null,"QWO","RR8","LEEDS TEACHING HOSPITALS NHS TRUST","RR813","St James's University Hospital",null,null,null,null,null,null,"RXF10","The Whittington Hospital"]
[null,null,null,null,null,null,null,null,null,null,null,null,null,null,null,null,null,null,null,null,"QWO","RR8","LEEDS TEACHING HOSPITALS NHS TRUST","RR801","Leeds General Infirmary",null,null,null,null,null,null,"RXFXXX","Trowbridge Community Hospital"]
[null,null,null,null,null,null,null,null,null,null,null,null,null,null,null,null,null,null,null,null,"QWO","RXF","MID YORKSHIRE HOSPITALS NHS TRUST","RXF03","Pontefract General Infirmary",null,null,null,null,null,null,"RXH01","University Hospital (Coventry)"]
[null,null,null,null,null,null,null,null,null,null,null,null,null,null,null,null,null,null,null,null,"QWO","RXF","MID YORKSHIRE HOSPITALS NHS TRUST","RXFXXX","Non-hospital site",null,null,null,null,null,null,"RXH09","University Hospital Lewisham"]
[null,null,null,null,null,null,null,null,null,null,null,null,null,null,null,null,null,null,null,null,"QWO","RXF","MID YORKSHIRE HOSPITALS NHS TRUST","RXF10","Dewsbury and District Hospital",null,null,null,null,null,null,"RXHXXX","University Hospital Of North Durham"]
[null,null,null,null,null,null,null,null,null,null,null,null,null,null,null,null,null,null,null,null,"QWO","RXF","MID YORKSHIRE HOSPITALS NHS TRUST","RXF05","Pinderfields General Hospital",null,null,null,null,null,null,"RXK02","University Hospital Of North Tees"]
[null,null,null,null,null,null,null,null,null,null,null,null,null,null,null,null,null,null,null,null,"QWU","RLT","GEORGE ELIOT HOSPITAL NHS TRUST","RLT01","George Eliot Hospital - Acute Services",null,null,null,null,null,null,"RXL01","Wallingford Community Hospital"]
[null,null,null,null,null,null,null,null,null,null,null,null,null,null,null,null,null,null,null,null,"QWU","RJC","SOUTH WARWICKSHIRE NHS FOUNDATION TRUST","RJC02","Warwick Hospital",null,null,null,null,null,null,"RXN01","Wantage Community Hospital"]
[null,null,null,null,null,null,null,null,null,null,null,null,null,null,null,null,null,null,null,null,"QWU","RJC","SOUTH WARWICKSHIRE NHS FOUNDATION TRUST","RJCXXX","Non-hospital site",null,null,null,null,null,null,"RXN02","Warrington Hospital"]
[null,null,null,null,null,null,null,null,null,null,null,null,null,null,null,null,null,null,null,null,"QWU","RKB","UNIVERSITY HOSPITALS COVENTRY AND WARWICKSHIRE NHS TRUST","RKB03","Hospital Of St Cross",null,null,null,null,null,null,"RXPCP","Warwick Hospital"]
[null,null,null,null,null,null,null,null,null,null,null,null,null,null,null,null,null,null,null,null,"QWU","RKB","UNIVERSITY HOSPITALS COVENTRY AND WARWICKSHIRE NHS TRUST","RKBXXX","Non-hospital site",null,null,null,null,null,null,"RXPDA","Watford General Hospital"]
[null,null,null,null,null,null,null,null,null,null,null,null,null,null,null,null,null,null,null,null,"QWU","RKB","UNIVERSITY HOSPITALS COVENTRY AND WARWICKSHIRE NHS TRUST","RKB01","University Hospital (Coventry)",null,null,null,null,null,null,"RXQ02","West Cumberland Hospital"]
[null,null,null,null,null,null,null,null,null,null,null,null,null,null,null,null,null,null,null,null,"QXU","RA2","ROYAL SURREY COUNTY HOSPITAL NHS FOUNDATION TRUST","RA201","Royal Surrey County Hospital",null,null,null,null,null,null,"RXR20","West Middlesex University Hospital"]
[null,null,null,null,null,null,null,null,null,null,null,null,null,null,null,null,null,null,null,null,"QXU","RTP","SURREY AND SUSSEX HEALTHCARE NHS TRUST","RTP04","East Surrey Hospital",null,null,null,null,null,null,"RXWAS","West Suffolk Hospital"]
[null,null,null,null,null,null,null,null,null,null,null,null,null,null,null,null,null,null,null,null,"QYG","RJR","COUNTESS OF CHESTER HOSPITAL NHS FOUNDATION TRUST","RJR05","Countess Of Chester Hospital",null,null,null,null,null,null,"RXWAT","Westmorland General Hospital"]
[null,null,null,null,null,null,null,null,null,null,null,null,null,null,null,null,null,null,null,null,"QYG","RJN","EAST CHESHIRE NHS TRUST","RJN71","Macclesfield District General Hospital",null,null,null,null,null,null,"RXWMB","Wexham Park Hospital"]
[null,null,null,null,null,null,null,null,null,null,null,null,null,null,null,null,null,null,null,null,"QYG","REP","LIVERPOOL WOMEN'S NHS FOUNDATION TRUST","REP01","Liverpool Womens Hospital",null,null,null,null,null,null,"RXWMJ","Whipps Cross University Hospital"]
[null,null,null,null,null,null,null,null,null,null,null,null,null,null,null,null,null,null,null,null,"QYG","RBT","MID CHESHIRE HOSPITALS NHS FOUNDATION TRUST","RBT20","Leighton Hospital",null,null,null,null,null,null,"RXWXXX","Whiston Hospital"]
[null,null,null,null,null,null,null,null,null,null,null,null,null,null,null,null,null,null,null,null,"QYG","RVY","SOUTHPORT AND ORMSKIRK HOSPITAL NHS TRUST","RVY02","Ormskirk and District General Hospital",null,null,null,null,null,null,"RYJ01","Worcestershire Royal Hospital"]
[null,null,null,null,null,null,null,null,null,null,null,null,null,null,null,null,null,null,null,null,"QYG","RBN","ST HELENS AND KNOWSLEY TEACHING HOSPITALS NHS TRUST","RBN01","Whiston Hospital",null,null,null,null,null,null,"RYJ04","Worthing Hospital"]
[null,null,null,null,null,null,null,null,null,null,null,null,null,null,null,null,null,null,null,null,"QYG","RWW","WARRINGTON AND HALTON TEACHING HOSPITALS NHS FOUNDATION TRUST","RWWWH","Warrington Hospital",null,null,null,null,null,null,"RYR16","Yeovil District Hospital"]
[null,null,null,null,null,null,null,null,null,null,null,null,null,null,null,null,null,null,null,null,"QYG","RBL","WIRRAL UNIVERSITY TEACHING HOSPITAL NHS FOUNDATION TRUST","RBL14","Arrowe Park Hospital",null,null,null,null,null,null,"RYR18","York Hospital"]

{"sheet":"BSQ3","index":15,"n_rows":162,"n_cols":33,"rows_kept":162,"cut":false,"hidden":true,"merged":[]}
[null,"Sort","Region (LO)","Region (LO)","Trusts","Trusts","Sites","Sites",null,"Sort ranges:","Sort range…","Sort range…","Sort range…","Reference Region List:","Code…","Name…","Linked Region List:","Code…","Name…","Reference Lists:","Code…","Code…","Name…","Code…","Name…","Trusts Linked Lists:","Code…","Name…","Site Linked Lists:","Code…","Name…","Code…","Name…"]
["Region (LO)",1,1,1,"-","-","-","-",null,null,"Region (LO) Code","Region (LO) Code","Region (LO) Code",null,"QE1","HEALTHIER LANCASHIRE AND SOUTH CUMBRIA",null,"QE1","HEALTHIER LANCASHIRE AND SOUTH CUMBRIA",null,"QE1","RXR","EAST LANCASHIRE HOSPITALS NHS TRUST","RXR20","Royal Blackburn Hospital",null,"R0A","AIREDALE NHS FOUNDATION TRUST",null,"R0A","AIREDALE NHS FOUNDATION TRUST","#N/A","(blank)"]
["Trusts",1,1,1,1,1,"-","-",null,null,"Region (Local Office)","Trust Code","Trust Code",null,"QF7","SOUTH YORKSHIRE AND BASSETLAW STP",null,"QF7","SOUTH YORKSHIRE AND BASSETLAW STP",null,"QE1","RXN","LANCASHIRE TEACHING HOSPITALS NHS FOUNDATION TRUST","RXN01","Chorley and South Ribble Hospital",null,"R0B","BARKING, HAVERING AND REDBRIDGE UNIVERSITY HOSPITALS NHS TRUST",null,"R0B","BARKING, HAVERING AND REDBRIDGE UNIVERSITY HOSPITALS NHS TRUST","R0A05","Airedale General Hospital"]
["Sites",1,1,1,1,1,1,1,null,null,"Total Responses","Trust Name","Trust Name",null,"QGH","HEREFORDSHIRE AND WORCESTERSHIRE STP",null,"QGH","HEREFORDSHIRE AND WORCESTERSHIRE STP",null,"QE1","RXN","LANCASHIRE TEACHING HOSPITALS NHS FOUNDATION TRUST","RXN02","Royal Preston Hospital",null,"R0D","BARNSLEY HOSPITAL NHS FOUNDATION TRUST",null,"R0D","BARNSLEY HOSPITAL NHS FOUNDATION TRUST","R0B01","Alnwick Infirmary"]
[null,null,null,null,null,null,null,null,null,null,"Percentage Recommended","Total Responses","Site Code",null,"QH8","MID AND SOUTH ESSEX STP",null,"QH8","MID AND SOUTH ESSEX STP",null,"QE1","RTX","UNIVERSITY HOSPITALS OF MORECAMBE BAY NHS FOUNDATION TRUST","RTXBW","Westmorland General Hospital",null,"R1F","BARTS HEALTH NHS TRUST",null,"R1F","BARTS HEALTH NHS TRUST","R0B0Q","Arrowe Park Hospital"]
[null,null,null,null,null,null,null,null,null,null,"Percentage Not  Recommended","Percentage Recommended","Site Name",null,"QHG","BEDFORDSHIRE, LUTON AND MILTON KEYNES STP",null,"QHG","BEDFORDSHIRE, LUTON AND MILTON KEYNES STP",null,"QE1","RTX","UNIVERSITY HOSPITALS OF MORECAMBE BAY NHS FOUNDATION TRUST","RTXBU","Furness General Hospital",null,"R1H","BEDFORDSHIRE HOSPITALS NHS FOUNDATION TRUST",null,"R1H","BEDFORDSHIRE HOSPITALS NHS FOUNDATION TRUST","R0D01","Barnet Hospital"]
[null,null,null,null,null,null,null,null,null,null,"Extremely Likely","Percentage Not  Recommended","Total Responses",null,"QHL","BIRMINGHAM AND SOLIHULL STP",null,"QHL","BIRMINGHAM AND SOLIHULL STP",null,"QE1","RTX","UNIVERSITY HOSPITALS OF MORECAMBE BAY NHS FOUNDATION TRUST","RTX02","Royal Lancaster Infirmary",null,"R1K","BIRMINGHAM WOMEN'S AND CHILDREN'S NHS FOUNDATION TRUST",null,"R1K","BIRMINGHAM WOMEN'S AND CHILDREN'S NHS FOUNDATION TRUST","R1F01","Barnsley Hospital NHS Foundation Trust HQ"]
[null,null,null,null,null,null,null,null,null,null,"Likely","Extremely Likely","Percentage Recommended",null,"QHM","CUMBRIA AND NORTH EAST STP",null,"QHM","CUMBRIA AND NORTH EAST STP",null,"QF7","RFF","BARNSLEY HOSPITAL NHS FOUNDATION TRUST","RFFAA","Barnsley Hospital NHS Foundation Trust HQ",null,"RA2","BRADFORD TEACHING HOSPITALS NHS FOUNDATION TRUST",null,"RA2","BRADFORD TEACHING HOSPITALS NHS FOUNDATION TRUST","R1H12","BASILDON HOSPITAL"]
[null,null,null,null,null,null,null,null,null,null,"Neither","Likely","Percentage Not  Recommended",null,"QJ2","JOINED UP CARE DERBYSHIRE STP",null,"QJ2","JOINED UP CARE DERBYSHIRE STP",null,"QF7","RP5","DONCASTER AND BASSETLAW TEACHING HOSPITALS NHS FOUNDATION TRUST","RP5BA","Bassetlaw Hospital",null,"RA4","BRIGHTON AND SUSSEX UNIVERSITY HOSPITALS NHS TRUST",null,"RA4","BRIGHTON AND SUSSEX UNIVERSITY HOSPITALS NHS TRUST","R1HKH","Basingstoke and North Hampshire Hospital"]
[null,null,null,null,null,null,null,null,null,null,"Unlikely","Neither","Extremely Likely",null,"QJG","SUFFOLK AND NORTH EAST ESSEX ICS",null,"QJG","SUFFOLK AND NORTH EAST ESSEX ICS",null,"QF7","RP5","DONCASTER AND BASSETLAW TEACHING HOSPITALS NHS FOUNDATION TRUST","RP5DR","Doncaster Royal Infirmary",null,"RA7","BUCKINGHAMSHIRE HEALTHCARE NHS TRUST",null,"RA7","BUCKINGHAMSHIRE HEALTHCARE NHS TRUST","R1HNH","Bassetlaw Hospital"]
[null,null,null,null,null,null,null,null,null,null,"Extremely Unlikely","Unlikely","Likely",null,"QJK","DEVON STP",null,"QJK","DEVON STP",null,"QF7","RHQ","SHEFFIELD TEACHING HOSPITALS NHS FOUNDATION TRUST","RHQHH","Royal Hallamshire Hospital",null,"RAE","CAMBRIDGE UNIVERSITY HOSPITALS NHS FOUNDATION TRUST",null,"RAE","CAMBRIDGE UNIVERSITY HOSPITALS NHS FOUNDATION TRUST","R1K01","BEDFORD HOSPITAL SOUTH WING"]
[null,null,null,null,null,null,null,null,null,null,"Don't Know","Extremely Unlikely","Neither",null,"QJM","LINCOLNSHIRE STP",null,"QJM","LINCOLNSHIRE STP",null,"QF7","RFR","THE ROTHERHAM NHS FOUNDATION TRUST","RFRPA","Rotherham District General Hospital",null,"RAJ","CHELSEA AND WESTMINSTER HOSPITAL NHS FOUNDATION TRUST",null,"RAJ","CHELSEA AND WESTMINSTER HOSPITAL NHS FOUNDATION TRUST","RA201","Berwick Infirmary"]
[null,null,null,null,null,null,null,null,null,null,null,"Don't Know","Unlikely",null,"QK1","LEICESTER, LEICESTERSHIRE AND RUTLAND STP",null,"QK1","LEICESTER, LEICESTERSHIRE AND RUTLAND STP",null,"QGH","RWP","WORCESTERSHIRE ACUTE HOSPITALS NHS TRUST","RWP50","Worcestershire Royal Hospital",null,"RAL","CHESTERFIELD ROYAL HOSPITAL NHS FOUNDATION TRUST",null,"RAL","CHESTERFIELD ROYAL HOSPITAL NHS FOUNDATION TRUST","RA430","Birmingham Treatment Centre"]
[null,null,null,null,null,null,null,null,null,null,null,"SMS/Text / Smartphone App","Extremely Unlikely",null,"QKK","OUR HEALTHIER SOUTH EAST LONDON STP",null,"QKK","OUR HEALTHIER SOUTH EAST LONDON STP",null,"QGH","RLQ","WYE VALLEY NHS TRUST","RLQ01","Hereford County Hospital",null,"RAS","COUNTESS OF CHESTER HOSPITAL NHS FOUNDATION TRUST",null,"RAS","COUNTESS OF CHESTER HOSPITAL NHS FOUNDATION TRUST","RA707","Birmingham Women's Hospital"]
[null,null,null,null,null,null,null,null,null,null,null,"Electronic tablet/kiosk at point of discharge","Don't Know",null,"QKS","KENT AND MEDWAY STP",null,"QKS","KENT AND MEDWAY STP",null,"QH8","RAJ","MID AND SOUTH ESSEX NHS FOUNDATION TRUST","RAJ01","Southend Hospital",null,"RBD","COUNTY DURHAM AND DARLINGTON NHS FOUNDATION TRUST",null,"RBD","COUNTY DURHAM AND DARLINGTON NHS FOUNDATION TRUST","RAE01","Bradford Royal Infirmary"]
[null,null,null,null,null,null,null,null,null,null,null,"Paper / postcard at point of discharge",null,null,"QM7","HERTFORDSHIRE AND WEST ESSEX STP",null,"QM7","HERTFORDSHIRE AND WEST ESSEX STP",null,"QH8","RAJ","MID AND SOUTH ESSEX NHS FOUNDATION TRUST","RAJ32","MID ESSEX HOSPITAL",null,"RBK","CROYDON HEALTH SERVICES NHS TRUST",null,"RBK","CROYDON HEALTH SERVICES NHS TRUST","RAJ01","Bridgnorth Hospital (Maternity)"]
[null,null,null,null,null,null,null,null,null,null,null,"Paper survey, sent to the patients home",null,null,"QMF","EAST LONDON HEALTH & CARE PARTNERSHIP (STP)",null,"QMF","EAST LONDON HEALTH & CARE PARTNERSHIP (STP)",null,"QH8","RAJ","MID AND SOUTH ESSEX NHS FOUNDATION TRUST","RAJ12","BASILDON HOSPITAL",null,"RBL","DARTFORD AND GRAVESHAM NHS TRUST",null,"RBL","DARTFORD AND GRAVESHAM NHS TRUST","RAJ12","Chelsea and Westminster Hospital"]
[null,null,null,null,null,null,null,null,null,null,null,"Telephone survey once patient is home",null,null,"QMJ","NORTH LONDON PARTNERS IN HEALTH & CARE (STP)",null,"QMJ","NORTH LONDON PARTNERS IN HEALTH & CARE (STP)",null,"QHG","RC9","BEDFORDSHIRE HOSPITALS NHS FOUNDATION TRUST","RC979","BEDFORD HOSPITAL SOUTH WING",null,"RBN","DONCASTER AND BASSETLAW TEACHING HOSPITALS NHS FOUNDATION TRUST",null,"RBN","DONCASTER AND BASSETLAW TEACHING HOSPITALS NHS FOUNDATION TRUST","RAJ32","Cheltenham General Hospital"]
[null,null,null,null,null,null,null,null,null,null,null,"Online survey once patient is home",null,null,"QMM","NORFOLK AND WAVENEY HEALTH & CARE PARTNERSHIP (STP)",null,"QMM","NORFOLK AND WAVENEY HEALTH & CARE PARTNERSHIP (STP)",null,"QHG","RC9","BEDFORDSHIRE HOSPITALS NHS FOUNDATION TRUST","RC971","Luton and Dunstable Hospital",null,"RBT","DORSET COUNTY HOSPITAL NHS FOUNDATION TRUST",null,"RBT","DORSET COUNTY HOSPITAL NHS FOUNDATION TRUST","RAL01","Chesterfield Royal Hospital"]
[null,null,null,null,null,null,null,null,null,null,null,"Other",null,null,"QNC","STAFFORDSHIRE & STOKE ON TRENT STP",null,"QNC","STAFFORDSHIRE & STOKE ON TRENT STP",null,"QHG","RD8","MILTON KEYNES UNIVERSITY HOSPITAL NHS FOUNDATION TRUST","RD816","Milton Keynes Hospital",null,"RBZ","EAST AND NORTH HERTFORDSHIRE NHS TRUST",null,"RBZ","EAST AND NORTH HERTFORDSHIRE NHS TRUST","RAL26","Chipping Norton Community Hospital"]
[null,null,null,null,null,null,null,null,null,null,null,null,null,null,"QNQ","FRIMLEY HEALTH & CARE (STP)",null,"QNQ","FRIMLEY HEALTH & CARE (STP)",null,"QHL","RQ3","BIRMINGHAM WOMEN'S AND CHILDREN'S NHS FOUNDATION TRUST","RQ370","Birmingham Women's Hospital",null,"RC9","EAST CHESHIRE NHS TRUST",null,"RC9","EAST CHESHIRE NHS TRUST","RAS01","Chorley and South Ribble Hospital"]
[null,null,null,null,null,null,null,null,null,null,null,null,null,null,"QNX","SUSSEX HEALTH AND CARE PARTNERSHIP",null,"QNX","SUSSEX HEALTH AND CARE PARTNERSHIP",null,"QHL","RRK","UNIVERSITY HOSPITALS BIRMINGHAM NHS FOUNDATION TRUST","RRK97","Heartlands Hospital",null,"RCB","EAST LANCASHIRE HOSPITALS NHS TRUST",null,"RCB","EAST LANCASHIRE HOSPITALS NHS TRUST","RBD01","City Hospital"]
[null,null,null,null,null,null,null,null,null,null,null,null,null,null,"QOC","SHROPSHIRE AND TELFORD AND WREKIN STP",null,"QOC","SHROPSHIRE AND TELFORD AND WREKIN STP",null,"QHL","RRK","UNIVERSITY HOSPITALS BIRMINGHAM NHS FOUNDATION TRUST","RRK99","Solihull Hospital",null,"RCD","EAST SUFFOLK AND NORTH ESSEX NHS FOUNDATION TRUST",null,"RCD","EAST SUFFOLK AND NORTH ESSEX NHS FOUNDATION TRUST","RBK02","Colchester General Hospital"]
[null,null,null,null,null,null,null,null,null,null,null,null,null,null,"QOP","GREATER MANCHESTER HEALTH & SOCIAL CARE PARTNERSHIP",null,"QOP","GREATER MANCHESTER HEALTH & SOCIAL CARE PARTNERSHIP",null,"QHL","RRK","UNIVERSITY HOSPITALS BIRMINGHAM NHS FOUNDATION TRUST","RRK98","Good Hope Hospital",null,"RCF","EAST SUSSEX HEALTHCARE NHS TRUST",null,"RCF","EAST SUSSEX HEALTHCARE NHS TRUST","RBL14","Conquest Hospital"]
[null,null,null,null,null,null,null,null,null,null,null,null,null,null,"QOQ","HUMBER, COAST AND VALE STP",null,"QOQ","HUMBER, COAST AND VALE STP",null,"QHM","RXP","COUNTY DURHAM AND DARLINGTON NHS FOUNDATION TRUST","RXPDA","Darlington Memorial Hospital",null,"RCX","EPSOM AND ST HELIER UNIVERSITY HOSPITALS NHS TRUST",null,"RCX","EPSOM AND ST HELIER UNIVERSITY HOSPITALS NHS TRUST","RBN01","Countess Of Chester Hospital"]
[null,null,null,null,null,null,null,null,null,null,null,null,null,null,"QOX","BATH AND NORTH EAST SOMERSET, SWINDON AND WILTSHIRE STP",null,"QOX","BATH AND NORTH EAST SOMERSET, SWINDON AND WILTSHIRE STP",null,"QHM","RNN","NORTH CUMBRIA INTEGRATED CARE NHS FOUNDATION TRUST","RNN62","Cumberland Infirmary",null,"RD1","FRIMLEY HEALTH NHS FOUNDATION TRUST",null,"RD1","FRIMLEY HEALTH NHS FOUNDATION TRUST","RBT20","Croydon University Hospital"]
[null,null,null,null,null,null,null,null,null,null,null,null,null,null,"QPM","NORTHAMPTONSHIRE STP",null,"QPM","NORTHAMPTONSHIRE STP",null,"QHM","RNN","NORTH CUMBRIA INTEGRATED CARE NHS FOUNDATION TRUST","RNNBX","West Cumberland Hospital",null,"RD8","GEORGE ELIOT HOSPITAL NHS TRUST",null,"RD8","GEORGE ELIOT HOSPITAL NHS TRUST","RBZ12","Cumberland Infirmary"]
[null,null,null,null,null,null,null,null,null,null,null,null,null,null,"QR1","GLOUCESTERSHIRE STP",null,"QR1","GLOUCESTERSHIRE STP",null,"QHM","RVW","NORTH TEES AND HARTLEPOOL NHS FOUNDATION TRUST","RVWAE","University Hospital Of North Tees",null,"RDE","GLOUCESTERSHIRE HOSPITALS NHS FOUNDATION TRUST",null,"RDE","GLOUCESTERSHIRE HOSPITALS NHS FOUNDATION TRUST","RC971","Darent Valley Hospital"]
[null,null,null,null,null,null,null,null,null,null,null,null,null,null,"QRL","HAMPSHIRE AND THE ISLE OF WIGHT STP",null,"QRL","HAMPSHIRE AND THE ISLE OF WIGHT STP",null,"QHM","RTF","NORTHUMBRIA HEALTHCARE NHS FOUNDATION TRUST","RTFDH","Berwick Infirmary",null,"RDU","GREAT WESTERN HOSPITALS NHS FOUNDATION TRUST",null,"RDU","GREAT WESTERN HOSPITALS NHS FOUNDATION TRUST","RC979","Darlington Memorial Hospital"]
[null,null,null,null,null,null,null,null,null,null,null,null,null,null,"QRV","NORTH WEST LONDON HEALTH & CARE PARTNERSHIP (STP)",null,"QRV","NORTH WEST LONDON HEALTH & CARE PARTNERSHIP (STP)",null,"QHM","RTF","NORTHUMBRIA HEALTHCARE NHS FOUNDATION TRUST","RTFDR","Hexham General Hospital",null,"REF","GUY'S AND ST THOMAS' NHS FOUNDATION TRUST",null,"REF","GUY'S AND ST THOMAS' NHS FOUNDATION TRUST","RCB55","Derriford Hospital"]
[null,null,null,null,null,null,null,null,null,null,null,null,null,null,"QSL","SOMERSET STP",null,"QSL","SOMERSET STP",null,"QHM","RTF","NORTHUMBRIA HEALTHCARE NHS FOUNDATION TRUST","RTFDJ","Alnwick Infirmary",null,"REP","HAMPSHIRE HOSPITALS NHS FOUNDATION TRUST",null,"REP","HAMPSHIRE HOSPITALS NHS FOUNDATION TRUST","RCBCA","Doncaster Royal Infirmary"]
[null,null,null,null,null,null,null,null,null,null,null,null,null,null,"QT1","NOTTINGHAM AND NOTTINGHAMSHIRE HEALTH AND CARE STP",null,"QT1","NOTTINGHAM AND NOTTINGHAMSHIRE HEALTH AND CARE STP",null,"QHM","RTF","NORTHUMBRIA HEALTHCARE NHS FOUNDATION TRUST","RTF86","The Northumbria",null,"RF4","HARROGATE AND DISTRICT NHS FOUNDATION TRUST",null,"RF4","HARROGATE AND DISTRICT NHS FOUNDATION TRUST","RCD01","Dorset County Hospital"]
[null,null,null,null,null,null,null,null,null,null,null,null,null,null,"QT6","CORNWALL AND THE ISLES OF SCILLY HEALTH & SOCIAL CARE PARTNERSHIP (STP)",null,"QT6","CORNWALL AND THE ISLES OF SCILLY HEALTH & SOCIAL CARE PARTNERSHIP (STP)",null,"QHM","RTR","SOUTH TEES HOSPITALS NHS FOUNDATION TRUST","RTRAT","The James Cook University Hospital",null,"RFF","HULL UNIVERSITY TEACHING HOSPITALS NHS TRUST",null,"RFF","HULL UNIVERSITY TEACHING HOSPITALS NHS TRUST","RCF22","East Surrey Hospital"]
[null,null,null,null,null,null,null,null,null,null,null,null,null,null,"QU9","BUCKINGHAMSHIRE, OXFORDSHIRE AND BERKSHIRE WEST STP",null,"QU9","BUCKINGHAMSHIRE, OXFORDSHIRE AND BERKSHIRE WEST STP",null,"QHM","R0B","SOUTH TYNESIDE AND SUNDERLAND NHS FOUNDATION TRUST","R0B01","Sunderland Royal Hospital",null,"RFR","IMPERIAL COLLEGE HEALTHCARE NHS TRUST",null,"RFR","IMPERIAL COLLEGE HEALTHCARE NHS TRUST","RCX70","Eastbourne District General Hospital"]
[null,null,null,null,null,null,null,null,null,null,null,null,null,null,"QUA","THE BLACK COUNTRY AND WEST BIRMINGHAM STP",null,"QUA","THE BLACK COUNTRY AND WEST BIRMINGHAM STP",null,"QHM","R0B","SOUTH TYNESIDE AND SUNDERLAND NHS FOUNDATION TRUST","R0B0Q","South Tyneside District Hospital",null,"RFS","ISLE OF WIGHT NHS TRUST",null,"RFS","ISLE OF WIGHT NHS TRUST","RD130","Epsom Hospital"]
[null,null,null,null,null,null,null,null,null,null,null,null,null,null,"QUE","CAMBRIDGESHIRE AND PETERBOROUGH STP",null,"QUE","CAMBRIDGESHIRE AND PETERBOROUGH STP",null,"QJ2","RFS","CHESTERFIELD ROYAL HOSPITAL NHS FOUNDATION TRUST","RFSDA","Chesterfield Royal Hospital",null,"RGN","KING'S COLLEGE HOSPITAL NHS FOUNDATION TRUST",null,"RGN","KING'S COLLEGE HOSPITAL NHS FOUNDATION TRUST","RD816","Frimley Park Hospital"]
[null,null,null,null,null,null,null,null,null,null,null,null,null,null,"QUY","BRISTOL, NORTH SOMERSET AND SOUTH GLOUCESTERSHIRE STP",null,"QUY","BRISTOL, NORTH SOMERSET AND SOUTH GLOUCESTERSHIRE STP",null,"QJ2","RTG","UNIVERSITY HOSPITALS OF DERBY AND BURTON NHS FOUNDATION TRUST","RTG02","Queens Hospital, Burton Upon Trent",null,"RGR","LANCASHIRE TEACHING HOSPITALS NHS FOUNDATION TRUST",null,"RGR","LANCASHIRE TEACHING HOSPITALS NHS FOUNDATION TRUST","RDE03","Furness General Hospital"]
[null,null,null,null,null,null,null,null,null,null,null,null,null,null,"QVV","DORSET STP",null,"QVV","DORSET STP",null,"QJ2","RTG","UNIVERSITY HOSPITALS OF DERBY AND BURTON NHS FOUNDATION TRUST","RTGFG","Royal Derby Hospital",null,"RGT","LEEDS TEACHING HOSPITALS NHS TRUST",null,"RGT","LEEDS TEACHING HOSPITALS NHS TRUST","RDEE4","George Eliot Hospital - Acute Services"]
[null,null,null,null,null,null,null,null,null,null,null,null,null,null,"QWE","SOUTH WEST LONDON HEALTH & CARE PARTNERSHIP (STP)",null,"QWE","SOUTH WEST LONDON HEALTH & CARE PARTNERSHIP (STP)",null,"QJG","RDE","EAST SUFFOLK AND NORTH ESSEX NHS FOUNDATION TRUST","RDE03","Ipswich Hospital",null,"RH5","LEWISHAM AND GREENWICH NHS TRUST",null,"RH5","LEWISHAM AND GREENWICH NHS TRUST","RDU01","Gloucestershire Royal Hospital"]
[null,null,null,null,null,null,null,null,null,null,null,null,null,null,"QWO","WEST YORKSHIRE AND HARROGATE HEALTH & CARE PARTNERSHIP (STP)",null,"QWO","WEST YORKSHIRE AND HARROGATE HEALTH & CARE PARTNERSHIP (STP)",null,"QJG","RDE","EAST SUFFOLK AND NORTH ESSEX NHS FOUNDATION TRUST","RDEE4","Colchester General Hospital",null,"RH8","LIVERPOOL WOMEN'S NHS FOUNDATION TRUST",null,"RH8","LIVERPOOL WOMEN'S NHS FOUNDATION TRUST","RDU50","Good Hope Hospital"]
[null,null,null,null,null,null,null,null,null,null,null,null,null,null,"QWU","COVENTRY AND WARWICKSHIRE STP",null,"QWU","COVENTRY AND WARWICKSHIRE STP",null,"QJG","RGR","WEST SUFFOLK NHS FOUNDATION TRUST","RGR50","West Suffolk Hospital",null,"RHM","LONDON NORTH WEST UNIVERSITY HEALTHCARE NHS TRUST",null,"RHM","LONDON NORTH WEST UNIVERSITY HEALTHCARE NHS TRUST","REF12","Gosport War Memorial Hospital"]
[null,null,null,null,null,null,null,null,null,null,null,null,null,null,"QXU","SURREY HEARTLANDS HEALTH & CARE PARTNERSHIP (STP)",null,"QXU","SURREY HEARTLANDS HEALTH & CARE PARTNERSHIP (STP)",null,"QJK","RBZ","NORTHERN DEVON HEALTHCARE NHS TRUST","RBZ12","North Devon District Hospital",null,"RHQ","MAIDSTONE AND TUNBRIDGE WELLS NHS TRUST",null,"RHQ","MAIDSTONE AND TUNBRIDGE WELLS NHS TRUST","REFXXX","Grantham and District Hospital"]
[null,null,null,null,null,null,null,null,null,null,null,null,null,null,"QYG","CHESHIRE AND MERSEYSIDE STP",null,"QYG","CHESHIRE AND MERSEYSIDE STP",null,"QJK","RH8","ROYAL DEVON AND EXETER NHS FOUNDATION TRUST","RH801","Royal Devon and Exeter Hospital (Wonford)",null,"RHU","MANCHESTER UNIVERSITY NHS FOUNDATION TRUST",null,"RHU","MANCHESTER UNIVERSITY NHS FOUNDATION TRUST","REP01","Harrogate District Hospital"]
[null,null,null,null,null,null,null,null,null,null,null,null,null,null,"zIS1","Independent Sector Provider",null,"zIS1","Independent Sector Provider",null,"QJK","RK9","UNIVERSITY HOSPITALS PLYMOUTH NHS TRUST","RK950","Derriford Hospital",null,"RHW","MEDWAY NHS FOUNDATION TRUST",null,"RHW","MEDWAY NHS FOUNDATION TRUST","RF4QH","Heartlands Hospital"]
[null,null,null,null,null,null,null,null,null,null,null,null,null,null,null,null,null,null,null,null,"QJM","RWD","UNITED LINCOLNSHIRE HOSPITALS NHS TRUST","RWDLA","Pilgrim Hospital",null,"RJ1","MID AND SOUTH ESSEX NHS FOUNDATION TRUST",null,"RJ1","MID AND SOUTH ESSEX NHS FOUNDATION TRUST","RFFAA","Hereford County Hospital"]
[null,null,null,null,null,null,null,null,null,null,null,null,null,null,null,null,null,null,null,null,"QJM","RWD","UNITED LINCOLNSHIRE HOSPITALS NHS TRUST","RWDLP","Grantham and District Hospital",null,"RJ2","MID CHESHIRE HOSPITALS NHS FOUNDATION TRUST",null,"RJ2","MID CHESHIRE HOSPITALS NHS FOUNDATION TRUST","RFRPA","Hexham General Hospital"]
[null,null,null,null,null,null,null,null,null,null,null,null,null,null,null,null,null,null,null,null,"QJM","RWD","UNITED LINCOLNSHIRE HOSPITALS NHS TRUST","RWDDA","Lincoln County Hospital",null,"RJ6","MID YORKSHIRE HOSPITALS NHS TRUST",null,"RJ6","MID YORKSHIRE HOSPITALS NHS TRUST","RFSDA","Hillingdon Hospital"]
[null,null,null,null,null,null,null,null,null,null,null,null,null,null,null,null,null,null,null,null,"QK1","RWE","UNIVERSITY HOSPITALS OF LEICESTER NHS TRUST","RWE10","St Mary's Hospital",null,"RJ7","MILTON KEYNES UNIVERSITY HOSPITAL NHS FOUNDATION TRUST",null,"RJ7","MILTON KEYNES UNIVERSITY HOSPITAL NHS FOUNDATION TRUST","RGN80","Hinchingbrooke Hospital"]
[null,null,null,null,null,null,null,null,null,null,null,null,null,null,null,null,null,null,null,null,"QK1","RWE","UNIVERSITY HOSPITALS OF LEICESTER NHS TRUST","RWEAK","Leicester General Hospital",null,"RJC","NORFOLK AND NORWICH UNIVERSITY HOSPITALS NHS FOUNDATION TRUST",null,"RJC","NORFOLK AND NORWICH UNIVERSITY HOSPITALS NHS FOUNDATION TRUST","RGN90","Hull Royal Infirmary"]
[null,null,null,null,null,null,null,null,null,null,null,null,null,null,null,null,null,null,null,null,"QK1","RWE","UNIVERSITY HOSPITALS OF LEICESTER NHS TRUST","RWEAA","Leicester Royal Infirmary",null,"RJE","NORTH BRISTOL NHS TRUST",null,"RJE","NORTH BRISTOL NHS TRUST","RGR50","Ipswich Hospital"]
[null,null,null,null,null,null,null,null,null,null,null,null,null,null,null,null,null,null,null,null,"QKK","RJ1","GUY'S AND ST THOMAS' NHS FOUNDATION TRUST","RJ122","St Thomas' Hospital",null,"RJL","NORTH CUMBRIA INTEGRATED CARE NHS FOUNDATION TRUST",null,"RJL","NORTH CUMBRIA INTEGRATED CARE NHS FOUNDATION TRUST","RGT32","John Radcliffe Hospital"]
[null,null,null,null,null,null,null,null,null,null,null,null,null,null,null,null,null,null,null,null,"QKK","RJZ","KING'S COLLEGE HOSPITAL NHS FOUNDATION TRUST","RJZ01","King's College Hospital (Denmark Hill)",null,"RJN","NORTH TEES AND HARTLEPOOL NHS FOUNDATION TRUST",null,"RJN","NORTH TEES AND HARTLEPOOL NHS FOUNDATION TRUST","RH5A8","King's College Hospital (Denmark Hill)"]
[null,null,null,null,null,null,null,null,null,null,null,null,null,null,null,null,null,null,null,null,"QKK","RJZ","KING'S COLLEGE HOSPITAL NHS FOUNDATION TRUST","RJZ30","Princess Royal University Hospital",null,"RJR","NORTH WEST ANGLIA NHS FOUNDATION TRUST",null,"RJR","NORTH WEST ANGLIA NHS FOUNDATION TRUST","RH801","King's Mill Hospital"]
[null,null,null,null,null,null,null,null,null,null,null,null,null,null,null,null,null,null,null,null,"QKK","RJ2","LEWISHAM AND GREENWICH NHS TRUST","RJ231","Queen Elizabeth Hospital",null,"RJZ","NORTHAMPTON GENERAL HOSPITAL NHS TRUST",null,"RJZ","NORTHAMPTON GENERAL HOSPITAL NHS TRUST","RHM12","Leeds General Infirmary"]
[null,null,null,null,null,null,null,null,null,null,null,null,null,null,null,null,null,null,null,null,"QKK","RJ2","LEWISHAM AND GREENWICH NHS TRUST","RJ224","University Hospital Lewisham",null,"RK5","NORTHERN DEVON HEALTHCARE NHS TRUST",null,"RK5","NORTHERN DEVON HEALTHCARE NHS TRUST","RHQHH","Leicester General Hospital"]
[null,null,null,null,null,null,null,null,null,null,null,null,null,null,null,null,null,null,null,null,"QKS","RN7","DARTFORD AND GRAVESHAM NHS TRUST","RN707","Darent Valley Hospital",null,"RK9","NORTHERN LINCOLNSHIRE AND GOOLE NHS FOUNDATION TRUST",null,"RK9","NORTHERN LINCOLNSHIRE AND GOOLE NHS FOUNDATION TRUST","RHU02","Leicester Royal Infirmary"]
[null,null,null,null,null,null,null,null,null,null,null,null,null,null,null,null,null,null,null,null,"QKS","RWF","MAIDSTONE AND TUNBRIDGE WELLS NHS TRUST","RWFTW","The Tunbridge Wells Hospital",null,"RKB","NORTHUMBRIA HEALTHCARE NHS FOUNDATION TRUST",null,"RKB","NORTHUMBRIA HEALTHCARE NHS FOUNDATION TRUST","RHU03","Leighton Hospital"]
[null,null,null,null,null,null,null,null,null,null,null,null,null,null,null,null,null,null,null,null,"QKS","RPA","MEDWAY NHS FOUNDATION TRUST","RPA02","Medway Maritime Hospital",null,"RKE","NOTTINGHAM UNIVERSITY HOSPITALS NHS TRUST",null,"RKE","NOTTINGHAM UNIVERSITY HOSPITALS NHS TRUST","RHU04","Lincoln County Hospital"]
[null,null,null,null,null,null,null,null,null,null,null,null,null,null,null,null,null,null,null,null,"QM7","RWH","EAST AND NORTH HERTFORDSHIRE NHS TRUST","RWH01","Lister Hospital",null,"RLQ","OXFORD UNIVERSITY HOSPITALS NHS FOUNDATION TRUST",null,"RLQ","OXFORD UNIVERSITY HOSPITALS NHS FOUNDATION TRUST","RHU10","Lister Hospital"]
[null,null,null,null,null,null,null,null,null,null,null,null,null,null,null,null,null,null,null,null,"QM7","RQW","THE PRINCESS ALEXANDRA HOSPITAL NHS TRUST","RQWG0","Princess Alexandra Hospital",null,"RLT","PENNINE ACUTE HOSPITALS NHS TRUST",null,"RLT","PENNINE ACUTE HOSPITALS NHS TRUST","RHW01","Liverpool Womens Hospital"]
[null,null,null,null,null,null,null,null,null,null,null,null,null,null,null,null,null,null,null,null,"QM7","RWG","WEST HERTFORDSHIRE HOSPITALS NHS TRUST","RWG02","Watford General Hospital",null,"RM1","PORTSMOUTH HOSPITALS UNIVERSITY NATIONAL HEALTH SERVICE TRUST",null,"RM1","PORTSMOUTH HOSPITALS UNIVERSITY NATIONAL HEALTH SERVICE TRUST","RJ122","Luton and Dunstable Hospital"]
[null,null,null,null,null,null,null,null,null,null,null,null,null,null,null,null,null,null,null,null,"QMF","RF4","BARKING, HAVERING AND REDBRIDGE UNIVERSITY HOSPITALS NHS TRUST","RF4QH","Queen's Hospital",null,"RMP","ROYAL BERKSHIRE NHS FOUNDATION TRUST",null,"RMP","ROYAL BERKSHIRE NHS FOUNDATION TRUST","RJ224","Macclesfield District General Hospital"]
[null,null,null,null,null,null,null,null,null,null,null,null,null,null,null,null,null,null,null,null,"QMF","R1H","BARTS HEALTH NHS TRUST","R1H12","The Royal London Hospital",null,"RN3","ROYAL CORNWALL HOSPITALS NHS TRUST",null,"RN3","ROYAL CORNWALL HOSPITALS NHS TRUST","RJ231","Manor Hospital"]
[null,null,null,null,null,null,null,null,null,null,null,null,null,null,null,null,null,null,null,null,"QMF","R1H","BARTS HEALTH NHS TRUST","R1HKH","Whipps Cross University Hospital",null,"RN5","ROYAL DEVON AND EXETER NHS FOUNDATION TRUST",null,"RN5","ROYAL DEVON AND EXETER NHS FOUNDATION TRUST","RJ611","Medway Maritime Hospital"]
[null,null,null,null,null,null,null,null,null,null,null,null,null,null,null,null,null,null,null,null,"QMF","R1H","BARTS HEALTH NHS TRUST","R1HNH","Newham General Hospital",null,"RN7","ROYAL FREE LONDON NHS FOUNDATION TRUST",null,"RN7","ROYAL FREE LONDON NHS FOUNDATION TRUST","RJ701","MID ESSEX HOSPITAL"]
[null,null,null,null,null,null,null,null,null,null,null,null,null,null,null,null,null,null,null,null,"QMJ","RAL","ROYAL FREE LONDON NHS FOUNDATION TRUST","RAL26","Barnet Hospital",null,"RNA","ROYAL SURREY COUNTY HOSPITAL NHS FOUNDATION TRUST",null,"RNA","ROYAL SURREY COUNTY HOSPITAL NHS FOUNDATION TRUST","RJC02","Milton Keynes Hospital"]
[null,null,null,null,null,null,null,null,null,null,null,null,null,null,null,null,null,null,null,null,"QMJ","RAL","ROYAL FREE LONDON NHS FOUNDATION TRUST","RAL01","Royal Free Hospital",null,"RNN","ROYAL UNITED HOSPITALS BATH NHS FOUNDATION TRUST",null,"RNN","ROYAL UNITED HOSPITALS BATH NHS FOUNDATION TRUST","RJE01","MUSGROVE PARK HOSPITAL"]
[null,null,null,null,null,null,null,null,null,null,null,null,null,null,null,null,null,null,null,null,"QMJ","RKE","WHITTINGTON HEALTH NHS TRUST","RKEXXX","Non-hospital site",null,"RNS","SALISBURY NHS FOUNDATION TRUST",null,"RNS","SALISBURY NHS FOUNDATION TRUST","RJN71","Newham General Hospital"]
[null,null,null,null,null,null,null,null,null,null,null,null,null,null,null,null,null,null,null,null,"QMJ","RKE","WHITTINGTON HEALTH NHS TRUST","RKEQ4","The Whittington Hospital",null,"RNZ","SANDWELL AND WEST BIRMINGHAM HOSPITALS NHS TRUST",null,"RNZ","SANDWELL AND WEST BIRMINGHAM HOSPITALS NHS TRUST","RJR05","Non-hospital site"]
[null,null,null,null,null,null,null,null,null,null,null,null,null,null,null,null,null,null,null,null,"QMM","RM1","NORFOLK AND NORWICH UNIVERSITY HOSPITALS NHS FOUNDATION TRUST","RM102","Norfolk and Norwich University Hospital",null,"RP5","SHEFFIELD TEACHING HOSPITALS NHS FOUNDATION TRUST",null,"RP5","SHEFFIELD TEACHING HOSPITALS NHS FOUNDATION TRUST","RJZ01","Non-hospital site"]
[null,null,null,null,null,null,null,null,null,null,null,null,null,null,null,null,null,null,null,null,"QMM","RCX","THE QUEEN ELIZABETH HOSPITAL, KING'S LYNN, NHS FOUNDATION TRUST","RCX70","The Queen Elizabeth Hospital",null,"RPA","SHERWOOD FOREST HOSPITALS NHS FOUNDATION TRUST",null,"RPA","SHERWOOD FOREST HOSPITALS NHS FOUNDATION TRUST","RJZ30","Non-hospital site"]
[null,null,null,null,null,null,null,null,null,null,null,null,null,null,null,null,null,null,null,null,"QNC","RJE","UNIVERSITY HOSPITALS OF NORTH MIDLANDS NHS TRUST","RJE01","Royal Stoke University Hospital",null,"RQ3","SOMERSET NHS FOUNDATION TRUST",null,"RQ3","SOMERSET NHS FOUNDATION TRUST","RK5BC","Norfolk and Norwich University Hospital"]
[null,null,null,null,null,null,null,null,null,null,null,null,null,null,null,null,null,null,null,null,"QNQ","RDU","FRIMLEY HEALTH NHS FOUNDATION TRUST","RDU01","Frimley Park Hospital",null,"RQM","SOUTH TEES HOSPITALS NHS FOUNDATION TRUST",null,"RQM","SOUTH TEES HOSPITALS NHS FOUNDATION TRUST","RK950","North Devon District Hospital"]
[null,null,null,null,null,null,null,null,null,null,null,null,null,null,null,null,null,null,null,null,"QNQ","RDU","FRIMLEY HEALTH NHS FOUNDATION TRUST","RDU50","Wexham Park Hospital",null,"RQW","SOUTH TYNESIDE AND SUNDERLAND NHS FOUNDATION TRUST",null,"RQW","SOUTH TYNESIDE AND SUNDERLAND NHS FOUNDATION TRUST","RKB01","North Manchester General Hospital"]
[null,null,null,null,null,null,null,null,null,null,null,null,null,null,null,null,null,null,null,null,"QNX","RXH","BRIGHTON AND SUSSEX UNIVERSITY HOSPITALS NHS TRUST","RXH09","Princess Royal Hospital",null,"RR8","SOUTH WARWICKSHIRE NHS FOUNDATION TRUST",null,"RR8","SOUTH WARWICKSHIRE NHS FOUNDATION TRUST","RKEQ4","Northampton General Hospital (Acute)"]
[null,null,null,null,null,null,null,null,null,null,null,null,null,null,null,null,null,null,null,null,"QNX","RXH","BRIGHTON AND SUSSEX UNIVERSITY HOSPITALS NHS TRUST","RXH01","Royal Sussex County Hospital",null,"RRK","SOUTHPORT AND ORMSKIRK HOSPITAL NHS TRUST",null,"RRK","SOUTHPORT AND ORMSKIRK HOSPITAL NHS TRUST","RKEXXX","Northwick Park Hospital"]
[null,null,null,null,null,null,null,null,null,null,null,null,null,null,null,null,null,null,null,null,"QNX","RXC","EAST SUSSEX HEALTHCARE NHS TRUST","RXC02","Eastbourne District General Hospital",null,"RTE","ST GEORGE'S UNIVERSITY HOSPITALS NHS FOUNDATION TRUST",null,"RTE","ST GEORGE'S UNIVERSITY HOSPITALS NHS FOUNDATION TRUST","RLQ01","Nottingham University Hospitals NHS Trust - City Campus"]
[null,null,null,null,null,null,null,null,null,null,null,null,null,null,null,null,null,null,null,null,"QNX","RXC","EAST SUSSEX HEALTHCARE NHS TRUST","RXC01","Conquest Hospital",null,"RTF","ST HELENS AND KNOWSLEY TEACHING HOSPITALS NHS TRUST",null,"RTF","ST HELENS AND KNOWSLEY TEACHING HOSPITALS NHS TRUST","RLT01","Nottingham University Hospitals NHS Trust - Queen's Medical Centre Campus"]
[null,null,null,null,null,null,null,null,null,null,null,null,null,null,null,null,null,null,null,null,"QNX","RYR","WESTERN SUSSEX HOSPITALS NHS FOUNDATION TRUST","RYR18","Worthing Hospital",null,"RTG","STOCKPORT NHS FOUNDATION TRUST",null,"RTG","STOCKPORT NHS FOUNDATION TRUST","RM102","Ormskirk and District General Hospital"]
[null,null,null,null,null,null,null,null,null,null,null,null,null,null,null,null,null,null,null,null,"QNX","RYR","WESTERN SUSSEX HOSPITALS NHS FOUNDATION TRUST","RYR16","St Richard's Hospital",null,"RTH","SURREY AND SUSSEX HEALTHCARE NHS TRUST",null,"RTH","SURREY AND SUSSEX HEALTHCARE NHS TRUST","RMP01","Peterborough City Hospital"]
[null,null,null,null,null,null,null,null,null,null,null,null,null,null,null,null,null,null,null,null,"QOC","RXW","THE SHREWSBURY AND TELFORD HOSPITAL NHS TRUST","RXWAS","Royal Shrewsbury Hospital",null,"RTP","TAMESIDE AND GLOSSOP INTEGRATED CARE NHS FOUNDATION TRUST",null,"RTP","TAMESIDE AND GLOSSOP INTEGRATED CARE NHS FOUNDATION TRUST","RN325","Petersfield Community Hospital"]
[null,null,null,null,null,null,null,null,null,null,null,null,null,null,null,null,null,null,null,null,"QOC","RXW","THE SHREWSBURY AND TELFORD HOSPITAL NHS TRUST","RXWMB","Bridgnorth Hospital (Maternity)",null,"RTR","THE DUDLEY GROUP NHS FOUNDATION TRUST",null,"RTR","THE DUDLEY GROUP NHS FOUNDATION TRUST","RN506","Pilgrim Hospital"]
[null,null,null,null,null,null,null,null,null,null,null,null,null,null,null,null,null,null,null,null,"QOC","RXW","THE SHREWSBURY AND TELFORD HOSPITAL NHS TRUST","RXWMJ","Robert Jones & Agnes Hunt Orthopaedic & District Hospital",null,"RTX","THE HILLINGDON HOSPITALS NHS FOUNDATION TRUST",null,"RTX","THE HILLINGDON HOSPITALS NHS FOUNDATION TRUST","RN541","Pinderfields General Hospital"]
[null,null,null,null,null,null,null,null,null,null,null,null,null,null,null,null,null,null,null,null,"QOC","RXW","THE SHREWSBURY AND TELFORD HOSPITAL NHS TRUST","RXWAT","The Princess Royal Hospital",null,"RVJ","THE PRINCESS ALEXANDRA HOSPITAL NHS TRUST",null,"RVJ","THE PRINCESS ALEXANDRA HOSPITAL NHS TRUST","RN707","Poole Hospital"]
[null,null,null,null,null,null,null,null,null,null,null,null,null,null,null,null,null,null,null,null,"QOP","R0A","MANCHESTER UNIVERSITY NHS FOUNDATION TRUST","R0A05","St Mary's Hospital",null,"RVR","THE QUEEN ELIZABETH HOSPITAL, KING'S LYNN, NHS FOUNDATION TRUST",null,"RVR","THE QUEEN ELIZABETH HOSPITAL, KING'S LYNN, NHS FOUNDATION TRUST","RNA01","Princess Alexandra Hospital"]
[null,null,null,null,null,null,null,null,null,null,null,null,null,null,null,null,null,null,null,null,"QOP","RW6","PENNINE ACUTE HOSPITALS NHS TRUST","RW602","North Manchester General Hospital",null,"RVW","THE ROTHERHAM NHS FOUNDATION TRUST",null,"RVW","THE ROTHERHAM NHS FOUNDATION TRUST","RNN62","Princess Anne Hospital"]
[null,null,null,null,null,null,null,null,null,null,null,null,null,null,null,null,null,null,null,null,"QOP","RW6","PENNINE ACUTE HOSPITALS NHS TRUST","RW603","Royal Oldham Hospital",null,"RVY","THE SHREWSBURY AND TELFORD HOSPITAL NHS TRUST",null,"RVY","THE SHREWSBURY AND TELFORD HOSPITAL NHS TRUST","RNNBX","Princess Anne Wing RUH"]
[null,null,null,null,null,null,null,null,null,null,null,null,null,null,null,null,null,null,null,null,"QOP","RWJ","STOCKPORT NHS FOUNDATION TRUST","RWJ09","Stepping Hill Hospital",null,"RW6","UNITED LINCOLNSHIRE HOSPITALS NHS TRUST",null,"RW6","UNITED LINCOLNSHIRE HOSPITALS NHS TRUST","RNS01","Princess Royal Hospital"]
[null,null,null,null,null,null,null,null,null,null,null,null,null,null,null,null,null,null,null,null,"QOP","RMP","TAMESIDE AND GLOSSOP INTEGRATED CARE NHS FOUNDATION TRUST","RMP01","Tameside General Hospital",null,"RWA","UNIVERSITY HOSPITAL SOUTHAMPTON NHS FOUNDATION TRUST",null,"RWA","UNIVERSITY HOSPITAL SOUTHAMPTON NHS FOUNDATION TRUST","RNZ02","Princess Royal University Hospital"]
[null,null,null,null,null,null,null,null,null,null,null,null,null,null,null,null,null,null,null,null,"QOQ","RCD","HARROGATE AND DISTRICT NHS FOUNDATION TRUST","RCD01","Harrogate District Hospital",null,"RWD","UNIVERSITY HOSPITALS BIRMINGHAM NHS FOUNDATION TRUST",null,"RWD","UNIVERSITY HOSPITALS BIRMINGHAM NHS FOUNDATION TRUST","RP5BA","Queen Alexandra Hospital"]
[null,null,null,null,null,null,null,null,null,null,null,null,null,null,null,null,null,null,null,null,"QOQ","RWA","HULL UNIVERSITY TEACHING HOSPITALS NHS TRUST","RWA01","Hull Royal Infirmary",null,"RWE","UNIVERSITY HOSPITALS BRISTOL AND WESTON NHS FOUNDATION TRUST",null,"RWE","UNIVERSITY HOSPITALS BRISTOL AND WESTON NHS FOUNDATION TRUST","RP5DR","Queen Charlotte's Hospital"]
[null,null,null,null,null,null,null,null,null,null,null,null,null,null,null,null,null,null,null,null,"QOQ","RJL","NORTHERN LINCOLNSHIRE AND GOOLE NHS FOUNDATION TRUST","#N/A","(blank)",null,"RWF","UNIVERSITY HOSPITALS COVENTRY AND WARWICKSHIRE NHS TRUST",null,"RWF","UNIVERSITY HOSPITALS COVENTRY AND WARWICKSHIRE NHS TRUST","RPA02","Queen Elizabeth Hospital"]
[null,null,null,null,null,null,null,null,null,null,null,null,null,null,null,null,null,null,null,null,"QOQ","RCB","YORK TEACHING HOSPITAL NHS FOUNDATION TRUST","RCBCA","Scarborough General Hospital",null,"RWG","UNIVERSITY HOSPITALS DORSET NHS FOUNDATION TRUST",null,"RWG","UNIVERSITY HOSPITALS DORSET NHS FOUNDATION TRUST","RQ370","Queen's Hospital"]
[null,null,null,null,null,null,null,null,null,null,null,null,null,null,null,null,null,null,null,null,"QOQ","RCB","YORK TEACHING HOSPITAL NHS FOUNDATION TRUST","RCB55","York Hospital",null,"RWH","UNIVERSITY HOSPITALS OF DERBY AND BURTON NHS FOUNDATION TRUST",null,"RWH","UNIVERSITY HOSPITALS OF DERBY AND BURTON NHS FOUNDATION TRUST","RQM01","Queens Hospital, Burton Upon Trent"]
[null,null,null,null,null,null,null,null,null,null,null,null,null,null,null,null,null,null,null,null,"QOX","RN3","GREAT WESTERN HOSPITALS NHS FOUNDATION TRUST","RN325","The Great Western Hospital",null,"RWJ","UNIVERSITY HOSPITALS OF LEICESTER NHS TRUST",null,"RWJ","UNIVERSITY HOSPITALS OF LEICESTER NHS TRUST","RQM91","Robert Jones & Agnes Hunt Orthopaedic & District Hospital"]
[null,null,null,null,null,null,null,null,null,null,null,null,null,null,null,null,null,null,null,null,"QOX","RD1","ROYAL UNITED HOSPITALS BATH NHS FOUNDATION TRUST","RD130","Princess Anne Wing RUH",null,"RWP","UNIVERSITY HOSPITALS OF MORECAMBE BAY NHS FOUNDATION TRUST",null,"RWP","UNIVERSITY HOSPITALS OF MORECAMBE BAY NHS FOUNDATION TRUST","RQWG0","Rosie Hospital"]
[null,null,null,null,null,null,null,null,null,null,null,null,null,null,null,null,null,null,null,null,"QOX","RNZ","SALISBURY NHS FOUNDATION TRUST","RNZ02","Salisbury District Hospital",null,"RWW","UNIVERSITY HOSPITALS OF NORTH MIDLANDS NHS TRUST",null,"RWW","UNIVERSITY HOSPITALS OF NORTH MIDLANDS NHS TRUST","RR801","Rotherham District General Hospital"]
[null,null,null,null,null,null,null,null,null,null,null,null,null,null,null,null,null,null,null,null,"QPM","RNS","NORTHAMPTON GENERAL HOSPITAL NHS TRUST","RNS01","Northampton General Hospital (Acute)",null,"RX1","UNIVERSITY HOSPITALS PLYMOUTH NHS TRUST",null,"RX1","UNIVERSITY HOSPITALS PLYMOUTH NHS TRUST","RR813","Royal Berkshire Hospital"]
[null,null,null,null,null,null,null,null,null,null,null,null,null,null,null,null,null,null,null,null,"QR1","RTE","GLOUCESTERSHIRE HOSPITALS NHS FOUNDATION TRUST","RTE01","Cheltenham General Hospital",null,"RXC","WALSALL HEALTHCARE NHS TRUST",null,"RXC","WALSALL HEALTHCARE NHS TRUST","RRK97","Royal Blackburn Hospital"]
[null,null,null,null,null,null,null,null,null,null,null,null,null,null,null,null,null,null,null,null,"QR1","RTE","GLOUCESTERSHIRE HOSPITALS NHS FOUNDATION TRUST","RTE27","Stroud Maternity Hospital",null,"RXF","WARRINGTON AND HALTON TEACHING HOSPITALS NHS FOUNDATION TRUST",null,"RXF","WARRINGTON AND HALTON TEACHING HOSPITALS NHS FOUNDATION TRUST","RRK98","Royal Cornwall Hospital (Treliske)"]
[null,null,null,null,null,null,null,null,null,null,null,null,null,null,null,null,null,null,null,null,"QR1","RTE","GLOUCESTERSHIRE HOSPITALS NHS FOUNDATION TRUST","RTEXXX","Non-hospital site",null,"RXH","WEST HERTFORDSHIRE HOSPITALS NHS TRUST",null,"RXH","WEST HERTFORDSHIRE HOSPITALS NHS TRUST","RRK99","Royal Derby Hospital"]
[null,null,null,null,null,null,null,null,null,null,null,null,null,null,null,null,null,null,null,null,"QR1","RTE","GLOUCESTERSHIRE HOSPITALS NHS FOUNDATION TRUST","RTE03","Gloucestershire Royal Hospital",null,"RXK","WEST SUFFOLK NHS FOUNDATION TRUST",null,"RXK","WEST SUFFOLK NHS FOUNDATION TRUST","RTE01","Royal Devon and Exeter Hospital (Wonford)"]
[null,null,null,null,null,null,null,null,null,null,null,null,null,null,null,null,null,null,null,null,"QRL","RN5","HAMPSHIRE HOSPITALS NHS FOUNDATION TRUST","RN541","Royal Hampshire County Hospital",null,"RXN","WESTERN SUSSEX HOSPITALS NHS FOUNDATION TRUST",null,"RXN","WESTERN SUSSEX HOSPITALS NHS FOUNDATION TRUST","RTE03","Royal Free Hospital"]
[null,null,null,null,null,null,null,null,null,null,null,null,null,null,null,null,null,null,null,null,"QRL","RN5","HAMPSHIRE HOSPITALS NHS FOUNDATION TRUST","RN506","Basingstoke and North Hampshire Hospital",null,"RXP","WHITTINGTON HEALTH NHS TRUST",null,"RXP","WHITTINGTON HEALTH NHS TRUST","RTE27","Royal Hallamshire Hospital"]
[null,null,null,null,null,null,null,null,null,null,null,null,null,null,null,null,null,null,null,null,"QRL","R1F","ISLE OF WIGHT NHS TRUST","R1F01","St Mary's Hospital",null,"RXQ","WIRRAL UNIVERSITY TEACHING HOSPITAL NHS FOUNDATION TRUST",null,"RXQ","WIRRAL UNIVERSITY TEACHING HOSPITAL NHS FOUNDATION TRUST","RTEXXX","Royal Hampshire County Hospital"]
[null,null,null,null,null,null,null,null,null,null,null,null,null,null,null,null,null,null,null,null,"QRL","RHU","PORTSMOUTH HOSPITALS UNIVERSITY NATIONAL HEALTH SERVICE TRUST","RHU02","St Mary's Hospital",null,"RXR","WORCESTERSHIRE ACUTE HOSPITALS NHS TRUST",null,"RXR","WORCESTERSHIRE ACUTE HOSPITALS NHS TRUST","RTF86","Royal Lancaster Infirmary"]
[null,null,null,null,null,null,null,null,null,null,null,null,null,null,null,null,null,null,null,null,"QRL","RHU","PORTSMOUTH HOSPITALS UNIVERSITY NATIONAL HEALTH SERVICE TRUST","RHU03","Queen Alexandra Hospital",null,"RXW","WYE VALLEY NHS TRUST",null,"RXW","WYE VALLEY NHS TRUST","RTFDH","Royal Oldham Hospital"]
[null,null,null,null,null,null,null,null,null,null,null,null,null,null,null,null,null,null,null,null,"QRL","RHU","PORTSMOUTH HOSPITALS UNIVERSITY NATIONAL HEALTH SERVICE TRUST","RHU04","Petersfield Community Hospital",null,"RYJ","YEOVIL DISTRICT HOSPITAL NHS FOUNDATION TRUST",null,"RYJ","YEOVIL DISTRICT HOSPITAL NHS FOUNDATION TRUST","RTFDJ","Royal Preston Hospital"]
[null,null,null,null,null,null,null,null,null,null,null,null,null,null,null,null,null,null,null,null,"QRL","RHU","PORTSMOUTH HOSPITALS UNIVERSITY NATIONAL HEALTH SERVICE TRUST","RHU10","Gosport War Memorial Hospital",null,"RYR","YORK TEACHING HOSPITAL NHS FOUNDATION TRUST",null,"RYR","YORK TEACHING HOSPITAL NHS FOUNDATION TRUST","RTFDR","Royal Shrewsbury Hospital"]
[null,null,null,null,null,null,null,null,null,null,null,null,null,null,null,null,null,null,null,null,"QRL","RHM","UNIVERSITY HOSPITAL SOUTHAMPTON NHS FOUNDATION TRUST","RHM12","Princess Anne Hospital",null,null,null,null,null,null,"RTG02","Royal Stoke University Hospital"]
[null,null,null,null,null,null,null,null,null,null,null,null,null,null,null,null,null,null,null,null,"QRV","RQM","CHELSEA AND WESTMINSTER HOSPITAL NHS FOUNDATION TRUST","RQM91","West Middlesex University Hospital",null,null,null,null,null,null,"RTGFG","Royal Surrey County Hospital"]
[null,null,null,null,null,null,null,null,null,null,null,null,null,null,null,null,null,null,null,null,"QRV","RQM","CHELSEA AND WESTMINSTER HOSPITAL NHS FOUNDATION TRUST","RQM01","Chelsea and Westminster Hospital",null,null,null,null,null,null,"RTH08","Royal Sussex County Hospital"]
[null,null,null,null,null,null,null,null,null,null,null,null,null,null,null,null,null,null,null,null,"QRV","RYJ","IMPERIAL COLLEGE HEALTHCARE NHS TRUST","RYJ04","Queen Charlotte's Hospital",null,null,null,null,null,null,"RTH16","Russells Hall Hospital"]
[null,null,null,null,null,null,null,null,null,null,null,null,null,null,null,null,null,null,null,null,"QRV","RYJ","IMPERIAL COLLEGE HEALTHCARE NHS TRUST","RYJ01","St Mary's Hospital (HQ)",null,null,null,null,null,null,"RTH19","Salisbury District Hospital"]
[null,null,null,null,null,null,null,null,null,null,null,null,null,null,null,null,null,null,null,null,"QRV","R1K","LONDON NORTH WEST UNIVERSITY HEALTHCARE NHS TRUST","R1K01","Northwick Park Hospital",null,null,null,null,null,null,"RTH21","Scarborough General Hospital"]
[null,null,null,null,null,null,null,null,null,null,null,null,null,null,null,null,null,null,null,null,"QRV","RAS","THE HILLINGDON HOSPITALS NHS FOUNDATION TRUST","RAS01","Hillingdon Hospital",null,null,null,null,null,null,"RTP04","Solihull Hospital"]
[null,null,null,null,null,null,null,null,null,null,null,null,null,null,null,null,null,null,null,null,"QSL","RH5","SOMERSET NHS FOUNDATION TRUST","RH5A8","MUSGROVE PARK HOSPITAL",null,null,null,null,null,null,"RTRAT","South Tyneside District Hospital"]
[null,null,null,null,null,null,null,null,null,null,null,null,null,null,null,null,null,null,null,null,"QSL","RA4","YEOVIL DISTRICT HOSPITAL NHS FOUNDATION TRUST","RA430","Yeovil District Hospital",null,null,null,null,null,null,"RTX02","Southend Hospital"]
[null,null,null,null,null,null,null,null,null,null,null,null,null,null,null,null,null,null,null,null,"QT1","RX1","NOTTINGHAM UNIVERSITY HOSPITALS NHS TRUST","RX1CC","Nottingham University Hospitals NHS Trust - City Campus",null,null,null,null,null,null,"RTXBU","Southmead Hospital"]
[null,null,null,null,null,null,null,null,null,null,null,null,null,null,null,null,null,null,null,null,"QT1","RX1","NOTTINGHAM UNIVERSITY HOSPITALS NHS TRUST","RX1RA","Nottingham University Hospitals NHS Trust - Queen's Medical Centre Campus",null,null,null,null,null,null,"RTXBW","St George's Hospital (Tooting)"]
[null,null,null,null,null,null,null,null,null,null,null,null,null,null,null,null,null,null,null,null,"QT1","RK5","SHERWOOD FOREST HOSPITALS NHS FOUNDATION TRUST","RK5BC","King's Mill Hospital",null,null,null,null,null,null,"RVJ01","St Helier Hospital"]
[null,null,null,null,null,null,null,null,null,null,null,null,null,null,null,null,null,null,null,null,"QT6","REF","ROYAL CORNWALL HOSPITALS NHS TRUST","REF12","Royal Cornwall Hospital (Treliske)",null,null,null,null,null,null,"RVR05","St James's University Hospital"]
[null,null,null,null,null,null,null,null,null,null,null,null,null,null,null,null,null,null,null,null,"QT6","REF","ROYAL CORNWALL HOSPITALS NHS TRUST","REFXXX","Non-hospital site",null,null,null,null,null,null,"RVR50","St Mary's Hospital"]
[null,null,null,null,null,null,null,null,null,null,null,null,null,null,null,null,null,null,null,null,"QU9","RXQ","BUCKINGHAMSHIRE HEALTHCARE NHS TRUST","RXQ02","Stoke Mandeville Hospital",null,null,null,null,null,null,"RVWAE","St Mary's Hospital"]
[null,null,null,null,null,null,null,null,null,null,null,null,null,null,null,null,null,null,null,null,"QU9","RTH","OXFORD UNIVERSITY HOSPITALS NHS FOUNDATION TRUST","RTH08","John Radcliffe Hospital",null,null,null,null,null,null,"RVY02","St Mary's Hospital"]
[null,null,null,null,null,null,null,null,null,null,null,null,null,null,null,null,null,null,null,null,"QU9","RTH","OXFORD UNIVERSITY HOSPITALS NHS FOUNDATION TRUST","RTH16","Wallingford Community Hospital",null,null,null,null,null,null,"RW602","St Mary's Hospital"]
[null,null,null,null,null,null,null,null,null,null,null,null,null,null,null,null,null,null,null,null,"QU9","RTH","OXFORD UNIVERSITY HOSPITALS NHS FOUNDATION TRUST","RTH19","Chipping Norton Community Hospital",null,null,null,null,null,null,"RW603","St Mary's Hospital (HQ)"]
[null,null,null,null,null,null,null,null,null,null,null,null,null,null,null,null,null,null,null,null,"QU9","RTH","OXFORD UNIVERSITY HOSPITALS NHS FOUNDATION TRUST","RTH21","Wantage Community Hospital",null,null,null,null,null,null,"RWA01","St Michael's Hospital"]
[null,null,null,null,null,null,null,null,null,null,null,null,null,null,null,null,null,null,null,null,"QU9","RHW","ROYAL BERKSHIRE NHS FOUNDATION TRUST","RHW01","Royal Berkshire Hospital",null,null,null,null,null,null,"RWDDA","St Richard's Hospital"]
[null,null,null,null,null,null,null,null,null,null,null,null,null,null,null,null,null,null,null,null,"QUA","RXK","SANDWELL AND WEST BIRMINGHAM HOSPITALS NHS TRUST","RXK02","City Hospital",null,null,null,null,null,null,"RWDLA","St Thomas' Hospital"]
[null,null,null,null,null,null,null,null,null,null,null,null,null,null,null,null,null,null,null,null,"QUA","RXK","SANDWELL AND WEST BIRMINGHAM HOSPITALS NHS TRUST","RXKTC","Birmingham Treatment Centre",null,null,null,null,null,null,"RWDLP","Stepping Hill Hospital"]
[null,null,null,null,null,null,null,null,null,null,null,null,null,null,null,null,null,null,null,null,"QUA","RNA","THE DUDLEY GROUP NHS FOUNDATION TRUST","RNA01","Russells Hall Hospital",null,null,null,null,null,null,"RWE10","Stoke Mandeville Hospital"]
[null,null,null,null,null,null,null,null,null,null,null,null,null,null,null,null,null,null,null,null,"QUA","RBK","WALSALL HEALTHCARE NHS TRUST","RBK02","Manor Hospital",null,null,null,null,null,null,"RWEAA","Stroud Maternity Hospital"]
[null,null,null,null,null,null,null,null,null,null,null,null,null,null,null,null,null,null,null,null,"QUE","RGT","CAMBRIDGE UNIVERSITY HOSPITALS NHS FOUNDATION TRUST","RGT32","Rosie Hospital",null,null,null,null,null,null,"RWEAK","Sunderland Royal Hospital"]
[null,null,null,null,null,null,null,null,null,null,null,null,null,null,null,null,null,null,null,null,"QUE","RGN","NORTH WEST ANGLIA NHS FOUNDATION TRUST","RGN80","Peterborough City Hospital",null,null,null,null,null,null,"RWFTW","Tameside General Hospital"]
[null,null,null,null,null,null,null,null,null,null,null,null,null,null,null,null,null,null,null,null,"QUE","RGN","NORTH WEST ANGLIA NHS FOUNDATION TRUST","RGN90","Hinchingbrooke Hospital",null,null,null,null,null,null,"RWG02","The Great Western Hospital"]
[null,null,null,null,null,null,null,null,null,null,null,null,null,null,null,null,null,null,null,null,"QUY","RVJ","NORTH BRISTOL NHS TRUST","RVJ01","Southmead Hospital",null,null,null,null,null,null,"RWH01","The James Cook University Hospital"]
[null,null,null,null,null,null,null,null,null,null,null,null,null,null,null,null,null,null,null,null,"QUY","RA7","UNIVERSITY HOSPITALS BRISTOL AND WESTON NHS FOUNDATION TRUST","RA707","St Michael's Hospital",null,null,null,null,null,null,"RWJ09","The Northumbria"]
[null,null,null,null,null,null,null,null,null,null,null,null,null,null,null,null,null,null,null,null,"QVV","RBD","DORSET COUNTY HOSPITAL NHS FOUNDATION TRUST","RBD01","Dorset County Hospital",null,null,null,null,null,null,"RWP50","The Princess Royal Hospital"]
[null,null,null,null,null,null,null,null,null,null,null,null,null,null,null,null,null,null,null,null,"QVV","R0D","UNIVERSITY HOSPITALS DORSET NHS FOUNDATION TRUST","R0D01","Poole Hospital",null,null,null,null,null,null,"RWWWH","The Queen Elizabeth Hospital"]
[null,null,null,null,null,null,null,null,null,null,null,null,null,null,null,null,null,null,null,null,"QWE","RJ6","CROYDON HEALTH SERVICES NHS TRUST","RJ611","Croydon University Hospital",null,null,null,null,null,null,"RX1CC","The Royal London Hospital"]
[null,null,null,null,null,null,null,null,null,null,null,null,null,null,null,null,null,null,null,null,"QWE","RVR","EPSOM AND ST HELIER UNIVERSITY HOSPITALS NHS TRUST","RVR50","Epsom Hospital",null,null,null,null,null,null,"RX1RA","The Tunbridge Wells Hospital"]
[null,null,null,null,null,null,null,null,null,null,null,null,null,null,null,null,null,null,null,null,"QWE","RVR","EPSOM AND ST HELIER UNIVERSITY HOSPITALS NHS TRUST","RVR05","St Helier Hospital",null,null,null,null,null,null,"RXC01","The Whittington Hospital"]
[null,null,null,null,null,null,null,null,null,null,null,null,null,null,null,null,null,null,null,null,"QWE","RJ7","ST GEORGE'S UNIVERSITY HOSPITALS NHS FOUNDATION TRUST","RJ701","St George's Hospital (Tooting)",null,null,null,null,null,null,"RXC02","University Hospital (Coventry)"]
[null,null,null,null,null,null,null,null,null,null,null,null,null,null,null,null,null,null,null,null,"QWO","RCF","AIREDALE NHS FOUNDATION TRUST","RCF22","Airedale General Hospital",null,null,null,null,null,null,"RXF05","University Hospital Lewisham"]
[null,null,null,null,null,null,null,null,null,null,null,null,null,null,null,null,null,null,null,null,"QWO","RAE","BRADFORD TEACHING HOSPITALS NHS FOUNDATION TRUST","RAE01","Bradford Royal Infirmary",null,null,null,null,null,null,"RXH01","University Hospital Of North Tees"]
[null,null,null,null,null,null,null,null,null,null,null,null,null,null,null,null,null,null,null,null,"QWO","RR8","LEEDS TEACHING HOSPITALS NHS TRUST","RR801","Leeds General Infirmary",null,null,null,null,null,null,"RXH09","Wallingford Community Hospital"]
[null,null,null,null,null,null,null,null,null,null,null,null,null,null,null,null,null,null,null,null,"QWO","RR8","LEEDS TEACHING HOSPITALS NHS TRUST","RR813","St James's University Hospital",null,null,null,null,null,null,"RXK02","Wantage Community Hospital"]
[null,null,null,null,null,null,null,null,null,null,null,null,null,null,null,null,null,null,null,null,"QWO","RXF","MID YORKSHIRE HOSPITALS NHS TRUST","RXF05","Pinderfields General Hospital",null,null,null,null,null,null,"RXKTC","Warrington Hospital"]
[null,null,null,null,null,null,null,null,null,null,null,null,null,null,null,null,null,null,null,null,"QWU","RLT","GEORGE ELIOT HOSPITAL NHS TRUST","RLT01","George Eliot Hospital - Acute Services",null,null,null,null,null,null,"RXN01","Warwick Hospital"]
[null,null,null,null,null,null,null,null,null,null,null,null,null,null,null,null,null,null,null,null,"QWU","RJC","SOUTH WARWICKSHIRE NHS FOUNDATION TRUST","RJC02","Warwick Hospital",null,null,null,null,null,null,"RXN02","Watford General Hospital"]
[null,null,null,null,null,null,null,null,null,null,null,null,null,null,null,null,null,null,null,null,"QWU","RKB","UNIVERSITY HOSPITALS COVENTRY AND WARWICKSHIRE NHS TRUST","RKB01","University Hospital (Coventry)",null,null,null,null,null,null,"RXPDA","West Cumberland Hospital"]
[null,null,null,null,null,null,null,null,null,null,null,null,null,null,null,null,null,null,null,null,"QXU","RA2","ROYAL SURREY COUNTY HOSPITAL NHS FOUNDATION TRUST","RA201","Royal Surrey County Hospital",null,null,null,null,null,null,"RXQ02","West Middlesex University Hospital"]
[null,null,null,null,null,null,null,null,null,null,null,null,null,null,null,null,null,null,null,null,"QXU","RTP","SURREY AND SUSSEX HEALTHCARE NHS TRUST","RTP04","East Surrey Hospital",null,null,null,null,null,null,"RXR20","West Suffolk Hospital"]
[null,null,null,null,null,null,null,null,null,null,null,null,null,null,null,null,null,null,null,null,"QYG","RJR","COUNTESS OF CHESTER HOSPITAL NHS FOUNDATION TRUST","RJR05","Countess Of Chester Hospital",null,null,null,null,null,null,"RXWAS","Westmorland General Hospital"]
[null,null,null,null,null,null,null,null,null,null,null,null,null,null,null,null,null,null,null,null,"QYG","RJN","EAST CHESHIRE NHS TRUST","RJN71","Macclesfield District General Hospital",null,null,null,null,null,null,"RXWAT","Wexham Park Hospital"]
[null,null,null,null,null,null,null,null,null,null,null,null,null,null,null,null,null,null,null,null,"QYG","REP","LIVERPOOL WOMEN'S NHS FOUNDATION TRUST","REP01","Liverpool Womens Hospital",null,null,null,null,null,null,"RXWMB","Whipps Cross University Hospital"]
[null,null,null,null,null,null,null,null,null,null,null,null,null,null,null,null,null,null,null,null,"QYG","RBT","MID CHESHIRE HOSPITALS NHS FOUNDATION TRUST","RBT20","Leighton Hospital",null,null,null,null,null,null,"RXWMJ","Whiston Hospital"]
[null,null,null,null,null,null,null,null,null,null,null,null,null,null,null,null,null,null,null,null,"QYG","RVY","SOUTHPORT AND ORMSKIRK HOSPITAL NHS TRUST","RVY02","Ormskirk and District General Hospital",null,null,null,null,null,null,"RYJ01","Worcestershire Royal Hospital"]
[null,null,null,null,null,null,null,null,null,null,null,null,null,null,null,null,null,null,null,null,"QYG","RBN","ST HELENS AND KNOWSLEY TEACHING HOSPITALS NHS TRUST","RBN01","Whiston Hospital",null,null,null,null,null,null,"RYJ04","Worthing Hospital"]
[null,null,null,null,null,null,null,null,null,null,null,null,null,null,null,null,null,null,null,null,"QYG","RWW","WARRINGTON AND HALTON TEACHING HOSPITALS NHS FOUNDATION TRUST","RWWWH","Warrington Hospital",null,null,null,null,null,null,"RYR16","Yeovil District Hospital"]
[null,null,null,null,null,null,null,null,null,null,null,null,null,null,null,null,null,null,null,null,"QYG","RBL","WIRRAL UNIVERSITY TEACHING HOSPITAL NHS FOUNDATION TRUST","RBL14","Arrowe Park Hospital",null,null,null,null,null,null,"RYR18","York Hospital"]

{"sheet":"BSQ4","index":16,"n_rows":121,"n_cols":28,"rows_kept":121,"cut":false,"hidden":true,"merged":[]}
[null,"Sort","Region (LO)","Region (LO)","Trusts","Trusts",null,null,null,"Sort ranges:","Sort range…","Sort range…",null,"Reference Region List:","Code…","Name…","Linked Region List:","Code…","Name…","Reference Lists:","Code…","Code…","Name…",null,null,"Trusts Linked Lists:","Code…","Name…"]
["Region (LO)",1,1,1,"-","-",null,null,null,null,"Region (LO) Code","Region (LO) Code",null,null,"QE1","HEALTHIER LANCASHIRE AND SOUTH CUMBRIA",null,"QE1","HEALTHIER LANCASHIRE AND SOUTH CUMBRIA",null,"QE1","RTX","UNIVERSITY HOSPITALS OF MORECAMBE BAY NHS FOUNDATION TRUST",null,null,null,"R0A","AIREDALE NHS FOUNDATION TRUST"]
["Trusts",1,1,1,1,1,null,null,null,null,"Region (Local Office)","Trust Code",null,null,"QF7","SOUTH YORKSHIRE AND BASSETLAW STP",null,"QF7","SOUTH YORKSHIRE AND BASSETLAW STP",null,"QE1","RXL","BLACKPOOL TEACHING HOSPITALS NHS FOUNDATION TRUST",null,null,null,"R0B","BARKING, HAVERING AND REDBRIDGE UNIVERSITY HOSPITALS NHS TRUST"]
[null,null,null,null,null,null,null,null,null,null,"Total Responses","Trust Name",null,null,"QGH","HEREFORDSHIRE AND WORCESTERSHIRE STP",null,"QGH","HEREFORDSHIRE AND WORCESTERSHIRE STP",null,"QE1","RXN","LANCASHIRE TEACHING HOSPITALS NHS FOUNDATION TRUST",null,null,null,"R0D","BARNSLEY HOSPITAL NHS FOUNDATION TRUST"]
[null,null,null,null,null,null,null,null,null,null,"Percentage Recommended","Total Responses",null,null,"QH8","MID AND SOUTH ESSEX STP",null,"QH8","MID AND SOUTH ESSEX STP",null,"QE1","RXR","EAST LANCASHIRE HOSPITALS NHS TRUST",null,null,null,"R1F","BARTS HEALTH NHS TRUST"]
[null,null,null,null,null,null,null,null,null,null,"Percentage Not  Recommended","Percentage Recommended",null,null,"QHG","BEDFORDSHIRE, LUTON AND MILTON KEYNES STP",null,"QHG","BEDFORDSHIRE, LUTON AND MILTON KEYNES STP",null,"QF7","RFF","BARNSLEY HOSPITAL NHS FOUNDATION TRUST",null,null,null,"R1H","BEDFORDSHIRE HOSPITALS NHS FOUNDATION TRUST"]
[null,null,null,null,null,null,null,null,null,null,"Extremely Likely","Percentage Not  Recommended",null,null,"QHL","BIRMINGHAM AND SOLIHULL STP",null,"QHL","BIRMINGHAM AND SOLIHULL STP",null,"QF7","RFR","THE ROTHERHAM NHS FOUNDATION TRUST",null,null,null,"R1K","BIRMINGHAM WOMEN'S AND CHILDREN'S NHS FOUNDATION TRUST"]
[null,null,null,null,null,null,null,null,null,null,"Likely","Extremely Likely",null,null,"QHM","CUMBRIA AND NORTH EAST STP",null,"QHM","CUMBRIA AND NORTH EAST STP",null,"QF7","RHQ","SHEFFIELD TEACHING HOSPITALS NHS FOUNDATION TRUST",null,null,null,"RA2","BLACKPOOL TEACHING HOSPITALS NHS FOUNDATION TRUST"]
[null,null,null,null,null,null,null,null,null,null,"Neither","Likely",null,null,"QJ2","JOINED UP CARE DERBYSHIRE STP",null,"QJ2","JOINED UP CARE DERBYSHIRE STP",null,"QF7","RP5","DONCASTER AND BASSETLAW TEACHING HOSPITALS NHS FOUNDATION TRUST",null,null,null,"RA4","BOLTON NHS FOUNDATION TRUST"]
[null,null,null,null,null,null,null,null,null,null,"Unlikely","Neither",null,null,"QJG","SUFFOLK AND NORTH EAST ESSEX ICS",null,"QJG","SUFFOLK AND NORTH EAST ESSEX ICS",null,"QGH","RWP","WORCESTERSHIRE ACUTE HOSPITALS NHS TRUST",null,null,null,"RA7","BRADFORD TEACHING HOSPITALS NHS FOUNDATION TRUST"]
[null,null,null,null,null,null,null,null,null,null,"Extremely Unlikely","Unlikely",null,null,"QJK","DEVON STP",null,"QJK","DEVON STP",null,"QGH","RLQ","WYE VALLEY NHS TRUST",null,null,null,"RAE","BRIDGEWATER COMMUNITY HEALTHCARE NHS FOUNDATION TRUST"]
[null,null,null,null,null,null,null,null,null,null,"Don't Know","Extremely Unlikely",null,null,"QJM","LINCOLNSHIRE STP",null,"QJM","LINCOLNSHIRE STP",null,"QH8","RAJ","MID AND SOUTH ESSEX NHS FOUNDATION TRUST",null,null,null,"RAJ","BRIGHTON AND SUSSEX UNIVERSITY HOSPITALS NHS TRUST"]
[null,null,null,null,null,null,null,null,null,null,null,"Don't Know",null,null,"QK1","LEICESTER, LEICESTERSHIRE AND RUTLAND STP",null,"QK1","LEICESTER, LEICESTERSHIRE AND RUTLAND STP",null,"QHG","RD8","MILTON KEYNES UNIVERSITY HOSPITAL NHS FOUNDATION TRUST",null,null,null,"RAL","BUCKINGHAMSHIRE HEALTHCARE NHS TRUST"]
[null,null,null,null,null,null,null,null,null,null,null,"SMS/Text / Smartphone App",null,null,"QKK","OUR HEALTHIER SOUTH EAST LONDON STP",null,"QKK","OUR HEALTHIER SOUTH EAST LONDON STP",null,"QHG","RC9","BEDFORDSHIRE HOSPITALS NHS FOUNDATION TRUST",null,null,null,"RAP","CALDERDALE AND HUDDERSFIELD NHS FOUNDATION TRUST"]
[null,null,null,null,null,null,null,null,null,null,null,"Electronic tablet/kiosk at point of discharge",null,null,"QKS","KENT AND MEDWAY STP",null,"QKS","KENT AND MEDWAY STP",null,"QHL","RRK","UNIVERSITY HOSPITALS BIRMINGHAM NHS FOUNDATION TRUST",null,null,null,"RAS","CAMBRIDGE UNIVERSITY HOSPITALS NHS FOUNDATION TRUST"]
[null,null,null,null,null,null,null,null,null,null,null,"Paper / postcard at point of discharge",null,null,"QM7","HERTFORDSHIRE AND WEST ESSEX STP",null,"QM7","HERTFORDSHIRE AND WEST ESSEX STP",null,"QHL","RQ3","BIRMINGHAM WOMEN'S AND CHILDREN'S NHS FOUNDATION TRUST",null,null,null,"RAX","CHELSEA AND WESTMINSTER HOSPITAL NHS FOUNDATION TRUST"]
[null,null,null,null,null,null,null,null,null,null,null,"Paper survey, sent to the patients home",null,null,"QMF","EAST LONDON HEALTH & CARE PARTNERSHIP (STP)",null,"QMF","EAST LONDON HEALTH & CARE PARTNERSHIP (STP)",null,"QHM","R0B","SOUTH TYNESIDE AND SUNDERLAND NHS FOUNDATION TRUST",null,null,null,"RBD","CHESTERFIELD ROYAL HOSPITAL NHS FOUNDATION TRUST"]
[null,null,null,null,null,null,null,null,null,null,null,"Telephone survey once patient is home",null,null,"QMJ","NORTH LONDON PARTNERS IN HEALTH & CARE (STP)",null,"QMJ","NORTH LONDON PARTNERS IN HEALTH & CARE (STP)",null,"QHM","RR7","GATESHEAD HEALTH NHS FOUNDATION TRUST",null,null,null,"RBK","COUNTESS OF CHESTER HOSPITAL NHS FOUNDATION TRUST"]
[null,null,null,null,null,null,null,null,null,null,null,"Online survey once patient is home",null,null,"QMM","NORFOLK AND WAVENEY HEALTH & CARE PARTNERSHIP (STP)",null,"QMM","NORFOLK AND WAVENEY HEALTH & CARE PARTNERSHIP (STP)",null,"QHM","RTD","THE NEWCASTLE UPON TYNE HOSPITALS NHS FOUNDATION TRUST",null,null,null,"RBL","COUNTY DURHAM AND DARLINGTON NHS FOUNDATION TRUST"]
[null,null,null,null,null,null,null,null,null,null,null,"Other",null,null,"QNC","STAFFORDSHIRE & STOKE ON TRENT STP",null,"QNC","STAFFORDSHIRE & STOKE ON TRENT STP",null,"QHM","RTR","SOUTH TEES HOSPITALS NHS FOUNDATION TRUST",null,null,null,"RBN","CROYDON HEALTH SERVICES NHS TRUST"]
[null,null,null,null,null,null,null,null,null,null,null,null,null,null,"QNQ","FRIMLEY HEALTH & CARE (STP)",null,"QNQ","FRIMLEY HEALTH & CARE (STP)",null,"QHM","RXP","COUNTY DURHAM AND DARLINGTON NHS FOUNDATION TRUST",null,null,null,"RBT","DARTFORD AND GRAVESHAM NHS TRUST"]
[null,null,null,null,null,null,null,null,null,null,null,null,null,null,"QNX","SUSSEX HEALTH AND CARE PARTNERSHIP",null,"QNX","SUSSEX HEALTH AND CARE PARTNERSHIP",null,"QHM","RVW","NORTH TEES AND HARTLEPOOL NHS FOUNDATION TRUST",null,null,null,"RBZ","DONCASTER AND BASSETLAW TEACHING HOSPITALS NHS FOUNDATION TRUST"]
[null,null,null,null,null,null,null,null,null,null,null,null,null,null,"QOC","SHROPSHIRE AND TELFORD AND WREKIN STP",null,"QOC","SHROPSHIRE AND TELFORD AND WREKIN STP",null,"QHM","RNN","NORTH CUMBRIA INTEGRATED CARE NHS FOUNDATION TRUST",null,null,null,"RC9","DORSET COUNTY HOSPITAL NHS FOUNDATION TRUST"]
[null,null,null,null,null,null,null,null,null,null,null,null,null,null,"QOP","GREATER MANCHESTER HEALTH & SOCIAL CARE PARTNERSHIP",null,"QOP","GREATER MANCHESTER HEALTH & SOCIAL CARE PARTNERSHIP",null,"QHM","RTF","NORTHUMBRIA HEALTHCARE NHS FOUNDATION TRUST",null,null,null,"RCB","EAST AND NORTH HERTFORDSHIRE NHS TRUST"]
[null,null,null,null,null,null,null,null,null,null,null,null,null,null,"QOQ","HUMBER, COAST AND VALE STP",null,"QOQ","HUMBER, COAST AND VALE STP",null,"QJ2","RFS","CHESTERFIELD ROYAL HOSPITAL NHS FOUNDATION TRUST",null,null,null,"RCD","EAST CHESHIRE NHS TRUST"]
[null,null,null,null,null,null,null,null,null,null,null,null,null,null,"QOX","BATH AND NORTH EAST SOMERSET, SWINDON AND WILTSHIRE STP",null,"QOX","BATH AND NORTH EAST SOMERSET, SWINDON AND WILTSHIRE STP",null,"QJ2","RTG","UNIVERSITY HOSPITALS OF DERBY AND BURTON NHS FOUNDATION TRUST",null,null,null,"RCF","EAST KENT HOSPITALS UNIVERSITY NHS FOUNDATION TRUST"]
[null,null,null,null,null,null,null,null,null,null,null,null,null,null,"QPM","NORTHAMPTONSHIRE STP",null,"QPM","NORTHAMPTONSHIRE STP",null,"QJG","RDE","EAST SUFFOLK AND NORTH ESSEX NHS FOUNDATION TRUST",null,null,null,"RCX","EAST LANCASHIRE HOSPITALS NHS TRUST"]
[null,null,null,null,null,null,null,null,null,null,null,null,null,null,"QR1","GLOUCESTERSHIRE STP",null,"QR1","GLOUCESTERSHIRE STP",null,"QJG","RGR","WEST SUFFOLK NHS FOUNDATION TRUST",null,null,null,"RD1","EAST SUFFOLK AND NORTH ESSEX NHS FOUNDATION TRUST"]
[null,null,null,null,null,null,null,null,null,null,null,null,null,null,"QRL","HAMPSHIRE AND THE ISLE OF WIGHT STP",null,"QRL","HAMPSHIRE AND THE ISLE OF WIGHT STP",null,"QJK","RBZ","NORTHERN DEVON HEALTHCARE NHS TRUST",null,null,null,"RD8","EAST SUSSEX HEALTHCARE NHS TRUST"]
[null,null,null,null,null,null,null,null,null,null,null,null,null,null,"QRV","NORTH WEST LONDON HEALTH & CARE PARTNERSHIP (STP)",null,"QRV","NORTH WEST LONDON HEALTH & CARE PARTNERSHIP (STP)",null,"QJK","RH8","ROYAL DEVON AND EXETER NHS FOUNDATION TRUST",null,null,null,"RDE","EPSOM AND ST HELIER UNIVERSITY HOSPITALS NHS TRUST"]
[null,null,null,null,null,null,null,null,null,null,null,null,null,null,"QSL","SOMERSET STP",null,"QSL","SOMERSET STP",null,"QJK","RK9","UNIVERSITY HOSPITALS PLYMOUTH NHS TRUST",null,null,null,"RDU","FRIMLEY HEALTH NHS FOUNDATION TRUST"]
[null,null,null,null,null,null,null,null,null,null,null,null,null,null,"QT1","NOTTINGHAM AND NOTTINGHAMSHIRE HEALTH AND CARE STP",null,"QT1","NOTTINGHAM AND NOTTINGHAMSHIRE HEALTH AND CARE STP",null,"QJM","RWD","UNITED LINCOLNSHIRE HOSPITALS NHS TRUST",null,null,null,"REF","GATESHEAD HEALTH NHS FOUNDATION TRUST"]
[null,null,null,null,null,null,null,null,null,null,null,null,null,null,"QT6","CORNWALL AND THE ISLES OF SCILLY HEALTH & SOCIAL CARE PARTNERSHIP (STP)",null,"QT6","CORNWALL AND THE ISLES OF SCILLY HEALTH & SOCIAL CARE PARTNERSHIP (STP)",null,"QK1","RWE","UNIVERSITY HOSPITALS OF LEICESTER NHS TRUST",null,null,null,"REP","GEORGE ELIOT HOSPITAL NHS TRUST"]
[null,null,null,null,null,null,null,null,null,null,null,null,null,null,"QU9","BUCKINGHAMSHIRE, OXFORDSHIRE AND BERKSHIRE WEST STP",null,"QU9","BUCKINGHAMSHIRE, OXFORDSHIRE AND BERKSHIRE WEST STP",null,"QKK","RJ2","LEWISHAM AND GREENWICH NHS TRUST",null,null,null,"RF4","GLOUCESTERSHIRE HOSPITALS NHS FOUNDATION TRUST"]
[null,null,null,null,null,null,null,null,null,null,null,null,null,null,"QUA","THE BLACK COUNTRY AND WEST BIRMINGHAM STP",null,"QUA","THE BLACK COUNTRY AND WEST BIRMINGHAM STP",null,"QKK","RJZ","KING'S COLLEGE HOSPITAL NHS FOUNDATION TRUST",null,null,null,"RFF","GREAT WESTERN HOSPITALS NHS FOUNDATION TRUST"]
[null,null,null,null,null,null,null,null,null,null,null,null,null,null,"QUE","CAMBRIDGESHIRE AND PETERBOROUGH STP",null,"QUE","CAMBRIDGESHIRE AND PETERBOROUGH STP",null,"QKK","RJ1","GUY'S AND ST THOMAS' NHS FOUNDATION TRUST",null,null,null,"RFR","GUY'S AND ST THOMAS' NHS FOUNDATION TRUST"]
[null,null,null,null,null,null,null,null,null,null,null,null,null,null,"QUY","BRISTOL, NORTH SOMERSET AND SOUTH GLOUCESTERSHIRE STP",null,"QUY","BRISTOL, NORTH SOMERSET AND SOUTH GLOUCESTERSHIRE STP",null,"QKS","RN7","DARTFORD AND GRAVESHAM NHS TRUST",null,null,null,"RFS","HAMPSHIRE HOSPITALS NHS FOUNDATION TRUST"]
[null,null,null,null,null,null,null,null,null,null,null,null,null,null,"QVV","DORSET STP",null,"QVV","DORSET STP",null,"QKS","RPA","MEDWAY NHS FOUNDATION TRUST",null,null,null,"RGN","HARROGATE AND DISTRICT NHS FOUNDATION TRUST"]
[null,null,null,null,null,null,null,null,null,null,null,null,null,null,"QWE","SOUTH WEST LONDON HEALTH & CARE PARTNERSHIP (STP)",null,"QWE","SOUTH WEST LONDON HEALTH & CARE PARTNERSHIP (STP)",null,"QKS","RVV","EAST KENT HOSPITALS UNIVERSITY NHS FOUNDATION TRUST",null,null,null,"RGP","HULL UNIVERSITY TEACHING HOSPITALS NHS TRUST"]
[null,null,null,null,null,null,null,null,null,null,null,null,null,null,"QWO","WEST YORKSHIRE AND HARROGATE HEALTH & CARE PARTNERSHIP (STP)",null,"QWO","WEST YORKSHIRE AND HARROGATE HEALTH & CARE PARTNERSHIP (STP)",null,"QKS","RWF","MAIDSTONE AND TUNBRIDGE WELLS NHS TRUST",null,null,null,"RGR","IMPERIAL COLLEGE HEALTHCARE NHS TRUST"]
[null,null,null,null,null,null,null,null,null,null,null,null,null,null,"QWU","COVENTRY AND WARWICKSHIRE STP",null,"QWU","COVENTRY AND WARWICKSHIRE STP",null,"QM7","RQW","THE PRINCESS ALEXANDRA HOSPITAL NHS TRUST",null,null,null,"RGT","ISLE OF WIGHT NHS TRUST"]
[null,null,null,null,null,null,null,null,null,null,null,null,null,null,"QXU","SURREY HEARTLANDS HEALTH & CARE PARTNERSHIP (STP)",null,"QXU","SURREY HEARTLANDS HEALTH & CARE PARTNERSHIP (STP)",null,"QM7","RWG","WEST HERTFORDSHIRE HOSPITALS NHS TRUST",null,null,null,"RH5","JAMES PAGET UNIVERSITY HOSPITALS NHS FOUNDATION TRUST"]
[null,null,null,null,null,null,null,null,null,null,null,null,null,null,"QYG","CHESHIRE AND MERSEYSIDE STP",null,"QYG","CHESHIRE AND MERSEYSIDE STP",null,"QM7","RWH","EAST AND NORTH HERTFORDSHIRE NHS TRUST",null,null,null,"RH8","KETTERING GENERAL HOSPITAL NHS FOUNDATION TRUST"]
[null,null,null,null,null,null,null,null,null,null,null,null,null,null,"zIS1","Independent Sector Provider",null,"zIS1","Independent Sector Provider",null,"QMF","R1H","BARTS HEALTH NHS TRUST",null,null,null,"RHM","KING'S COLLEGE HOSPITAL NHS FOUNDATION TRUST"]
[null,null,null,null,null,null,null,null,null,null,null,null,null,null,null,null,null,null,null,null,"QMF","RF4","BARKING, HAVERING AND REDBRIDGE UNIVERSITY HOSPITALS NHS TRUST",null,null,null,"RHQ","KINGSTON HOSPITAL NHS FOUNDATION TRUST"]
[null,null,null,null,null,null,null,null,null,null,null,null,null,null,null,null,null,null,null,null,"QMJ","RAL","ROYAL FREE LONDON NHS FOUNDATION TRUST",null,null,null,"RHU","LANCASHIRE TEACHING HOSPITALS NHS FOUNDATION TRUST"]
[null,null,null,null,null,null,null,null,null,null,null,null,null,null,null,null,null,null,null,null,"QMJ","RAP","NORTH MIDDLESEX UNIVERSITY HOSPITAL NHS TRUST",null,null,null,"RHW","LEEDS TEACHING HOSPITALS NHS TRUST"]
[null,null,null,null,null,null,null,null,null,null,null,null,null,null,null,null,null,null,null,null,"QMJ","RKE","WHITTINGTON HEALTH NHS TRUST",null,null,null,"RJ1","LEWISHAM AND GREENWICH NHS TRUST"]
[null,null,null,null,null,null,null,null,null,null,null,null,null,null,null,null,null,null,null,null,"QMJ","RRV","UNIVERSITY COLLEGE LONDON HOSPITALS NHS FOUNDATION TRUST",null,null,null,"RJ2","LIVERPOOL WOMEN'S NHS FOUNDATION TRUST"]
[null,null,null,null,null,null,null,null,null,null,null,null,null,null,null,null,null,null,null,null,"QMM","RGP","JAMES PAGET UNIVERSITY HOSPITALS NHS FOUNDATION TRUST",null,null,null,"RJ6","LONDON NORTH WEST UNIVERSITY HEALTHCARE NHS TRUST"]
[null,null,null,null,null,null,null,null,null,null,null,null,null,null,null,null,null,null,null,null,"QMM","RM1","NORFOLK AND NORWICH UNIVERSITY HOSPITALS NHS FOUNDATION TRUST",null,null,null,"RJ7","MAIDSTONE AND TUNBRIDGE WELLS NHS TRUST"]
[null,null,null,null,null,null,null,null,null,null,null,null,null,null,null,null,null,null,null,null,"QMM","RCX","THE QUEEN ELIZABETH HOSPITAL, KING'S LYNN, NHS FOUNDATION TRUST",null,null,null,"RJC","MANCHESTER UNIVERSITY NHS FOUNDATION TRUST"]
[null,null,null,null,null,null,null,null,null,null,null,null,null,null,null,null,null,null,null,null,"QNC","RJE","UNIVERSITY HOSPITALS OF NORTH MIDLANDS NHS TRUST",null,null,null,"RJE","MEDWAY NHS FOUNDATION TRUST"]
[null,null,null,null,null,null,null,null,null,null,null,null,null,null,null,null,null,null,null,null,"QNQ","RDU","FRIMLEY HEALTH NHS FOUNDATION TRUST",null,null,null,"RJN","MID AND SOUTH ESSEX NHS FOUNDATION TRUST"]
[null,null,null,null,null,null,null,null,null,null,null,null,null,null,null,null,null,null,null,null,"QNX","RXC","EAST SUSSEX HEALTHCARE NHS TRUST",null,null,null,"RJR","MID CHESHIRE HOSPITALS NHS FOUNDATION TRUST"]
[null,null,null,null,null,null,null,null,null,null,null,null,null,null,null,null,null,null,null,null,"QNX","RYR","WESTERN SUSSEX HOSPITALS NHS FOUNDATION TRUST",null,null,null,"RJZ","MID YORKSHIRE HOSPITALS NHS TRUST"]
[null,null,null,null,null,null,null,null,null,null,null,null,null,null,null,null,null,null,null,null,"QNX","RXH","BRIGHTON AND SUSSEX UNIVERSITY HOSPITALS NHS TRUST",null,null,null,"RK5","MILTON KEYNES UNIVERSITY HOSPITAL NHS FOUNDATION TRUST"]
[null,null,null,null,null,null,null,null,null,null,null,null,null,null,null,null,null,null,null,null,"QOC","RXW","THE SHREWSBURY AND TELFORD HOSPITAL NHS TRUST",null,null,null,"RK9","NORFOLK AND NORWICH UNIVERSITY HOSPITALS NHS FOUNDATION TRUST"]
[null,null,null,null,null,null,null,null,null,null,null,null,null,null,null,null,null,null,null,null,"QOP","RMC","BOLTON NHS FOUNDATION TRUST",null,null,null,"RKB","NORTH BRISTOL NHS TRUST"]
[null,null,null,null,null,null,null,null,null,null,null,null,null,null,null,null,null,null,null,null,"QOP","RMP","TAMESIDE AND GLOSSOP INTEGRATED CARE NHS FOUNDATION TRUST",null,null,null,"RKE","NORTH CUMBRIA INTEGRATED CARE NHS FOUNDATION TRUST"]
[null,null,null,null,null,null,null,null,null,null,null,null,null,null,null,null,null,null,null,null,"QOP","RRF","WRIGHTINGTON, WIGAN AND LEIGH NHS FOUNDATION TRUST",null,null,null,"RLQ","NORTH MIDDLESEX UNIVERSITY HOSPITAL NHS TRUST"]
[null,null,null,null,null,null,null,null,null,null,null,null,null,null,null,null,null,null,null,null,"QOP","RWJ","STOCKPORT NHS FOUNDATION TRUST",null,null,null,"RLT","NORTH TEES AND HARTLEPOOL NHS FOUNDATION TRUST"]
[null,null,null,null,null,null,null,null,null,null,null,null,null,null,null,null,null,null,null,null,"QOP","RW6","PENNINE ACUTE HOSPITALS NHS TRUST",null,null,null,"RM1","NORTH WEST ANGLIA NHS FOUNDATION TRUST"]
[null,null,null,null,null,null,null,null,null,null,null,null,null,null,null,null,null,null,null,null,"QOP","R0A","MANCHESTER UNIVERSITY NHS FOUNDATION TRUST",null,null,null,"RMC","NORTHAMPTON GENERAL HOSPITAL NHS TRUST"]
[null,null,null,null,null,null,null,null,null,null,null,null,null,null,null,null,null,null,null,null,"QOQ","RCD","HARROGATE AND DISTRICT NHS FOUNDATION TRUST",null,null,null,"RMP","NORTHERN DEVON HEALTHCARE NHS TRUST"]
[null,null,null,null,null,null,null,null,null,null,null,null,null,null,null,null,null,null,null,null,"QOQ","RWA","HULL UNIVERSITY TEACHING HOSPITALS NHS TRUST",null,null,null,"RN3","NORTHUMBRIA HEALTHCARE NHS FOUNDATION TRUST"]
[null,null,null,null,null,null,null,null,null,null,null,null,null,null,null,null,null,null,null,null,"QOQ","RCB","YORK TEACHING HOSPITAL NHS FOUNDATION TRUST",null,null,null,"RN5","NOTTINGHAM UNIVERSITY HOSPITALS NHS TRUST"]
[null,null,null,null,null,null,null,null,null,null,null,null,null,null,null,null,null,null,null,null,"QOX","RN3","GREAT WESTERN HOSPITALS NHS FOUNDATION TRUST",null,null,null,"RN7","OXFORD UNIVERSITY HOSPITALS NHS FOUNDATION TRUST"]
[null,null,null,null,null,null,null,null,null,null,null,null,null,null,null,null,null,null,null,null,"QOX","RNZ","SALISBURY NHS FOUNDATION TRUST",null,null,null,"RNA","PENNINE ACUTE HOSPITALS NHS TRUST"]
[null,null,null,null,null,null,null,null,null,null,null,null,null,null,null,null,null,null,null,null,"QOX","RD1","ROYAL UNITED HOSPITALS BATH NHS FOUNDATION TRUST",null,null,null,"RNN","PORTSMOUTH HOSPITALS UNIVERSITY NATIONAL HEALTH SERVICE TRUST"]
[null,null,null,null,null,null,null,null,null,null,null,null,null,null,null,null,null,null,null,null,"QPM","RNS","NORTHAMPTON GENERAL HOSPITAL NHS TRUST",null,null,null,"RNQ","ROYAL BERKSHIRE NHS FOUNDATION TRUST"]
[null,null,null,null,null,null,null,null,null,null,null,null,null,null,null,null,null,null,null,null,"QPM","RNQ","KETTERING GENERAL HOSPITAL NHS FOUNDATION TRUST",null,null,null,"RNS","ROYAL CORNWALL HOSPITALS NHS TRUST"]
[null,null,null,null,null,null,null,null,null,null,null,null,null,null,null,null,null,null,null,null,"QR1","RTE","GLOUCESTERSHIRE HOSPITALS NHS FOUNDATION TRUST",null,null,null,"RNZ","ROYAL DEVON AND EXETER NHS FOUNDATION TRUST"]
[null,null,null,null,null,null,null,null,null,null,null,null,null,null,null,null,null,null,null,null,"QRL","R1F","ISLE OF WIGHT NHS TRUST",null,null,null,"RP5","ROYAL FREE LONDON NHS FOUNDATION TRUST"]
[null,null,null,null,null,null,null,null,null,null,null,null,null,null,null,null,null,null,null,null,"QRL","RHU","PORTSMOUTH HOSPITALS UNIVERSITY NATIONAL HEALTH SERVICE TRUST",null,null,null,"RPA","ROYAL SURREY COUNTY HOSPITAL NHS FOUNDATION TRUST"]
[null,null,null,null,null,null,null,null,null,null,null,null,null,null,null,null,null,null,null,null,"QRL","RN5","HAMPSHIRE HOSPITALS NHS FOUNDATION TRUST",null,null,null,"RQ3","ROYAL UNITED HOSPITALS BATH NHS FOUNDATION TRUST"]
[null,null,null,null,null,null,null,null,null,null,null,null,null,null,null,null,null,null,null,null,"QRL","RHM","UNIVERSITY HOSPITAL SOUTHAMPTON NHS FOUNDATION TRUST",null,null,null,"RQM","SALISBURY NHS FOUNDATION TRUST"]
[null,null,null,null,null,null,null,null,null,null,null,null,null,null,null,null,null,null,null,null,"QRV","R1K","LONDON NORTH WEST UNIVERSITY HEALTHCARE NHS TRUST",null,null,null,"RQW","SANDWELL AND WEST BIRMINGHAM HOSPITALS NHS TRUST"]
[null,null,null,null,null,null,null,null,null,null,null,null,null,null,null,null,null,null,null,null,"QRV","RAS","THE HILLINGDON HOSPITALS NHS FOUNDATION TRUST",null,null,null,"RR7","SHEFFIELD TEACHING HOSPITALS NHS FOUNDATION TRUST"]
[null,null,null,null,null,null,null,null,null,null,null,null,null,null,null,null,null,null,null,null,"QRV","RQM","CHELSEA AND WESTMINSTER HOSPITAL NHS FOUNDATION TRUST",null,null,null,"RR8","SHERWOOD FOREST HOSPITALS NHS FOUNDATION TRUST"]
[null,null,null,null,null,null,null,null,null,null,null,null,null,null,null,null,null,null,null,null,"QRV","RYJ","IMPERIAL COLLEGE HEALTHCARE NHS TRUST",null,null,null,"RRF","SOMERSET NHS FOUNDATION TRUST"]
[null,null,null,null,null,null,null,null,null,null,null,null,null,null,null,null,null,null,null,null,"QSL","RA4","YEOVIL DISTRICT HOSPITAL NHS FOUNDATION TRUST",null,null,null,"RRK","SOUTH TEES HOSPITALS NHS FOUNDATION TRUST"]
[null,null,null,null,null,null,null,null,null,null,null,null,null,null,null,null,null,null,null,null,"QSL","RH5","SOMERSET NHS FOUNDATION TRUST",null,null,null,"RRV","SOUTH TYNESIDE AND SUNDERLAND NHS FOUNDATION TRUST"]
[null,null,null,null,null,null,null,null,null,null,null,null,null,null,null,null,null,null,null,null,"QT1","RK5","SHERWOOD FOREST HOSPITALS NHS FOUNDATION TRUST",null,null,null,"RTD","SOUTH WARWICKSHIRE NHS FOUNDATION TRUST"]
[null,null,null,null,null,null,null,null,null,null,null,null,null,null,null,null,null,null,null,null,"QT1","RX1","NOTTINGHAM UNIVERSITY HOSPITALS NHS TRUST",null,null,null,"RTE","SOUTHPORT AND ORMSKIRK HOSPITAL NHS TRUST"]
[null,null,null,null,null,null,null,null,null,null,null,null,null,null,null,null,null,null,null,null,"QT6","REF","ROYAL CORNWALL HOSPITALS NHS TRUST",null,null,null,"RTF","ST GEORGE'S UNIVERSITY HOSPITALS NHS FOUNDATION TRUST"]
[null,null,null,null,null,null,null,null,null,null,null,null,null,null,null,null,null,null,null,null,"QU9","RHW","ROYAL BERKSHIRE NHS FOUNDATION TRUST",null,null,null,"RTG","ST HELENS AND KNOWSLEY TEACHING HOSPITALS NHS TRUST"]
[null,null,null,null,null,null,null,null,null,null,null,null,null,null,null,null,null,null,null,null,"QU9","RTH","OXFORD UNIVERSITY HOSPITALS NHS FOUNDATION TRUST",null,null,null,"RTH","STOCKPORT NHS FOUNDATION TRUST"]
[null,null,null,null,null,null,null,null,null,null,null,null,null,null,null,null,null,null,null,null,"QU9","RXQ","BUCKINGHAMSHIRE HEALTHCARE NHS TRUST",null,null,null,"RTP","SURREY AND SUSSEX HEALTHCARE NHS TRUST"]
[null,null,null,null,null,null,null,null,null,null,null,null,null,null,null,null,null,null,null,null,"QUA","RXK","SANDWELL AND WEST BIRMINGHAM HOSPITALS NHS TRUST",null,null,null,"RTR","TAMESIDE AND GLOSSOP INTEGRATED CARE NHS FOUNDATION TRUST"]
[null,null,null,null,null,null,null,null,null,null,null,null,null,null,null,null,null,null,null,null,"QUA","RBK","WALSALL HEALTHCARE NHS TRUST",null,null,null,"RTX","THE DUDLEY GROUP NHS FOUNDATION TRUST"]
[null,null,null,null,null,null,null,null,null,null,null,null,null,null,null,null,null,null,null,null,"QUA","RNA","THE DUDLEY GROUP NHS FOUNDATION TRUST",null,null,null,"RVJ","THE HILLINGDON HOSPITALS NHS FOUNDATION TRUST"]
[null,null,null,null,null,null,null,null,null,null,null,null,null,null,null,null,null,null,null,null,"QUE","RGT","CAMBRIDGE UNIVERSITY HOSPITALS NHS FOUNDATION TRUST",null,null,null,"RVR","THE NEWCASTLE UPON TYNE HOSPITALS NHS FOUNDATION TRUST"]
[null,null,null,null,null,null,null,null,null,null,null,null,null,null,null,null,null,null,null,null,"QUE","RGN","NORTH WEST ANGLIA NHS FOUNDATION TRUST",null,null,null,"RVV","THE PRINCESS ALEXANDRA HOSPITAL NHS TRUST"]
[null,null,null,null,null,null,null,null,null,null,null,null,null,null,null,null,null,null,null,null,"QUY","RA7","UNIVERSITY HOSPITALS BRISTOL AND WESTON NHS FOUNDATION TRUST",null,null,null,"RVW","THE QUEEN ELIZABETH HOSPITAL, KING'S LYNN, NHS FOUNDATION TRUST"]
[null,null,null,null,null,null,null,null,null,null,null,null,null,null,null,null,null,null,null,null,"QUY","RVJ","NORTH BRISTOL NHS TRUST",null,null,null,"RVY","THE ROTHERHAM NHS FOUNDATION TRUST"]
[null,null,null,null,null,null,null,null,null,null,null,null,null,null,null,null,null,null,null,null,"QVV","RBD","DORSET COUNTY HOSPITAL NHS FOUNDATION TRUST",null,null,null,"RW6","THE SHREWSBURY AND TELFORD HOSPITAL NHS TRUST"]
[null,null,null,null,null,null,null,null,null,null,null,null,null,null,null,null,null,null,null,null,"QVV","R0D","UNIVERSITY HOSPITALS DORSET NHS FOUNDATION TRUST",null,null,null,"RWA","UNITED LINCOLNSHIRE HOSPITALS NHS TRUST"]
[null,null,null,null,null,null,null,null,null,null,null,null,null,null,null,null,null,null,null,null,"QWE","RAX","KINGSTON HOSPITAL NHS FOUNDATION TRUST",null,null,null,"RWD","UNIVERSITY COLLEGE LONDON HOSPITALS NHS FOUNDATION TRUST"]
[null,null,null,null,null,null,null,null,null,null,null,null,null,null,null,null,null,null,null,null,"QWE","RJ6","CROYDON HEALTH SERVICES NHS TRUST",null,null,null,"RWE","UNIVERSITY HOSPITAL SOUTHAMPTON NHS FOUNDATION TRUST"]
[null,null,null,null,null,null,null,null,null,null,null,null,null,null,null,null,null,null,null,null,"QWE","RJ7","ST GEORGE'S UNIVERSITY HOSPITALS NHS FOUNDATION TRUST",null,null,null,"RWF","UNIVERSITY HOSPITALS BIRMINGHAM NHS FOUNDATION TRUST"]
[null,null,null,null,null,null,null,null,null,null,null,null,null,null,null,null,null,null,null,null,"QWE","RVR","EPSOM AND ST HELIER UNIVERSITY HOSPITALS NHS TRUST",null,null,null,"RWG","UNIVERSITY HOSPITALS BRISTOL AND WESTON NHS FOUNDATION TRUST"]
[null,null,null,null,null,null,null,null,null,null,null,null,null,null,null,null,null,null,null,null,"QWO","RAE","BRADFORD TEACHING HOSPITALS NHS FOUNDATION TRUST",null,null,null,"RWH","UNIVERSITY HOSPITALS COVENTRY AND WARWICKSHIRE NHS TRUST"]
[null,null,null,null,null,null,null,null,null,null,null,null,null,null,null,null,null,null,null,null,"QWO","RCF","AIREDALE NHS FOUNDATION TRUST",null,null,null,"RWJ","UNIVERSITY HOSPITALS DORSET NHS FOUNDATION TRUST"]
[null,null,null,null,null,null,null,null,null,null,null,null,null,null,null,null,null,null,null,null,"QWO","RR8","LEEDS TEACHING HOSPITALS NHS TRUST",null,null,null,"RWP","UNIVERSITY HOSPITALS OF DERBY AND BURTON NHS FOUNDATION TRUST"]
[null,null,null,null,null,null,null,null,null,null,null,null,null,null,null,null,null,null,null,null,"QWO","RXF","MID YORKSHIRE HOSPITALS NHS TRUST",null,null,null,"RWW","UNIVERSITY HOSPITALS OF LEICESTER NHS TRUST"]
[null,null,null,null,null,null,null,null,null,null,null,null,null,null,null,null,null,null,null,null,"QWO","RWY","CALDERDALE AND HUDDERSFIELD NHS FOUNDATION TRUST",null,null,null,"RWY","UNIVERSITY HOSPITALS OF MORECAMBE BAY NHS FOUNDATION TRUST"]
[null,null,null,null,null,null,null,null,null,null,null,null,null,null,null,null,null,null,null,null,"QWU","RKB","UNIVERSITY HOSPITALS COVENTRY AND WARWICKSHIRE NHS TRUST",null,null,null,"RX1","UNIVERSITY HOSPITALS OF NORTH MIDLANDS NHS TRUST"]
[null,null,null,null,null,null,null,null,null,null,null,null,null,null,null,null,null,null,null,null,"QWU","RJC","SOUTH WARWICKSHIRE NHS FOUNDATION TRUST",null,null,null,"RXC","UNIVERSITY HOSPITALS PLYMOUTH NHS TRUST"]
[null,null,null,null,null,null,null,null,null,null,null,null,null,null,null,null,null,null,null,null,"QWU","RLT","GEORGE ELIOT HOSPITAL NHS TRUST",null,null,null,"RXF","WALSALL HEALTHCARE NHS TRUST"]
[null,null,null,null,null,null,null,null,null,null,null,null,null,null,null,null,null,null,null,null,"QXU","RTP","SURREY AND SUSSEX HEALTHCARE NHS TRUST",null,null,null,"RXH","WARRINGTON AND HALTON TEACHING HOSPITALS NHS FOUNDATION TRUST"]
[null,null,null,null,null,null,null,null,null,null,null,null,null,null,null,null,null,null,null,null,"QXU","RA2","ROYAL SURREY COUNTY HOSPITAL NHS FOUNDATION TRUST",null,null,null,"RXK","WEST HERTFORDSHIRE HOSPITALS NHS TRUST"]
[null,null,null,null,null,null,null,null,null,null,null,null,null,null,null,null,null,null,null,null,"QYG","RBL","WIRRAL UNIVERSITY TEACHING HOSPITAL NHS FOUNDATION TRUST",null,null,null,"RXL","WEST SUFFOLK NHS FOUNDATION TRUST"]
[null,null,null,null,null,null,null,null,null,null,null,null,null,null,null,null,null,null,null,null,"QYG","RBT","MID CHESHIRE HOSPITALS NHS FOUNDATION TRUST",null,null,null,"RXN","WESTERN SUSSEX HOSPITALS NHS FOUNDATION TRUST"]
[null,null,null,null,null,null,null,null,null,null,null,null,null,null,null,null,null,null,null,null,"QYG","REP","LIVERPOOL WOMEN'S NHS FOUNDATION TRUST",null,null,null,"RXP","WHITTINGTON HEALTH NHS TRUST"]
[null,null,null,null,null,null,null,null,null,null,null,null,null,null,null,null,null,null,null,null,"QYG","RJN","EAST CHESHIRE NHS TRUST",null,null,null,"RXQ","WIRRAL UNIVERSITY TEACHING HOSPITAL NHS FOUNDATION TRUST"]
[null,null,null,null,null,null,null,null,null,null,null,null,null,null,null,null,null,null,null,null,"QYG","RVY","SOUTHPORT AND ORMSKIRK HOSPITAL NHS TRUST",null,null,null,"RXR","WORCESTERSHIRE ACUTE HOSPITALS NHS TRUST"]
[null,null,null,null,null,null,null,null,null,null,null,null,null,null,null,null,null,null,null,null,"QYG","RWW","WARRINGTON AND HALTON TEACHING HOSPITALS NHS FOUNDATION TRUST",null,null,null,"RXW","WRIGHTINGTON, WIGAN AND LEIGH NHS FOUNDATION TRUST"]
[null,null,null,null,null,null,null,null,null,null,null,null,null,null,null,null,null,null,null,null,"QYG","RY2","BRIDGEWATER COMMUNITY HEALTHCARE NHS FOUNDATION TRUST",null,null,null,"RY2","WYE VALLEY NHS TRUST"]
[null,null,null,null,null,null,null,null,null,null,null,null,null,null,null,null,null,null,null,null,"QYG","RJR","COUNTESS OF CHESTER HOSPITAL NHS FOUNDATION TRUST",null,null,null,"RYJ","YEOVIL DISTRICT HOSPITAL NHS FOUNDATION TRUST"]
[null,null,null,null,null,null,null,null,null,null,null,null,null,null,null,null,null,null,null,null,"QYG","RBN","ST HELENS AND KNOWSLEY TEACHING HOSPITALS NHS TRUST",null,null,null,"RYR","YORK TEACHING HOSPITAL NHS FOUNDATION TRUST"]